Workbook

Sheet KORADO (hidden)
B9: =Jazyk!D74 -> ИЗЧИСЛЯВАНЕ НА ТОПЛИННАТА МОЩНОСТ НА КОРАТЕРМ
B14: KORATHERM HORIZONTAL | D14: KORATHERM HORIZONTAL - M | F14: KORATHERM HORIZONTAL VKM | H14: KORATHERM VERTIKAL | J14: KORATHERM VERTIKAL - M | L14: KORATHERM REFLEX
A31: (c) KORADO

Sheet Horizontal
B1: =logic!$B$2 -> KORATHERM HORIZONTAL
B3: =Jazyk!J4 -> Избор на модел: | G3: =Jazyk!P4 -> Детайлен избор
L4: =Jazyk!K4&" "&Jazyk!H4 -> Топлинна мощност от | N4: ="W "&Jazyk!I4 -> W до | P4: W
L5: =Jazyk!F4&" "&Jazyk!H4 -> Височина от | M5: =logic!B23 -> всичко | N5: ="mm "&Jazyk!I4 -> mm до | O5: =logic!B35 -> всичко | P5: mm
C6: =Jazyk!Q4 -> Въвеждане на стойности | L6: =Jazyk!G4&" "&Jazyk!H4 -> Дължина от | M6: =logic!B47 -> всичко | N6: ="mm "&Jazyk!I4 -> mm до | O6: =logic!B66 -> всичко | P6: mm
D7: t 1 | E7: t 2 | F7: t i | G7: D T | W7: =IF(X7=0,0,Jazyk!X4) -> 0 | X7: =MAX(Databaze!A:A) -> 0
C8: =Jazyk!L4 -> Температура: | D8: 75 | E8: 65 | F8: 20 | G8: =(D8+E8)/2-F8 -> 50
D9: =Jazyk!E4 -> Топлинни мощности според ЕН 442
D10: =IF(AND($M$5=Jazyk!$D$4,$O$5=Jazyk!$D$4),1,IF(AND(D11>=$M$5,D11<=$O$5),1,0)) -> 1 | E10: =IF(AND($M$5=Jazyk!$D$4,$O$5=Jazyk!$D$4),1,IF(AND(E11>=$M$5,E11<=$O$5),1,0)) -> 1 | F10: =IF(AND($M$5=Jazyk!$D$4,$O$5=Jazyk!$D$4),1,IF(AND(F11>=$M$5,F11<=$O$5),1,0)) -> 1 | G10: =IF(AND($M$5=Jazyk!$D$4,$O$5=Jazyk!$D$4),1,IF(AND(G11>=$M$5,G11<=$O$5),1,0)) -> 1 | H10: =IF(AND($M$5=Jazyk!$D$4,$O$5=Jazyk!$D$4),1,IF(AND(H11>=$M$5,H11<=$O$5),1,0)) -> 1 | I10: =IF(AND($M$5=Jazyk!$D$4,$O$5=Jazyk!$D$4),1,IF(AND(I11>=$M$5,I11<=$O$5),1,0)) -> 1 | J10: =IF(AND($M$5=Jazyk!$D$4,$O$5=Jazyk!$D$4),1,IF(AND(J11>=$M$5,J11<=$O$5),1,0)) -> 1 | K10: =IF(AND($M$5=Jazyk!$D$4,$O$5=Jazyk!$D$4),1,IF(AND(K11>=$M$5,K11<=$O$5),1,0)) -> 1 | L10: =IF(AND($M$5=Jazyk!$D$4,$O$5=Jazyk!$D$4),1,IF(AND(L11>=$M$5,L11<=$O$5),1,0)) -> 1 | M10: =IF(AND($M$5=Jazyk!$D$4,$O$5=Jazyk!$D$4),1,IF(AND(M11>=$M$5,M11<=$O$5),1,0)) -> 1 | N10: =IF(AND($M$5=Jazyk!$D$4,$O$5=Jazyk!$D$4),1,IF(AND(N11>=$M$5,N11<=$O$5),1,0)) -> 1 | O10: =IF(AND($M$5=Jazyk!$D$4,$O$5=Jazyk!$D$4),1,IF(AND(O11>=$M$5,O11<=$O$5),1,0)) -> 1 | P10: =IF(AND($M$5=Jazyk!$D$4,$O$5=Jazyk!$D$4),1,IF(AND(P11>=$M$5,P11<=$O$5),1,0)) -> 1 | Q10: =IF(AND($M$5=Jazyk!$D$4,$O$5=Jazyk!$D$4),1,IF(AND(Q11>=$M$5,Q11<=$O$5),1,0)) -> 1 | R10: =IF(AND($M$5=Jazyk!$D$4,$O$5=Jazyk!$D$4),1,IF(AND(R11>=$M$5,R11<=$O$5),1,0)) -> 1 | S10: =IF(AND($M$5=Jazyk!$D$4,$O$5=Jazyk!$D$4),1,IF(AND(S11>=$M$5,S11<=$O$5),1,0)) -> 1
B11: =Jazyk!$G$27 -> Височина [mm] | D11: =F11 -> 144 | E11: =F11 -> 144 | F11: ='Qn H'!$G$3 -> 144 | G11: =F11 -> 144 | H11: =F11 -> 144 | I11: =F11 -> 144 | J11: =F11 -> 144 | K11: =F11 -> 144 | L11: =N11 -> 218 | M11: =N11 -> 218 | N11: ='Qn H'!$O$3 -> 218 | O11: =N11 -> 218 | P11: =N11 -> 218 | Q11: =N11 -> 218 | R11: =N11 -> 218 | S11: =N11 -> 218
B12: =Jazyk!$H$27 -> Дължина [mm] | D12: ='Qn H'!E4 -> K10H | E12: ='Qn H'!F4 -> K11H | F12: ='Qn H'!G4 -> K20H | G12: ='Qn H'!H4 -> K21H | H12: ='Qn H'!I4 -> K22H | I12: ='Qn H'!J4 -> K23H | J12: ='Qn H'!K4 -> K44H | K12: ='Qn H'!L4 -> K46H | L12: ='Qn H'!M4 -> K10H | M12: ='Qn H'!N4 -> K11H | N12: ='Qn H'!O4 -> K20H | O12: ='Qn H'!P4 -> K21H | P12: ='Qn H'!Q4 -> K22H | Q12: ='Qn H'!R4 -> K23H | R12: ='Qn H'!S4 -> K44H | S12: ='Qn H'!T4 -> K46H
A13: =IF(AND($M$6=Jazyk!$D$4,$O$6=Jazyk!$D$4),1,IF(AND(B13>=$M$6,B13<=$O$6),1,0)) -> 1 | B13: 500 | D13: =IF(OR(D$10=0,$A13=0),0,IF('Predek KH'!Y9=0,0,IF(logic!$A$88=0,0,ROUND('Predek KH'!D9,0)))) -> 100 | E13: =IF(OR(E$10=0,$A13=0),0,IF('Predek KH'!Z9=0,0,IF(logic!$A$88=0,0,ROUND('Predek KH'!E9,0)))) -> 145 | F13: =IF(OR(F$10=0,$A13=0),0,IF('Predek KH'!AA9=0,0,IF(logic!$A$88=0,0,ROUND('Predek KH'!F9,0)))) -> 159 | G13: =IF(OR(G$10=0,$A13=0),0,IF('Predek KH'!AB9=0,0,IF(logic!$A$88=0,0,ROUND('Predek KH'!G9,0)))) -> 209 | H13: =IF(OR(H$10=0,$A13=0),0,IF('Predek KH'!AC9=0,0,IF(logic!$A$88=0,0,ROUND('Predek KH'!H9,0)))) -> 267 | I13: =IF(OR(I$10=0,$A13=0),0,IF('Predek KH'!AD9=0,0,IF(logic!$A$88=0,0,ROUND('Predek KH'!I9,0)))) -> 290 | J13: =IF(OR(J$10=0,$A13=0),0,IF('Predek KH'!AE9=0,0,IF(logic!$A$88=0,0,ROUND('Predek KH'!J9,0)))) -> 496 | K13: =IF(OR(K$10=0,$A13=0),0,IF('Predek KH'!AF9=0,0,IF(logic!$A$88=0,0,ROUND('Predek KH'!K9,0)))) -> 584 | L13: =IF(OR(L$10=0,$A13=0),0,IF('Predek KH'!AG9=0,0,IF(logic!$A$88=0,0,ROUND('Predek KH'!L9,0)))) -> 133 | M13: =IF(OR(M$10=0,$A13=0),0,IF('Predek KH'!AH9=0,0,IF(logic!$A$88=0,0,ROUND('Predek KH'!M9,0)))) -> 206 | N13: =IF(OR(N$10=0,$A13=0),0,IF('Predek KH'!AI9=0,0,IF(logic!$A$88=0,0,ROUND('Predek KH'!N9,0)))) -> 220 | O13: =IF(OR(O$10=0,$A13=0),0,IF('Predek KH'!AJ9=0,0,IF(logic!$A$88=0,0,ROUND('Predek KH'!O9,0)))) -> 291 | P13: =IF(OR(P$10=0,$A13=0),0,IF('Predek KH'!AK9=0,0,IF(logic!$A$88=0,0,ROUND('Predek KH'!P9,0)))) -> 375 | Q13: =IF(OR(Q$10=0,$A13=0),0,IF('Predek KH'!AL9=0,0,IF(logic!$A$88=0,0,ROUND('Predek KH'!Q9,0)))) -> 432 | R13: =IF(OR(R$10=0,$A13=0),0,IF('Predek KH'!AM9=0,0,IF(logic!$A$88=0,0,ROUND('Predek KH'!R9,0)))) -> 705 | S13: =IF(OR(S$10=0,$A13=0),0,IF('Predek KH'!AN9=0,0,IF(logic!$A$88=0,0,ROUND('Predek KH'!S9,0)))) -> 853
A14: =IF(AND($M$6=Jazyk!$D$4,$O$6=Jazyk!$D$4),1,IF(AND(B14>=$M$6,B14<=$O$6),1,0)) -> 1 | B14: 600 | D14: =IF(OR(D$10=0,$A14=0),0,IF('Predek KH'!Y10=0,0,IF(logic!$A$88=0,0,ROUND('Predek KH'!D10,0)))) -> 119 | E14: =IF(OR(E$10=0,$A14=0),0,IF('Predek KH'!Z10=0,0,IF(logic!$A$88=0,0,ROUND('Predek KH'!E10,0)))) -> 173 | F14: =IF(OR(F$10=0,$A14=0),0,IF('Predek KH'!AA10=0,0,IF(logic!$A$88=0,0,ROUND('Predek KH'!F10,0)))) -> 191 | G14: =IF(OR(G$10=0,$A14=0),0,IF('Predek KH'!AB10=0,0,IF(logic!$A$88=0,0,ROUND('Predek KH'!G10,0)))) -> 250 | H14: =IF(OR(H$10=0,$A14=0),0,IF('Predek KH'!AC10=0,0,IF(logic!$A$88=0,0,ROUND('Predek KH'!H10,0)))) -> 320 | I14: =IF(OR(I$10=0,$A14=0),0,IF('Predek KH'!AD10=0,0,IF(logic!$A$88=0,0,ROUND('Predek KH'!I10,0)))) -> 347 | J14: =IF(OR(J$10=0,$A14=0),0,IF('Predek KH'!AE10=0,0,IF(logic!$A$88=0,0,ROUND('Predek KH'!J10,0)))) -> 595 | K14: =IF(OR(K$10=0,$A14=0),0,IF('Predek KH'!AF10=0,0,IF(logic!$A$88=0,0,ROUND('Predek KH'!K10,0)))) -> 700 | L14: =IF(OR(L$10=0,$A14=0),0,IF('Predek KH'!AG10=0,0,IF(logic!$A$88=0,0,ROUND('Predek KH'!L10,0)))) -> 160 | M14: =IF(OR(M$10=0,$A14=0),0,IF('Predek KH'!AH10=0,0,IF(logic!$A$88=0,0,ROUND('Predek KH'!M10,0)))) -> 247 | N14: =IF(OR(N$10=0,$A14=0),0,IF('Predek KH'!AI10=0,0,IF(logic!$A$88=0,0,ROUND('Predek KH'!N10,0)))) -> 263 | O14: =IF(OR(O$10=0,$A14=0),0,IF('Predek KH'!AJ10=0,0,IF(logic!$A$88=0,0,ROUND('Predek KH'!O10,0)))) -> 349 | P14: =IF(OR(P$10=0,$A14=0),0,IF('Predek KH'!AK10=0,0,IF(logic!$A$88=0,0,ROUND('Predek KH'!P10,0)))) -> 449 | Q14: =IF(OR(Q$10=0,$A14=0),0,IF('Predek KH'!AL10=0,0,IF(logic!$A$88=0,0,ROUND('Predek KH'!Q10,0)))) -> 518 | R14: =IF(OR(R$10=0,$A14=0),0,IF('Predek KH'!AM10=0,0,IF(logic!$A$88=0,0,ROUND('Predek KH'!R10,0)))) -> 845 | S14: =IF(OR(S$10=0,$A14=0),0,IF('Predek KH'!AN10=0,0,IF(logic!$A$88=0,0,ROUND('Predek KH'!S10,0)))) -> 1023
A15: =IF(AND($M$6=Jazyk!$D$4,$O$6=Jazyk!$D$4),1,IF(AND(B15>=$M$6,B15<=$O$6),1,0)) -> 1 | B15: 700 | D15: =IF(OR(D$10=0,$A15=0),0,IF('Predek KH'!Y11=0,0,IF(logic!$A$88=0,0,ROUND('Predek KH'!D11,0)))) -> 139 | E15: =IF(OR(E$10=0,$A15=0),0,IF('Predek KH'!Z11=0,0,IF(logic!$A$88=0,0,ROUND('Predek KH'!E11,0)))) -> 202 | F15: =IF(OR(F$10=0,$A15=0),0,IF('Predek KH'!AA11=0,0,IF(logic!$A$88=0,0,ROUND('Predek KH'!F11,0)))) -> 223 | G15: =IF(OR(G$10=0,$A15=0),0,IF('Predek KH'!AB11=0,0,IF(logic!$A$88=0,0,ROUND('Predek KH'!G11,0)))) -> 292 | H15: =IF(OR(H$10=0,$A15=0),0,IF('Predek KH'!AC11=0,0,IF(logic!$A$88=0,0,ROUND('Predek KH'!H11,0)))) -> 374 | I15: =IF(OR(I$10=0,$A15=0),0,IF('Predek KH'!AD11=0,0,IF(logic!$A$88=0,0,ROUND('Predek KH'!I11,0)))) -> 405 | J15: =IF(OR(J$10=0,$A15=0),0,IF('Predek KH'!AE11=0,0,IF(logic!$A$88=0,0,ROUND('Predek KH'!J11,0)))) -> 694 | K15: =IF(OR(K$10=0,$A15=0),0,IF('Predek KH'!AF11=0,0,IF(logic!$A$88=0,0,ROUND('Predek KH'!K11,0)))) -> 817 | L15: =IF(OR(L$10=0,$A15=0),0,IF('Predek KH'!AG11=0,0,IF(logic!$A$88=0,0,ROUND('Predek KH'!L11,0)))) -> 186 | M15: =IF(OR(M$10=0,$A15=0),0,IF('Predek KH'!AH11=0,0,IF(logic!$A$88=0,0,ROUND('Predek KH'!M11,0)))) -> 288 | N15: =IF(OR(N$10=0,$A15=0),0,IF('Predek KH'!AI11=0,0,IF(logic!$A$88=0,0,ROUND('Predek KH'!N11,0)))) -> 307 | O15: =IF(OR(O$10=0,$A15=0),0,IF('Predek KH'!AJ11=0,0,IF(logic!$A$88=0,0,ROUND('Predek KH'!O11,0)))) -> 407 | P15: =IF(OR(P$10=0,$A15=0),0,IF('Predek KH'!AK11=0,0,IF(logic!$A$88=0,0,ROUND('Predek KH'!P11,0)))) -> 524 | Q15: =IF(OR(Q$10=0,$A15=0),0,IF('Predek KH'!AL11=0,0,IF(logic!$A$88=0,0,ROUND('Predek KH'!Q11,0)))) -> 604 | R15: =IF(OR(R$10=0,$A15=0),0,IF('Predek KH'!AM11=0,0,IF(logic!$A$88=0,0,ROUND('Predek KH'!R11,0)))) -> 986 | S15: =IF(OR(S$10=0,$A15=0),0,IF('Predek KH'!AN11=0,0,IF(logic!$A$88=0,0,ROUND('Predek KH'!S11,0)))) -> 1194
A16: =IF(AND($M$6=Jazyk!$D$4,$O$6=Jazyk!$D$4),1,IF(AND(B16>=$M$6,B16<=$O$6),1,0)) -> 1 | B16: 800 | D16: =IF(OR(D$10=0,$A16=0),0,IF('Predek KH'!Y12=0,0,IF(logic!$A$88=0,0,ROUND('Predek KH'!D12,0)))) -> 159 | E16: =IF(OR(E$10=0,$A16=0),0,IF('Predek KH'!Z12=0,0,IF(logic!$A$88=0,0,ROUND('Predek KH'!E12,0)))) -> 231 | F16: =IF(OR(F$10=0,$A16=0),0,IF('Predek KH'!AA12=0,0,IF(logic!$A$88=0,0,ROUND('Predek KH'!F12,0)))) -> 254 | G16: =IF(OR(G$10=0,$A16=0),0,IF('Predek KH'!AB12=0,0,IF(logic!$A$88=0,0,ROUND('Predek KH'!G12,0)))) -> 334 | H16: =IF(OR(H$10=0,$A16=0),0,IF('Predek KH'!AC12=0,0,IF(logic!$A$88=0,0,ROUND('Predek KH'!H12,0)))) -> 427 | I16: =IF(OR(I$10=0,$A16=0),0,IF('Predek KH'!AD12=0,0,IF(logic!$A$88=0,0,ROUND('Predek KH'!I12,0)))) -> 463 | J16: =IF(OR(J$10=0,$A16=0),0,IF('Predek KH'!AE12=0,0,IF(logic!$A$88=0,0,ROUND('Predek KH'!J12,0)))) -> 794 | K16: =IF(OR(K$10=0,$A16=0),0,IF('Predek KH'!AF12=0,0,IF(logic!$A$88=0,0,ROUND('Predek KH'!K12,0)))) -> 934 | L16: =IF(OR(L$10=0,$A16=0),0,IF('Predek KH'!AG12=0,0,IF(logic!$A$88=0,0,ROUND('Predek KH'!L12,0)))) -> 213 | M16: =IF(OR(M$10=0,$A16=0),0,IF('Predek KH'!AH12=0,0,IF(logic!$A$88=0,0,ROUND('Predek KH'!M12,0)))) -> 329 | N16: =IF(OR(N$10=0,$A16=0),0,IF('Predek KH'!AI12=0,0,IF(logic!$A$88=0,0,ROUND('Predek KH'!N12,0)))) -> 351 | O16: =IF(OR(O$10=0,$A16=0),0,IF('Predek KH'!AJ12=0,0,IF(logic!$A$88=0,0,ROUND('Predek KH'!O12,0)))) -> 465 | P16: =IF(OR(P$10=0,$A16=0),0,IF('Predek KH'!AK12=0,0,IF(logic!$A$88=0,0,ROUND('Predek KH'!P12,0)))) -> 599 | Q16: =IF(OR(Q$10=0,$A16=0),0,IF('Predek KH'!AL12=0,0,IF(logic!$A$88=0,0,ROUND('Predek KH'!Q12,0)))) -> 690 | R16: =IF(OR(R$10=0,$A16=0),0,IF('Predek KH'!AM12=0,0,IF(logic!$A$88=0,0,ROUND('Predek KH'!R12,0)))) -> 1127 | S16: =IF(OR(S$10=0,$A16=0),0,IF('Predek KH'!AN12=0,0,IF(logic!$A$88=0,0,ROUND('Predek KH'!S12,0)))) -> 1364
A17: =IF(AND($M$6=Jazyk!$D$4,$O$6=Jazyk!$D$4),1,IF(AND(B17>=$M$6,B17<=$O$6),1,0)) -> 1 | B17: 900 | D17: =IF(OR(D$10=0,$A17=0),0,IF('Predek KH'!Y13=0,0,IF(logic!$A$88=0,0,ROUND('Predek KH'!D13,0)))) -> 179 | E17: =IF(OR(E$10=0,$A17=0),0,IF('Predek KH'!Z13=0,0,IF(logic!$A$88=0,0,ROUND('Predek KH'!E13,0)))) -> 260 | F17: =IF(OR(F$10=0,$A17=0),0,IF('Predek KH'!AA13=0,0,IF(logic!$A$88=0,0,ROUND('Predek KH'!F13,0)))) -> 286 | G17: =IF(OR(G$10=0,$A17=0),0,IF('Predek KH'!AB13=0,0,IF(logic!$A$88=0,0,ROUND('Predek KH'!G13,0)))) -> 375 | H17: =IF(OR(H$10=0,$A17=0),0,IF('Predek KH'!AC13=0,0,IF(logic!$A$88=0,0,ROUND('Predek KH'!H13,0)))) -> 481 | I17: =IF(OR(I$10=0,$A17=0),0,IF('Predek KH'!AD13=0,0,IF(logic!$A$88=0,0,ROUND('Predek KH'!I13,0)))) -> 521 | J17: =IF(OR(J$10=0,$A17=0),0,IF('Predek KH'!AE13=0,0,IF(logic!$A$88=0,0,ROUND('Predek KH'!J13,0)))) -> 893 | K17: =IF(OR(K$10=0,$A17=0),0,IF('Predek KH'!AF13=0,0,IF(logic!$A$88=0,0,ROUND('Predek KH'!K13,0)))) -> 1050 | L17: =IF(OR(L$10=0,$A17=0),0,IF('Predek KH'!AG13=0,0,IF(logic!$A$88=0,0,ROUND('Predek KH'!L13,0)))) -> 239 | M17: =IF(OR(M$10=0,$A17=0),0,IF('Predek KH'!AH13=0,0,IF(logic!$A$88=0,0,ROUND('Predek KH'!M13,0)))) -> 370 | N17: =IF(OR(N$10=0,$A17=0),0,IF('Predek KH'!AI13=0,0,IF(logic!$A$88=0,0,ROUND('Predek KH'!N13,0)))) -> 395 | O17: =IF(OR(O$10=0,$A17=0),0,IF('Predek KH'!AJ13=0,0,IF(logic!$A$88=0,0,ROUND('Predek KH'!O13,0)))) -> 523 | P17: =IF(OR(P$10=0,$A17=0),0,IF('Predek KH'!AK13=0,0,IF(logic!$A$88=0,0,ROUND('Predek KH'!P13,0)))) -> 674 | Q17: =IF(OR(Q$10=0,$A17=0),0,IF('Predek KH'!AL13=0,0,IF(logic!$A$88=0,0,ROUND('Predek KH'!Q13,0)))) -> 777 | R17: =IF(OR(R$10=0,$A17=0),0,IF('Predek KH'!AM13=0,0,IF(logic!$A$88=0,0,ROUND('Predek KH'!R13,0)))) -> 1268 | S17: =IF(OR(S$10=0,$A17=0),0,IF('Predek KH'!AN13=0,0,IF(logic!$A$88=0,0,ROUND('Predek KH'!S13,0)))) -> 1535
A18: =IF(AND($M$6=Jazyk!$D$4,$O$6=Jazyk!$D$4),1,IF(AND(B18>=$M$6,B18<=$O$6),1,0)) -> 1 | B18: 1000 | D18: =IF(OR(D$10=0,$A18=0),0,IF('Predek KH'!Y14=0,0,IF(logic!$A$88=0,0,ROUND('Predek KH'!D14,0)))) -> 199 | E18: =IF(OR(E$10=0,$A18=0),0,IF('Predek KH'!Z14=0,0,IF(logic!$A$88=0,0,ROUND('Predek KH'!E14,0)))) -> 289 | F18: =IF(OR(F$10=0,$A18=0),0,IF('Predek KH'!AA14=0,0,IF(logic!$A$88=0,0,ROUND('Predek KH'!F14,0)))) -> 318 | G18: =IF(OR(G$10=0,$A18=0),0,IF('Predek KH'!AB14=0,0,IF(logic!$A$88=0,0,ROUND('Predek KH'!G14,0)))) -> 417 | H18: =IF(OR(H$10=0,$A18=0),0,IF('Predek KH'!AC14=0,0,IF(logic!$A$88=0,0,ROUND('Predek KH'!H14,0)))) -> 534 | I18: =IF(OR(I$10=0,$A18=0),0,IF('Predek KH'!AD14=0,0,IF(logic!$A$88=0,0,ROUND('Predek KH'!I14,0)))) -> 579 | J18: =IF(OR(J$10=0,$A18=0),0,IF('Predek KH'!AE14=0,0,IF(logic!$A$88=0,0,ROUND('Predek KH'!J14,0)))) -> 992 | K18: =IF(OR(K$10=0,$A18=0),0,IF('Predek KH'!AF14=0,0,IF(logic!$A$88=0,0,ROUND('Predek KH'!K14,0)))) -> 1167 | L18: =IF(OR(L$10=0,$A18=0),0,IF('Predek KH'!AG14=0,0,IF(logic!$A$88=0,0,ROUND('Predek KH'!L14,0)))) -> 266 | M18: =IF(OR(M$10=0,$A18=0),0,IF('Predek KH'!AH14=0,0,IF(logic!$A$88=0,0,ROUND('Predek KH'!M14,0)))) -> 411 | N18: =IF(OR(N$10=0,$A18=0),0,IF('Predek KH'!AI14=0,0,IF(logic!$A$88=0,0,ROUND('Predek KH'!N14,0)))) -> 439 | O18: =IF(OR(O$10=0,$A18=0),0,IF('Predek KH'!AJ14=0,0,IF(logic!$A$88=0,0,ROUND('Predek KH'!O14,0)))) -> 581 | P18: =IF(OR(P$10=0,$A18=0),0,IF('Predek KH'!AK14=0,0,IF(logic!$A$88=0,0,ROUND('Predek KH'!P14,0)))) -> 749 | Q18: =IF(OR(Q$10=0,$A18=0),0,IF('Predek KH'!AL14=0,0,IF(logic!$A$88=0,0,ROUND('Predek KH'!Q14,0)))) -> 863 | R18: =IF(OR(R$10=0,$A18=0),0,IF('Predek KH'!AM14=0,0,IF(logic!$A$88=0,0,ROUND('Predek KH'!R14,0)))) -> 1409 | S18: =IF(OR(S$10=0,$A18=0),0,IF('Predek KH'!AN14=0,0,IF(logic!$A$88=0,0,ROUND('Predek KH'!S14,0)))) -> 1705
A19: =IF(AND($M$6=Jazyk!$D$4,$O$6=Jazyk!$D$4),1,IF(AND(B19>=$M$6,B19<=$O$6),1,0)) -> 1 | B19: 1100 | D19: =IF(OR(D$10=0,$A19=0),0,IF('Predek KH'!Y15=0,0,IF(logic!$A$88=0,0,ROUND('Predek KH'!D15,0)))) -> 219 | E19: =IF(OR(E$10=0,$A19=0),0,IF('Predek KH'!Z15=0,0,IF(logic!$A$88=0,0,ROUND('Predek KH'!E15,0)))) -> 318 | F19: =IF(OR(F$10=0,$A19=0),0,IF('Predek KH'!AA15=0,0,IF(logic!$A$88=0,0,ROUND('Predek KH'!F15,0)))) -> 350 | G19: =IF(OR(G$10=0,$A19=0),0,IF('Predek KH'!AB15=0,0,IF(logic!$A$88=0,0,ROUND('Predek KH'!G15,0)))) -> 459 | H19: =IF(OR(H$10=0,$A19=0),0,IF('Predek KH'!AC15=0,0,IF(logic!$A$88=0,0,ROUND('Predek KH'!H15,0)))) -> 587 | I19: =IF(OR(I$10=0,$A19=0),0,IF('Predek KH'!AD15=0,0,IF(logic!$A$88=0,0,ROUND('Predek KH'!I15,0)))) -> 637 | J19: =IF(OR(J$10=0,$A19=0),0,IF('Predek KH'!AE15=0,0,IF(logic!$A$88=0,0,ROUND('Predek KH'!J15,0)))) -> 1091 | K19: =IF(OR(K$10=0,$A19=0),0,IF('Predek KH'!AF15=0,0,IF(logic!$A$88=0,0,ROUND('Predek KH'!K15,0)))) -> 1284 | L19: =IF(OR(L$10=0,$A19=0),0,IF('Predek KH'!AG15=0,0,IF(logic!$A$88=0,0,ROUND('Predek KH'!L15,0)))) -> 293 | M19: =IF(OR(M$10=0,$A19=0),0,IF('Predek KH'!AH15=0,0,IF(logic!$A$88=0,0,ROUND('Predek KH'!M15,0)))) -> 452 | N19: =IF(OR(N$10=0,$A19=0),0,IF('Predek KH'!AI15=0,0,IF(logic!$A$88=0,0,ROUND('Predek KH'!N15,0)))) -> 483 | O19: =IF(OR(O$10=0,$A19=0),0,IF('Predek KH'!AJ15=0,0,IF(logic!$A$88=0,0,ROUND('Predek KH'!O15,0)))) -> 639 | P19: =IF(OR(P$10=0,$A19=0),0,IF('Predek KH'!AK15=0,0,IF(logic!$A$88=0,0,ROUND('Predek KH'!P15,0)))) -> 824 | Q19: =IF(OR(Q$10=0,$A19=0),0,IF('Predek KH'!AL15=0,0,IF(logic!$A$88=0,0,ROUND('Predek KH'!Q15,0)))) -> 949 | R19: =IF(OR(R$10=0,$A19=0),0,IF('Predek KH'!AM15=0,0,IF(logic!$A$88=0,0,ROUND('Predek KH'!R15,0)))) -> 1550 | S19: =IF(OR(S$10=0,$A19=0),0,IF('Predek KH'!AN15=0,0,IF(logic!$A$88=0,0,ROUND('Predek KH'!S15,0)))) -> 1876
A20: =IF(AND($M$6=Jazyk!$D$4,$O$6=Jazyk!$D$4),1,IF(AND(B20>=$M$6,B20<=$O$6),1,0)) -> 1 | B20: 1200 | D20: =IF(OR(D$10=0,$A20=0),0,IF('Predek KH'!Y16=0,0,IF(logic!$A$88=0,0,ROUND('Predek KH'!D16,0)))) -> 239 | E20: =IF(OR(E$10=0,$A20=0),0,IF('Predek KH'!Z16=0,0,IF(logic!$A$88=0,0,ROUND('Predek KH'!E16,0)))) -> 347 | F20: =IF(OR(F$10=0,$A20=0),0,IF('Predek KH'!AA16=0,0,IF(logic!$A$88=0,0,ROUND('Predek KH'!F16,0)))) -> 382 | G20: =IF(OR(G$10=0,$A20=0),0,IF('Predek KH'!AB16=0,0,IF(logic!$A$88=0,0,ROUND('Predek KH'!G16,0)))) -> 500 | H20: =IF(OR(H$10=0,$A20=0),0,IF('Predek KH'!AC16=0,0,IF(logic!$A$88=0,0,ROUND('Predek KH'!H16,0)))) -> 641 | I20: =IF(OR(I$10=0,$A20=0),0,IF('Predek KH'!AD16=0,0,IF(logic!$A$88=0,0,ROUND('Predek KH'!I16,0)))) -> 695 | J20: =IF(OR(J$10=0,$A20=0),0,IF('Predek KH'!AE16=0,0,IF(logic!$A$88=0,0,ROUND('Predek KH'!J16,0)))) -> 1190 | K20: =IF(OR(K$10=0,$A20=0),0,IF('Predek KH'!AF16=0,0,IF(logic!$A$88=0,0,ROUND('Predek KH'!K16,0)))) -> 1400 | L20: =IF(OR(L$10=0,$A20=0),0,IF('Predek KH'!AG16=0,0,IF(logic!$A$88=0,0,ROUND('Predek KH'!L16,0)))) -> 319 | M20: =IF(OR(M$10=0,$A20=0),0,IF('Predek KH'!AH16=0,0,IF(logic!$A$88=0,0,ROUND('Predek KH'!M16,0)))) -> 493 | N20: =IF(OR(N$10=0,$A20=0),0,IF('Predek KH'!AI16=0,0,IF(logic!$A$88=0,0,ROUND('Predek KH'!N16,0)))) -> 527 | O20: =IF(OR(O$10=0,$A20=0),0,IF('Predek KH'!AJ16=0,0,IF(logic!$A$88=0,0,ROUND('Predek KH'!O16,0)))) -> 697 | P20: =IF(OR(P$10=0,$A20=0),0,IF('Predek KH'!AK16=0,0,IF(logic!$A$88=0,0,ROUND('Predek KH'!P16,0)))) -> 899 | Q20: =IF(OR(Q$10=0,$A20=0),0,IF('Predek KH'!AL16=0,0,IF(logic!$A$88=0,0,ROUND('Predek KH'!Q16,0)))) -> 1036 | R20: =IF(OR(R$10=0,$A20=0),0,IF('Predek KH'!AM16=0,0,IF(logic!$A$88=0,0,ROUND('Predek KH'!R16,0)))) -> 1691 | S20: =IF(OR(S$10=0,$A20=0),0,IF('Predek KH'!AN16=0,0,IF(logic!$A$88=0,0,ROUND('Predek KH'!S16,0)))) -> 2046
A21: =IF(AND($M$6=Jazyk!$D$4,$O$6=Jazyk!$D$4),1,IF(AND(B21>=$M$6,B21<=$O$6),1,0)) -> 1 | B21: 1400 | D21: =IF(OR(D$10=0,$A21=0),0,IF('Predek KH'!Y17=0,0,IF(logic!$A$88=0,0,ROUND('Predek KH'!D17,0)))) -> 279 | E21: =IF(OR(E$10=0,$A21=0),0,IF('Predek KH'!Z17=0,0,IF(logic!$A$88=0,0,ROUND('Predek KH'!E17,0)))) -> 405 | F21: =IF(OR(F$10=0,$A21=0),0,IF('Predek KH'!AA17=0,0,IF(logic!$A$88=0,0,ROUND('Predek KH'!F17,0)))) -> 445 | G21: =IF(OR(G$10=0,$A21=0),0,IF('Predek KH'!AB17=0,0,IF(logic!$A$88=0,0,ROUND('Predek KH'!G17,0)))) -> 584 | H21: =IF(OR(H$10=0,$A21=0),0,IF('Predek KH'!AC17=0,0,IF(logic!$A$88=0,0,ROUND('Predek KH'!H17,0)))) -> 748 | I21: =IF(OR(I$10=0,$A21=0),0,IF('Predek KH'!AD17=0,0,IF(logic!$A$88=0,0,ROUND('Predek KH'!I17,0)))) -> 811 | J21: =IF(OR(J$10=0,$A21=0),0,IF('Predek KH'!AE17=0,0,IF(logic!$A$88=0,0,ROUND('Predek KH'!J17,0)))) -> 1389 | K21: =IF(OR(K$10=0,$A21=0),0,IF('Predek KH'!AF17=0,0,IF(logic!$A$88=0,0,ROUND('Predek KH'!K17,0)))) -> 1634 | L21: =IF(OR(L$10=0,$A21=0),0,IF('Predek KH'!AG17=0,0,IF(logic!$A$88=0,0,ROUND('Predek KH'!L17,0)))) -> 372 | M21: =IF(OR(M$10=0,$A21=0),0,IF('Predek KH'!AH17=0,0,IF(logic!$A$88=0,0,ROUND('Predek KH'!M17,0)))) -> 575 | N21: =IF(OR(N$10=0,$A21=0),0,IF('Predek KH'!AI17=0,0,IF(logic!$A$88=0,0,ROUND('Predek KH'!N17,0)))) -> 615 | O21: =IF(OR(O$10=0,$A21=0),0,IF('Predek KH'!AJ17=0,0,IF(logic!$A$88=0,0,ROUND('Predek KH'!O17,0)))) -> 813 | P21: =IF(OR(P$10=0,$A21=0),0,IF('Predek KH'!AK17=0,0,IF(logic!$A$88=0,0,ROUND('Predek KH'!P17,0)))) -> 1049 | Q21: =IF(OR(Q$10=0,$A21=0),0,IF('Predek KH'!AL17=0,0,IF(logic!$A$88=0,0,ROUND('Predek KH'!Q17,0)))) -> 1208 | R21: =IF(OR(R$10=0,$A21=0),0,IF('Predek KH'!AM17=0,0,IF(logic!$A$88=0,0,ROUND('Predek KH'!R17,0)))) -> 1973 | S21: =IF(OR(S$10=0,$A21=0),0,IF('Predek KH'!AN17=0,0,IF(logic!$A$88=0,0,ROUND('Predek KH'!S17,0)))) -> 2387
A22: =IF(AND($M$6=Jazyk!$D$4,$O$6=Jazyk!$D$4),1,IF(AND(B22>=$M$6,B22<=$O$6),1,0)) -> 1 | B22: 1600 | D22: =IF(OR(D$10=0,$A22=0),0,IF('Predek KH'!Y18=0,0,IF(logic!$A$88=0,0,ROUND('Predek KH'!D18,0)))) -> 318 | E22: =IF(OR(E$10=0,$A22=0),0,IF('Predek KH'!Z18=0,0,IF(logic!$A$88=0,0,ROUND('Predek KH'!E18,0)))) -> 462 | F22: =IF(OR(F$10=0,$A22=0),0,IF('Predek KH'!AA18=0,0,IF(logic!$A$88=0,0,ROUND('Predek KH'!F18,0)))) -> 509 | G22: =IF(OR(G$10=0,$A22=0),0,IF('Predek KH'!AB18=0,0,IF(logic!$A$88=0,0,ROUND('Predek KH'!G18,0)))) -> 667 | H22: =IF(OR(H$10=0,$A22=0),0,IF('Predek KH'!AC18=0,0,IF(logic!$A$88=0,0,ROUND('Predek KH'!H18,0)))) -> 854 | I22: =IF(OR(I$10=0,$A22=0),0,IF('Predek KH'!AD18=0,0,IF(logic!$A$88=0,0,ROUND('Predek KH'!I18,0)))) -> 926 | J22: =IF(OR(J$10=0,$A22=0),0,IF('Predek KH'!AE18=0,0,IF(logic!$A$88=0,0,ROUND('Predek KH'!J18,0)))) -> 1587 | K22: =IF(OR(K$10=0,$A22=0),0,IF('Predek KH'!AF18=0,0,IF(logic!$A$88=0,0,ROUND('Predek KH'!K18,0)))) -> 1867 | L22: =IF(OR(L$10=0,$A22=0),0,IF('Predek KH'!AG18=0,0,IF(logic!$A$88=0,0,ROUND('Predek KH'!L18,0)))) -> 426 | M22: =IF(OR(M$10=0,$A22=0),0,IF('Predek KH'!AH18=0,0,IF(logic!$A$88=0,0,ROUND('Predek KH'!M18,0)))) -> 658 | N22: =IF(OR(N$10=0,$A22=0),0,IF('Predek KH'!AI18=0,0,IF(logic!$A$88=0,0,ROUND('Predek KH'!N18,0)))) -> 702 | O22: =IF(OR(O$10=0,$A22=0),0,IF('Predek KH'!AJ18=0,0,IF(logic!$A$88=0,0,ROUND('Predek KH'!O18,0)))) -> 930 | P22: =IF(OR(P$10=0,$A22=0),0,IF('Predek KH'!AK18=0,0,IF(logic!$A$88=0,0,ROUND('Predek KH'!P18,0)))) -> 1198 | Q22: =IF(OR(Q$10=0,$A22=0),0,IF('Predek KH'!AL18=0,0,IF(logic!$A$88=0,0,ROUND('Predek KH'!Q18,0)))) -> 1381 | R22: =IF(OR(R$10=0,$A22=0),0,IF('Predek KH'!AM18=0,0,IF(logic!$A$88=0,0,ROUND('Predek KH'!R18,0)))) -> 2254 | S22: =IF(OR(S$10=0,$A22=0),0,IF('Predek KH'!AN18=0,0,IF(logic!$A$88=0,0,ROUND('Predek KH'!S18,0)))) -> 2728
A23: =IF(AND($M$6=Jazyk!$D$4,$O$6=Jazyk!$D$4),1,IF(AND(B23>=$M$6,B23<=$O$6),1,0)) -> 1 | B23: 1800 | D23: =IF(OR(D$10=0,$A23=0),0,IF('Predek KH'!Y19=0,0,IF(logic!$A$88=0,0,ROUND('Predek KH'!D19,0)))) -> 358 | E23: =IF(OR(E$10=0,$A23=0),0,IF('Predek KH'!Z19=0,0,IF(logic!$A$88=0,0,ROUND('Predek KH'!E19,0)))) -> 520 | F23: =IF(OR(F$10=0,$A23=0),0,IF('Predek KH'!AA19=0,0,IF(logic!$A$88=0,0,ROUND('Predek KH'!F19,0)))) -> 572 | G23: =IF(OR(G$10=0,$A23=0),0,IF('Predek KH'!AB19=0,0,IF(logic!$A$88=0,0,ROUND('Predek KH'!G19,0)))) -> 751 | H23: =IF(OR(H$10=0,$A23=0),0,IF('Predek KH'!AC19=0,0,IF(logic!$A$88=0,0,ROUND('Predek KH'!H19,0)))) -> 961 | I23: =IF(OR(I$10=0,$A23=0),0,IF('Predek KH'!AD19=0,0,IF(logic!$A$88=0,0,ROUND('Predek KH'!I19,0)))) -> 1042 | J23: =IF(OR(J$10=0,$A23=0),0,IF('Predek KH'!AE19=0,0,IF(logic!$A$88=0,0,ROUND('Predek KH'!J19,0)))) -> 1786 | K23: =IF(OR(K$10=0,$A23=0),0,IF('Predek KH'!AF19=0,0,IF(logic!$A$88=0,0,ROUND('Predek KH'!K19,0)))) -> 2101 | L23: =IF(OR(L$10=0,$A23=0),0,IF('Predek KH'!AG19=0,0,IF(logic!$A$88=0,0,ROUND('Predek KH'!L19,0)))) -> 479 | M23: =IF(OR(M$10=0,$A23=0),0,IF('Predek KH'!AH19=0,0,IF(logic!$A$88=0,0,ROUND('Predek KH'!M19,0)))) -> 740 | N23: =IF(OR(N$10=0,$A23=0),0,IF('Predek KH'!AI19=0,0,IF(logic!$A$88=0,0,ROUND('Predek KH'!N19,0)))) -> 790 | O23: =IF(OR(O$10=0,$A23=0),0,IF('Predek KH'!AJ19=0,0,IF(logic!$A$88=0,0,ROUND('Predek KH'!O19,0)))) -> 1046 | P23: =IF(OR(P$10=0,$A23=0),0,IF('Predek KH'!AK19=0,0,IF(logic!$A$88=0,0,ROUND('Predek KH'!P19,0)))) -> 1348 | Q23: =IF(OR(Q$10=0,$A23=0),0,IF('Predek KH'!AL19=0,0,IF(logic!$A$88=0,0,ROUND('Predek KH'!Q19,0)))) -> 1553 | R23: =IF(OR(R$10=0,$A23=0),0,IF('Predek KH'!AM19=0,0,IF(logic!$A$88=0,0,ROUND('Predek KH'!R19,0)))) -> 2536 | S23: =IF(OR(S$10=0,$A23=0),0,IF('Predek KH'!AN19=0,0,IF(logic!$A$88=0,0,ROUND('Predek KH'!S19,0)))) -> 3069
A24: =IF(AND($M$6=Jazyk!$D$4,$O$6=Jazyk!$D$4),1,IF(AND(B24>=$M$6,B24<=$O$6),1,0)) -> 1 | B24: 2000 | D24: =IF(OR(D$10=0,$A24=0),0,IF('Predek KH'!Y20=0,0,IF(logic!$A$88=0,0,ROUND('Predek KH'!D20,0)))) -> 398 | E24: =IF(OR(E$10=0,$A24=0),0,IF('Predek KH'!Z20=0,0,IF(logic!$A$88=0,0,ROUND('Predek KH'!E20,0)))) -> 578 | F24: =IF(OR(F$10=0,$A24=0),0,IF('Predek KH'!AA20=0,0,IF(logic!$A$88=0,0,ROUND('Predek KH'!F20,0)))) -> 636 | G24: =IF(OR(G$10=0,$A24=0),0,IF('Predek KH'!AB20=0,0,IF(logic!$A$88=0,0,ROUND('Predek KH'!G20,0)))) -> 834 | H24: =IF(OR(H$10=0,$A24=0),0,IF('Predek KH'!AC20=0,0,IF(logic!$A$88=0,0,ROUND('Predek KH'!H20,0)))) -> 1068 | I24: =IF(OR(I$10=0,$A24=0),0,IF('Predek KH'!AD20=0,0,IF(logic!$A$88=0,0,ROUND('Predek KH'!I20,0)))) -> 1158 | J24: =IF(OR(J$10=0,$A24=0),0,IF('Predek KH'!AE20=0,0,IF(logic!$A$88=0,0,ROUND('Predek KH'!J20,0)))) -> 1984 | K24: =IF(OR(K$10=0,$A24=0),0,IF('Predek KH'!AF20=0,0,IF(logic!$A$88=0,0,ROUND('Predek KH'!K20,0)))) -> 2334 | L24: =IF(OR(L$10=0,$A24=0),0,IF('Predek KH'!AG20=0,0,IF(logic!$A$88=0,0,ROUND('Predek KH'!L20,0)))) -> 532 | M24: =IF(OR(M$10=0,$A24=0),0,IF('Predek KH'!AH20=0,0,IF(logic!$A$88=0,0,ROUND('Predek KH'!M20,0)))) -> 822 | N24: =IF(OR(N$10=0,$A24=0),0,IF('Predek KH'!AI20=0,0,IF(logic!$A$88=0,0,ROUND('Predek KH'!N20,0)))) -> 878 | O24: =IF(OR(O$10=0,$A24=0),0,IF('Predek KH'!AJ20=0,0,IF(logic!$A$88=0,0,ROUND('Predek KH'!O20,0)))) -> 1162 | P24: =IF(OR(P$10=0,$A24=0),0,IF('Predek KH'!AK20=0,0,IF(logic!$A$88=0,0,ROUND('Predek KH'!P20,0)))) -> 1498 | Q24: =IF(OR(Q$10=0,$A24=0),0,IF('Predek KH'!AL20=0,0,IF(logic!$A$88=0,0,ROUND('Predek KH'!Q20,0)))) -> 1726 | R24: =IF(OR(R$10=0,$A24=0),0,IF('Predek KH'!AM20=0,0,IF(logic!$A$88=0,0,ROUND('Predek KH'!R20,0)))) -> 2818 | S24: =IF(OR(S$10=0,$A24=0),0,IF('Predek KH'!AN20=0,0,IF(logic!$A$88=0,0,ROUND('Predek KH'!S20,0)))) -> 3410
A25: =IF(AND($M$6=Jazyk!$D$4,$O$6=Jazyk!$D$4),1,IF(AND(B25>=$M$6,B25<=$O$6),1,0)) -> 1 | B25: 2300 | D25: =IF(OR(D$10=0,$A25=0),0,IF('Predek KH'!Y21=0,0,IF(logic!$A$88=0,0,ROUND('Predek KH'!D21,0)))) -> 458 | E25: =IF(OR(E$10=0,$A25=0),0,IF('Predek KH'!Z21=0,0,IF(logic!$A$88=0,0,ROUND('Predek KH'!E21,0)))) -> 665 | F25: =IF(OR(F$10=0,$A25=0),0,IF('Predek KH'!AA21=0,0,IF(logic!$A$88=0,0,ROUND('Predek KH'!F21,0)))) -> 731 | G25: =IF(OR(G$10=0,$A25=0),0,IF('Predek KH'!AB21=0,0,IF(logic!$A$88=0,0,ROUND('Predek KH'!G21,0)))) -> 959 | H25: =IF(OR(H$10=0,$A25=0),0,IF('Predek KH'!AC21=0,0,IF(logic!$A$88=0,0,ROUND('Predek KH'!H21,0)))) -> 1228 | I25: =IF(OR(I$10=0,$A25=0),0,IF('Predek KH'!AD21=0,0,IF(logic!$A$88=0,0,ROUND('Predek KH'!I21,0)))) -> 1332 | J25: =IF(OR(J$10=0,$A25=0),0,IF('Predek KH'!AE21=0,0,IF(logic!$A$88=0,0,ROUND('Predek KH'!J21,0)))) -> 2282 | K25: =IF(OR(K$10=0,$A25=0),0,IF('Predek KH'!AF21=0,0,IF(logic!$A$88=0,0,ROUND('Predek KH'!K21,0)))) -> 2684 | L25: =IF(OR(L$10=0,$A25=0),0,IF('Predek KH'!AG21=0,0,IF(logic!$A$88=0,0,ROUND('Predek KH'!L21,0)))) -> 612 | M25: =IF(OR(M$10=0,$A25=0),0,IF('Predek KH'!AH21=0,0,IF(logic!$A$88=0,0,ROUND('Predek KH'!M21,0)))) -> 945 | N25: =IF(OR(N$10=0,$A25=0),0,IF('Predek KH'!AI21=0,0,IF(logic!$A$88=0,0,ROUND('Predek KH'!N21,0)))) -> 1010 | O25: =IF(OR(O$10=0,$A25=0),0,IF('Predek KH'!AJ21=0,0,IF(logic!$A$88=0,0,ROUND('Predek KH'!O21,0)))) -> 1336 | P25: =IF(OR(P$10=0,$A25=0),0,IF('Predek KH'!AK21=0,0,IF(logic!$A$88=0,0,ROUND('Predek KH'!P21,0)))) -> 1723 | Q25: =IF(OR(Q$10=0,$A25=0),0,IF('Predek KH'!AL21=0,0,IF(logic!$A$88=0,0,ROUND('Predek KH'!Q21,0)))) -> 1985 | R25: =IF(OR(R$10=0,$A25=0),0,IF('Predek KH'!AM21=0,0,IF(logic!$A$88=0,0,ROUND('Predek KH'!R21,0)))) -> 3241 | S25: =IF(OR(S$10=0,$A25=0),0,IF('Predek KH'!AN21=0,0,IF(logic!$A$88=0,0,ROUND('Predek KH'!S21,0)))) -> 3922
A26: =IF(AND($M$6=Jazyk!$D$4,$O$6=Jazyk!$D$4),1,IF(AND(B26>=$M$6,B26<=$O$6),1,0)) -> 1 | B26: 2600 | D26: =IF(OR(D$10=0,$A26=0),0,IF('Predek KH'!Y22=0,0,IF(logic!$A$88=0,0,ROUND('Predek KH'!D22,0)))) -> 517 | E26: =IF(OR(E$10=0,$A26=0),0,IF('Predek KH'!Z22=0,0,IF(logic!$A$88=0,0,ROUND('Predek KH'!E22,0)))) -> 751 | F26: =IF(OR(F$10=0,$A26=0),0,IF('Predek KH'!AA22=0,0,IF(logic!$A$88=0,0,ROUND('Predek KH'!F22,0)))) -> 827 | G26: =IF(OR(G$10=0,$A26=0),0,IF('Predek KH'!AB22=0,0,IF(logic!$A$88=0,0,ROUND('Predek KH'!G22,0)))) -> 1084 | H26: =IF(OR(H$10=0,$A26=0),0,IF('Predek KH'!AC22=0,0,IF(logic!$A$88=0,0,ROUND('Predek KH'!H22,0)))) -> 1388 | I26: =IF(OR(I$10=0,$A26=0),0,IF('Predek KH'!AD22=0,0,IF(logic!$A$88=0,0,ROUND('Predek KH'!I22,0)))) -> 1505 | J26: =IF(OR(J$10=0,$A26=0),0,IF('Predek KH'!AE22=0,0,IF(logic!$A$88=0,0,ROUND('Predek KH'!J22,0)))) -> 2579 | K26: =IF(OR(K$10=0,$A26=0),0,IF('Predek KH'!AF22=0,0,IF(logic!$A$88=0,0,ROUND('Predek KH'!K22,0)))) -> 3034 | L26: =IF(OR(L$10=0,$A26=0),0,IF('Predek KH'!AG22=0,0,IF(logic!$A$88=0,0,ROUND('Predek KH'!L22,0)))) -> 692 | M26: =IF(OR(M$10=0,$A26=0),0,IF('Predek KH'!AH22=0,0,IF(logic!$A$88=0,0,ROUND('Predek KH'!M22,0)))) -> 1069 | N26: =IF(OR(N$10=0,$A26=0),0,IF('Predek KH'!AI22=0,0,IF(logic!$A$88=0,0,ROUND('Predek KH'!N22,0)))) -> 1141 | O26: =IF(OR(O$10=0,$A26=0),0,IF('Predek KH'!AJ22=0,0,IF(logic!$A$88=0,0,ROUND('Predek KH'!O22,0)))) -> 1511 | P26: =IF(OR(P$10=0,$A26=0),0,IF('Predek KH'!AK22=0,0,IF(logic!$A$88=0,0,ROUND('Predek KH'!P22,0)))) -> 1947 | Q26: =IF(OR(Q$10=0,$A26=0),0,IF('Predek KH'!AL22=0,0,IF(logic!$A$88=0,0,ROUND('Predek KH'!Q22,0)))) -> 2244 | R26: =IF(OR(R$10=0,$A26=0),0,IF('Predek KH'!AM22=0,0,IF(logic!$A$88=0,0,ROUND('Predek KH'!R22,0)))) -> 3663 | S26: =IF(OR(S$10=0,$A26=0),0,IF('Predek KH'!AN22=0,0,IF(logic!$A$88=0,0,ROUND('Predek KH'!S22,0)))) -> 4433
A27: =IF(AND($M$6=Jazyk!$D$4,$O$6=Jazyk!$D$4),1,IF(AND(B27>=$M$6,B27<=$O$6),1,0)) -> 1 | B27: 3000 | D27: =IF(OR(D$10=0,$A27=0),0,IF('Predek KH'!Y23=0,0,IF(logic!$A$88=0,0,ROUND('Predek KH'!D23,0)))) -> 597 | E27: =IF(OR(E$10=0,$A27=0),0,IF('Predek KH'!Z23=0,0,IF(logic!$A$88=0,0,ROUND('Predek KH'!E23,0)))) -> 867 | F27: =IF(OR(F$10=0,$A27=0),0,IF('Predek KH'!AA23=0,0,IF(logic!$A$88=0,0,ROUND('Predek KH'!F23,0)))) -> 954 | G27: =IF(OR(G$10=0,$A27=0),0,IF('Predek KH'!AB23=0,0,IF(logic!$A$88=0,0,ROUND('Predek KH'!G23,0)))) -> 1251 | H27: =IF(OR(H$10=0,$A27=0),0,IF('Predek KH'!AC23=0,0,IF(logic!$A$88=0,0,ROUND('Predek KH'!H23,0)))) -> 1602 | I27: =IF(OR(I$10=0,$A27=0),0,IF('Predek KH'!AD23=0,0,IF(logic!$A$88=0,0,ROUND('Predek KH'!I23,0)))) -> 1737 | J27: =IF(OR(J$10=0,$A27=0),0,IF('Predek KH'!AE23=0,0,IF(logic!$A$88=0,0,ROUND('Predek KH'!J23,0)))) -> 2976 | K27: =IF(OR(K$10=0,$A27=0),0,IF('Predek KH'!AF23=0,0,IF(logic!$A$88=0,0,ROUND('Predek KH'!K23,0)))) -> 3501 | L27: =IF(OR(L$10=0,$A27=0),0,IF('Predek KH'!AG23=0,0,IF(logic!$A$88=0,0,ROUND('Predek KH'!L23,0)))) -> 798 | M27: =IF(OR(M$10=0,$A27=0),0,IF('Predek KH'!AH23=0,0,IF(logic!$A$88=0,0,ROUND('Predek KH'!M23,0)))) -> 1233 | N27: =IF(OR(N$10=0,$A27=0),0,IF('Predek KH'!AI23=0,0,IF(logic!$A$88=0,0,ROUND('Predek KH'!N23,0)))) -> 1317 | O27: =IF(OR(O$10=0,$A27=0),0,IF('Predek KH'!AJ23=0,0,IF(logic!$A$88=0,0,ROUND('Predek KH'!O23,0)))) -> 1743 | P27: =IF(OR(P$10=0,$A27=0),0,IF('Predek KH'!AK23=0,0,IF(logic!$A$88=0,0,ROUND('Predek KH'!P23,0)))) -> 2247 | Q27: =IF(OR(Q$10=0,$A27=0),0,IF('Predek KH'!AL23=0,0,IF(logic!$A$88=0,0,ROUND('Predek KH'!Q23,0)))) -> 2589 | R27: =IF(OR(R$10=0,$A27=0),0,IF('Predek KH'!AM23=0,0,IF(logic!$A$88=0,0,ROUND('Predek KH'!R23,0)))) -> 4227 | S27: =IF(OR(S$10=0,$A27=0),0,IF('Predek KH'!AN23=0,0,IF(logic!$A$88=0,0,ROUND('Predek KH'!S23,0)))) -> 5115
D29: =IF(AND($M$5=Jazyk!$D$4,$O$5=Jazyk!$D$4),1,IF(AND(D30>=$M$5,D30<=$O$5),1,0)) -> 1 | E29: =IF(AND($M$5=Jazyk!$D$4,$O$5=Jazyk!$D$4),1,IF(AND(E30>=$M$5,E30<=$O$5),1,0)) -> 1 | F29: =IF(AND($M$5=Jazyk!$D$4,$O$5=Jazyk!$D$4),1,IF(AND(F30>=$M$5,F30<=$O$5),1,0)) -> 1 | G29: =IF(AND($M$5=Jazyk!$D$4,$O$5=Jazyk!$D$4),1,IF(AND(G30>=$M$5,G30<=$O$5),1,0)) -> 1 | H29: =IF(AND($M$5=Jazyk!$D$4,$O$5=Jazyk!$D$4),1,IF(AND(H30>=$M$5,H30<=$O$5),1,0)) -> 1 | I29: =IF(AND($M$5=Jazyk!$D$4,$O$5=Jazyk!$D$4),1,IF(AND(I30>=$M$5,I30<=$O$5),1,0)) -> 1 | J29: =IF(AND($M$5=Jazyk!$D$4,$O$5=Jazyk!$D$4),1,IF(AND(J30>=$M$5,J30<=$O$5),1,0)) -> 1 | K29: =IF(AND($M$5=Jazyk!$D$4,$O$5=Jazyk!$D$4),1,IF(AND(K30>=$M$5,K30<=$O$5),1,0)) -> 1 | L29: =IF(AND($M$5=Jazyk!$D$4,$O$5=Jazyk!$D$4),1,IF(AND(L30>=$M$5,L30<=$O$5),1,0)) -> 1 | M29: =IF(AND($M$5=Jazyk!$D$4,$O$5=Jazyk!$D$4),1,IF(AND(M30>=$M$5,M30<=$O$5),1,0)) -> 1 | N29: =IF(AND($M$5=Jazyk!$D$4,$O$5=Jazyk!$D$4),1,IF(AND(N30>=$M$5,N30<=$O$5),1,0)) -> 1 | O29: =IF(AND($M$5=Jazyk!$D$4,$O$5=Jazyk!$D$4),1,IF(AND(O30>=$M$5,O30<=$O$5),1,0)) -> 1 | P29: =IF(AND($M$5=Jazyk!$D$4,$O$5=Jazyk!$D$4),1,IF(AND(P30>=$M$5,P30<=$O$5),1,0)) -> 1 | Q29: =IF(AND($M$5=Jazyk!$D$4,$O$5=Jazyk!$D$4),1,IF(AND(Q30>=$M$5,Q30<=$O$5),1,0)) -> 1 | R29: =IF(AND($M$5=Jazyk!$D$4,$O$5=Jazyk!$D$4),1,IF(AND(R30>=$M$5,R30<=$O$5),1,0)) -> 1 | S29: =IF(AND($M$5=Jazyk!$D$4,$O$5=Jazyk!$D$4),1,IF(AND(S30>=$M$5,S30<=$O$5),1,0)) -> 1
B30: =Jazyk!$G$27 -> Височина [mm] | D30: =F30 -> 366 | E30: =F30 -> 366 | F30: ='Qn H'!$G$7 -> 366 | G30: =F30 -> 366 | H30: =F30 -> 366 | I30: =F30 -> 366 | J30: =F30 -> 366 | K30: =F30 -> 366 | L30: =N30 -> 514 | M30: =N30 -> 514 | N30: ='Qn H'!$O$7 -> 514 | O30: =N30 -> 514 | P30: =N30 -> 514 | Q30: =N30 -> 514 | R30: =N30 -> 514 | S30: =N30 -> 514
B31: =Jazyk!$H$27 -> Дължина [mm] | D31: ='Qn H'!E8 -> K10H | E31: ='Qn H'!F8 -> K11H | F31: ='Qn H'!G8 -> K20H | G31: ='Qn H'!H8 -> K21H | H31: ='Qn H'!I8 -> K22H | I31: ='Qn H'!J8 -> 0 | J31: ='Qn H'!K8 -> 0 | K31: ='Qn H'!L8 -> 0 | L31: ='Qn H'!M8 -> K10H | M31: ='Qn H'!N8 -> K11H | N31: ='Qn H'!O8 -> K20H | O31: ='Qn H'!P8 -> K21H | P31: ='Qn H'!Q8 -> K22H | Q31: ='Qn H'!R8 -> 0 | R31: ='Qn H'!S8 -> 0 | S31: ='Qn H'!T8 -> 0
A32: =IF(AND($M$6=Jazyk!$D$4,$O$6=Jazyk!$D$4),1,IF(AND(B32>=$M$6,B32<=$O$6),1,0)) -> 1 | B32: 500 | D32: =IF(OR(D$29=0,$A32=0),0,IF('Predek KH'!Y28=0,0,IF(logic!$A$88=0,0,ROUND('Predek KH'!D28,0)))) -> 198 | E32: =IF(OR(E$29=0,$A32=0),0,IF('Predek KH'!Z28=0,0,IF(logic!$A$88=0,0,ROUND('Predek KH'!E28,0)))) -> 319 | F32: =IF(OR(F$29=0,$A32=0),0,IF('Predek KH'!AA28=0,0,IF(logic!$A$88=0,0,ROUND('Predek KH'!F28,0)))) -> 334 | G32: =IF(OR(G$29=0,$A32=0),0,IF('Predek KH'!AB28=0,0,IF(logic!$A$88=0,0,ROUND('Predek KH'!G28,0)))) -> 436 | H32: =IF(OR(H$29=0,$A32=0),0,IF('Predek KH'!AC28=0,0,IF(logic!$A$88=0,0,ROUND('Predek KH'!H28,0)))) -> 604 | I32: =IF(OR(I$29=0,$A32=0),0,IF('Predek KH'!AD28=0,0,IF(logic!$A$88=0,0,ROUND('Predek KH'!I28,0)))) -> 0 | J32: =IF(OR(J$29=0,$A32=0),0,IF('Predek KH'!AE28=0,0,IF(logic!$A$88=0,0,ROUND('Predek KH'!J28,0)))) -> 0 | K32: =IF(OR(K$29=0,$A32=0),0,IF('Predek KH'!AF28=0,0,IF(logic!$A$88=0,0,ROUND('Predek KH'!K28,0)))) -> 0 | L32: =IF(OR(L$29=0,$A32=0),0,IF('Predek KH'!AG28=0,0,IF(logic!$A$88=0,0,ROUND('Predek KH'!L28,0)))) -> 264 | M32: =IF(OR(M$29=0,$A32=0),0,IF('Predek KH'!AH28=0,0,IF(logic!$A$88=0,0,ROUND('Predek KH'!M28,0)))) -> 424 | N32: =IF(OR(N$29=0,$A32=0),0,IF('Predek KH'!AI28=0,0,IF(logic!$A$88=0,0,ROUND('Predek KH'!N28,0)))) -> 446 | O32: =IF(OR(O$29=0,$A32=0),0,IF('Predek KH'!AJ28=0,0,IF(logic!$A$88=0,0,ROUND('Predek KH'!O28,0)))) -> 564 | P32: =IF(OR(P$29=0,$A32=0),0,IF('Predek KH'!AK28=0,0,IF(logic!$A$88=0,0,ROUND('Predek KH'!P28,0)))) -> 777 | Q32: =IF(OR(Q$29=0,$A32=0),0,IF('Predek KH'!AL28=0,0,IF(logic!$A$88=0,0,ROUND('Predek KH'!Q28,0)))) -> 0 | R32: =IF(OR(R$29=0,$A32=0),0,IF('Predek KH'!AM28=0,0,IF(logic!$A$88=0,0,ROUND('Predek KH'!R28,0)))) -> 0 | S32: =IF(OR(S$29=0,$A32=0),0,IF('Predek KH'!AN28=0,0,IF(logic!$A$88=0,0,ROUND('Predek KH'!S28,0)))) -> 0
A33: =IF(AND($M$6=Jazyk!$D$4,$O$6=Jazyk!$D$4),1,IF(AND(B33>=$M$6,B33<=$O$6),1,0)) -> 1 | B33: 600 | D33: =IF(OR(D$29=0,$A33=0),0,IF('Predek KH'!Y29=0,0,IF(logic!$A$88=0,0,ROUND('Predek KH'!D29,0)))) -> 237 | E33: =IF(OR(E$29=0,$A33=0),0,IF('Predek KH'!Z29=0,0,IF(logic!$A$88=0,0,ROUND('Predek KH'!E29,0)))) -> 383 | F33: =IF(OR(F$29=0,$A33=0),0,IF('Predek KH'!AA29=0,0,IF(logic!$A$88=0,0,ROUND('Predek KH'!F29,0)))) -> 400 | G33: =IF(OR(G$29=0,$A33=0),0,IF('Predek KH'!AB29=0,0,IF(logic!$A$88=0,0,ROUND('Predek KH'!G29,0)))) -> 523 | H33: =IF(OR(H$29=0,$A33=0),0,IF('Predek KH'!AC29=0,0,IF(logic!$A$88=0,0,ROUND('Predek KH'!H29,0)))) -> 724 | I33: =IF(OR(I$29=0,$A33=0),0,IF('Predek KH'!AD29=0,0,IF(logic!$A$88=0,0,ROUND('Predek KH'!I29,0)))) -> 0 | J33: =IF(OR(J$29=0,$A33=0),0,IF('Predek KH'!AE29=0,0,IF(logic!$A$88=0,0,ROUND('Predek KH'!J29,0)))) -> 0 | K33: =IF(OR(K$29=0,$A33=0),0,IF('Predek KH'!AF29=0,0,IF(logic!$A$88=0,0,ROUND('Predek KH'!K29,0)))) -> 0 | L33: =IF(OR(L$29=0,$A33=0),0,IF('Predek KH'!AG29=0,0,IF(logic!$A$88=0,0,ROUND('Predek KH'!L29,0)))) -> 316 | M33: =IF(OR(M$29=0,$A33=0),0,IF('Predek KH'!AH29=0,0,IF(logic!$A$88=0,0,ROUND('Predek KH'!M29,0)))) -> 509 | N33: =IF(OR(N$29=0,$A33=0),0,IF('Predek KH'!AI29=0,0,IF(logic!$A$88=0,0,ROUND('Predek KH'!N29,0)))) -> 535 | O33: =IF(OR(O$29=0,$A33=0),0,IF('Predek KH'!AJ29=0,0,IF(logic!$A$88=0,0,ROUND('Predek KH'!O29,0)))) -> 677 | P33: =IF(OR(P$29=0,$A33=0),0,IF('Predek KH'!AK29=0,0,IF(logic!$A$88=0,0,ROUND('Predek KH'!P29,0)))) -> 932 | Q33: =IF(OR(Q$29=0,$A33=0),0,IF('Predek KH'!AL29=0,0,IF(logic!$A$88=0,0,ROUND('Predek KH'!Q29,0)))) -> 0 | R33: =IF(OR(R$29=0,$A33=0),0,IF('Predek KH'!AM29=0,0,IF(logic!$A$88=0,0,ROUND('Predek KH'!R29,0)))) -> 0 | S33: =IF(OR(S$29=0,$A33=0),0,IF('Predek KH'!AN29=0,0,IF(logic!$A$88=0,0,ROUND('Predek KH'!S29,0)))) -> 0
A34: =IF(AND($M$6=Jazyk!$D$4,$O$6=Jazyk!$D$4),1,IF(AND(B34>=$M$6,B34<=$O$6),1,0)) -> 1 | B34: 700 | D34: =IF(OR(D$29=0,$A34=0),0,IF('Predek KH'!Y30=0,0,IF(logic!$A$88=0,0,ROUND('Predek KH'!D30,0)))) -> 277 | E34: =IF(OR(E$29=0,$A34=0),0,IF('Predek KH'!Z30=0,0,IF(logic!$A$88=0,0,ROUND('Predek KH'!E30,0)))) -> 447 | F34: =IF(OR(F$29=0,$A34=0),0,IF('Predek KH'!AA30=0,0,IF(logic!$A$88=0,0,ROUND('Predek KH'!F30,0)))) -> 467 | G34: =IF(OR(G$29=0,$A34=0),0,IF('Predek KH'!AB30=0,0,IF(logic!$A$88=0,0,ROUND('Predek KH'!G30,0)))) -> 610 | H34: =IF(OR(H$29=0,$A34=0),0,IF('Predek KH'!AC30=0,0,IF(logic!$A$88=0,0,ROUND('Predek KH'!H30,0)))) -> 845 | I34: =IF(OR(I$29=0,$A34=0),0,IF('Predek KH'!AD30=0,0,IF(logic!$A$88=0,0,ROUND('Predek KH'!I30,0)))) -> 0 | J34: =IF(OR(J$29=0,$A34=0),0,IF('Predek KH'!AE30=0,0,IF(logic!$A$88=0,0,ROUND('Predek KH'!J30,0)))) -> 0 | K34: =IF(OR(K$29=0,$A34=0),0,IF('Predek KH'!AF30=0,0,IF(logic!$A$88=0,0,ROUND('Predek KH'!K30,0)))) -> 0 | L34: =IF(OR(L$29=0,$A34=0),0,IF('Predek KH'!AG30=0,0,IF(logic!$A$88=0,0,ROUND('Predek KH'!L30,0)))) -> 369 | M34: =IF(OR(M$29=0,$A34=0),0,IF('Predek KH'!AH30=0,0,IF(logic!$A$88=0,0,ROUND('Predek KH'!M30,0)))) -> 594 | N34: =IF(OR(N$29=0,$A34=0),0,IF('Predek KH'!AI30=0,0,IF(logic!$A$88=0,0,ROUND('Predek KH'!N30,0)))) -> 624 | O34: =IF(OR(O$29=0,$A34=0),0,IF('Predek KH'!AJ30=0,0,IF(logic!$A$88=0,0,ROUND('Predek KH'!O30,0)))) -> 790 | P34: =IF(OR(P$29=0,$A34=0),0,IF('Predek KH'!AK30=0,0,IF(logic!$A$88=0,0,ROUND('Predek KH'!P30,0)))) -> 1088 | Q34: =IF(OR(Q$29=0,$A34=0),0,IF('Predek KH'!AL30=0,0,IF(logic!$A$88=0,0,ROUND('Predek KH'!Q30,0)))) -> 0 | R34: =IF(OR(R$29=0,$A34=0),0,IF('Predek KH'!AM30=0,0,IF(logic!$A$88=0,0,ROUND('Predek KH'!R30,0)))) -> 0 | S34: =IF(OR(S$29=0,$A34=0),0,IF('Predek KH'!AN30=0,0,IF(logic!$A$88=0,0,ROUND('Predek KH'!S30,0)))) -> 0
A35: =IF(AND($M$6=Jazyk!$D$4,$O$6=Jazyk!$D$4),1,IF(AND(B35>=$M$6,B35<=$O$6),1,0)) -> 1 | B35: 800 | D35: =IF(OR(D$29=0,$A35=0),0,IF('Predek KH'!Y31=0,0,IF(logic!$A$88=0,0,ROUND('Predek KH'!D31,0)))) -> 316 | E35: =IF(OR(E$29=0,$A35=0),0,IF('Predek KH'!Z31=0,0,IF(logic!$A$88=0,0,ROUND('Predek KH'!E31,0)))) -> 510 | F35: =IF(OR(F$29=0,$A35=0),0,IF('Predek KH'!AA31=0,0,IF(logic!$A$88=0,0,ROUND('Predek KH'!F31,0)))) -> 534 | G35: =IF(OR(G$29=0,$A35=0),0,IF('Predek KH'!AB31=0,0,IF(logic!$A$88=0,0,ROUND('Predek KH'!G31,0)))) -> 697 | H35: =IF(OR(H$29=0,$A35=0),0,IF('Predek KH'!AC31=0,0,IF(logic!$A$88=0,0,ROUND('Predek KH'!H31,0)))) -> 966 | I35: =IF(OR(I$29=0,$A35=0),0,IF('Predek KH'!AD31=0,0,IF(logic!$A$88=0,0,ROUND('Predek KH'!I31,0)))) -> 0 | J35: =IF(OR(J$29=0,$A35=0),0,IF('Predek KH'!AE31=0,0,IF(logic!$A$88=0,0,ROUND('Predek KH'!J31,0)))) -> 0 | K35: =IF(OR(K$29=0,$A35=0),0,IF('Predek KH'!AF31=0,0,IF(logic!$A$88=0,0,ROUND('Predek KH'!K31,0)))) -> 0 | L35: =IF(OR(L$29=0,$A35=0),0,IF('Predek KH'!AG31=0,0,IF(logic!$A$88=0,0,ROUND('Predek KH'!L31,0)))) -> 422 | M35: =IF(OR(M$29=0,$A35=0),0,IF('Predek KH'!AH31=0,0,IF(logic!$A$88=0,0,ROUND('Predek KH'!M31,0)))) -> 678 | N35: =IF(OR(N$29=0,$A35=0),0,IF('Predek KH'!AI31=0,0,IF(logic!$A$88=0,0,ROUND('Predek KH'!N31,0)))) -> 714 | O35: =IF(OR(O$29=0,$A35=0),0,IF('Predek KH'!AJ31=0,0,IF(logic!$A$88=0,0,ROUND('Predek KH'!O31,0)))) -> 902 | P35: =IF(OR(P$29=0,$A35=0),0,IF('Predek KH'!AK31=0,0,IF(logic!$A$88=0,0,ROUND('Predek KH'!P31,0)))) -> 1243 | Q35: =IF(OR(Q$29=0,$A35=0),0,IF('Predek KH'!AL31=0,0,IF(logic!$A$88=0,0,ROUND('Predek KH'!Q31,0)))) -> 0 | R35: =IF(OR(R$29=0,$A35=0),0,IF('Predek KH'!AM31=0,0,IF(logic!$A$88=0,0,ROUND('Predek KH'!R31,0)))) -> 0 | S35: =IF(OR(S$29=0,$A35=0),0,IF('Predek KH'!AN31=0,0,IF(logic!$A$88=0,0,ROUND('Predek KH'!S31,0)))) -> 0
A36: =IF(AND($M$6=Jazyk!$D$4,$O$6=Jazyk!$D$4),1,IF(AND(B36>=$M$6,B36<=$O$6),1,0)) -> 1 | B36: 900 | D36: =IF(OR(D$29=0,$A36=0),0,IF('Predek KH'!Y32=0,0,IF(logic!$A$88=0,0,ROUND('Predek KH'!D32,0)))) -> 356 | E36: =IF(OR(E$29=0,$A36=0),0,IF('Predek KH'!Z32=0,0,IF(logic!$A$88=0,0,ROUND('Predek KH'!E32,0)))) -> 574 | F36: =IF(OR(F$29=0,$A36=0),0,IF('Predek KH'!AA32=0,0,IF(logic!$A$88=0,0,ROUND('Predek KH'!F32,0)))) -> 600 | G36: =IF(OR(G$29=0,$A36=0),0,IF('Predek KH'!AB32=0,0,IF(logic!$A$88=0,0,ROUND('Predek KH'!G32,0)))) -> 784 | H36: =IF(OR(H$29=0,$A36=0),0,IF('Predek KH'!AC32=0,0,IF(logic!$A$88=0,0,ROUND('Predek KH'!H32,0)))) -> 1086 | I36: =IF(OR(I$29=0,$A36=0),0,IF('Predek KH'!AD32=0,0,IF(logic!$A$88=0,0,ROUND('Predek KH'!I32,0)))) -> 0 | J36: =IF(OR(J$29=0,$A36=0),0,IF('Predek KH'!AE32=0,0,IF(logic!$A$88=0,0,ROUND('Predek KH'!J32,0)))) -> 0 | K36: =IF(OR(K$29=0,$A36=0),0,IF('Predek KH'!AF32=0,0,IF(logic!$A$88=0,0,ROUND('Predek KH'!K32,0)))) -> 0 | L36: =IF(OR(L$29=0,$A36=0),0,IF('Predek KH'!AG32=0,0,IF(logic!$A$88=0,0,ROUND('Predek KH'!L32,0)))) -> 474 | M36: =IF(OR(M$29=0,$A36=0),0,IF('Predek KH'!AH32=0,0,IF(logic!$A$88=0,0,ROUND('Predek KH'!M32,0)))) -> 763 | N36: =IF(OR(N$29=0,$A36=0),0,IF('Predek KH'!AI32=0,0,IF(logic!$A$88=0,0,ROUND('Predek KH'!N32,0)))) -> 803 | O36: =IF(OR(O$29=0,$A36=0),0,IF('Predek KH'!AJ32=0,0,IF(logic!$A$88=0,0,ROUND('Predek KH'!O32,0)))) -> 1015 | P36: =IF(OR(P$29=0,$A36=0),0,IF('Predek KH'!AK32=0,0,IF(logic!$A$88=0,0,ROUND('Predek KH'!P32,0)))) -> 1399 | Q36: =IF(OR(Q$29=0,$A36=0),0,IF('Predek KH'!AL32=0,0,IF(logic!$A$88=0,0,ROUND('Predek KH'!Q32,0)))) -> 0 | R36: =IF(OR(R$29=0,$A36=0),0,IF('Predek KH'!AM32=0,0,IF(logic!$A$88=0,0,ROUND('Predek KH'!R32,0)))) -> 0 | S36: =IF(OR(S$29=0,$A36=0),0,IF('Predek KH'!AN32=0,0,IF(logic!$A$88=0,0,ROUND('Predek KH'!S32,0)))) -> 0
A37: =IF(AND($M$6=Jazyk!$D$4,$O$6=Jazyk!$D$4),1,IF(AND(B37>=$M$6,B37<=$O$6),1,0)) -> 1 | B37: 1000 | D37: =IF(OR(D$29=0,$A37=0),0,IF('Predek KH'!Y33=0,0,IF(logic!$A$88=0,0,ROUND('Predek KH'!D33,0)))) -> 395 | E37: =IF(OR(E$29=0,$A37=0),0,IF('Predek KH'!Z33=0,0,IF(logic!$A$88=0,0,ROUND('Predek KH'!E33,0)))) -> 638 | F37: =IF(OR(F$29=0,$A37=0),0,IF('Predek KH'!AA33=0,0,IF(logic!$A$88=0,0,ROUND('Predek KH'!F33,0)))) -> 667 | G37: =IF(OR(G$29=0,$A37=0),0,IF('Predek KH'!AB33=0,0,IF(logic!$A$88=0,0,ROUND('Predek KH'!G33,0)))) -> 871 | H37: =IF(OR(H$29=0,$A37=0),0,IF('Predek KH'!AC33=0,0,IF(logic!$A$88=0,0,ROUND('Predek KH'!H33,0)))) -> 1207 | I37: =IF(OR(I$29=0,$A37=0),0,IF('Predek KH'!AD33=0,0,IF(logic!$A$88=0,0,ROUND('Predek KH'!I33,0)))) -> 0 | J37: =IF(OR(J$29=0,$A37=0),0,IF('Predek KH'!AE33=0,0,IF(logic!$A$88=0,0,ROUND('Predek KH'!J33,0)))) -> 0 | K37: =IF(OR(K$29=0,$A37=0),0,IF('Predek KH'!AF33=0,0,IF(logic!$A$88=0,0,ROUND('Predek KH'!K33,0)))) -> 0 | L37: =IF(OR(L$29=0,$A37=0),0,IF('Predek KH'!AG33=0,0,IF(logic!$A$88=0,0,ROUND('Predek KH'!L33,0)))) -> 527 | M37: =IF(OR(M$29=0,$A37=0),0,IF('Predek KH'!AH33=0,0,IF(logic!$A$88=0,0,ROUND('Predek KH'!M33,0)))) -> 848 | N37: =IF(OR(N$29=0,$A37=0),0,IF('Predek KH'!AI33=0,0,IF(logic!$A$88=0,0,ROUND('Predek KH'!N33,0)))) -> 892 | O37: =IF(OR(O$29=0,$A37=0),0,IF('Predek KH'!AJ33=0,0,IF(logic!$A$88=0,0,ROUND('Predek KH'!O33,0)))) -> 1128 | P37: =IF(OR(P$29=0,$A37=0),0,IF('Predek KH'!AK33=0,0,IF(logic!$A$88=0,0,ROUND('Predek KH'!P33,0)))) -> 1554 | Q37: =IF(OR(Q$29=0,$A37=0),0,IF('Predek KH'!AL33=0,0,IF(logic!$A$88=0,0,ROUND('Predek KH'!Q33,0)))) -> 0 | R37: =IF(OR(R$29=0,$A37=0),0,IF('Predek KH'!AM33=0,0,IF(logic!$A$88=0,0,ROUND('Predek KH'!R33,0)))) -> 0 | S37: =IF(OR(S$29=0,$A37=0),0,IF('Predek KH'!AN33=0,0,IF(logic!$A$88=0,0,ROUND('Predek KH'!S33,0)))) -> 0
A38: =IF(AND($M$6=Jazyk!$D$4,$O$6=Jazyk!$D$4),1,IF(AND(B38>=$M$6,B38<=$O$6),1,0)) -> 1 | B38: 1100 | D38: =IF(OR(D$29=0,$A38=0),0,IF('Predek KH'!Y34=0,0,IF(logic!$A$88=0,0,ROUND('Predek KH'!D34,0)))) -> 435 | E38: =IF(OR(E$29=0,$A38=0),0,IF('Predek KH'!Z34=0,0,IF(logic!$A$88=0,0,ROUND('Predek KH'!E34,0)))) -> 702 | F38: =IF(OR(F$29=0,$A38=0),0,IF('Predek KH'!AA34=0,0,IF(logic!$A$88=0,0,ROUND('Predek KH'!F34,0)))) -> 734 | G38: =IF(OR(G$29=0,$A38=0),0,IF('Predek KH'!AB34=0,0,IF(logic!$A$88=0,0,ROUND('Predek KH'!G34,0)))) -> 958 | H38: =IF(OR(H$29=0,$A38=0),0,IF('Predek KH'!AC34=0,0,IF(logic!$A$88=0,0,ROUND('Predek KH'!H34,0)))) -> 1328 | I38: =IF(OR(I$29=0,$A38=0),0,IF('Predek KH'!AD34=0,0,IF(logic!$A$88=0,0,ROUND('Predek KH'!I34,0)))) -> 0 | J38: =IF(OR(J$29=0,$A38=0),0,IF('Predek KH'!AE34=0,0,IF(logic!$A$88=0,0,ROUND('Predek KH'!J34,0)))) -> 0 | K38: =IF(OR(K$29=0,$A38=0),0,IF('Predek KH'!AF34=0,0,IF(logic!$A$88=0,0,ROUND('Predek KH'!K34,0)))) -> 0 | L38: =IF(OR(L$29=0,$A38=0),0,IF('Predek KH'!AG34=0,0,IF(logic!$A$88=0,0,ROUND('Predek KH'!L34,0)))) -> 580 | M38: =IF(OR(M$29=0,$A38=0),0,IF('Predek KH'!AH34=0,0,IF(logic!$A$88=0,0,ROUND('Predek KH'!M34,0)))) -> 933 | N38: =IF(OR(N$29=0,$A38=0),0,IF('Predek KH'!AI34=0,0,IF(logic!$A$88=0,0,ROUND('Predek KH'!N34,0)))) -> 981 | O38: =IF(OR(O$29=0,$A38=0),0,IF('Predek KH'!AJ34=0,0,IF(logic!$A$88=0,0,ROUND('Predek KH'!O34,0)))) -> 1241 | P38: =IF(OR(P$29=0,$A38=0),0,IF('Predek KH'!AK34=0,0,IF(logic!$A$88=0,0,ROUND('Predek KH'!P34,0)))) -> 1709 | Q38: =IF(OR(Q$29=0,$A38=0),0,IF('Predek KH'!AL34=0,0,IF(logic!$A$88=0,0,ROUND('Predek KH'!Q34,0)))) -> 0 | R38: =IF(OR(R$29=0,$A38=0),0,IF('Predek KH'!AM34=0,0,IF(logic!$A$88=0,0,ROUND('Predek KH'!R34,0)))) -> 0 | S38: =IF(OR(S$29=0,$A38=0),0,IF('Predek KH'!AN34=0,0,IF(logic!$A$88=0,0,ROUND('Predek KH'!S34,0)))) -> 0
A39: =IF(AND($M$6=Jazyk!$D$4,$O$6=Jazyk!$D$4),1,IF(AND(B39>=$M$6,B39<=$O$6),1,0)) -> 1 | B39: 1200 | D39: =IF(OR(D$29=0,$A39=0),0,IF('Predek KH'!Y35=0,0,IF(logic!$A$88=0,0,ROUND('Predek KH'!D35,0)))) -> 474 | E39: =IF(OR(E$29=0,$A39=0),0,IF('Predek KH'!Z35=0,0,IF(logic!$A$88=0,0,ROUND('Predek KH'!E35,0)))) -> 766 | F39: =IF(OR(F$29=0,$A39=0),0,IF('Predek KH'!AA35=0,0,IF(logic!$A$88=0,0,ROUND('Predek KH'!F35,0)))) -> 800 | G39: =IF(OR(G$29=0,$A39=0),0,IF('Predek KH'!AB35=0,0,IF(logic!$A$88=0,0,ROUND('Predek KH'!G35,0)))) -> 1045 | H39: =IF(OR(H$29=0,$A39=0),0,IF('Predek KH'!AC35=0,0,IF(logic!$A$88=0,0,ROUND('Predek KH'!H35,0)))) -> 1448 | I39: =IF(OR(I$29=0,$A39=0),0,IF('Predek KH'!AD35=0,0,IF(logic!$A$88=0,0,ROUND('Predek KH'!I35,0)))) -> 0 | J39: =IF(OR(J$29=0,$A39=0),0,IF('Predek KH'!AE35=0,0,IF(logic!$A$88=0,0,ROUND('Predek KH'!J35,0)))) -> 0 | K39: =IF(OR(K$29=0,$A39=0),0,IF('Predek KH'!AF35=0,0,IF(logic!$A$88=0,0,ROUND('Predek KH'!K35,0)))) -> 0 | L39: =IF(OR(L$29=0,$A39=0),0,IF('Predek KH'!AG35=0,0,IF(logic!$A$88=0,0,ROUND('Predek KH'!L35,0)))) -> 632 | M39: =IF(OR(M$29=0,$A39=0),0,IF('Predek KH'!AH35=0,0,IF(logic!$A$88=0,0,ROUND('Predek KH'!M35,0)))) -> 1018 | N39: =IF(OR(N$29=0,$A39=0),0,IF('Predek KH'!AI35=0,0,IF(logic!$A$88=0,0,ROUND('Predek KH'!N35,0)))) -> 1070 | O39: =IF(OR(O$29=0,$A39=0),0,IF('Predek KH'!AJ35=0,0,IF(logic!$A$88=0,0,ROUND('Predek KH'!O35,0)))) -> 1354 | P39: =IF(OR(P$29=0,$A39=0),0,IF('Predek KH'!AK35=0,0,IF(logic!$A$88=0,0,ROUND('Predek KH'!P35,0)))) -> 1865 | Q39: =IF(OR(Q$29=0,$A39=0),0,IF('Predek KH'!AL35=0,0,IF(logic!$A$88=0,0,ROUND('Predek KH'!Q35,0)))) -> 0 | R39: =IF(OR(R$29=0,$A39=0),0,IF('Predek KH'!AM35=0,0,IF(logic!$A$88=0,0,ROUND('Predek KH'!R35,0)))) -> 0 | S39: =IF(OR(S$29=0,$A39=0),0,IF('Predek KH'!AN35=0,0,IF(logic!$A$88=0,0,ROUND('Predek KH'!S35,0)))) -> 0
A40: =IF(AND($M$6=Jazyk!$D$4,$O$6=Jazyk!$D$4),1,IF(AND(B40>=$M$6,B40<=$O$6),1,0)) -> 1 | B40: 1400 | D40: =IF(OR(D$29=0,$A40=0),0,IF('Predek KH'!Y36=0,0,IF(logic!$A$88=0,0,ROUND('Predek KH'!D36,0)))) -> 553 | E40: =IF(OR(E$29=0,$A40=0),0,IF('Predek KH'!Z36=0,0,IF(logic!$A$88=0,0,ROUND('Predek KH'!E36,0)))) -> 893 | F40: =IF(OR(F$29=0,$A40=0),0,IF('Predek KH'!AA36=0,0,IF(logic!$A$88=0,0,ROUND('Predek KH'!F36,0)))) -> 934 | G40: =IF(OR(G$29=0,$A40=0),0,IF('Predek KH'!AB36=0,0,IF(logic!$A$88=0,0,ROUND('Predek KH'!G36,0)))) -> 1219 | H40: =IF(OR(H$29=0,$A40=0),0,IF('Predek KH'!AC36=0,0,IF(logic!$A$88=0,0,ROUND('Predek KH'!H36,0)))) -> 1690 | I40: =IF(OR(I$29=0,$A40=0),0,IF('Predek KH'!AD36=0,0,IF(logic!$A$88=0,0,ROUND('Predek KH'!I36,0)))) -> 0 | J40: =IF(OR(J$29=0,$A40=0),0,IF('Predek KH'!AE36=0,0,IF(logic!$A$88=0,0,ROUND('Predek KH'!J36,0)))) -> 0 | K40: =IF(OR(K$29=0,$A40=0),0,IF('Predek KH'!AF36=0,0,IF(logic!$A$88=0,0,ROUND('Predek KH'!K36,0)))) -> 0 | L40: =IF(OR(L$29=0,$A40=0),0,IF('Predek KH'!AG36=0,0,IF(logic!$A$88=0,0,ROUND('Predek KH'!L36,0)))) -> 738 | M40: =IF(OR(M$29=0,$A40=0),0,IF('Predek KH'!AH36=0,0,IF(logic!$A$88=0,0,ROUND('Predek KH'!M36,0)))) -> 1187 | N40: =IF(OR(N$29=0,$A40=0),0,IF('Predek KH'!AI36=0,0,IF(logic!$A$88=0,0,ROUND('Predek KH'!N36,0)))) -> 1249 | O40: =IF(OR(O$29=0,$A40=0),0,IF('Predek KH'!AJ36=0,0,IF(logic!$A$88=0,0,ROUND('Predek KH'!O36,0)))) -> 1579 | P40: =IF(OR(P$29=0,$A40=0),0,IF('Predek KH'!AK36=0,0,IF(logic!$A$88=0,0,ROUND('Predek KH'!P36,0)))) -> 2176 | Q40: =IF(OR(Q$29=0,$A40=0),0,IF('Predek KH'!AL36=0,0,IF(logic!$A$88=0,0,ROUND('Predek KH'!Q36,0)))) -> 0 | R40: =IF(OR(R$29=0,$A40=0),0,IF('Predek KH'!AM36=0,0,IF(logic!$A$88=0,0,ROUND('Predek KH'!R36,0)))) -> 0 | S40: =IF(OR(S$29=0,$A40=0),0,IF('Predek KH'!AN36=0,0,IF(logic!$A$88=0,0,ROUND('Predek KH'!S36,0)))) -> 0
A41: =IF(AND($M$6=Jazyk!$D$4,$O$6=Jazyk!$D$4),1,IF(AND(B41>=$M$6,B41<=$O$6),1,0)) -> 1 | B41: 1600 | D41: =IF(OR(D$29=0,$A41=0),0,IF('Predek KH'!Y37=0,0,IF(logic!$A$88=0,0,ROUND('Predek KH'!D37,0)))) -> 632 | E41: =IF(OR(E$29=0,$A41=0),0,IF('Predek KH'!Z37=0,0,IF(logic!$A$88=0,0,ROUND('Predek KH'!E37,0)))) -> 1021 | F41: =IF(OR(F$29=0,$A41=0),0,IF('Predek KH'!AA37=0,0,IF(logic!$A$88=0,0,ROUND('Predek KH'!F37,0)))) -> 1067 | G41: =IF(OR(G$29=0,$A41=0),0,IF('Predek KH'!AB37=0,0,IF(logic!$A$88=0,0,ROUND('Predek KH'!G37,0)))) -> 1394 | H41: =IF(OR(H$29=0,$A41=0),0,IF('Predek KH'!AC37=0,0,IF(logic!$A$88=0,0,ROUND('Predek KH'!H37,0)))) -> 1931 | I41: =IF(OR(I$29=0,$A41=0),0,IF('Predek KH'!AD37=0,0,IF(logic!$A$88=0,0,ROUND('Predek KH'!I37,0)))) -> 0 | J41: =IF(OR(J$29=0,$A41=0),0,IF('Predek KH'!AE37=0,0,IF(logic!$A$88=0,0,ROUND('Predek KH'!J37,0)))) -> 0 | K41: =IF(OR(K$29=0,$A41=0),0,IF('Predek KH'!AF37=0,0,IF(logic!$A$88=0,0,ROUND('Predek KH'!K37,0)))) -> 0 | L41: =IF(OR(L$29=0,$A41=0),0,IF('Predek KH'!AG37=0,0,IF(logic!$A$88=0,0,ROUND('Predek KH'!L37,0)))) -> 843 | M41: =IF(OR(M$29=0,$A41=0),0,IF('Predek KH'!AH37=0,0,IF(logic!$A$88=0,0,ROUND('Predek KH'!M37,0)))) -> 1357 | N41: =IF(OR(N$29=0,$A41=0),0,IF('Predek KH'!AI37=0,0,IF(logic!$A$88=0,0,ROUND('Predek KH'!N37,0)))) -> 1427 | O41: =IF(OR(O$29=0,$A41=0),0,IF('Predek KH'!AJ37=0,0,IF(logic!$A$88=0,0,ROUND('Predek KH'!O37,0)))) -> 1805 | P41: =IF(OR(P$29=0,$A41=0),0,IF('Predek KH'!AK37=0,0,IF(logic!$A$88=0,0,ROUND('Predek KH'!P37,0)))) -> 2486 | Q41: =IF(OR(Q$29=0,$A41=0),0,IF('Predek KH'!AL37=0,0,IF(logic!$A$88=0,0,ROUND('Predek KH'!Q37,0)))) -> 0 | R41: =IF(OR(R$29=0,$A41=0),0,IF('Predek KH'!AM37=0,0,IF(logic!$A$88=0,0,ROUND('Predek KH'!R37,0)))) -> 0 | S41: =IF(OR(S$29=0,$A41=0),0,IF('Predek KH'!AN37=0,0,IF(logic!$A$88=0,0,ROUND('Predek KH'!S37,0)))) -> 0
A42: =IF(AND($M$6=Jazyk!$D$4,$O$6=Jazyk!$D$4),1,IF(AND(B42>=$M$6,B42<=$O$6),1,0)) -> 1 | B42: 1800 | D42: =IF(OR(D$29=0,$A42=0),0,IF('Predek KH'!Y38=0,0,IF(logic!$A$88=0,0,ROUND('Predek KH'!D38,0)))) -> 711 | E42: =IF(OR(E$29=0,$A42=0),0,IF('Predek KH'!Z38=0,0,IF(logic!$A$88=0,0,ROUND('Predek KH'!E38,0)))) -> 1148 | F42: =IF(OR(F$29=0,$A42=0),0,IF('Predek KH'!AA38=0,0,IF(logic!$A$88=0,0,ROUND('Predek KH'!F38,0)))) -> 1201 | G42: =IF(OR(G$29=0,$A42=0),0,IF('Predek KH'!AB38=0,0,IF(logic!$A$88=0,0,ROUND('Predek KH'!G38,0)))) -> 1568 | H42: =IF(OR(H$29=0,$A42=0),0,IF('Predek KH'!AC38=0,0,IF(logic!$A$88=0,0,ROUND('Predek KH'!H38,0)))) -> 2173 | I42: =IF(OR(I$29=0,$A42=0),0,IF('Predek KH'!AD38=0,0,IF(logic!$A$88=0,0,ROUND('Predek KH'!I38,0)))) -> 0 | J42: =IF(OR(J$29=0,$A42=0),0,IF('Predek KH'!AE38=0,0,IF(logic!$A$88=0,0,ROUND('Predek KH'!J38,0)))) -> 0 | K42: =IF(OR(K$29=0,$A42=0),0,IF('Predek KH'!AF38=0,0,IF(logic!$A$88=0,0,ROUND('Predek KH'!K38,0)))) -> 0 | L42: =IF(OR(L$29=0,$A42=0),0,IF('Predek KH'!AG38=0,0,IF(logic!$A$88=0,0,ROUND('Predek KH'!L38,0)))) -> 949 | M42: =IF(OR(M$29=0,$A42=0),0,IF('Predek KH'!AH38=0,0,IF(logic!$A$88=0,0,ROUND('Predek KH'!M38,0)))) -> 1526 | N42: =IF(OR(N$29=0,$A42=0),0,IF('Predek KH'!AI38=0,0,IF(logic!$A$88=0,0,ROUND('Predek KH'!N38,0)))) -> 1606 | O42: =IF(OR(O$29=0,$A42=0),0,IF('Predek KH'!AJ38=0,0,IF(logic!$A$88=0,0,ROUND('Predek KH'!O38,0)))) -> 2030 | P42: =IF(OR(P$29=0,$A42=0),0,IF('Predek KH'!AK38=0,0,IF(logic!$A$88=0,0,ROUND('Predek KH'!P38,0)))) -> 2797 | Q42: =IF(OR(Q$29=0,$A42=0),0,IF('Predek KH'!AL38=0,0,IF(logic!$A$88=0,0,ROUND('Predek KH'!Q38,0)))) -> 0 | R42: =IF(OR(R$29=0,$A42=0),0,IF('Predek KH'!AM38=0,0,IF(logic!$A$88=0,0,ROUND('Predek KH'!R38,0)))) -> 0 | S42: =IF(OR(S$29=0,$A42=0),0,IF('Predek KH'!AN38=0,0,IF(logic!$A$88=0,0,ROUND('Predek KH'!S38,0)))) -> 0
A43: =IF(AND($M$6=Jazyk!$D$4,$O$6=Jazyk!$D$4),1,IF(AND(B43>=$M$6,B43<=$O$6),1,0)) -> 1 | B43: 2000 | D43: =IF(OR(D$29=0,$A43=0),0,IF('Predek KH'!Y39=0,0,IF(logic!$A$88=0,0,ROUND('Predek KH'!D39,0)))) -> 790 | E43: =IF(OR(E$29=0,$A43=0),0,IF('Predek KH'!Z39=0,0,IF(logic!$A$88=0,0,ROUND('Predek KH'!E39,0)))) -> 1276 | F43: =IF(OR(F$29=0,$A43=0),0,IF('Predek KH'!AA39=0,0,IF(logic!$A$88=0,0,ROUND('Predek KH'!F39,0)))) -> 1334 | G43: =IF(OR(G$29=0,$A43=0),0,IF('Predek KH'!AB39=0,0,IF(logic!$A$88=0,0,ROUND('Predek KH'!G39,0)))) -> 1742 | H43: =IF(OR(H$29=0,$A43=0),0,IF('Predek KH'!AC39=0,0,IF(logic!$A$88=0,0,ROUND('Predek KH'!H39,0)))) -> 2414 | I43: =IF(OR(I$29=0,$A43=0),0,IF('Predek KH'!AD39=0,0,IF(logic!$A$88=0,0,ROUND('Predek KH'!I39,0)))) -> 0 | J43: =IF(OR(J$29=0,$A43=0),0,IF('Predek KH'!AE39=0,0,IF(logic!$A$88=0,0,ROUND('Predek KH'!J39,0)))) -> 0 | K43: =IF(OR(K$29=0,$A43=0),0,IF('Predek KH'!AF39=0,0,IF(logic!$A$88=0,0,ROUND('Predek KH'!K39,0)))) -> 0 | L43: =IF(OR(L$29=0,$A43=0),0,IF('Predek KH'!AG39=0,0,IF(logic!$A$88=0,0,ROUND('Predek KH'!L39,0)))) -> 1054 | M43: =IF(OR(M$29=0,$A43=0),0,IF('Predek KH'!AH39=0,0,IF(logic!$A$88=0,0,ROUND('Predek KH'!M39,0)))) -> 1696 | N43: =IF(OR(N$29=0,$A43=0),0,IF('Predek KH'!AI39=0,0,IF(logic!$A$88=0,0,ROUND('Predek KH'!N39,0)))) -> 1784 | O43: =IF(OR(O$29=0,$A43=0),0,IF('Predek KH'!AJ39=0,0,IF(logic!$A$88=0,0,ROUND('Predek KH'!O39,0)))) -> 2256 | P43: =IF(OR(P$29=0,$A43=0),0,IF('Predek KH'!AK39=0,0,IF(logic!$A$88=0,0,ROUND('Predek KH'!P39,0)))) -> 3108 | Q43: =IF(OR(Q$29=0,$A43=0),0,IF('Predek KH'!AL39=0,0,IF(logic!$A$88=0,0,ROUND('Predek KH'!Q39,0)))) -> 0 | R43: =IF(OR(R$29=0,$A43=0),0,IF('Predek KH'!AM39=0,0,IF(logic!$A$88=0,0,ROUND('Predek KH'!R39,0)))) -> 0 | S43: =IF(OR(S$29=0,$A43=0),0,IF('Predek KH'!AN39=0,0,IF(logic!$A$88=0,0,ROUND('Predek KH'!S39,0)))) -> 0
A44: =IF(AND($M$6=Jazyk!$D$4,$O$6=Jazyk!$D$4),1,IF(AND(B44>=$M$6,B44<=$O$6),1,0)) -> 1 | B44: 2300 | D44: =IF(OR(D$29=0,$A44=0),0,IF('Predek KH'!Y40=0,0,IF(logic!$A$88=0,0,ROUND('Predek KH'!D40,0)))) -> 909 | E44: =IF(OR(E$29=0,$A44=0),0,IF('Predek KH'!Z40=0,0,IF(logic!$A$88=0,0,ROUND('Predek KH'!E40,0)))) -> 1467 | F44: =IF(OR(F$29=0,$A44=0),0,IF('Predek KH'!AA40=0,0,IF(logic!$A$88=0,0,ROUND('Predek KH'!F40,0)))) -> 1534 | G44: =IF(OR(G$29=0,$A44=0),0,IF('Predek KH'!AB40=0,0,IF(logic!$A$88=0,0,ROUND('Predek KH'!G40,0)))) -> 2003 | H44: =IF(OR(H$29=0,$A44=0),0,IF('Predek KH'!AC40=0,0,IF(logic!$A$88=0,0,ROUND('Predek KH'!H40,0)))) -> 2776 | I44: =IF(OR(I$29=0,$A44=0),0,IF('Predek KH'!AD40=0,0,IF(logic!$A$88=0,0,ROUND('Predek KH'!I40,0)))) -> 0 | J44: =IF(OR(J$29=0,$A44=0),0,IF('Predek KH'!AE40=0,0,IF(logic!$A$88=0,0,ROUND('Predek KH'!J40,0)))) -> 0 | K44: =IF(OR(K$29=0,$A44=0),0,IF('Predek KH'!AF40=0,0,IF(logic!$A$88=0,0,ROUND('Predek KH'!K40,0)))) -> 0 | L44: =IF(OR(L$29=0,$A44=0),0,IF('Predek KH'!AG40=0,0,IF(logic!$A$88=0,0,ROUND('Predek KH'!L40,0)))) -> 1212 | M44: =IF(OR(M$29=0,$A44=0),0,IF('Predek KH'!AH40=0,0,IF(logic!$A$88=0,0,ROUND('Predek KH'!M40,0)))) -> 1950 | N44: =IF(OR(N$29=0,$A44=0),0,IF('Predek KH'!AI40=0,0,IF(logic!$A$88=0,0,ROUND('Predek KH'!N40,0)))) -> 2052 | O44: =IF(OR(O$29=0,$A44=0),0,IF('Predek KH'!AJ40=0,0,IF(logic!$A$88=0,0,ROUND('Predek KH'!O40,0)))) -> 2594 | P44: =IF(OR(P$29=0,$A44=0),0,IF('Predek KH'!AK40=0,0,IF(logic!$A$88=0,0,ROUND('Predek KH'!P40,0)))) -> 3574 | Q44: =IF(OR(Q$29=0,$A44=0),0,IF('Predek KH'!AL40=0,0,IF(logic!$A$88=0,0,ROUND('Predek KH'!Q40,0)))) -> 0 | R44: =IF(OR(R$29=0,$A44=0),0,IF('Predek KH'!AM40=0,0,IF(logic!$A$88=0,0,ROUND('Predek KH'!R40,0)))) -> 0 | S44: =IF(OR(S$29=0,$A44=0),0,IF('Predek KH'!AN40=0,0,IF(logic!$A$88=0,0,ROUND('Predek KH'!S40,0)))) -> 0
A45: =IF(AND($M$6=Jazyk!$D$4,$O$6=Jazyk!$D$4),1,IF(AND(B45>=$M$6,B45<=$O$6),1,0)) -> 1 | B45: 2600 | D45: =IF(OR(D$29=0,$A45=0),0,IF('Predek KH'!Y41=0,0,IF(logic!$A$88=0,0,ROUND('Predek KH'!D41,0)))) -> 1027 | E45: =IF(OR(E$29=0,$A45=0),0,IF('Predek KH'!Z41=0,0,IF(logic!$A$88=0,0,ROUND('Predek KH'!E41,0)))) -> 1659 | F45: =IF(OR(F$29=0,$A45=0),0,IF('Predek KH'!AA41=0,0,IF(logic!$A$88=0,0,ROUND('Predek KH'!F41,0)))) -> 1734 | G45: =IF(OR(G$29=0,$A45=0),0,IF('Predek KH'!AB41=0,0,IF(logic!$A$88=0,0,ROUND('Predek KH'!G41,0)))) -> 2265 | H45: =IF(OR(H$29=0,$A45=0),0,IF('Predek KH'!AC41=0,0,IF(logic!$A$88=0,0,ROUND('Predek KH'!H41,0)))) -> 3138 | I45: =IF(OR(I$29=0,$A45=0),0,IF('Predek KH'!AD41=0,0,IF(logic!$A$88=0,0,ROUND('Predek KH'!I41,0)))) -> 0 | J45: =IF(OR(J$29=0,$A45=0),0,IF('Predek KH'!AE41=0,0,IF(logic!$A$88=0,0,ROUND('Predek KH'!J41,0)))) -> 0 | K45: =IF(OR(K$29=0,$A45=0),0,IF('Predek KH'!AF41=0,0,IF(logic!$A$88=0,0,ROUND('Predek KH'!K41,0)))) -> 0 | L45: =IF(OR(L$29=0,$A45=0),0,IF('Predek KH'!AG41=0,0,IF(logic!$A$88=0,0,ROUND('Predek KH'!L41,0)))) -> 1370 | M45: =IF(OR(M$29=0,$A45=0),0,IF('Predek KH'!AH41=0,0,IF(logic!$A$88=0,0,ROUND('Predek KH'!M41,0)))) -> 2205 | N45: =IF(OR(N$29=0,$A45=0),0,IF('Predek KH'!AI41=0,0,IF(logic!$A$88=0,0,ROUND('Predek KH'!N41,0)))) -> 2319 | O45: =IF(OR(O$29=0,$A45=0),0,IF('Predek KH'!AJ41=0,0,IF(logic!$A$88=0,0,ROUND('Predek KH'!O41,0)))) -> 2933 | P45: =IF(OR(P$29=0,$A45=0),0,IF('Predek KH'!AK41=0,0,IF(logic!$A$88=0,0,ROUND('Predek KH'!P41,0)))) -> 4040 | Q45: =IF(OR(Q$29=0,$A45=0),0,IF('Predek KH'!AL41=0,0,IF(logic!$A$88=0,0,ROUND('Predek KH'!Q41,0)))) -> 0 | R45: =IF(OR(R$29=0,$A45=0),0,IF('Predek KH'!AM41=0,0,IF(logic!$A$88=0,0,ROUND('Predek KH'!R41,0)))) -> 0 | S45: =IF(OR(S$29=0,$A45=0),0,IF('Predek KH'!AN41=0,0,IF(logic!$A$88=0,0,ROUND('Predek KH'!S41,0)))) -> 0
A46: =IF(AND($M$6=Jazyk!$D$4,$O$6=Jazyk!$D$4),1,IF(AND(B46>=$M$6,B46<=$O$6),1,0)) -> 1 | B46: 3000 | D46: =IF(OR(D$29=0,$A46=0),0,IF('Predek KH'!Y42=0,0,IF(logic!$A$88=0,0,ROUND('Predek KH'!D42,0)))) -> 1185 | E46: =IF(OR(E$29=0,$A46=0),0,IF('Predek KH'!Z42=0,0,IF(logic!$A$88=0,0,ROUND('Predek KH'!E42,0)))) -> 1914 | F46: =IF(OR(F$29=0,$A46=0),0,IF('Predek KH'!AA42=0,0,IF(logic!$A$88=0,0,ROUND('Predek KH'!F42,0)))) -> 2001 | G46: =IF(OR(G$29=0,$A46=0),0,IF('Predek KH'!AB42=0,0,IF(logic!$A$88=0,0,ROUND('Predek KH'!G42,0)))) -> 2613 | H46: =IF(OR(H$29=0,$A46=0),0,IF('Predek KH'!AC42=0,0,IF(logic!$A$88=0,0,ROUND('Predek KH'!H42,0)))) -> 3621 | I46: =IF(OR(I$29=0,$A46=0),0,IF('Predek KH'!AD42=0,0,IF(logic!$A$88=0,0,ROUND('Predek KH'!I42,0)))) -> 0 | J46: =IF(OR(J$29=0,$A46=0),0,IF('Predek KH'!AE42=0,0,IF(logic!$A$88=0,0,ROUND('Predek KH'!J42,0)))) -> 0 | K46: =IF(OR(K$29=0,$A46=0),0,IF('Predek KH'!AF42=0,0,IF(logic!$A$88=0,0,ROUND('Predek KH'!K42,0)))) -> 0 | L46: =IF(OR(L$29=0,$A46=0),0,IF('Predek KH'!AG42=0,0,IF(logic!$A$88=0,0,ROUND('Predek KH'!L42,0)))) -> 1581 | M46: =IF(OR(M$29=0,$A46=0),0,IF('Predek KH'!AH42=0,0,IF(logic!$A$88=0,0,ROUND('Predek KH'!M42,0)))) -> 2544 | N46: =IF(OR(N$29=0,$A46=0),0,IF('Predek KH'!AI42=0,0,IF(logic!$A$88=0,0,ROUND('Predek KH'!N42,0)))) -> 2676 | O46: =IF(OR(O$29=0,$A46=0),0,IF('Predek KH'!AJ42=0,0,IF(logic!$A$88=0,0,ROUND('Predek KH'!O42,0)))) -> 3384 | P46: =IF(OR(P$29=0,$A46=0),0,IF('Predek KH'!AK42=0,0,IF(logic!$A$88=0,0,ROUND('Predek KH'!P42,0)))) -> 0 | Q46: =IF(OR(Q$29=0,$A46=0),0,IF('Predek KH'!AL42=0,0,IF(logic!$A$88=0,0,ROUND('Predek KH'!Q42,0)))) -> 0 | R46: =IF(OR(R$29=0,$A46=0),0,IF('Predek KH'!AM42=0,0,IF(logic!$A$88=0,0,ROUND('Predek KH'!R42,0)))) -> 0 | S46: =IF(OR(S$29=0,$A46=0),0,IF('Predek KH'!AN42=0,0,IF(logic!$A$88=0,0,ROUND('Predek KH'!S42,0)))) -> 0
D48: =IF(AND($M$5=Jazyk!$D$4,$O$5=Jazyk!$D$4),1,IF(AND(D49>=$M$5,D49<=$O$5),1,0)) -> 1 | E48: =IF(AND($M$5=Jazyk!$D$4,$O$5=Jazyk!$D$4),1,IF(AND(E49>=$M$5,E49<=$O$5),1,0)) -> 1 | F48: =IF(AND($M$5=Jazyk!$D$4,$O$5=Jazyk!$D$4),1,IF(AND(F49>=$M$5,F49<=$O$5),1,0)) -> 1 | G48: =IF(AND($M$5=Jazyk!$D$4,$O$5=Jazyk!$D$4),1,IF(AND(G49>=$M$5,G49<=$O$5),1,0)) -> 1 | H48: =IF(AND($M$5=Jazyk!$D$4,$O$5=Jazyk!$D$4),1,IF(AND(H49>=$M$5,H49<=$O$5),1,0)) -> 1 | I48: =IF(AND($M$5=Jazyk!$D$4,$O$5=Jazyk!$D$4),1,IF(AND(I49>=$M$5,I49<=$O$5),1,0)) -> 1 | J48: =IF(AND($M$5=Jazyk!$D$4,$O$5=Jazyk!$D$4),1,IF(AND(J49>=$M$5,J49<=$O$5),1,0)) -> 1 | K48: =IF(AND($M$5=Jazyk!$D$4,$O$5=Jazyk!$D$4),1,IF(AND(K49>=$M$5,K49<=$O$5),1,0)) -> 1 | L48: =IF(AND($M$5=Jazyk!$D$4,$O$5=Jazyk!$D$4),1,IF(AND(L49>=$M$5,L49<=$O$5),1,0)) -> 1 | M48: =IF(AND($M$5=Jazyk!$D$4,$O$5=Jazyk!$D$4),1,IF(AND(M49>=$M$5,M49<=$O$5),1,0)) -> 1 | N48: =IF(AND($M$5=Jazyk!$D$4,$O$5=Jazyk!$D$4),1,IF(AND(N49>=$M$5,N49<=$O$5),1,0)) -> 1 | O48: =IF(AND($M$5=Jazyk!$D$4,$O$5=Jazyk!$D$4),1,IF(AND(O49>=$M$5,O49<=$O$5),1,0)) -> 1 | P48: =IF(AND($M$5=Jazyk!$D$4,$O$5=Jazyk!$D$4),1,IF(AND(P49>=$M$5,P49<=$O$5),1,0)) -> 1 | Q48: =IF(AND($M$5=Jazyk!$D$4,$O$5=Jazyk!$D$4),1,IF(AND(Q49>=$M$5,Q49<=$O$5),1,0)) -> 1 | R48: =IF(AND($M$5=Jazyk!$D$4,$O$5=Jazyk!$D$4),1,IF(AND(R49>=$M$5,R49<=$O$5),1,0)) -> 1 | S48: =IF(AND($M$5=Jazyk!$D$4,$O$5=Jazyk!$D$4),1,IF(AND(S49>=$M$5,S49<=$O$5),1,0)) -> 1
B49: =Jazyk!$G$27 -> Височина [mm] | D49: =F49 -> 588 | E49: =F49 -> 588 | F49: ='Qn H'!$G$11 -> 588 | G49: =F49 -> 588 | H49: =F49 -> 588 | I49: =F49 -> 588 | J49: =F49 -> 588 | K49: =F49 -> 588 | L49: =N49 -> 662 | M49: =N49 -> 662 | N49: ='Qn H'!$O$11 -> 662 | O49: =N49 -> 662 | P49: =N49 -> 662 | Q49: =N49 -> 662 | R49: =N49 -> 662 | S49: =N49 -> 662
B50: =Jazyk!$H$27 -> Дължина [mm] | D50: ='Qn H'!E12 -> K10H | E50: ='Qn H'!F12 -> K11H | F50: ='Qn H'!G12 -> K20H | G50: ='Qn H'!H12 -> K21H | H50: ='Qn H'!I12 -> K22H | I50: ='Qn H'!J12 -> 0 | J50: ='Qn H'!K12 -> 0 | K50: ='Qn H'!L12 -> 0 | L50: ='Qn H'!M12 -> K10H | M50: ='Qn H'!N12 -> K11H | N50: ='Qn H'!O12 -> K20H | O50: ='Qn H'!P12 -> K21H | P50: ='Qn H'!Q12 -> K22H | Q50: ='Qn H'!R12 -> 0 | R50: ='Qn H'!S12 -> 0 | S50: ='Qn H'!T12 -> 0
A51: =IF(AND($M$6=Jazyk!$D$4,$O$6=Jazyk!$D$4),1,IF(AND(B51>=$M$6,B51<=$O$6),1,0)) -> 1 | B51: 500 | D51: =IF(OR(D$48=0,$A51=0),0,IF('Predek KH'!Y47=0,0,IF(logic!$A$88=0,0,ROUND('Predek KH'!D47,0)))) -> 298 | E51: =IF(OR(E$48=0,$A51=0),0,IF('Predek KH'!Z47=0,0,IF(logic!$A$88=0,0,ROUND('Predek KH'!E47,0)))) -> 475 | F51: =IF(OR(F$48=0,$A51=0),0,IF('Predek KH'!AA47=0,0,IF(logic!$A$88=0,0,ROUND('Predek KH'!F47,0)))) -> 503 | G51: =IF(OR(G$48=0,$A51=0),0,IF('Predek KH'!AB47=0,0,IF(logic!$A$88=0,0,ROUND('Predek KH'!G47,0)))) -> 624 | H51: =IF(OR(H$48=0,$A51=0),0,IF('Predek KH'!AC47=0,0,IF(logic!$A$88=0,0,ROUND('Predek KH'!H47,0)))) -> 854 | I51: =IF(OR(I$48=0,$A51=0),0,IF('Predek KH'!AD47=0,0,IF(logic!$A$88=0,0,ROUND('Predek KH'!I47,0)))) -> 0 | J51: =IF(OR(J$48=0,$A51=0),0,IF('Predek KH'!AE47=0,0,IF(logic!$A$88=0,0,ROUND('Predek KH'!J47,0)))) -> 0 | K51: =IF(OR(K$48=0,$A51=0),0,IF('Predek KH'!AF47=0,0,IF(logic!$A$88=0,0,ROUND('Predek KH'!K47,0)))) -> 0 | L51: =IF(OR(L$48=0,$A51=0),0,IF('Predek KH'!AG47=0,0,IF(logic!$A$88=0,0,ROUND('Predek KH'!L47,0)))) -> 333 | M51: =IF(OR(M$48=0,$A51=0),0,IF('Predek KH'!AH47=0,0,IF(logic!$A$88=0,0,ROUND('Predek KH'!M47,0)))) -> 524 | N51: =IF(OR(N$48=0,$A51=0),0,IF('Predek KH'!AI47=0,0,IF(logic!$A$88=0,0,ROUND('Predek KH'!N47,0)))) -> 560 | O51: =IF(OR(O$48=0,$A51=0),0,IF('Predek KH'!AJ47=0,0,IF(logic!$A$88=0,0,ROUND('Predek KH'!O47,0)))) -> 680 | P51: =IF(OR(P$48=0,$A51=0),0,IF('Predek KH'!AK47=0,0,IF(logic!$A$88=0,0,ROUND('Predek KH'!P47,0)))) -> 927 | Q51: =IF(OR(Q$48=0,$A51=0),0,IF('Predek KH'!AL47=0,0,IF(logic!$A$88=0,0,ROUND('Predek KH'!Q47,0)))) -> 0 | R51: =IF(OR(R$48=0,$A51=0),0,IF('Predek KH'!AM47=0,0,IF(logic!$A$88=0,0,ROUND('Predek KH'!R47,0)))) -> 0 | S51: =IF(OR(S$48=0,$A51=0),0,IF('Predek KH'!AN47=0,0,IF(logic!$A$88=0,0,ROUND('Predek KH'!S47,0)))) -> 0
A52: =IF(AND($M$6=Jazyk!$D$4,$O$6=Jazyk!$D$4),1,IF(AND(B52>=$M$6,B52<=$O$6),1,0)) -> 1 | B52: 600 | D52: =IF(OR(D$48=0,$A52=0),0,IF('Predek KH'!Y48=0,0,IF(logic!$A$88=0,0,ROUND('Predek KH'!D48,0)))) -> 357 | E52: =IF(OR(E$48=0,$A52=0),0,IF('Predek KH'!Z48=0,0,IF(logic!$A$88=0,0,ROUND('Predek KH'!E48,0)))) -> 569 | F52: =IF(OR(F$48=0,$A52=0),0,IF('Predek KH'!AA48=0,0,IF(logic!$A$88=0,0,ROUND('Predek KH'!F48,0)))) -> 604 | G52: =IF(OR(G$48=0,$A52=0),0,IF('Predek KH'!AB48=0,0,IF(logic!$A$88=0,0,ROUND('Predek KH'!G48,0)))) -> 748 | H52: =IF(OR(H$48=0,$A52=0),0,IF('Predek KH'!AC48=0,0,IF(logic!$A$88=0,0,ROUND('Predek KH'!H48,0)))) -> 1025 | I52: =IF(OR(I$48=0,$A52=0),0,IF('Predek KH'!AD48=0,0,IF(logic!$A$88=0,0,ROUND('Predek KH'!I48,0)))) -> 0 | J52: =IF(OR(J$48=0,$A52=0),0,IF('Predek KH'!AE48=0,0,IF(logic!$A$88=0,0,ROUND('Predek KH'!J48,0)))) -> 0 | K52: =IF(OR(K$48=0,$A52=0),0,IF('Predek KH'!AF48=0,0,IF(logic!$A$88=0,0,ROUND('Predek KH'!K48,0)))) -> 0 | L52: =IF(OR(L$48=0,$A52=0),0,IF('Predek KH'!AG48=0,0,IF(logic!$A$88=0,0,ROUND('Predek KH'!L48,0)))) -> 400 | M52: =IF(OR(M$48=0,$A52=0),0,IF('Predek KH'!AH48=0,0,IF(logic!$A$88=0,0,ROUND('Predek KH'!M48,0)))) -> 629 | N52: =IF(OR(N$48=0,$A52=0),0,IF('Predek KH'!AI48=0,0,IF(logic!$A$88=0,0,ROUND('Predek KH'!N48,0)))) -> 672 | O52: =IF(OR(O$48=0,$A52=0),0,IF('Predek KH'!AJ48=0,0,IF(logic!$A$88=0,0,ROUND('Predek KH'!O48,0)))) -> 816 | P52: =IF(OR(P$48=0,$A52=0),0,IF('Predek KH'!AK48=0,0,IF(logic!$A$88=0,0,ROUND('Predek KH'!P48,0)))) -> 1112 | Q52: =IF(OR(Q$48=0,$A52=0),0,IF('Predek KH'!AL48=0,0,IF(logic!$A$88=0,0,ROUND('Predek KH'!Q48,0)))) -> 0 | R52: =IF(OR(R$48=0,$A52=0),0,IF('Predek KH'!AM48=0,0,IF(logic!$A$88=0,0,ROUND('Predek KH'!R48,0)))) -> 0 | S52: =IF(OR(S$48=0,$A52=0),0,IF('Predek KH'!AN48=0,0,IF(logic!$A$88=0,0,ROUND('Predek KH'!S48,0)))) -> 0
A53: =IF(AND($M$6=Jazyk!$D$4,$O$6=Jazyk!$D$4),1,IF(AND(B53>=$M$6,B53<=$O$6),1,0)) -> 1 | B53: 700 | D53: =IF(OR(D$48=0,$A53=0),0,IF('Predek KH'!Y49=0,0,IF(logic!$A$88=0,0,ROUND('Predek KH'!D49,0)))) -> 417 | E53: =IF(OR(E$48=0,$A53=0),0,IF('Predek KH'!Z49=0,0,IF(logic!$A$88=0,0,ROUND('Predek KH'!E49,0)))) -> 664 | F53: =IF(OR(F$48=0,$A53=0),0,IF('Predek KH'!AA49=0,0,IF(logic!$A$88=0,0,ROUND('Predek KH'!F49,0)))) -> 704 | G53: =IF(OR(G$48=0,$A53=0),0,IF('Predek KH'!AB49=0,0,IF(logic!$A$88=0,0,ROUND('Predek KH'!G49,0)))) -> 873 | H53: =IF(OR(H$48=0,$A53=0),0,IF('Predek KH'!AC49=0,0,IF(logic!$A$88=0,0,ROUND('Predek KH'!H49,0)))) -> 1196 | I53: =IF(OR(I$48=0,$A53=0),0,IF('Predek KH'!AD49=0,0,IF(logic!$A$88=0,0,ROUND('Predek KH'!I49,0)))) -> 0 | J53: =IF(OR(J$48=0,$A53=0),0,IF('Predek KH'!AE49=0,0,IF(logic!$A$88=0,0,ROUND('Predek KH'!J49,0)))) -> 0 | K53: =IF(OR(K$48=0,$A53=0),0,IF('Predek KH'!AF49=0,0,IF(logic!$A$88=0,0,ROUND('Predek KH'!K49,0)))) -> 0 | L53: =IF(OR(L$48=0,$A53=0),0,IF('Predek KH'!AG49=0,0,IF(logic!$A$88=0,0,ROUND('Predek KH'!L49,0)))) -> 466 | M53: =IF(OR(M$48=0,$A53=0),0,IF('Predek KH'!AH49=0,0,IF(logic!$A$88=0,0,ROUND('Predek KH'!M49,0)))) -> 734 | N53: =IF(OR(N$48=0,$A53=0),0,IF('Predek KH'!AI49=0,0,IF(logic!$A$88=0,0,ROUND('Predek KH'!N49,0)))) -> 784 | O53: =IF(OR(O$48=0,$A53=0),0,IF('Predek KH'!AJ49=0,0,IF(logic!$A$88=0,0,ROUND('Predek KH'!O49,0)))) -> 952 | P53: =IF(OR(P$48=0,$A53=0),0,IF('Predek KH'!AK49=0,0,IF(logic!$A$88=0,0,ROUND('Predek KH'!P49,0)))) -> 1297 | Q53: =IF(OR(Q$48=0,$A53=0),0,IF('Predek KH'!AL49=0,0,IF(logic!$A$88=0,0,ROUND('Predek KH'!Q49,0)))) -> 0 | R53: =IF(OR(R$48=0,$A53=0),0,IF('Predek KH'!AM49=0,0,IF(logic!$A$88=0,0,ROUND('Predek KH'!R49,0)))) -> 0 | S53: =IF(OR(S$48=0,$A53=0),0,IF('Predek KH'!AN49=0,0,IF(logic!$A$88=0,0,ROUND('Predek KH'!S49,0)))) -> 0
A54: =IF(AND($M$6=Jazyk!$D$4,$O$6=Jazyk!$D$4),1,IF(AND(B54>=$M$6,B54<=$O$6),1,0)) -> 1 | B54: 800 | D54: =IF(OR(D$48=0,$A54=0),0,IF('Predek KH'!Y50=0,0,IF(logic!$A$88=0,0,ROUND('Predek KH'!D50,0)))) -> 476 | E54: =IF(OR(E$48=0,$A54=0),0,IF('Predek KH'!Z50=0,0,IF(logic!$A$88=0,0,ROUND('Predek KH'!E50,0)))) -> 759 | F54: =IF(OR(F$48=0,$A54=0),0,IF('Predek KH'!AA50=0,0,IF(logic!$A$88=0,0,ROUND('Predek KH'!F50,0)))) -> 805 | G54: =IF(OR(G$48=0,$A54=0),0,IF('Predek KH'!AB50=0,0,IF(logic!$A$88=0,0,ROUND('Predek KH'!G50,0)))) -> 998 | H54: =IF(OR(H$48=0,$A54=0),0,IF('Predek KH'!AC50=0,0,IF(logic!$A$88=0,0,ROUND('Predek KH'!H50,0)))) -> 1366 | I54: =IF(OR(I$48=0,$A54=0),0,IF('Predek KH'!AD50=0,0,IF(logic!$A$88=0,0,ROUND('Predek KH'!I50,0)))) -> 0 | J54: =IF(OR(J$48=0,$A54=0),0,IF('Predek KH'!AE50=0,0,IF(logic!$A$88=0,0,ROUND('Predek KH'!J50,0)))) -> 0 | K54: =IF(OR(K$48=0,$A54=0),0,IF('Predek KH'!AF50=0,0,IF(logic!$A$88=0,0,ROUND('Predek KH'!K50,0)))) -> 0 | L54: =IF(OR(L$48=0,$A54=0),0,IF('Predek KH'!AG50=0,0,IF(logic!$A$88=0,0,ROUND('Predek KH'!L50,0)))) -> 533 | M54: =IF(OR(M$48=0,$A54=0),0,IF('Predek KH'!AH50=0,0,IF(logic!$A$88=0,0,ROUND('Predek KH'!M50,0)))) -> 838 | N54: =IF(OR(N$48=0,$A54=0),0,IF('Predek KH'!AI50=0,0,IF(logic!$A$88=0,0,ROUND('Predek KH'!N50,0)))) -> 896 | O54: =IF(OR(O$48=0,$A54=0),0,IF('Predek KH'!AJ50=0,0,IF(logic!$A$88=0,0,ROUND('Predek KH'!O50,0)))) -> 1088 | P54: =IF(OR(P$48=0,$A54=0),0,IF('Predek KH'!AK50=0,0,IF(logic!$A$88=0,0,ROUND('Predek KH'!P50,0)))) -> 1482 | Q54: =IF(OR(Q$48=0,$A54=0),0,IF('Predek KH'!AL50=0,0,IF(logic!$A$88=0,0,ROUND('Predek KH'!Q50,0)))) -> 0 | R54: =IF(OR(R$48=0,$A54=0),0,IF('Predek KH'!AM50=0,0,IF(logic!$A$88=0,0,ROUND('Predek KH'!R50,0)))) -> 0 | S54: =IF(OR(S$48=0,$A54=0),0,IF('Predek KH'!AN50=0,0,IF(logic!$A$88=0,0,ROUND('Predek KH'!S50,0)))) -> 0
A55: =IF(AND($M$6=Jazyk!$D$4,$O$6=Jazyk!$D$4),1,IF(AND(B55>=$M$6,B55<=$O$6),1,0)) -> 1 | B55: 900 | D55: =IF(OR(D$48=0,$A55=0),0,IF('Predek KH'!Y51=0,0,IF(logic!$A$88=0,0,ROUND('Predek KH'!D51,0)))) -> 536 | E55: =IF(OR(E$48=0,$A55=0),0,IF('Predek KH'!Z51=0,0,IF(logic!$A$88=0,0,ROUND('Predek KH'!E51,0)))) -> 854 | F55: =IF(OR(F$48=0,$A55=0),0,IF('Predek KH'!AA51=0,0,IF(logic!$A$88=0,0,ROUND('Predek KH'!F51,0)))) -> 905 | G55: =IF(OR(G$48=0,$A55=0),0,IF('Predek KH'!AB51=0,0,IF(logic!$A$88=0,0,ROUND('Predek KH'!G51,0)))) -> 1122 | H55: =IF(OR(H$48=0,$A55=0),0,IF('Predek KH'!AC51=0,0,IF(logic!$A$88=0,0,ROUND('Predek KH'!H51,0)))) -> 1537 | I55: =IF(OR(I$48=0,$A55=0),0,IF('Predek KH'!AD51=0,0,IF(logic!$A$88=0,0,ROUND('Predek KH'!I51,0)))) -> 0 | J55: =IF(OR(J$48=0,$A55=0),0,IF('Predek KH'!AE51=0,0,IF(logic!$A$88=0,0,ROUND('Predek KH'!J51,0)))) -> 0 | K55: =IF(OR(K$48=0,$A55=0),0,IF('Predek KH'!AF51=0,0,IF(logic!$A$88=0,0,ROUND('Predek KH'!K51,0)))) -> 0 | L55: =IF(OR(L$48=0,$A55=0),0,IF('Predek KH'!AG51=0,0,IF(logic!$A$88=0,0,ROUND('Predek KH'!L51,0)))) -> 599 | M55: =IF(OR(M$48=0,$A55=0),0,IF('Predek KH'!AH51=0,0,IF(logic!$A$88=0,0,ROUND('Predek KH'!M51,0)))) -> 943 | N55: =IF(OR(N$48=0,$A55=0),0,IF('Predek KH'!AI51=0,0,IF(logic!$A$88=0,0,ROUND('Predek KH'!N51,0)))) -> 1008 | O55: =IF(OR(O$48=0,$A55=0),0,IF('Predek KH'!AJ51=0,0,IF(logic!$A$88=0,0,ROUND('Predek KH'!O51,0)))) -> 1224 | P55: =IF(OR(P$48=0,$A55=0),0,IF('Predek KH'!AK51=0,0,IF(logic!$A$88=0,0,ROUND('Predek KH'!P51,0)))) -> 1668 | Q55: =IF(OR(Q$48=0,$A55=0),0,IF('Predek KH'!AL51=0,0,IF(logic!$A$88=0,0,ROUND('Predek KH'!Q51,0)))) -> 0 | R55: =IF(OR(R$48=0,$A55=0),0,IF('Predek KH'!AM51=0,0,IF(logic!$A$88=0,0,ROUND('Predek KH'!R51,0)))) -> 0 | S55: =IF(OR(S$48=0,$A55=0),0,IF('Predek KH'!AN51=0,0,IF(logic!$A$88=0,0,ROUND('Predek KH'!S51,0)))) -> 0
A56: =IF(AND($M$6=Jazyk!$D$4,$O$6=Jazyk!$D$4),1,IF(AND(B56>=$M$6,B56<=$O$6),1,0)) -> 1 | B56: 1000 | D56: =IF(OR(D$48=0,$A56=0),0,IF('Predek KH'!Y52=0,0,IF(logic!$A$88=0,0,ROUND('Predek KH'!D52,0)))) -> 595 | E56: =IF(OR(E$48=0,$A56=0),0,IF('Predek KH'!Z52=0,0,IF(logic!$A$88=0,0,ROUND('Predek KH'!E52,0)))) -> 949 | F56: =IF(OR(F$48=0,$A56=0),0,IF('Predek KH'!AA52=0,0,IF(logic!$A$88=0,0,ROUND('Predek KH'!F52,0)))) -> 1006 | G56: =IF(OR(G$48=0,$A56=0),0,IF('Predek KH'!AB52=0,0,IF(logic!$A$88=0,0,ROUND('Predek KH'!G52,0)))) -> 1247 | H56: =IF(OR(H$48=0,$A56=0),0,IF('Predek KH'!AC52=0,0,IF(logic!$A$88=0,0,ROUND('Predek KH'!H52,0)))) -> 1708 | I56: =IF(OR(I$48=0,$A56=0),0,IF('Predek KH'!AD52=0,0,IF(logic!$A$88=0,0,ROUND('Predek KH'!I52,0)))) -> 0 | J56: =IF(OR(J$48=0,$A56=0),0,IF('Predek KH'!AE52=0,0,IF(logic!$A$88=0,0,ROUND('Predek KH'!J52,0)))) -> 0 | K56: =IF(OR(K$48=0,$A56=0),0,IF('Predek KH'!AF52=0,0,IF(logic!$A$88=0,0,ROUND('Predek KH'!K52,0)))) -> 0 | L56: =IF(OR(L$48=0,$A56=0),0,IF('Predek KH'!AG52=0,0,IF(logic!$A$88=0,0,ROUND('Predek KH'!L52,0)))) -> 666 | M56: =IF(OR(M$48=0,$A56=0),0,IF('Predek KH'!AH52=0,0,IF(logic!$A$88=0,0,ROUND('Predek KH'!M52,0)))) -> 1048 | N56: =IF(OR(N$48=0,$A56=0),0,IF('Predek KH'!AI52=0,0,IF(logic!$A$88=0,0,ROUND('Predek KH'!N52,0)))) -> 1120 | O56: =IF(OR(O$48=0,$A56=0),0,IF('Predek KH'!AJ52=0,0,IF(logic!$A$88=0,0,ROUND('Predek KH'!O52,0)))) -> 1360 | P56: =IF(OR(P$48=0,$A56=0),0,IF('Predek KH'!AK52=0,0,IF(logic!$A$88=0,0,ROUND('Predek KH'!P52,0)))) -> 1853 | Q56: =IF(OR(Q$48=0,$A56=0),0,IF('Predek KH'!AL52=0,0,IF(logic!$A$88=0,0,ROUND('Predek KH'!Q52,0)))) -> 0 | R56: =IF(OR(R$48=0,$A56=0),0,IF('Predek KH'!AM52=0,0,IF(logic!$A$88=0,0,ROUND('Predek KH'!R52,0)))) -> 0 | S56: =IF(OR(S$48=0,$A56=0),0,IF('Predek KH'!AN52=0,0,IF(logic!$A$88=0,0,ROUND('Predek KH'!S52,0)))) -> 0
A57: =IF(AND($M$6=Jazyk!$D$4,$O$6=Jazyk!$D$4),1,IF(AND(B57>=$M$6,B57<=$O$6),1,0)) -> 1 | B57: 1100 | D57: =IF(OR(D$48=0,$A57=0),0,IF('Predek KH'!Y53=0,0,IF(logic!$A$88=0,0,ROUND('Predek KH'!D53,0)))) -> 655 | E57: =IF(OR(E$48=0,$A57=0),0,IF('Predek KH'!Z53=0,0,IF(logic!$A$88=0,0,ROUND('Predek KH'!E53,0)))) -> 1044 | F57: =IF(OR(F$48=0,$A57=0),0,IF('Predek KH'!AA53=0,0,IF(logic!$A$88=0,0,ROUND('Predek KH'!F53,0)))) -> 1107 | G57: =IF(OR(G$48=0,$A57=0),0,IF('Predek KH'!AB53=0,0,IF(logic!$A$88=0,0,ROUND('Predek KH'!G53,0)))) -> 1372 | H57: =IF(OR(H$48=0,$A57=0),0,IF('Predek KH'!AC53=0,0,IF(logic!$A$88=0,0,ROUND('Predek KH'!H53,0)))) -> 1879 | I57: =IF(OR(I$48=0,$A57=0),0,IF('Predek KH'!AD53=0,0,IF(logic!$A$88=0,0,ROUND('Predek KH'!I53,0)))) -> 0 | J57: =IF(OR(J$48=0,$A57=0),0,IF('Predek KH'!AE53=0,0,IF(logic!$A$88=0,0,ROUND('Predek KH'!J53,0)))) -> 0 | K57: =IF(OR(K$48=0,$A57=0),0,IF('Predek KH'!AF53=0,0,IF(logic!$A$88=0,0,ROUND('Predek KH'!K53,0)))) -> 0 | L57: =IF(OR(L$48=0,$A57=0),0,IF('Predek KH'!AG53=0,0,IF(logic!$A$88=0,0,ROUND('Predek KH'!L53,0)))) -> 733 | M57: =IF(OR(M$48=0,$A57=0),0,IF('Predek KH'!AH53=0,0,IF(logic!$A$88=0,0,ROUND('Predek KH'!M53,0)))) -> 1153 | N57: =IF(OR(N$48=0,$A57=0),0,IF('Predek KH'!AI53=0,0,IF(logic!$A$88=0,0,ROUND('Predek KH'!N53,0)))) -> 1232 | O57: =IF(OR(O$48=0,$A57=0),0,IF('Predek KH'!AJ53=0,0,IF(logic!$A$88=0,0,ROUND('Predek KH'!O53,0)))) -> 1496 | P57: =IF(OR(P$48=0,$A57=0),0,IF('Predek KH'!AK53=0,0,IF(logic!$A$88=0,0,ROUND('Predek KH'!P53,0)))) -> 2038 | Q57: =IF(OR(Q$48=0,$A57=0),0,IF('Predek KH'!AL53=0,0,IF(logic!$A$88=0,0,ROUND('Predek KH'!Q53,0)))) -> 0 | R57: =IF(OR(R$48=0,$A57=0),0,IF('Predek KH'!AM53=0,0,IF(logic!$A$88=0,0,ROUND('Predek KH'!R53,0)))) -> 0 | S57: =IF(OR(S$48=0,$A57=0),0,IF('Predek KH'!AN53=0,0,IF(logic!$A$88=0,0,ROUND('Predek KH'!S53,0)))) -> 0
A58: =IF(AND($M$6=Jazyk!$D$4,$O$6=Jazyk!$D$4),1,IF(AND(B58>=$M$6,B58<=$O$6),1,0)) -> 1 | B58: 1200 | D58: =IF(OR(D$48=0,$A58=0),0,IF('Predek KH'!Y54=0,0,IF(logic!$A$88=0,0,ROUND('Predek KH'!D54,0)))) -> 714 | E58: =IF(OR(E$48=0,$A58=0),0,IF('Predek KH'!Z54=0,0,IF(logic!$A$88=0,0,ROUND('Predek KH'!E54,0)))) -> 1139 | F58: =IF(OR(F$48=0,$A58=0),0,IF('Predek KH'!AA54=0,0,IF(logic!$A$88=0,0,ROUND('Predek KH'!F54,0)))) -> 1207 | G58: =IF(OR(G$48=0,$A58=0),0,IF('Predek KH'!AB54=0,0,IF(logic!$A$88=0,0,ROUND('Predek KH'!G54,0)))) -> 1496 | H58: =IF(OR(H$48=0,$A58=0),0,IF('Predek KH'!AC54=0,0,IF(logic!$A$88=0,0,ROUND('Predek KH'!H54,0)))) -> 2050 | I58: =IF(OR(I$48=0,$A58=0),0,IF('Predek KH'!AD54=0,0,IF(logic!$A$88=0,0,ROUND('Predek KH'!I54,0)))) -> 0 | J58: =IF(OR(J$48=0,$A58=0),0,IF('Predek KH'!AE54=0,0,IF(logic!$A$88=0,0,ROUND('Predek KH'!J54,0)))) -> 0 | K58: =IF(OR(K$48=0,$A58=0),0,IF('Predek KH'!AF54=0,0,IF(logic!$A$88=0,0,ROUND('Predek KH'!K54,0)))) -> 0 | L58: =IF(OR(L$48=0,$A58=0),0,IF('Predek KH'!AG54=0,0,IF(logic!$A$88=0,0,ROUND('Predek KH'!L54,0)))) -> 799 | M58: =IF(OR(M$48=0,$A58=0),0,IF('Predek KH'!AH54=0,0,IF(logic!$A$88=0,0,ROUND('Predek KH'!M54,0)))) -> 1258 | N58: =IF(OR(N$48=0,$A58=0),0,IF('Predek KH'!AI54=0,0,IF(logic!$A$88=0,0,ROUND('Predek KH'!N54,0)))) -> 1344 | O58: =IF(OR(O$48=0,$A58=0),0,IF('Predek KH'!AJ54=0,0,IF(logic!$A$88=0,0,ROUND('Predek KH'!O54,0)))) -> 1632 | P58: =IF(OR(P$48=0,$A58=0),0,IF('Predek KH'!AK54=0,0,IF(logic!$A$88=0,0,ROUND('Predek KH'!P54,0)))) -> 2224 | Q58: =IF(OR(Q$48=0,$A58=0),0,IF('Predek KH'!AL54=0,0,IF(logic!$A$88=0,0,ROUND('Predek KH'!Q54,0)))) -> 0 | R58: =IF(OR(R$48=0,$A58=0),0,IF('Predek KH'!AM54=0,0,IF(logic!$A$88=0,0,ROUND('Predek KH'!R54,0)))) -> 0 | S58: =IF(OR(S$48=0,$A58=0),0,IF('Predek KH'!AN54=0,0,IF(logic!$A$88=0,0,ROUND('Predek KH'!S54,0)))) -> 0
A59: =IF(AND($M$6=Jazyk!$D$4,$O$6=Jazyk!$D$4),1,IF(AND(B59>=$M$6,B59<=$O$6),1,0)) -> 1 | B59: 1400 | D59: =IF(OR(D$48=0,$A59=0),0,IF('Predek KH'!Y55=0,0,IF(logic!$A$88=0,0,ROUND('Predek KH'!D55,0)))) -> 833 | E59: =IF(OR(E$48=0,$A59=0),0,IF('Predek KH'!Z55=0,0,IF(logic!$A$88=0,0,ROUND('Predek KH'!E55,0)))) -> 1329 | F59: =IF(OR(F$48=0,$A59=0),0,IF('Predek KH'!AA55=0,0,IF(logic!$A$88=0,0,ROUND('Predek KH'!F55,0)))) -> 1408 | G59: =IF(OR(G$48=0,$A59=0),0,IF('Predek KH'!AB55=0,0,IF(logic!$A$88=0,0,ROUND('Predek KH'!G55,0)))) -> 1746 | H59: =IF(OR(H$48=0,$A59=0),0,IF('Predek KH'!AC55=0,0,IF(logic!$A$88=0,0,ROUND('Predek KH'!H55,0)))) -> 2391 | I59: =IF(OR(I$48=0,$A59=0),0,IF('Predek KH'!AD55=0,0,IF(logic!$A$88=0,0,ROUND('Predek KH'!I55,0)))) -> 0 | J59: =IF(OR(J$48=0,$A59=0),0,IF('Predek KH'!AE55=0,0,IF(logic!$A$88=0,0,ROUND('Predek KH'!J55,0)))) -> 0 | K59: =IF(OR(K$48=0,$A59=0),0,IF('Predek KH'!AF55=0,0,IF(logic!$A$88=0,0,ROUND('Predek KH'!K55,0)))) -> 0 | L59: =IF(OR(L$48=0,$A59=0),0,IF('Predek KH'!AG55=0,0,IF(logic!$A$88=0,0,ROUND('Predek KH'!L55,0)))) -> 932 | M59: =IF(OR(M$48=0,$A59=0),0,IF('Predek KH'!AH55=0,0,IF(logic!$A$88=0,0,ROUND('Predek KH'!M55,0)))) -> 1467 | N59: =IF(OR(N$48=0,$A59=0),0,IF('Predek KH'!AI55=0,0,IF(logic!$A$88=0,0,ROUND('Predek KH'!N55,0)))) -> 1568 | O59: =IF(OR(O$48=0,$A59=0),0,IF('Predek KH'!AJ55=0,0,IF(logic!$A$88=0,0,ROUND('Predek KH'!O55,0)))) -> 1904 | P59: =IF(OR(P$48=0,$A59=0),0,IF('Predek KH'!AK55=0,0,IF(logic!$A$88=0,0,ROUND('Predek KH'!P55,0)))) -> 2594 | Q59: =IF(OR(Q$48=0,$A59=0),0,IF('Predek KH'!AL55=0,0,IF(logic!$A$88=0,0,ROUND('Predek KH'!Q55,0)))) -> 0 | R59: =IF(OR(R$48=0,$A59=0),0,IF('Predek KH'!AM55=0,0,IF(logic!$A$88=0,0,ROUND('Predek KH'!R55,0)))) -> 0 | S59: =IF(OR(S$48=0,$A59=0),0,IF('Predek KH'!AN55=0,0,IF(logic!$A$88=0,0,ROUND('Predek KH'!S55,0)))) -> 0
A60: =IF(AND($M$6=Jazyk!$D$4,$O$6=Jazyk!$D$4),1,IF(AND(B60>=$M$6,B60<=$O$6),1,0)) -> 1 | B60: 1600 | D60: =IF(OR(D$48=0,$A60=0),0,IF('Predek KH'!Y56=0,0,IF(logic!$A$88=0,0,ROUND('Predek KH'!D56,0)))) -> 952 | E60: =IF(OR(E$48=0,$A60=0),0,IF('Predek KH'!Z56=0,0,IF(logic!$A$88=0,0,ROUND('Predek KH'!E56,0)))) -> 1518 | F60: =IF(OR(F$48=0,$A60=0),0,IF('Predek KH'!AA56=0,0,IF(logic!$A$88=0,0,ROUND('Predek KH'!F56,0)))) -> 1610 | G60: =IF(OR(G$48=0,$A60=0),0,IF('Predek KH'!AB56=0,0,IF(logic!$A$88=0,0,ROUND('Predek KH'!G56,0)))) -> 1995 | H60: =IF(OR(H$48=0,$A60=0),0,IF('Predek KH'!AC56=0,0,IF(logic!$A$88=0,0,ROUND('Predek KH'!H56,0)))) -> 2733 | I60: =IF(OR(I$48=0,$A60=0),0,IF('Predek KH'!AD56=0,0,IF(logic!$A$88=0,0,ROUND('Predek KH'!I56,0)))) -> 0 | J60: =IF(OR(J$48=0,$A60=0),0,IF('Predek KH'!AE56=0,0,IF(logic!$A$88=0,0,ROUND('Predek KH'!J56,0)))) -> 0 | K60: =IF(OR(K$48=0,$A60=0),0,IF('Predek KH'!AF56=0,0,IF(logic!$A$88=0,0,ROUND('Predek KH'!K56,0)))) -> 0 | L60: =IF(OR(L$48=0,$A60=0),0,IF('Predek KH'!AG56=0,0,IF(logic!$A$88=0,0,ROUND('Predek KH'!L56,0)))) -> 1066 | M60: =IF(OR(M$48=0,$A60=0),0,IF('Predek KH'!AH56=0,0,IF(logic!$A$88=0,0,ROUND('Predek KH'!M56,0)))) -> 1677 | N60: =IF(OR(N$48=0,$A60=0),0,IF('Predek KH'!AI56=0,0,IF(logic!$A$88=0,0,ROUND('Predek KH'!N56,0)))) -> 1792 | O60: =IF(OR(O$48=0,$A60=0),0,IF('Predek KH'!AJ56=0,0,IF(logic!$A$88=0,0,ROUND('Predek KH'!O56,0)))) -> 2176 | P60: =IF(OR(P$48=0,$A60=0),0,IF('Predek KH'!AK56=0,0,IF(logic!$A$88=0,0,ROUND('Predek KH'!P56,0)))) -> 2965 | Q60: =IF(OR(Q$48=0,$A60=0),0,IF('Predek KH'!AL56=0,0,IF(logic!$A$88=0,0,ROUND('Predek KH'!Q56,0)))) -> 0 | R60: =IF(OR(R$48=0,$A60=0),0,IF('Predek KH'!AM56=0,0,IF(logic!$A$88=0,0,ROUND('Predek KH'!R56,0)))) -> 0 | S60: =IF(OR(S$48=0,$A60=0),0,IF('Predek KH'!AN56=0,0,IF(logic!$A$88=0,0,ROUND('Predek KH'!S56,0)))) -> 0
A61: =IF(AND($M$6=Jazyk!$D$4,$O$6=Jazyk!$D$4),1,IF(AND(B61>=$M$6,B61<=$O$6),1,0)) -> 1 | B61: 1800 | D61: =IF(OR(D$48=0,$A61=0),0,IF('Predek KH'!Y57=0,0,IF(logic!$A$88=0,0,ROUND('Predek KH'!D57,0)))) -> 1071 | E61: =IF(OR(E$48=0,$A61=0),0,IF('Predek KH'!Z57=0,0,IF(logic!$A$88=0,0,ROUND('Predek KH'!E57,0)))) -> 1708 | F61: =IF(OR(F$48=0,$A61=0),0,IF('Predek KH'!AA57=0,0,IF(logic!$A$88=0,0,ROUND('Predek KH'!F57,0)))) -> 1811 | G61: =IF(OR(G$48=0,$A61=0),0,IF('Predek KH'!AB57=0,0,IF(logic!$A$88=0,0,ROUND('Predek KH'!G57,0)))) -> 2245 | H61: =IF(OR(H$48=0,$A61=0),0,IF('Predek KH'!AC57=0,0,IF(logic!$A$88=0,0,ROUND('Predek KH'!H57,0)))) -> 3074 | I61: =IF(OR(I$48=0,$A61=0),0,IF('Predek KH'!AD57=0,0,IF(logic!$A$88=0,0,ROUND('Predek KH'!I57,0)))) -> 0 | J61: =IF(OR(J$48=0,$A61=0),0,IF('Predek KH'!AE57=0,0,IF(logic!$A$88=0,0,ROUND('Predek KH'!J57,0)))) -> 0 | K61: =IF(OR(K$48=0,$A61=0),0,IF('Predek KH'!AF57=0,0,IF(logic!$A$88=0,0,ROUND('Predek KH'!K57,0)))) -> 0 | L61: =IF(OR(L$48=0,$A61=0),0,IF('Predek KH'!AG57=0,0,IF(logic!$A$88=0,0,ROUND('Predek KH'!L57,0)))) -> 1199 | M61: =IF(OR(M$48=0,$A61=0),0,IF('Predek KH'!AH57=0,0,IF(logic!$A$88=0,0,ROUND('Predek KH'!M57,0)))) -> 1886 | N61: =IF(OR(N$48=0,$A61=0),0,IF('Predek KH'!AI57=0,0,IF(logic!$A$88=0,0,ROUND('Predek KH'!N57,0)))) -> 2016 | O61: =IF(OR(O$48=0,$A61=0),0,IF('Predek KH'!AJ57=0,0,IF(logic!$A$88=0,0,ROUND('Predek KH'!O57,0)))) -> 2448 | P61: =IF(OR(P$48=0,$A61=0),0,IF('Predek KH'!AK57=0,0,IF(logic!$A$88=0,0,ROUND('Predek KH'!P57,0)))) -> 3335 | Q61: =IF(OR(Q$48=0,$A61=0),0,IF('Predek KH'!AL57=0,0,IF(logic!$A$88=0,0,ROUND('Predek KH'!Q57,0)))) -> 0 | R61: =IF(OR(R$48=0,$A61=0),0,IF('Predek KH'!AM57=0,0,IF(logic!$A$88=0,0,ROUND('Predek KH'!R57,0)))) -> 0 | S61: =IF(OR(S$48=0,$A61=0),0,IF('Predek KH'!AN57=0,0,IF(logic!$A$88=0,0,ROUND('Predek KH'!S57,0)))) -> 0
A62: =IF(AND($M$6=Jazyk!$D$4,$O$6=Jazyk!$D$4),1,IF(AND(B62>=$M$6,B62<=$O$6),1,0)) -> 1 | B62: 2000 | D62: =IF(OR(D$48=0,$A62=0),0,IF('Predek KH'!Y58=0,0,IF(logic!$A$88=0,0,ROUND('Predek KH'!D58,0)))) -> 1190 | E62: =IF(OR(E$48=0,$A62=0),0,IF('Predek KH'!Z58=0,0,IF(logic!$A$88=0,0,ROUND('Predek KH'!E58,0)))) -> 1898 | F62: =IF(OR(F$48=0,$A62=0),0,IF('Predek KH'!AA58=0,0,IF(logic!$A$88=0,0,ROUND('Predek KH'!F58,0)))) -> 2012 | G62: =IF(OR(G$48=0,$A62=0),0,IF('Predek KH'!AB58=0,0,IF(logic!$A$88=0,0,ROUND('Predek KH'!G58,0)))) -> 2494 | H62: =IF(OR(H$48=0,$A62=0),0,IF('Predek KH'!AC58=0,0,IF(logic!$A$88=0,0,ROUND('Predek KH'!H58,0)))) -> 3416 | I62: =IF(OR(I$48=0,$A62=0),0,IF('Predek KH'!AD58=0,0,IF(logic!$A$88=0,0,ROUND('Predek KH'!I58,0)))) -> 0 | J62: =IF(OR(J$48=0,$A62=0),0,IF('Predek KH'!AE58=0,0,IF(logic!$A$88=0,0,ROUND('Predek KH'!J58,0)))) -> 0 | K62: =IF(OR(K$48=0,$A62=0),0,IF('Predek KH'!AF58=0,0,IF(logic!$A$88=0,0,ROUND('Predek KH'!K58,0)))) -> 0 | L62: =IF(OR(L$48=0,$A62=0),0,IF('Predek KH'!AG58=0,0,IF(logic!$A$88=0,0,ROUND('Predek KH'!L58,0)))) -> 1332 | M62: =IF(OR(M$48=0,$A62=0),0,IF('Predek KH'!AH58=0,0,IF(logic!$A$88=0,0,ROUND('Predek KH'!M58,0)))) -> 2096 | N62: =IF(OR(N$48=0,$A62=0),0,IF('Predek KH'!AI58=0,0,IF(logic!$A$88=0,0,ROUND('Predek KH'!N58,0)))) -> 2240 | O62: =IF(OR(O$48=0,$A62=0),0,IF('Predek KH'!AJ58=0,0,IF(logic!$A$88=0,0,ROUND('Predek KH'!O58,0)))) -> 2720 | P62: =IF(OR(P$48=0,$A62=0),0,IF('Predek KH'!AK58=0,0,IF(logic!$A$88=0,0,ROUND('Predek KH'!P58,0)))) -> 3706 | Q62: =IF(OR(Q$48=0,$A62=0),0,IF('Predek KH'!AL58=0,0,IF(logic!$A$88=0,0,ROUND('Predek KH'!Q58,0)))) -> 0 | R62: =IF(OR(R$48=0,$A62=0),0,IF('Predek KH'!AM58=0,0,IF(logic!$A$88=0,0,ROUND('Predek KH'!R58,0)))) -> 0 | S62: =IF(OR(S$48=0,$A62=0),0,IF('Predek KH'!AN58=0,0,IF(logic!$A$88=0,0,ROUND('Predek KH'!S58,0)))) -> 0
A63: =IF(AND($M$6=Jazyk!$D$4,$O$6=Jazyk!$D$4),1,IF(AND(B63>=$M$6,B63<=$O$6),1,0)) -> 1 | B63: 2300 | D63: =IF(OR(D$48=0,$A63=0),0,IF('Predek KH'!Y59=0,0,IF(logic!$A$88=0,0,ROUND('Predek KH'!D59,0)))) -> 1369 | E63: =IF(OR(E$48=0,$A63=0),0,IF('Predek KH'!Z59=0,0,IF(logic!$A$88=0,0,ROUND('Predek KH'!E59,0)))) -> 2183 | F63: =IF(OR(F$48=0,$A63=0),0,IF('Predek KH'!AA59=0,0,IF(logic!$A$88=0,0,ROUND('Predek KH'!F59,0)))) -> 2314 | G63: =IF(OR(G$48=0,$A63=0),0,IF('Predek KH'!AB59=0,0,IF(logic!$A$88=0,0,ROUND('Predek KH'!G59,0)))) -> 2868 | H63: =IF(OR(H$48=0,$A63=0),0,IF('Predek KH'!AC59=0,0,IF(logic!$A$88=0,0,ROUND('Predek KH'!H59,0)))) -> 3928 | I63: =IF(OR(I$48=0,$A63=0),0,IF('Predek KH'!AD59=0,0,IF(logic!$A$88=0,0,ROUND('Predek KH'!I59,0)))) -> 0 | J63: =IF(OR(J$48=0,$A63=0),0,IF('Predek KH'!AE59=0,0,IF(logic!$A$88=0,0,ROUND('Predek KH'!J59,0)))) -> 0 | K63: =IF(OR(K$48=0,$A63=0),0,IF('Predek KH'!AF59=0,0,IF(logic!$A$88=0,0,ROUND('Predek KH'!K59,0)))) -> 0 | L63: =IF(OR(L$48=0,$A63=0),0,IF('Predek KH'!AG59=0,0,IF(logic!$A$88=0,0,ROUND('Predek KH'!L59,0)))) -> 1532 | M63: =IF(OR(M$48=0,$A63=0),0,IF('Predek KH'!AH59=0,0,IF(logic!$A$88=0,0,ROUND('Predek KH'!M59,0)))) -> 2410 | N63: =IF(OR(N$48=0,$A63=0),0,IF('Predek KH'!AI59=0,0,IF(logic!$A$88=0,0,ROUND('Predek KH'!N59,0)))) -> 2576 | O63: =IF(OR(O$48=0,$A63=0),0,IF('Predek KH'!AJ59=0,0,IF(logic!$A$88=0,0,ROUND('Predek KH'!O59,0)))) -> 3128 | P63: =IF(OR(P$48=0,$A63=0),0,IF('Predek KH'!AK59=0,0,IF(logic!$A$88=0,0,ROUND('Predek KH'!P59,0)))) -> 0 | Q63: =IF(OR(Q$48=0,$A63=0),0,IF('Predek KH'!AL59=0,0,IF(logic!$A$88=0,0,ROUND('Predek KH'!Q59,0)))) -> 0 | R63: =IF(OR(R$48=0,$A63=0),0,IF('Predek KH'!AM59=0,0,IF(logic!$A$88=0,0,ROUND('Predek KH'!R59,0)))) -> 0 | S63: =IF(OR(S$48=0,$A63=0),0,IF('Predek KH'!AN59=0,0,IF(logic!$A$88=0,0,ROUND('Predek KH'!S59,0)))) -> 0
A64: =IF(AND($M$6=Jazyk!$D$4,$O$6=Jazyk!$D$4),1,IF(AND(B64>=$M$6,B64<=$O$6),1,0)) -> 1 | B64: 2600 | D64: =IF(OR(D$48=0,$A64=0),0,IF('Predek KH'!Y60=0,0,IF(logic!$A$88=0,0,ROUND('Predek KH'!D60,0)))) -> 1547 | E64: =IF(OR(E$48=0,$A64=0),0,IF('Predek KH'!Z60=0,0,IF(logic!$A$88=0,0,ROUND('Predek KH'!E60,0)))) -> 2467 | F64: =IF(OR(F$48=0,$A64=0),0,IF('Predek KH'!AA60=0,0,IF(logic!$A$88=0,0,ROUND('Predek KH'!F60,0)))) -> 2616 | G64: =IF(OR(G$48=0,$A64=0),0,IF('Predek KH'!AB60=0,0,IF(logic!$A$88=0,0,ROUND('Predek KH'!G60,0)))) -> 3242 | H64: =IF(OR(H$48=0,$A64=0),0,IF('Predek KH'!AC60=0,0,IF(logic!$A$88=0,0,ROUND('Predek KH'!H60,0)))) -> 0 | I64: =IF(OR(I$48=0,$A64=0),0,IF('Predek KH'!AD60=0,0,IF(logic!$A$88=0,0,ROUND('Predek KH'!I60,0)))) -> 0 | J64: =IF(OR(J$48=0,$A64=0),0,IF('Predek KH'!AE60=0,0,IF(logic!$A$88=0,0,ROUND('Predek KH'!J60,0)))) -> 0 | K64: =IF(OR(K$48=0,$A64=0),0,IF('Predek KH'!AF60=0,0,IF(logic!$A$88=0,0,ROUND('Predek KH'!K60,0)))) -> 0 | L64: =IF(OR(L$48=0,$A64=0),0,IF('Predek KH'!AG60=0,0,IF(logic!$A$88=0,0,ROUND('Predek KH'!L60,0)))) -> 1732 | M64: =IF(OR(M$48=0,$A64=0),0,IF('Predek KH'!AH60=0,0,IF(logic!$A$88=0,0,ROUND('Predek KH'!M60,0)))) -> 2725 | N64: =IF(OR(N$48=0,$A64=0),0,IF('Predek KH'!AI60=0,0,IF(logic!$A$88=0,0,ROUND('Predek KH'!N60,0)))) -> 2912 | O64: =IF(OR(O$48=0,$A64=0),0,IF('Predek KH'!AJ60=0,0,IF(logic!$A$88=0,0,ROUND('Predek KH'!O60,0)))) -> 0 | P64: =IF(OR(P$48=0,$A64=0),0,IF('Predek KH'!AK60=0,0,IF(logic!$A$88=0,0,ROUND('Predek KH'!P60,0)))) -> 0 | Q64: =IF(OR(Q$48=0,$A64=0),0,IF('Predek KH'!AL60=0,0,IF(logic!$A$88=0,0,ROUND('Predek KH'!Q60,0)))) -> 0 | R64: =IF(OR(R$48=0,$A64=0),0,IF('Predek KH'!AM60=0,0,IF(logic!$A$88=0,0,ROUND('Predek KH'!R60,0)))) -> 0 | S64: =IF(OR(S$48=0,$A64=0),0,IF('Predek KH'!AN60=0,0,IF(logic!$A$88=0,0,ROUND('Predek KH'!S60,0)))) -> 0
A65: =IF(AND($M$6=Jazyk!$D$4,$O$6=Jazyk!$D$4),1,IF(AND(B65>=$M$6,B65<=$O$6),1,0)) -> 1 | B65: 3000 | D65: =IF(OR(D$48=0,$A65=0),0,IF('Predek KH'!Y61=0,0,IF(logic!$A$88=0,0,ROUND('Predek KH'!D61,0)))) -> 1785 | E65: =IF(OR(E$48=0,$A65=0),0,IF('Predek KH'!Z61=0,0,IF(logic!$A$88=0,0,ROUND('Predek KH'!E61,0)))) -> 2847 | F65: =IF(OR(F$48=0,$A65=0),0,IF('Predek KH'!AA61=0,0,IF(logic!$A$88=0,0,ROUND('Predek KH'!F61,0)))) -> 3018 | G65: =IF(OR(G$48=0,$A65=0),0,IF('Predek KH'!AB61=0,0,IF(logic!$A$88=0,0,ROUND('Predek KH'!G61,0)))) -> 0 | H65: =IF(OR(H$48=0,$A65=0),0,IF('Predek KH'!AC61=0,0,IF(logic!$A$88=0,0,ROUND('Predek KH'!H61,0)))) -> 0 | I65: =IF(OR(I$48=0,$A65=0),0,IF('Predek KH'!AD61=0,0,IF(logic!$A$88=0,0,ROUND('Predek KH'!I61,0)))) -> 0 | J65: =IF(OR(J$48=0,$A65=0),0,IF('Predek KH'!AE61=0,0,IF(logic!$A$88=0,0,ROUND('Predek KH'!J61,0)))) -> 0 | K65: =IF(OR(K$48=0,$A65=0),0,IF('Predek KH'!AF61=0,0,IF(logic!$A$88=0,0,ROUND('Predek KH'!K61,0)))) -> 0 | L65: =IF(OR(L$48=0,$A65=0),0,IF('Predek KH'!AG61=0,0,IF(logic!$A$88=0,0,ROUND('Predek KH'!L61,0)))) -> 1998 | M65: =IF(OR(M$48=0,$A65=0),0,IF('Predek KH'!AH61=0,0,IF(logic!$A$88=0,0,ROUND('Predek KH'!M61,0)))) -> 3144 | N65: =IF(OR(N$48=0,$A65=0),0,IF('Predek KH'!AI61=0,0,IF(logic!$A$88=0,0,ROUND('Predek KH'!N61,0)))) -> 0 | O65: =IF(OR(O$48=0,$A65=0),0,IF('Predek KH'!AJ61=0,0,IF(logic!$A$88=0,0,ROUND('Predek KH'!O61,0)))) -> 0 | P65: =IF(OR(P$48=0,$A65=0),0,IF('Predek KH'!AK61=0,0,IF(logic!$A$88=0,0,ROUND('Predek KH'!P61,0)))) -> 0 | Q65: =IF(OR(Q$48=0,$A65=0),0,IF('Predek KH'!AL61=0,0,IF(logic!$A$88=0,0,ROUND('Predek KH'!Q61,0)))) -> 0 | R65: =IF(OR(R$48=0,$A65=0),0,IF('Predek KH'!AM61=0,0,IF(logic!$A$88=0,0,ROUND('Predek KH'!R61,0)))) -> 0 | S65: =IF(OR(S$48=0,$A65=0),0,IF('Predek KH'!AN61=0,0,IF(logic!$A$88=0,0,ROUND('Predek KH'!S61,0)))) -> 0
D67: =IF(AND($M$5=Jazyk!$D$4,$O$5=Jazyk!$D$4),1,IF(AND(D68>=$M$5,D68<=$O$5),1,0)) -> 1 | E67: =IF(AND($M$5=Jazyk!$D$4,$O$5=Jazyk!$D$4),1,IF(AND(E68>=$M$5,E68<=$O$5),1,0)) -> 1 | F67: =IF(AND($M$5=Jazyk!$D$4,$O$5=Jazyk!$D$4),1,IF(AND(F68>=$M$5,F68<=$O$5),1,0)) -> 1 | G67: =IF(AND($M$5=Jazyk!$D$4,$O$5=Jazyk!$D$4),1,IF(AND(G68>=$M$5,G68<=$O$5),1,0)) -> 1 | H67: =IF(AND($M$5=Jazyk!$D$4,$O$5=Jazyk!$D$4),1,IF(AND(H68>=$M$5,H68<=$O$5),1,0)) -> 1 | I67: =IF(AND($M$5=Jazyk!$D$4,$O$5=Jazyk!$D$4),1,IF(AND(I68>=$M$5,I68<=$O$5),1,0)) -> 1 | J67: =IF(AND($M$5=Jazyk!$D$4,$O$5=Jazyk!$D$4),1,IF(AND(J68>=$M$5,J68<=$O$5),1,0)) -> 1 | K67: =IF(AND($M$5=Jazyk!$D$4,$O$5=Jazyk!$D$4),1,IF(AND(K68>=$M$5,K68<=$O$5),1,0)) -> 1 | L67: =IF(AND($M$5=Jazyk!$D$4,$O$5=Jazyk!$D$4),1,IF(AND(L68>=$M$5,L68<=$O$5),1,0)) -> 1 | M67: =IF(AND($M$5=Jazyk!$D$4,$O$5=Jazyk!$D$4),1,IF(AND(M68>=$M$5,M68<=$O$5),1,0)) -> 1 | N67: =IF(AND($M$5=Jazyk!$D$4,$O$5=Jazyk!$D$4),1,IF(AND(N68>=$M$5,N68<=$O$5),1,0)) -> 1 | O67: =IF(AND($M$5=Jazyk!$D$4,$O$5=Jazyk!$D$4),1,IF(AND(O68>=$M$5,O68<=$O$5),1,0)) -> 1 | P67: =IF(AND($M$5=Jazyk!$D$4,$O$5=Jazyk!$D$4),1,IF(AND(P68>=$M$5,P68<=$O$5),1,0)) -> 1 | Q67: =IF(AND($M$5=Jazyk!$D$4,$O$5=Jazyk!$D$4),1,IF(AND(Q68>=$M$5,Q68<=$O$5),1,0)) -> 1 | R67: =IF(AND($M$5=Jazyk!$D$4,$O$5=Jazyk!$D$4),1,IF(AND(R68>=$M$5,R68<=$O$5),1,0)) -> 1 | S67: =IF(AND($M$5=Jazyk!$D$4,$O$5=Jazyk!$D$4),1,IF(AND(S68>=$M$5,S68<=$O$5),1,0)) -> 1
B68: =Jazyk!$G$27 -> Височина [mm] | D68: =F68 -> 884 | E68: =F68 -> 884 | F68: ='Qn H'!$G$15 -> 884 | G68: =F68 -> 884 | H68: =F68 -> 884 | I68: =F68 -> 884 | J68: =F68 -> 884 | K68: =F68 -> 884 | L68: =N68 -> 958 | M68: =N68 -> 958 | N68: ='Qn H'!$O$15 -> 958 | O68: =N68 -> 958 | P68: =N68 -> 958 | Q68: =N68 -> 958 | R68: =N68 -> 958 | S68: =N68 -> 958
B69: =Jazyk!$H$27 -> Дължина [mm] | D69: ='Qn H'!E16 -> K10H | E69: ='Qn H'!F16 -> K11H | F69: ='Qn H'!G16 -> K20H | G69: ='Qn H'!H16 -> K21H | H69: ='Qn H'!I16 -> K22H | I69: ='Qn H'!J16 -> 0 | J69: ='Qn H'!K16 -> 0 | K69: ='Qn H'!L16 -> 0 | L69: ='Qn H'!M16 -> K10H | M69: ='Qn H'!N16 -> K11H | N69: ='Qn H'!O16 -> K20H | O69: ='Qn H'!P16 -> K21H | P69: ='Qn H'!Q16 -> K22H | Q69: ='Qn H'!R16 -> 0 | R69: ='Qn H'!S16 -> 0 | S69: ='Qn H'!T16 -> 0
A70: =IF(AND($M$6=Jazyk!$D$4,$O$6=Jazyk!$D$4),1,IF(AND(B70>=$M$6,B70<=$O$6),1,0)) -> 1 | B70: 500 | D70: =IF(OR(D$67=0,$A70=0),0,IF('Predek KH'!Y66=0,0,IF(logic!$A$88=0,0,ROUND('Predek KH'!D66,0)))) -> 449 | E70: =IF(OR(E$67=0,$A70=0),0,IF('Predek KH'!Z66=0,0,IF(logic!$A$88=0,0,ROUND('Predek KH'!E66,0)))) -> 666 | F70: =IF(OR(F$67=0,$A70=0),0,IF('Predek KH'!AA66=0,0,IF(logic!$A$88=0,0,ROUND('Predek KH'!F66,0)))) -> 738 | G70: =IF(OR(G$67=0,$A70=0),0,IF('Predek KH'!AB66=0,0,IF(logic!$A$88=0,0,ROUND('Predek KH'!G66,0)))) -> 837 | H70: =IF(OR(H$67=0,$A70=0),0,IF('Predek KH'!AC66=0,0,IF(logic!$A$88=0,0,ROUND('Predek KH'!H66,0)))) -> 1119 | I70: =IF(OR(I$67=0,$A70=0),0,IF('Predek KH'!AD66=0,0,IF(logic!$A$88=0,0,ROUND('Predek KH'!I66,0)))) -> 0 | J70: =IF(OR(J$67=0,$A70=0),0,IF('Predek KH'!AE66=0,0,IF(logic!$A$88=0,0,ROUND('Predek KH'!J66,0)))) -> 0 | K70: =IF(OR(K$67=0,$A70=0),0,IF('Predek KH'!AF66=0,0,IF(logic!$A$88=0,0,ROUND('Predek KH'!K66,0)))) -> 0 | L70: =IF(OR(L$67=0,$A70=0),0,IF('Predek KH'!AG66=0,0,IF(logic!$A$88=0,0,ROUND('Predek KH'!L66,0)))) -> 491 | M70: =IF(OR(M$67=0,$A70=0),0,IF('Predek KH'!AH66=0,0,IF(logic!$A$88=0,0,ROUND('Predek KH'!M66,0)))) -> 712 | N70: =IF(OR(N$67=0,$A70=0),0,IF('Predek KH'!AI66=0,0,IF(logic!$A$88=0,0,ROUND('Predek KH'!N66,0)))) -> 800 | O70: =IF(OR(O$67=0,$A70=0),0,IF('Predek KH'!AJ66=0,0,IF(logic!$A$88=0,0,ROUND('Predek KH'!O66,0)))) -> 886 | P70: =IF(OR(P$67=0,$A70=0),0,IF('Predek KH'!AK66=0,0,IF(logic!$A$88=0,0,ROUND('Predek KH'!P66,0)))) -> 1176 | Q70: =IF(OR(Q$67=0,$A70=0),0,IF('Predek KH'!AL66=0,0,IF(logic!$A$88=0,0,ROUND('Predek KH'!Q66,0)))) -> 0 | R70: =IF(OR(R$67=0,$A70=0),0,IF('Predek KH'!AM66=0,0,IF(logic!$A$88=0,0,ROUND('Predek KH'!R66,0)))) -> 0 | S70: =IF(OR(S$67=0,$A70=0),0,IF('Predek KH'!AN66=0,0,IF(logic!$A$88=0,0,ROUND('Predek KH'!S66,0)))) -> 0
A71: =IF(AND($M$6=Jazyk!$D$4,$O$6=Jazyk!$D$4),1,IF(AND(B71>=$M$6,B71<=$O$6),1,0)) -> 1 | B71: 600 | D71: =IF(OR(D$67=0,$A71=0),0,IF('Predek KH'!Y67=0,0,IF(logic!$A$88=0,0,ROUND('Predek KH'!D67,0)))) -> 539 | E71: =IF(OR(E$67=0,$A71=0),0,IF('Predek KH'!Z67=0,0,IF(logic!$A$88=0,0,ROUND('Predek KH'!E67,0)))) -> 799 | F71: =IF(OR(F$67=0,$A71=0),0,IF('Predek KH'!AA67=0,0,IF(logic!$A$88=0,0,ROUND('Predek KH'!F67,0)))) -> 886 | G71: =IF(OR(G$67=0,$A71=0),0,IF('Predek KH'!AB67=0,0,IF(logic!$A$88=0,0,ROUND('Predek KH'!G67,0)))) -> 1004 | H71: =IF(OR(H$67=0,$A71=0),0,IF('Predek KH'!AC67=0,0,IF(logic!$A$88=0,0,ROUND('Predek KH'!H67,0)))) -> 1343 | I71: =IF(OR(I$67=0,$A71=0),0,IF('Predek KH'!AD67=0,0,IF(logic!$A$88=0,0,ROUND('Predek KH'!I67,0)))) -> 0 | J71: =IF(OR(J$67=0,$A71=0),0,IF('Predek KH'!AE67=0,0,IF(logic!$A$88=0,0,ROUND('Predek KH'!J67,0)))) -> 0 | K71: =IF(OR(K$67=0,$A71=0),0,IF('Predek KH'!AF67=0,0,IF(logic!$A$88=0,0,ROUND('Predek KH'!K67,0)))) -> 0 | L71: =IF(OR(L$67=0,$A71=0),0,IF('Predek KH'!AG67=0,0,IF(logic!$A$88=0,0,ROUND('Predek KH'!L67,0)))) -> 589 | M71: =IF(OR(M$67=0,$A71=0),0,IF('Predek KH'!AH67=0,0,IF(logic!$A$88=0,0,ROUND('Predek KH'!M67,0)))) -> 854 | N71: =IF(OR(N$67=0,$A71=0),0,IF('Predek KH'!AI67=0,0,IF(logic!$A$88=0,0,ROUND('Predek KH'!N67,0)))) -> 959 | O71: =IF(OR(O$67=0,$A71=0),0,IF('Predek KH'!AJ67=0,0,IF(logic!$A$88=0,0,ROUND('Predek KH'!O67,0)))) -> 1063 | P71: =IF(OR(P$67=0,$A71=0),0,IF('Predek KH'!AK67=0,0,IF(logic!$A$88=0,0,ROUND('Predek KH'!P67,0)))) -> 1411 | Q71: =IF(OR(Q$67=0,$A71=0),0,IF('Predek KH'!AL67=0,0,IF(logic!$A$88=0,0,ROUND('Predek KH'!Q67,0)))) -> 0 | R71: =IF(OR(R$67=0,$A71=0),0,IF('Predek KH'!AM67=0,0,IF(logic!$A$88=0,0,ROUND('Predek KH'!R67,0)))) -> 0 | S71: =IF(OR(S$67=0,$A71=0),0,IF('Predek KH'!AN67=0,0,IF(logic!$A$88=0,0,ROUND('Predek KH'!S67,0)))) -> 0
A72: =IF(AND($M$6=Jazyk!$D$4,$O$6=Jazyk!$D$4),1,IF(AND(B72>=$M$6,B72<=$O$6),1,0)) -> 1 | B72: 700 | D72: =IF(OR(D$67=0,$A72=0),0,IF('Predek KH'!Y68=0,0,IF(logic!$A$88=0,0,ROUND('Predek KH'!D68,0)))) -> 629 | E72: =IF(OR(E$67=0,$A72=0),0,IF('Predek KH'!Z68=0,0,IF(logic!$A$88=0,0,ROUND('Predek KH'!E68,0)))) -> 932 | F72: =IF(OR(F$67=0,$A72=0),0,IF('Predek KH'!AA68=0,0,IF(logic!$A$88=0,0,ROUND('Predek KH'!F68,0)))) -> 1033 | G72: =IF(OR(G$67=0,$A72=0),0,IF('Predek KH'!AB68=0,0,IF(logic!$A$88=0,0,ROUND('Predek KH'!G68,0)))) -> 1172 | H72: =IF(OR(H$67=0,$A72=0),0,IF('Predek KH'!AC68=0,0,IF(logic!$A$88=0,0,ROUND('Predek KH'!H68,0)))) -> 1567 | I72: =IF(OR(I$67=0,$A72=0),0,IF('Predek KH'!AD68=0,0,IF(logic!$A$88=0,0,ROUND('Predek KH'!I68,0)))) -> 0 | J72: =IF(OR(J$67=0,$A72=0),0,IF('Predek KH'!AE68=0,0,IF(logic!$A$88=0,0,ROUND('Predek KH'!J68,0)))) -> 0 | K72: =IF(OR(K$67=0,$A72=0),0,IF('Predek KH'!AF68=0,0,IF(logic!$A$88=0,0,ROUND('Predek KH'!K68,0)))) -> 0 | L72: =IF(OR(L$67=0,$A72=0),0,IF('Predek KH'!AG68=0,0,IF(logic!$A$88=0,0,ROUND('Predek KH'!L68,0)))) -> 687 | M72: =IF(OR(M$67=0,$A72=0),0,IF('Predek KH'!AH68=0,0,IF(logic!$A$88=0,0,ROUND('Predek KH'!M68,0)))) -> 996 | N72: =IF(OR(N$67=0,$A72=0),0,IF('Predek KH'!AI68=0,0,IF(logic!$A$88=0,0,ROUND('Predek KH'!N68,0)))) -> 1119 | O72: =IF(OR(O$67=0,$A72=0),0,IF('Predek KH'!AJ68=0,0,IF(logic!$A$88=0,0,ROUND('Predek KH'!O68,0)))) -> 1240 | P72: =IF(OR(P$67=0,$A72=0),0,IF('Predek KH'!AK68=0,0,IF(logic!$A$88=0,0,ROUND('Predek KH'!P68,0)))) -> 1646 | Q72: =IF(OR(Q$67=0,$A72=0),0,IF('Predek KH'!AL68=0,0,IF(logic!$A$88=0,0,ROUND('Predek KH'!Q68,0)))) -> 0 | R72: =IF(OR(R$67=0,$A72=0),0,IF('Predek KH'!AM68=0,0,IF(logic!$A$88=0,0,ROUND('Predek KH'!R68,0)))) -> 0 | S72: =IF(OR(S$67=0,$A72=0),0,IF('Predek KH'!AN68=0,0,IF(logic!$A$88=0,0,ROUND('Predek KH'!S68,0)))) -> 0
A73: =IF(AND($M$6=Jazyk!$D$4,$O$6=Jazyk!$D$4),1,IF(AND(B73>=$M$6,B73<=$O$6),1,0)) -> 1 | B73: 800 | D73: =IF(OR(D$67=0,$A73=0),0,IF('Predek KH'!Y69=0,0,IF(logic!$A$88=0,0,ROUND('Predek KH'!D69,0)))) -> 718 | E73: =IF(OR(E$67=0,$A73=0),0,IF('Predek KH'!Z69=0,0,IF(logic!$A$88=0,0,ROUND('Predek KH'!E69,0)))) -> 1066 | F73: =IF(OR(F$67=0,$A73=0),0,IF('Predek KH'!AA69=0,0,IF(logic!$A$88=0,0,ROUND('Predek KH'!F69,0)))) -> 1181 | G73: =IF(OR(G$67=0,$A73=0),0,IF('Predek KH'!AB69=0,0,IF(logic!$A$88=0,0,ROUND('Predek KH'!G69,0)))) -> 1339 | H73: =IF(OR(H$67=0,$A73=0),0,IF('Predek KH'!AC69=0,0,IF(logic!$A$88=0,0,ROUND('Predek KH'!H69,0)))) -> 1790 | I73: =IF(OR(I$67=0,$A73=0),0,IF('Predek KH'!AD69=0,0,IF(logic!$A$88=0,0,ROUND('Predek KH'!I69,0)))) -> 0 | J73: =IF(OR(J$67=0,$A73=0),0,IF('Predek KH'!AE69=0,0,IF(logic!$A$88=0,0,ROUND('Predek KH'!J69,0)))) -> 0 | K73: =IF(OR(K$67=0,$A73=0),0,IF('Predek KH'!AF69=0,0,IF(logic!$A$88=0,0,ROUND('Predek KH'!K69,0)))) -> 0 | L73: =IF(OR(L$67=0,$A73=0),0,IF('Predek KH'!AG69=0,0,IF(logic!$A$88=0,0,ROUND('Predek KH'!L69,0)))) -> 786 | M73: =IF(OR(M$67=0,$A73=0),0,IF('Predek KH'!AH69=0,0,IF(logic!$A$88=0,0,ROUND('Predek KH'!M69,0)))) -> 1138 | N73: =IF(OR(N$67=0,$A73=0),0,IF('Predek KH'!AI69=0,0,IF(logic!$A$88=0,0,ROUND('Predek KH'!N69,0)))) -> 1279 | O73: =IF(OR(O$67=0,$A73=0),0,IF('Predek KH'!AJ69=0,0,IF(logic!$A$88=0,0,ROUND('Predek KH'!O69,0)))) -> 1417 | P73: =IF(OR(P$67=0,$A73=0),0,IF('Predek KH'!AK69=0,0,IF(logic!$A$88=0,0,ROUND('Predek KH'!P69,0)))) -> 1881 | Q73: =IF(OR(Q$67=0,$A73=0),0,IF('Predek KH'!AL69=0,0,IF(logic!$A$88=0,0,ROUND('Predek KH'!Q69,0)))) -> 0 | R73: =IF(OR(R$67=0,$A73=0),0,IF('Predek KH'!AM69=0,0,IF(logic!$A$88=0,0,ROUND('Predek KH'!R69,0)))) -> 0 | S73: =IF(OR(S$67=0,$A73=0),0,IF('Predek KH'!AN69=0,0,IF(logic!$A$88=0,0,ROUND('Predek KH'!S69,0)))) -> 0
A74: =IF(AND($M$6=Jazyk!$D$4,$O$6=Jazyk!$D$4),1,IF(AND(B74>=$M$6,B74<=$O$6),1,0)) -> 1 | B74: 900 | D74: =IF(OR(D$67=0,$A74=0),0,IF('Predek KH'!Y70=0,0,IF(logic!$A$88=0,0,ROUND('Predek KH'!D70,0)))) -> 808 | E74: =IF(OR(E$67=0,$A74=0),0,IF('Predek KH'!Z70=0,0,IF(logic!$A$88=0,0,ROUND('Predek KH'!E70,0)))) -> 1199 | F74: =IF(OR(F$67=0,$A74=0),0,IF('Predek KH'!AA70=0,0,IF(logic!$A$88=0,0,ROUND('Predek KH'!F70,0)))) -> 1328 | G74: =IF(OR(G$67=0,$A74=0),0,IF('Predek KH'!AB70=0,0,IF(logic!$A$88=0,0,ROUND('Predek KH'!G70,0)))) -> 1507 | H74: =IF(OR(H$67=0,$A74=0),0,IF('Predek KH'!AC70=0,0,IF(logic!$A$88=0,0,ROUND('Predek KH'!H70,0)))) -> 2014 | I74: =IF(OR(I$67=0,$A74=0),0,IF('Predek KH'!AD70=0,0,IF(logic!$A$88=0,0,ROUND('Predek KH'!I70,0)))) -> 0 | J74: =IF(OR(J$67=0,$A74=0),0,IF('Predek KH'!AE70=0,0,IF(logic!$A$88=0,0,ROUND('Predek KH'!J70,0)))) -> 0 | K74: =IF(OR(K$67=0,$A74=0),0,IF('Predek KH'!AF70=0,0,IF(logic!$A$88=0,0,ROUND('Predek KH'!K70,0)))) -> 0 | L74: =IF(OR(L$67=0,$A74=0),0,IF('Predek KH'!AG70=0,0,IF(logic!$A$88=0,0,ROUND('Predek KH'!L70,0)))) -> 884 | M74: =IF(OR(M$67=0,$A74=0),0,IF('Predek KH'!AH70=0,0,IF(logic!$A$88=0,0,ROUND('Predek KH'!M70,0)))) -> 1281 | N74: =IF(OR(N$67=0,$A74=0),0,IF('Predek KH'!AI70=0,0,IF(logic!$A$88=0,0,ROUND('Predek KH'!N70,0)))) -> 1439 | O74: =IF(OR(O$67=0,$A74=0),0,IF('Predek KH'!AJ70=0,0,IF(logic!$A$88=0,0,ROUND('Predek KH'!O70,0)))) -> 1594 | P74: =IF(OR(P$67=0,$A74=0),0,IF('Predek KH'!AK70=0,0,IF(logic!$A$88=0,0,ROUND('Predek KH'!P70,0)))) -> 2116 | Q74: =IF(OR(Q$67=0,$A74=0),0,IF('Predek KH'!AL70=0,0,IF(logic!$A$88=0,0,ROUND('Predek KH'!Q70,0)))) -> 0 | R74: =IF(OR(R$67=0,$A74=0),0,IF('Predek KH'!AM70=0,0,IF(logic!$A$88=0,0,ROUND('Predek KH'!R70,0)))) -> 0 | S74: =IF(OR(S$67=0,$A74=0),0,IF('Predek KH'!AN70=0,0,IF(logic!$A$88=0,0,ROUND('Predek KH'!S70,0)))) -> 0
A75: =IF(AND($M$6=Jazyk!$D$4,$O$6=Jazyk!$D$4),1,IF(AND(B75>=$M$6,B75<=$O$6),1,0)) -> 1 | B75: 1000 | D75: =IF(OR(D$67=0,$A75=0),0,IF('Predek KH'!Y71=0,0,IF(logic!$A$88=0,0,ROUND('Predek KH'!D71,0)))) -> 898 | E75: =IF(OR(E$67=0,$A75=0),0,IF('Predek KH'!Z71=0,0,IF(logic!$A$88=0,0,ROUND('Predek KH'!E71,0)))) -> 1332 | F75: =IF(OR(F$67=0,$A75=0),0,IF('Predek KH'!AA71=0,0,IF(logic!$A$88=0,0,ROUND('Predek KH'!F71,0)))) -> 1476 | G75: =IF(OR(G$67=0,$A75=0),0,IF('Predek KH'!AB71=0,0,IF(logic!$A$88=0,0,ROUND('Predek KH'!G71,0)))) -> 1674 | H75: =IF(OR(H$67=0,$A75=0),0,IF('Predek KH'!AC71=0,0,IF(logic!$A$88=0,0,ROUND('Predek KH'!H71,0)))) -> 2238 | I75: =IF(OR(I$67=0,$A75=0),0,IF('Predek KH'!AD71=0,0,IF(logic!$A$88=0,0,ROUND('Predek KH'!I71,0)))) -> 0 | J75: =IF(OR(J$67=0,$A75=0),0,IF('Predek KH'!AE71=0,0,IF(logic!$A$88=0,0,ROUND('Predek KH'!J71,0)))) -> 0 | K75: =IF(OR(K$67=0,$A75=0),0,IF('Predek KH'!AF71=0,0,IF(logic!$A$88=0,0,ROUND('Predek KH'!K71,0)))) -> 0 | L75: =IF(OR(L$67=0,$A75=0),0,IF('Predek KH'!AG71=0,0,IF(logic!$A$88=0,0,ROUND('Predek KH'!L71,0)))) -> 982 | M75: =IF(OR(M$67=0,$A75=0),0,IF('Predek KH'!AH71=0,0,IF(logic!$A$88=0,0,ROUND('Predek KH'!M71,0)))) -> 1423 | N75: =IF(OR(N$67=0,$A75=0),0,IF('Predek KH'!AI71=0,0,IF(logic!$A$88=0,0,ROUND('Predek KH'!N71,0)))) -> 1599 | O75: =IF(OR(O$67=0,$A75=0),0,IF('Predek KH'!AJ71=0,0,IF(logic!$A$88=0,0,ROUND('Predek KH'!O71,0)))) -> 1771 | P75: =IF(OR(P$67=0,$A75=0),0,IF('Predek KH'!AK71=0,0,IF(logic!$A$88=0,0,ROUND('Predek KH'!P71,0)))) -> 2351 | Q75: =IF(OR(Q$67=0,$A75=0),0,IF('Predek KH'!AL71=0,0,IF(logic!$A$88=0,0,ROUND('Predek KH'!Q71,0)))) -> 0 | R75: =IF(OR(R$67=0,$A75=0),0,IF('Predek KH'!AM71=0,0,IF(logic!$A$88=0,0,ROUND('Predek KH'!R71,0)))) -> 0 | S75: =IF(OR(S$67=0,$A75=0),0,IF('Predek KH'!AN71=0,0,IF(logic!$A$88=0,0,ROUND('Predek KH'!S71,0)))) -> 0
A76: =IF(AND($M$6=Jazyk!$D$4,$O$6=Jazyk!$D$4),1,IF(AND(B76>=$M$6,B76<=$O$6),1,0)) -> 1 | B76: 1100 | D76: =IF(OR(D$67=0,$A76=0),0,IF('Predek KH'!Y72=0,0,IF(logic!$A$88=0,0,ROUND('Predek KH'!D72,0)))) -> 988 | E76: =IF(OR(E$67=0,$A76=0),0,IF('Predek KH'!Z72=0,0,IF(logic!$A$88=0,0,ROUND('Predek KH'!E72,0)))) -> 1465 | F76: =IF(OR(F$67=0,$A76=0),0,IF('Predek KH'!AA72=0,0,IF(logic!$A$88=0,0,ROUND('Predek KH'!F72,0)))) -> 1624 | G76: =IF(OR(G$67=0,$A76=0),0,IF('Predek KH'!AB72=0,0,IF(logic!$A$88=0,0,ROUND('Predek KH'!G72,0)))) -> 1841 | H76: =IF(OR(H$67=0,$A76=0),0,IF('Predek KH'!AC72=0,0,IF(logic!$A$88=0,0,ROUND('Predek KH'!H72,0)))) -> 2462 | I76: =IF(OR(I$67=0,$A76=0),0,IF('Predek KH'!AD72=0,0,IF(logic!$A$88=0,0,ROUND('Predek KH'!I72,0)))) -> 0 | J76: =IF(OR(J$67=0,$A76=0),0,IF('Predek KH'!AE72=0,0,IF(logic!$A$88=0,0,ROUND('Predek KH'!J72,0)))) -> 0 | K76: =IF(OR(K$67=0,$A76=0),0,IF('Predek KH'!AF72=0,0,IF(logic!$A$88=0,0,ROUND('Predek KH'!K72,0)))) -> 0 | L76: =IF(OR(L$67=0,$A76=0),0,IF('Predek KH'!AG72=0,0,IF(logic!$A$88=0,0,ROUND('Predek KH'!L72,0)))) -> 1080 | M76: =IF(OR(M$67=0,$A76=0),0,IF('Predek KH'!AH72=0,0,IF(logic!$A$88=0,0,ROUND('Predek KH'!M72,0)))) -> 1565 | N76: =IF(OR(N$67=0,$A76=0),0,IF('Predek KH'!AI72=0,0,IF(logic!$A$88=0,0,ROUND('Predek KH'!N72,0)))) -> 1759 | O76: =IF(OR(O$67=0,$A76=0),0,IF('Predek KH'!AJ72=0,0,IF(logic!$A$88=0,0,ROUND('Predek KH'!O72,0)))) -> 1948 | P76: =IF(OR(P$67=0,$A76=0),0,IF('Predek KH'!AK72=0,0,IF(logic!$A$88=0,0,ROUND('Predek KH'!P72,0)))) -> 2586 | Q76: =IF(OR(Q$67=0,$A76=0),0,IF('Predek KH'!AL72=0,0,IF(logic!$A$88=0,0,ROUND('Predek KH'!Q72,0)))) -> 0 | R76: =IF(OR(R$67=0,$A76=0),0,IF('Predek KH'!AM72=0,0,IF(logic!$A$88=0,0,ROUND('Predek KH'!R72,0)))) -> 0 | S76: =IF(OR(S$67=0,$A76=0),0,IF('Predek KH'!AN72=0,0,IF(logic!$A$88=0,0,ROUND('Predek KH'!S72,0)))) -> 0
A77: =IF(AND($M$6=Jazyk!$D$4,$O$6=Jazyk!$D$4),1,IF(AND(B77>=$M$6,B77<=$O$6),1,0)) -> 1 | B77: 1200 | D77: =IF(OR(D$67=0,$A77=0),0,IF('Predek KH'!Y73=0,0,IF(logic!$A$88=0,0,ROUND('Predek KH'!D73,0)))) -> 1078 | E77: =IF(OR(E$67=0,$A77=0),0,IF('Predek KH'!Z73=0,0,IF(logic!$A$88=0,0,ROUND('Predek KH'!E73,0)))) -> 1598 | F77: =IF(OR(F$67=0,$A77=0),0,IF('Predek KH'!AA73=0,0,IF(logic!$A$88=0,0,ROUND('Predek KH'!F73,0)))) -> 1771 | G77: =IF(OR(G$67=0,$A77=0),0,IF('Predek KH'!AB73=0,0,IF(logic!$A$88=0,0,ROUND('Predek KH'!G73,0)))) -> 2009 | H77: =IF(OR(H$67=0,$A77=0),0,IF('Predek KH'!AC73=0,0,IF(logic!$A$88=0,0,ROUND('Predek KH'!H73,0)))) -> 2686 | I77: =IF(OR(I$67=0,$A77=0),0,IF('Predek KH'!AD73=0,0,IF(logic!$A$88=0,0,ROUND('Predek KH'!I73,0)))) -> 0 | J77: =IF(OR(J$67=0,$A77=0),0,IF('Predek KH'!AE73=0,0,IF(logic!$A$88=0,0,ROUND('Predek KH'!J73,0)))) -> 0 | K77: =IF(OR(K$67=0,$A77=0),0,IF('Predek KH'!AF73=0,0,IF(logic!$A$88=0,0,ROUND('Predek KH'!K73,0)))) -> 0 | L77: =IF(OR(L$67=0,$A77=0),0,IF('Predek KH'!AG73=0,0,IF(logic!$A$88=0,0,ROUND('Predek KH'!L73,0)))) -> 1178 | M77: =IF(OR(M$67=0,$A77=0),0,IF('Predek KH'!AH73=0,0,IF(logic!$A$88=0,0,ROUND('Predek KH'!M73,0)))) -> 1708 | N77: =IF(OR(N$67=0,$A77=0),0,IF('Predek KH'!AI73=0,0,IF(logic!$A$88=0,0,ROUND('Predek KH'!N73,0)))) -> 1919 | O77: =IF(OR(O$67=0,$A77=0),0,IF('Predek KH'!AJ73=0,0,IF(logic!$A$88=0,0,ROUND('Predek KH'!O73,0)))) -> 2125 | P77: =IF(OR(P$67=0,$A77=0),0,IF('Predek KH'!AK73=0,0,IF(logic!$A$88=0,0,ROUND('Predek KH'!P73,0)))) -> 2821 | Q77: =IF(OR(Q$67=0,$A77=0),0,IF('Predek KH'!AL73=0,0,IF(logic!$A$88=0,0,ROUND('Predek KH'!Q73,0)))) -> 0 | R77: =IF(OR(R$67=0,$A77=0),0,IF('Predek KH'!AM73=0,0,IF(logic!$A$88=0,0,ROUND('Predek KH'!R73,0)))) -> 0 | S77: =IF(OR(S$67=0,$A77=0),0,IF('Predek KH'!AN73=0,0,IF(logic!$A$88=0,0,ROUND('Predek KH'!S73,0)))) -> 0
A78: =IF(AND($M$6=Jazyk!$D$4,$O$6=Jazyk!$D$4),1,IF(AND(B78>=$M$6,B78<=$O$6),1,0)) -> 1 | B78: 1400 | D78: =IF(OR(D$67=0,$A78=0),0,IF('Predek KH'!Y74=0,0,IF(logic!$A$88=0,0,ROUND('Predek KH'!D74,0)))) -> 1257 | E78: =IF(OR(E$67=0,$A78=0),0,IF('Predek KH'!Z74=0,0,IF(logic!$A$88=0,0,ROUND('Predek KH'!E74,0)))) -> 1865 | F78: =IF(OR(F$67=0,$A78=0),0,IF('Predek KH'!AA74=0,0,IF(logic!$A$88=0,0,ROUND('Predek KH'!F74,0)))) -> 2066 | G78: =IF(OR(G$67=0,$A78=0),0,IF('Predek KH'!AB74=0,0,IF(logic!$A$88=0,0,ROUND('Predek KH'!G74,0)))) -> 2344 | H78: =IF(OR(H$67=0,$A78=0),0,IF('Predek KH'!AC74=0,0,IF(logic!$A$88=0,0,ROUND('Predek KH'!H74,0)))) -> 3133 | I78: =IF(OR(I$67=0,$A78=0),0,IF('Predek KH'!AD74=0,0,IF(logic!$A$88=0,0,ROUND('Predek KH'!I74,0)))) -> 0 | J78: =IF(OR(J$67=0,$A78=0),0,IF('Predek KH'!AE74=0,0,IF(logic!$A$88=0,0,ROUND('Predek KH'!J74,0)))) -> 0 | K78: =IF(OR(K$67=0,$A78=0),0,IF('Predek KH'!AF74=0,0,IF(logic!$A$88=0,0,ROUND('Predek KH'!K74,0)))) -> 0 | L78: =IF(OR(L$67=0,$A78=0),0,IF('Predek KH'!AG74=0,0,IF(logic!$A$88=0,0,ROUND('Predek KH'!L74,0)))) -> 1375 | M78: =IF(OR(M$67=0,$A78=0),0,IF('Predek KH'!AH74=0,0,IF(logic!$A$88=0,0,ROUND('Predek KH'!M74,0)))) -> 1992 | N78: =IF(OR(N$67=0,$A78=0),0,IF('Predek KH'!AI74=0,0,IF(logic!$A$88=0,0,ROUND('Predek KH'!N74,0)))) -> 2239 | O78: =IF(OR(O$67=0,$A78=0),0,IF('Predek KH'!AJ74=0,0,IF(logic!$A$88=0,0,ROUND('Predek KH'!O74,0)))) -> 2479 | P78: =IF(OR(P$67=0,$A78=0),0,IF('Predek KH'!AK74=0,0,IF(logic!$A$88=0,0,ROUND('Predek KH'!P74,0)))) -> 3291 | Q78: =IF(OR(Q$67=0,$A78=0),0,IF('Predek KH'!AL74=0,0,IF(logic!$A$88=0,0,ROUND('Predek KH'!Q74,0)))) -> 0 | R78: =IF(OR(R$67=0,$A78=0),0,IF('Predek KH'!AM74=0,0,IF(logic!$A$88=0,0,ROUND('Predek KH'!R74,0)))) -> 0 | S78: =IF(OR(S$67=0,$A78=0),0,IF('Predek KH'!AN74=0,0,IF(logic!$A$88=0,0,ROUND('Predek KH'!S74,0)))) -> 0
A79: =IF(AND($M$6=Jazyk!$D$4,$O$6=Jazyk!$D$4),1,IF(AND(B79>=$M$6,B79<=$O$6),1,0)) -> 1 | B79: 1600 | D79: =IF(OR(D$67=0,$A79=0),0,IF('Predek KH'!Y75=0,0,IF(logic!$A$88=0,0,ROUND('Predek KH'!D75,0)))) -> 1437 | E79: =IF(OR(E$67=0,$A79=0),0,IF('Predek KH'!Z75=0,0,IF(logic!$A$88=0,0,ROUND('Predek KH'!E75,0)))) -> 2131 | F79: =IF(OR(F$67=0,$A79=0),0,IF('Predek KH'!AA75=0,0,IF(logic!$A$88=0,0,ROUND('Predek KH'!F75,0)))) -> 2362 | G79: =IF(OR(G$67=0,$A79=0),0,IF('Predek KH'!AB75=0,0,IF(logic!$A$88=0,0,ROUND('Predek KH'!G75,0)))) -> 2678 | H79: =IF(OR(H$67=0,$A79=0),0,IF('Predek KH'!AC75=0,0,IF(logic!$A$88=0,0,ROUND('Predek KH'!H75,0)))) -> 0 | I79: =IF(OR(I$67=0,$A79=0),0,IF('Predek KH'!AD75=0,0,IF(logic!$A$88=0,0,ROUND('Predek KH'!I75,0)))) -> 0 | J79: =IF(OR(J$67=0,$A79=0),0,IF('Predek KH'!AE75=0,0,IF(logic!$A$88=0,0,ROUND('Predek KH'!J75,0)))) -> 0 | K79: =IF(OR(K$67=0,$A79=0),0,IF('Predek KH'!AF75=0,0,IF(logic!$A$88=0,0,ROUND('Predek KH'!K75,0)))) -> 0 | L79: =IF(OR(L$67=0,$A79=0),0,IF('Predek KH'!AG75=0,0,IF(logic!$A$88=0,0,ROUND('Predek KH'!L75,0)))) -> 1571 | M79: =IF(OR(M$67=0,$A79=0),0,IF('Predek KH'!AH75=0,0,IF(logic!$A$88=0,0,ROUND('Predek KH'!M75,0)))) -> 2277 | N79: =IF(OR(N$67=0,$A79=0),0,IF('Predek KH'!AI75=0,0,IF(logic!$A$88=0,0,ROUND('Predek KH'!N75,0)))) -> 2558 | O79: =IF(OR(O$67=0,$A79=0),0,IF('Predek KH'!AJ75=0,0,IF(logic!$A$88=0,0,ROUND('Predek KH'!O75,0)))) -> 2834 | P79: =IF(OR(P$67=0,$A79=0),0,IF('Predek KH'!AK75=0,0,IF(logic!$A$88=0,0,ROUND('Predek KH'!P75,0)))) -> 0 | Q79: =IF(OR(Q$67=0,$A79=0),0,IF('Predek KH'!AL75=0,0,IF(logic!$A$88=0,0,ROUND('Predek KH'!Q75,0)))) -> 0 | R79: =IF(OR(R$67=0,$A79=0),0,IF('Predek KH'!AM75=0,0,IF(logic!$A$88=0,0,ROUND('Predek KH'!R75,0)))) -> 0 | S79: =IF(OR(S$67=0,$A79=0),0,IF('Predek KH'!AN75=0,0,IF(logic!$A$88=0,0,ROUND('Predek KH'!S75,0)))) -> 0
A80: =IF(AND($M$6=Jazyk!$D$4,$O$6=Jazyk!$D$4),1,IF(AND(B80>=$M$6,B80<=$O$6),1,0)) -> 1 | B80: 1800 | D80: =IF(OR(D$67=0,$A80=0),0,IF('Predek KH'!Y76=0,0,IF(logic!$A$88=0,0,ROUND('Predek KH'!D76,0)))) -> 1616 | E80: =IF(OR(E$67=0,$A80=0),0,IF('Predek KH'!Z76=0,0,IF(logic!$A$88=0,0,ROUND('Predek KH'!E76,0)))) -> 2398 | F80: =IF(OR(F$67=0,$A80=0),0,IF('Predek KH'!AA76=0,0,IF(logic!$A$88=0,0,ROUND('Predek KH'!F76,0)))) -> 2657 | G80: =IF(OR(G$67=0,$A80=0),0,IF('Predek KH'!AB76=0,0,IF(logic!$A$88=0,0,ROUND('Predek KH'!G76,0)))) -> 3013 | H80: =IF(OR(H$67=0,$A80=0),0,IF('Predek KH'!AC76=0,0,IF(logic!$A$88=0,0,ROUND('Predek KH'!H76,0)))) -> 0 | I80: =IF(OR(I$67=0,$A80=0),0,IF('Predek KH'!AD76=0,0,IF(logic!$A$88=0,0,ROUND('Predek KH'!I76,0)))) -> 0 | J80: =IF(OR(J$67=0,$A80=0),0,IF('Predek KH'!AE76=0,0,IF(logic!$A$88=0,0,ROUND('Predek KH'!J76,0)))) -> 0 | K80: =IF(OR(K$67=0,$A80=0),0,IF('Predek KH'!AF76=0,0,IF(logic!$A$88=0,0,ROUND('Predek KH'!K76,0)))) -> 0 | L80: =IF(OR(L$67=0,$A80=0),0,IF('Predek KH'!AG76=0,0,IF(logic!$A$88=0,0,ROUND('Predek KH'!L76,0)))) -> 1768 | M80: =IF(OR(M$67=0,$A80=0),0,IF('Predek KH'!AH76=0,0,IF(logic!$A$88=0,0,ROUND('Predek KH'!M76,0)))) -> 2561 | N80: =IF(OR(N$67=0,$A80=0),0,IF('Predek KH'!AI76=0,0,IF(logic!$A$88=0,0,ROUND('Predek KH'!N76,0)))) -> 2878 | O80: =IF(OR(O$67=0,$A80=0),0,IF('Predek KH'!AJ76=0,0,IF(logic!$A$88=0,0,ROUND('Predek KH'!O76,0)))) -> 0 | P80: =IF(OR(P$67=0,$A80=0),0,IF('Predek KH'!AK76=0,0,IF(logic!$A$88=0,0,ROUND('Predek KH'!P76,0)))) -> 0 | Q80: =IF(OR(Q$67=0,$A80=0),0,IF('Predek KH'!AL76=0,0,IF(logic!$A$88=0,0,ROUND('Predek KH'!Q76,0)))) -> 0 | R80: =IF(OR(R$67=0,$A80=0),0,IF('Predek KH'!AM76=0,0,IF(logic!$A$88=0,0,ROUND('Predek KH'!R76,0)))) -> 0 | S80: =IF(OR(S$67=0,$A80=0),0,IF('Predek KH'!AN76=0,0,IF(logic!$A$88=0,0,ROUND('Predek KH'!S76,0)))) -> 0
A81: =IF(AND($M$6=Jazyk!$D$4,$O$6=Jazyk!$D$4),1,IF(AND(B81>=$M$6,B81<=$O$6),1,0)) -> 1 | B81: 2000 | D81: =IF(OR(D$67=0,$A81=0),0,IF('Predek KH'!Y77=0,0,IF(logic!$A$88=0,0,ROUND('Predek KH'!D77,0)))) -> 1796 | E81: =IF(OR(E$67=0,$A81=0),0,IF('Predek KH'!Z77=0,0,IF(logic!$A$88=0,0,ROUND('Predek KH'!E77,0)))) -> 2664 | F81: =IF(OR(F$67=0,$A81=0),0,IF('Predek KH'!AA77=0,0,IF(logic!$A$88=0,0,ROUND('Predek KH'!F77,0)))) -> 2952 | G81: =IF(OR(G$67=0,$A81=0),0,IF('Predek KH'!AB77=0,0,IF(logic!$A$88=0,0,ROUND('Predek KH'!G77,0)))) -> 0 | H81: =IF(OR(H$67=0,$A81=0),0,IF('Predek KH'!AC77=0,0,IF(logic!$A$88=0,0,ROUND('Predek KH'!H77,0)))) -> 0 | I81: =IF(OR(I$67=0,$A81=0),0,IF('Predek KH'!AD77=0,0,IF(logic!$A$88=0,0,ROUND('Predek KH'!I77,0)))) -> 0 | J81: =IF(OR(J$67=0,$A81=0),0,IF('Predek KH'!AE77=0,0,IF(logic!$A$88=0,0,ROUND('Predek KH'!J77,0)))) -> 0 | K81: =IF(OR(K$67=0,$A81=0),0,IF('Predek KH'!AF77=0,0,IF(logic!$A$88=0,0,ROUND('Predek KH'!K77,0)))) -> 0 | L81: =IF(OR(L$67=0,$A81=0),0,IF('Predek KH'!AG77=0,0,IF(logic!$A$88=0,0,ROUND('Predek KH'!L77,0)))) -> 1964 | M81: =IF(OR(M$67=0,$A81=0),0,IF('Predek KH'!AH77=0,0,IF(logic!$A$88=0,0,ROUND('Predek KH'!M77,0)))) -> 2846 | N81: =IF(OR(N$67=0,$A81=0),0,IF('Predek KH'!AI77=0,0,IF(logic!$A$88=0,0,ROUND('Predek KH'!N77,0)))) -> 0 | O81: =IF(OR(O$67=0,$A81=0),0,IF('Predek KH'!AJ77=0,0,IF(logic!$A$88=0,0,ROUND('Predek KH'!O77,0)))) -> 0 | P81: =IF(OR(P$67=0,$A81=0),0,IF('Predek KH'!AK77=0,0,IF(logic!$A$88=0,0,ROUND('Predek KH'!P77,0)))) -> 0 | Q81: =IF(OR(Q$67=0,$A81=0),0,IF('Predek KH'!AL77=0,0,IF(logic!$A$88=0,0,ROUND('Predek KH'!Q77,0)))) -> 0 | R81: =IF(OR(R$67=0,$A81=0),0,IF('Predek KH'!AM77=0,0,IF(logic!$A$88=0,0,ROUND('Predek KH'!R77,0)))) -> 0 | S81: =IF(OR(S$67=0,$A81=0),0,IF('Predek KH'!AN77=0,0,IF(logic!$A$88=0,0,ROUND('Predek KH'!S77,0)))) -> 0
A82: =IF(AND($M$6=Jazyk!$D$4,$O$6=Jazyk!$D$4),1,IF(AND(B82>=$M$6,B82<=$O$6),1,0)) -> 1 | B82: 2300 | D82: =IF(OR(D$67=0,$A82=0),0,IF('Predek KH'!Y78=0,0,IF(logic!$A$88=0,0,ROUND('Predek KH'!D78,0)))) -> 2065 | E82: =IF(OR(E$67=0,$A82=0),0,IF('Predek KH'!Z78=0,0,IF(logic!$A$88=0,0,ROUND('Predek KH'!E78,0)))) -> 3064 | F82: =IF(OR(F$67=0,$A82=0),0,IF('Predek KH'!AA78=0,0,IF(logic!$A$88=0,0,ROUND('Predek KH'!F78,0)))) -> 0 | G82: =IF(OR(G$67=0,$A82=0),0,IF('Predek KH'!AB78=0,0,IF(logic!$A$88=0,0,ROUND('Predek KH'!G78,0)))) -> 0 | H82: =IF(OR(H$67=0,$A82=0),0,IF('Predek KH'!AC78=0,0,IF(logic!$A$88=0,0,ROUND('Predek KH'!H78,0)))) -> 0 | I82: =IF(OR(I$67=0,$A82=0),0,IF('Predek KH'!AD78=0,0,IF(logic!$A$88=0,0,ROUND('Predek KH'!I78,0)))) -> 0 | J82: =IF(OR(J$67=0,$A82=0),0,IF('Predek KH'!AE78=0,0,IF(logic!$A$88=0,0,ROUND('Predek KH'!J78,0)))) -> 0 | K82: =IF(OR(K$67=0,$A82=0),0,IF('Predek KH'!AF78=0,0,IF(logic!$A$88=0,0,ROUND('Predek KH'!K78,0)))) -> 0 | L82: =IF(OR(L$67=0,$A82=0),0,IF('Predek KH'!AG78=0,0,IF(logic!$A$88=0,0,ROUND('Predek KH'!L78,0)))) -> 2259 | M82: =IF(OR(M$67=0,$A82=0),0,IF('Predek KH'!AH78=0,0,IF(logic!$A$88=0,0,ROUND('Predek KH'!M78,0)))) -> 3273 | N82: =IF(OR(N$67=0,$A82=0),0,IF('Predek KH'!AI78=0,0,IF(logic!$A$88=0,0,ROUND('Predek KH'!N78,0)))) -> 0 | O82: =IF(OR(O$67=0,$A82=0),0,IF('Predek KH'!AJ78=0,0,IF(logic!$A$88=0,0,ROUND('Predek KH'!O78,0)))) -> 0 | P82: =IF(OR(P$67=0,$A82=0),0,IF('Predek KH'!AK78=0,0,IF(logic!$A$88=0,0,ROUND('Predek KH'!P78,0)))) -> 0 | Q82: =IF(OR(Q$67=0,$A82=0),0,IF('Predek KH'!AL78=0,0,IF(logic!$A$88=0,0,ROUND('Predek KH'!Q78,0)))) -> 0 | R82: =IF(OR(R$67=0,$A82=0),0,IF('Predek KH'!AM78=0,0,IF(logic!$A$88=0,0,ROUND('Predek KH'!R78,0)))) -> 0 | S82: =IF(OR(S$67=0,$A82=0),0,IF('Predek KH'!AN78=0,0,IF(logic!$A$88=0,0,ROUND('Predek KH'!S78,0)))) -> 0
A83: =IF(AND($M$6=Jazyk!$D$4,$O$6=Jazyk!$D$4),1,IF(AND(B83>=$M$6,B83<=$O$6),1,0)) -> 1 | B83: 2600 | D83: =IF(OR(D$67=0,$A83=0),0,IF('Predek KH'!Y79=0,0,IF(logic!$A$88=0,0,ROUND('Predek KH'!D79,0)))) -> 2335 | E83: =IF(OR(E$67=0,$A83=0),0,IF('Predek KH'!Z79=0,0,IF(logic!$A$88=0,0,ROUND('Predek KH'!E79,0)))) -> 3463 | F83: =IF(OR(F$67=0,$A83=0),0,IF('Predek KH'!AA79=0,0,IF(logic!$A$88=0,0,ROUND('Predek KH'!F79,0)))) -> 0 | G83: =IF(OR(G$67=0,$A83=0),0,IF('Predek KH'!AB79=0,0,IF(logic!$A$88=0,0,ROUND('Predek KH'!G79,0)))) -> 0 | H83: =IF(OR(H$67=0,$A83=0),0,IF('Predek KH'!AC79=0,0,IF(logic!$A$88=0,0,ROUND('Predek KH'!H79,0)))) -> 0 | I83: =IF(OR(I$67=0,$A83=0),0,IF('Predek KH'!AD79=0,0,IF(logic!$A$88=0,0,ROUND('Predek KH'!I79,0)))) -> 0 | J83: =IF(OR(J$67=0,$A83=0),0,IF('Predek KH'!AE79=0,0,IF(logic!$A$88=0,0,ROUND('Predek KH'!J79,0)))) -> 0 | K83: =IF(OR(K$67=0,$A83=0),0,IF('Predek KH'!AF79=0,0,IF(logic!$A$88=0,0,ROUND('Predek KH'!K79,0)))) -> 0 | L83: =IF(OR(L$67=0,$A83=0),0,IF('Predek KH'!AG79=0,0,IF(logic!$A$88=0,0,ROUND('Predek KH'!L79,0)))) -> 2553 | M83: =IF(OR(M$67=0,$A83=0),0,IF('Predek KH'!AH79=0,0,IF(logic!$A$88=0,0,ROUND('Predek KH'!M79,0)))) -> 3700 | N83: =IF(OR(N$67=0,$A83=0),0,IF('Predek KH'!AI79=0,0,IF(logic!$A$88=0,0,ROUND('Predek KH'!N79,0)))) -> 0 | O83: =IF(OR(O$67=0,$A83=0),0,IF('Predek KH'!AJ79=0,0,IF(logic!$A$88=0,0,ROUND('Predek KH'!O79,0)))) -> 0 | P83: =IF(OR(P$67=0,$A83=0),0,IF('Predek KH'!AK79=0,0,IF(logic!$A$88=0,0,ROUND('Predek KH'!P79,0)))) -> 0 | Q83: =IF(OR(Q$67=0,$A83=0),0,IF('Predek KH'!AL79=0,0,IF(logic!$A$88=0,0,ROUND('Predek KH'!Q79,0)))) -> 0 | R83: =IF(OR(R$67=0,$A83=0),0,IF('Predek KH'!AM79=0,0,IF(logic!$A$88=0,0,ROUND('Predek KH'!R79,0)))) -> 0 | S83: =IF(OR(S$67=0,$A83=0),0,IF('Predek KH'!AN79=0,0,IF(logic!$A$88=0,0,ROUND('Predek KH'!S79,0)))) -> 0
A84: =IF(AND($M$6=Jazyk!$D$4,$O$6=Jazyk!$D$4),1,IF(AND(B84>=$M$6,B84<=$O$6),1,0)) -> 1 | B84: 3000 | D84: =IF(OR(D$67=0,$A84=0),0,IF('Predek KH'!Y80=0,0,IF(logic!$A$88=0,0,ROUND('Predek KH'!D80,0)))) -> 2694 | E84: =IF(OR(E$67=0,$A84=0),0,IF('Predek KH'!Z80=0,0,IF(logic!$A$88=0,0,ROUND('Predek KH'!E80,0)))) -> 3996 | F84: =IF(OR(F$67=0,$A84=0),0,IF('Predek KH'!AA80=0,0,IF(logic!$A$88=0,0,ROUND('Predek KH'!F80,0)))) -> 0 | G84: =IF(OR(G$67=0,$A84=0),0,IF('Predek KH'!AB80=0,0,IF(logic!$A$88=0,0,ROUND('Predek KH'!G80,0)))) -> 0 | H84: =IF(OR(H$67=0,$A84=0),0,IF('Predek KH'!AC80=0,0,IF(logic!$A$88=0,0,ROUND('Predek KH'!H80,0)))) -> 0 | I84: =IF(OR(I$67=0,$A84=0),0,IF('Predek KH'!AD80=0,0,IF(logic!$A$88=0,0,ROUND('Predek KH'!I80,0)))) -> 0 | J84: =IF(OR(J$67=0,$A84=0),0,IF('Predek KH'!AE80=0,0,IF(logic!$A$88=0,0,ROUND('Predek KH'!J80,0)))) -> 0 | K84: =IF(OR(K$67=0,$A84=0),0,IF('Predek KH'!AF80=0,0,IF(logic!$A$88=0,0,ROUND('Predek KH'!K80,0)))) -> 0 | L84: =IF(OR(L$67=0,$A84=0),0,IF('Predek KH'!AG80=0,0,IF(logic!$A$88=0,0,ROUND('Predek KH'!L80,0)))) -> 2946 | M84: =IF(OR(M$67=0,$A84=0),0,IF('Predek KH'!AH80=0,0,IF(logic!$A$88=0,0,ROUND('Predek KH'!M80,0)))) -> 0 | N84: =IF(OR(N$67=0,$A84=0),0,IF('Predek KH'!AI80=0,0,IF(logic!$A$88=0,0,ROUND('Predek KH'!N80,0)))) -> 0 | O84: =IF(OR(O$67=0,$A84=0),0,IF('Predek KH'!AJ80=0,0,IF(logic!$A$88=0,0,ROUND('Predek KH'!O80,0)))) -> 0 | P84: =IF(OR(P$67=0,$A84=0),0,IF('Predek KH'!AK80=0,0,IF(logic!$A$88=0,0,ROUND('Predek KH'!P80,0)))) -> 0 | Q84: =IF(OR(Q$67=0,$A84=0),0,IF('Predek KH'!AL80=0,0,IF(logic!$A$88=0,0,ROUND('Predek KH'!Q80,0)))) -> 0 | R84: =IF(OR(R$67=0,$A84=0),0,IF('Predek KH'!AM80=0,0,IF(logic!$A$88=0,0,ROUND('Predek KH'!R80,0)))) -> 0 | S84: =IF(OR(S$67=0,$A84=0),0,IF('Predek KH'!AN80=0,0,IF(logic!$A$88=0,0,ROUND('Predek KH'!S80,0)))) -> 0
B85: =Jazyk!AB4 -> Право на технически промени. | S85: =logic!M5 -> CZ KRTH 3.02-05/22
D90: =VLOOKUP('Qn H'!$C$4,'Qn H'!$C$22:$T$76,3,0) -> K10H | E90: =VLOOKUP('Qn H'!$C$4,'Qn H'!$C$22:$T$76,4,0) -> K11H | F90: =VLOOKUP('Qn H'!$C$4,'Qn H'!$C$22:$T$76,5,0) -> K20H | G90: =VLOOKUP('Qn H'!$C$4,'Qn H'!$C$22:$T$76,6,0) -> K21H | H90: =VLOOKUP('Qn H'!$C$4,'Qn H'!$C$22:$T$76,7,0) -> K22H | I90: =VLOOKUP('Qn H'!$C$4,'Qn H'!$C$22:$T$76,8,0) -> K23H | J90: =VLOOKUP('Qn H'!$C$4,'Qn H'!$C$22:$T$76,9,0) -> K44H | K90: =VLOOKUP('Qn H'!$C$4,'Qn H'!$C$22:$T$76,10,0) -> K46H | L90: =VLOOKUP('Qn H'!$C$4,'Qn H'!$C$22:$T$76,11,0) -> K10H | M90: =VLOOKUP('Qn H'!$C$4,'Qn H'!$C$22:$T$76,12,0) -> K11H | N90: =VLOOKUP('Qn H'!$C$4,'Qn H'!$C$22:$T$76,13,0) -> K20H | O90: =VLOOKUP('Qn H'!$C$4,'Qn H'!$C$22:$T$76,14,0) -> K21H | P90: =VLOOKUP('Qn H'!$C$4,'Qn H'!$C$22:$T$76,15,0) -> K22H | Q90: =VLOOKUP('Qn H'!$C$4,'Qn H'!$C$22:$T$76,16,0) -> K23H | R90: =VLOOKUP('Qn H'!$C$4,'Qn H'!$C$22:$T$76,17,0) -> K44H | S90: =VLOOKUP('Qn H'!$C$4,'Qn H'!$C$22:$T$76,18,0) -> K46H

Sheet Vertikal (hidden)
B1: =logic!$B$7 -> KORATHERM VERTIKAL - M
B3: =Jazyk!J4 -> Избор на модел: | G3: =Jazyk!P4 -> Детайлен избор
I4: =Jazyk!K4&" "&Jazyk!H4 -> Топлинна мощност от | K4: ="W "&Jazyk!I4 -> W до | M4: W
I5: =Jazyk!F4&" "&Jazyk!H4 -> Височина от | J5: =logic!E23 -> всичко | K5: ="mm "&Jazyk!I4 -> mm до | L5: =logic!E35 -> всичко | M5: mm
C6: =Jazyk!Q4 -> Въвеждане на стойности | I6: =Jazyk!G4&" "&Jazyk!H4 -> Дължина от | J6: =logic!E47 -> всичко | K6: ="mm "&Jazyk!I4 -> mm до | L6: =logic!E66 -> всичко | M6: mm
D7: t 1 | E7: t 2 | F7: t i | G7: D T | Q7: =IF(R7=0,0,Jazyk!X4) -> 0 | R7: =MAX(Databaze!A:A) -> 0
C8: =Jazyk!L4 -> Температура: | D8: 75 | E8: 65 | F8: 20 | G8: =(D8+E8)/2-F8 -> 50
D9: =Jazyk!E4 -> Топлинни мощности според ЕН 442
D10: =IF(AND($J$6=Jazyk!$D$4,$L$6=Jazyk!$D$4),1,IF(AND(D11>=$J$6,D11<=$L$6),1,0)) -> 1 | E10: =IF(AND($J$6=Jazyk!$D$4,$L$6=Jazyk!$D$4),1,IF(AND(E11>=$J$6,E11<=$L$6),1,0)) -> 1 | F10: =IF(AND($J$6=Jazyk!$D$4,$L$6=Jazyk!$D$4),1,IF(AND(F11>=$J$6,F11<=$L$6),1,0)) -> 1 | G10: =IF(AND($J$6=Jazyk!$D$4,$L$6=Jazyk!$D$4),1,IF(AND(G11>=$J$6,G11<=$L$6),1,0)) -> 1 | H10: =IF(AND($J$6=Jazyk!$D$4,$L$6=Jazyk!$D$4),1,IF(AND(H11>=$J$6,H11<=$L$6),1,0)) -> 1 | I10: =IF(AND($J$6=Jazyk!$D$4,$L$6=Jazyk!$D$4),1,IF(AND(I11>=$J$6,I11<=$L$6),1,0)) -> 1 | J10: =IF(AND($J$6=Jazyk!$D$4,$L$6=Jazyk!$D$4),1,IF(AND(J11>=$J$6,J11<=$L$6),1,0)) -> 1 | K10: =IF(AND($J$6=Jazyk!$D$4,$L$6=Jazyk!$D$4),1,IF(AND(K11>=$J$6,K11<=$L$6),1,0)) -> 1 | L10: =IF(AND($J$6=Jazyk!$D$4,$L$6=Jazyk!$D$4),1,IF(AND(L11>=$J$6,L11<=$L$6),1,0)) -> 1
B11: =Jazyk!$G$27 -> Височина [mm] | D11: =E11 -> 500 | E11: 500 | F11: =D11 -> 500 | G11: =H11 -> 600 | H11: 600 | I11: =H11 -> 600 | J11: =K11 -> 700 | K11: 700 | L11: =K11 -> 700
B12: =Jazyk!$H$27 -> Дължина [mm] | D12: =IF(logic!$E$7=0,'Qn V'!D4,'Qn V'!D4) -> K10VM | E12: =IF(logic!$E$7=0,'Qn V'!E4,'Qn V'!E4) -> K11VM | F12: =IF(logic!$E$7=0,'Qn V'!F4,'Qn V'!F4) -> K20VM | G12: =IF(logic!$E$7=0,'Qn V'!G4,'Qn V'!G4) -> K10VM | H12: =IF(logic!$E$7=0,'Qn V'!H4,'Qn V'!H4) -> K11VM | I12: =IF(logic!$E$7=0,'Qn V'!I4,'Qn V'!I4) -> K20VM | J12: =IF(logic!$E$7=0,'Qn V'!J4,'Qn V'!J4) -> K10VM | K12: =IF(logic!$E$7=0,'Qn V'!K4,'Qn V'!K4) -> K11VM | L12: =IF(logic!$E$7=0,'Qn V'!L4,'Qn V'!L4) -> K20VM
A13: =IF(AND($J$5=Jazyk!$D$4,$L$5=Jazyk!$D$4),1,IF(AND(B13>=$J$5,B13<=$L$5),1,0)) -> 1 | B13: 144 | D13: =IF(OR(D$10=0,$A13=0),0,IF('Predek KV'!R9=0,0,IF(logic!$A$89=0,0,ROUND('Predek KV'!D9,0)))) -> 90 | E13: =IF(OR(E$10=0,$A13=0),0,IF('Predek KV'!S9=0,0,IF(logic!$A$89=0,0,ROUND('Predek KV'!E9,0)))) -> 118 | F13: =IF(OR(F$10=0,$A13=0),0,IF('Predek KV'!T9=0,0,IF(logic!$A$89=0,0,ROUND('Predek KV'!F9,0)))) -> 137 | G13: =IF(OR(G$10=0,$A13=0),0,IF('Predek KV'!U9=0,0,IF(logic!$A$89=0,0,ROUND('Predek KV'!G9,0)))) -> 107 | H13: =IF(OR(H$10=0,$A13=0),0,IF('Predek KV'!V9=0,0,IF(logic!$A$89=0,0,ROUND('Predek KV'!H9,0)))) -> 139 | I13: =IF(OR(I$10=0,$A13=0),0,IF('Predek KV'!W9=0,0,IF(logic!$A$89=0,0,ROUND('Predek KV'!I9,0)))) -> 161 | J13: =IF(OR(J$10=0,$A13=0),0,IF('Predek KV'!X9=0,0,IF(logic!$A$89=0,0,ROUND('Predek KV'!J9,0)))) -> 124 | K13: =IF(OR(K$10=0,$A13=0),0,IF('Predek KV'!Y9=0,0,IF(logic!$A$89=0,0,ROUND('Predek KV'!K9,0)))) -> 159 | L13: =IF(OR(L$10=0,$A13=0),0,IF('Predek KV'!Z9=0,0,IF(logic!$A$89=0,0,ROUND('Predek KV'!L9,0)))) -> 185
A14: =IF(AND($J$5=Jazyk!$D$4,$L$5=Jazyk!$D$4),1,IF(AND(B14>=$J$5,B14<=$L$5),1,0)) -> 1 | B14: 218 | D14: =IF(OR(D$10=0,$A14=0),0,IF('Predek KV'!R10=0,0,IF(logic!$A$89=0,0,ROUND('Predek KV'!D10,0)))) -> 136 | E14: =IF(OR(E$10=0,$A14=0),0,IF('Predek KV'!S10=0,0,IF(logic!$A$89=0,0,ROUND('Predek KV'!E10,0)))) -> 179 | F14: =IF(OR(F$10=0,$A14=0),0,IF('Predek KV'!T10=0,0,IF(logic!$A$89=0,0,ROUND('Predek KV'!F10,0)))) -> 207 | G14: =IF(OR(G$10=0,$A14=0),0,IF('Predek KV'!U10=0,0,IF(logic!$A$89=0,0,ROUND('Predek KV'!G10,0)))) -> 162 | H14: =IF(OR(H$10=0,$A14=0),0,IF('Predek KV'!V10=0,0,IF(logic!$A$89=0,0,ROUND('Predek KV'!H10,0)))) -> 210 | I14: =IF(OR(I$10=0,$A14=0),0,IF('Predek KV'!W10=0,0,IF(logic!$A$89=0,0,ROUND('Predek KV'!I10,0)))) -> 244 | J14: =IF(OR(J$10=0,$A14=0),0,IF('Predek KV'!X10=0,0,IF(logic!$A$89=0,0,ROUND('Predek KV'!J10,0)))) -> 187 | K14: =IF(OR(K$10=0,$A14=0),0,IF('Predek KV'!Y10=0,0,IF(logic!$A$89=0,0,ROUND('Predek KV'!K10,0)))) -> 240 | L14: =IF(OR(L$10=0,$A14=0),0,IF('Predek KV'!Z10=0,0,IF(logic!$A$89=0,0,ROUND('Predek KV'!L10,0)))) -> 281
A15: =IF(AND($J$5=Jazyk!$D$4,$L$5=Jazyk!$D$4),1,IF(AND(B15>=$J$5,B15<=$L$5),1,0)) -> 1 | B15: 366 | D15: =IF(OR(D$10=0,$A15=0),0,IF('Predek KV'!R11=0,0,IF(logic!$A$89=0,0,ROUND('Predek KV'!D11,0)))) -> 229 | E15: =IF(OR(E$10=0,$A15=0),0,IF('Predek KV'!S11=0,0,IF(logic!$A$89=0,0,ROUND('Predek KV'!E11,0)))) -> 301 | F15: =IF(OR(F$10=0,$A15=0),0,IF('Predek KV'!T11=0,0,IF(logic!$A$89=0,0,ROUND('Predek KV'!F11,0)))) -> 348 | G15: =IF(OR(G$10=0,$A15=0),0,IF('Predek KV'!U11=0,0,IF(logic!$A$89=0,0,ROUND('Predek KV'!G11,0)))) -> 272 | H15: =IF(OR(H$10=0,$A15=0),0,IF('Predek KV'!V11=0,0,IF(logic!$A$89=0,0,ROUND('Predek KV'!H11,0)))) -> 353 | I15: =IF(OR(I$10=0,$A15=0),0,IF('Predek KV'!W11=0,0,IF(logic!$A$89=0,0,ROUND('Predek KV'!I11,0)))) -> 410 | J15: =IF(OR(J$10=0,$A15=0),0,IF('Predek KV'!X11=0,0,IF(logic!$A$89=0,0,ROUND('Predek KV'!J11,0)))) -> 315 | K15: =IF(OR(K$10=0,$A15=0),0,IF('Predek KV'!Y11=0,0,IF(logic!$A$89=0,0,ROUND('Predek KV'!K11,0)))) -> 403 | L15: =IF(OR(L$10=0,$A15=0),0,IF('Predek KV'!Z11=0,0,IF(logic!$A$89=0,0,ROUND('Predek KV'!L11,0)))) -> 471
A16: =IF(AND($J$5=Jazyk!$D$4,$L$5=Jazyk!$D$4),1,IF(AND(B16>=$J$5,B16<=$L$5),1,0)) -> 1 | B16: 514 | D16: =IF(OR(D$10=0,$A16=0),0,IF('Predek KV'!R12=0,0,IF(logic!$A$89=0,0,ROUND('Predek KV'!D12,0)))) -> 322 | E16: =IF(OR(E$10=0,$A16=0),0,IF('Predek KV'!S12=0,0,IF(logic!$A$89=0,0,ROUND('Predek KV'!E12,0)))) -> 423 | F16: =IF(OR(F$10=0,$A16=0),0,IF('Predek KV'!T12=0,0,IF(logic!$A$89=0,0,ROUND('Predek KV'!F12,0)))) -> 489 | G16: =IF(OR(G$10=0,$A16=0),0,IF('Predek KV'!U12=0,0,IF(logic!$A$89=0,0,ROUND('Predek KV'!G12,0)))) -> 382 | H16: =IF(OR(H$10=0,$A16=0),0,IF('Predek KV'!V12=0,0,IF(logic!$A$89=0,0,ROUND('Predek KV'!H12,0)))) -> 495 | I16: =IF(OR(I$10=0,$A16=0),0,IF('Predek KV'!W12=0,0,IF(logic!$A$89=0,0,ROUND('Predek KV'!I12,0)))) -> 576 | J16: =IF(OR(J$10=0,$A16=0),0,IF('Predek KV'!X12=0,0,IF(logic!$A$89=0,0,ROUND('Predek KV'!J12,0)))) -> 442 | K16: =IF(OR(K$10=0,$A16=0),0,IF('Predek KV'!Y12=0,0,IF(logic!$A$89=0,0,ROUND('Predek KV'!K12,0)))) -> 566 | L16: =IF(OR(L$10=0,$A16=0),0,IF('Predek KV'!Z12=0,0,IF(logic!$A$89=0,0,ROUND('Predek KV'!L12,0)))) -> 662
A17: =IF(AND($J$5=Jazyk!$D$4,$L$5=Jazyk!$D$4),1,IF(AND(B17>=$J$5,B17<=$L$5),1,0)) -> 1 | B17: 588 | D17: =IF(OR(D$10=0,$A17=0),0,IF('Predek KV'!R13=0,0,IF(logic!$A$89=0,0,ROUND('Predek KV'!D13,0)))) -> 368 | E17: =IF(OR(E$10=0,$A17=0),0,IF('Predek KV'!S13=0,0,IF(logic!$A$89=0,0,ROUND('Predek KV'!E13,0)))) -> 483 | F17: =IF(OR(F$10=0,$A17=0),0,IF('Predek KV'!T13=0,0,IF(logic!$A$89=0,0,ROUND('Predek KV'!F13,0)))) -> 559 | G17: =IF(OR(G$10=0,$A17=0),0,IF('Predek KV'!U13=0,0,IF(logic!$A$89=0,0,ROUND('Predek KV'!G13,0)))) -> 437 | H17: =IF(OR(H$10=0,$A17=0),0,IF('Predek KV'!V13=0,0,IF(logic!$A$89=0,0,ROUND('Predek KV'!H13,0)))) -> 567 | I17: =IF(OR(I$10=0,$A17=0),0,IF('Predek KV'!W13=0,0,IF(logic!$A$89=0,0,ROUND('Predek KV'!I13,0)))) -> 659 | J17: =IF(OR(J$10=0,$A17=0),0,IF('Predek KV'!X13=0,0,IF(logic!$A$89=0,0,ROUND('Predek KV'!J13,0)))) -> 506 | K17: =IF(OR(K$10=0,$A17=0),0,IF('Predek KV'!Y13=0,0,IF(logic!$A$89=0,0,ROUND('Predek KV'!K13,0)))) -> 648 | L17: =IF(OR(L$10=0,$A17=0),0,IF('Predek KV'!Z13=0,0,IF(logic!$A$89=0,0,ROUND('Predek KV'!L13,0)))) -> 757
A18: =IF(AND($J$5=Jazyk!$D$4,$L$5=Jazyk!$D$4),1,IF(AND(B18>=$J$5,B18<=$L$5),1,0)) -> 1 | B18: 662 | D18: =IF(OR(D$10=0,$A18=0),0,IF('Predek KV'!R14=0,0,IF(logic!$A$89=0,0,ROUND('Predek KV'!D14,0)))) -> 414 | E18: =IF(OR(E$10=0,$A18=0),0,IF('Predek KV'!S14=0,0,IF(logic!$A$89=0,0,ROUND('Predek KV'!E14,0)))) -> 544 | F18: =IF(OR(F$10=0,$A18=0),0,IF('Predek KV'!T14=0,0,IF(logic!$A$89=0,0,ROUND('Predek KV'!F14,0)))) -> 630 | G18: =IF(OR(G$10=0,$A18=0),0,IF('Predek KV'!U14=0,0,IF(logic!$A$89=0,0,ROUND('Predek KV'!G14,0)))) -> 492 | H18: =IF(OR(H$10=0,$A18=0),0,IF('Predek KV'!V14=0,0,IF(logic!$A$89=0,0,ROUND('Predek KV'!H14,0)))) -> 638 | I18: =IF(OR(I$10=0,$A18=0),0,IF('Predek KV'!W14=0,0,IF(logic!$A$89=0,0,ROUND('Predek KV'!I14,0)))) -> 742 | J18: =IF(OR(J$10=0,$A18=0),0,IF('Predek KV'!X14=0,0,IF(logic!$A$89=0,0,ROUND('Predek KV'!J14,0)))) -> 569 | K18: =IF(OR(K$10=0,$A18=0),0,IF('Predek KV'!Y14=0,0,IF(logic!$A$89=0,0,ROUND('Predek KV'!K14,0)))) -> 730 | L18: =IF(OR(L$10=0,$A18=0),0,IF('Predek KV'!Z14=0,0,IF(logic!$A$89=0,0,ROUND('Predek KV'!L14,0)))) -> 853
A19: =IF(AND($J$5=Jazyk!$D$4,$L$5=Jazyk!$D$4),1,IF(AND(B19>=$J$5,B19<=$L$5),1,0)) -> 1 | B19: 884 | D19: =IF(OR(D$10=0,$A19=0),0,IF('Predek KV'!R15=0,0,IF(logic!$A$89=0,0,ROUND('Predek KV'!D15,0)))) -> 553 | E19: =IF(OR(E$10=0,$A19=0),0,IF('Predek KV'!S15=0,0,IF(logic!$A$89=0,0,ROUND('Predek KV'!E15,0)))) -> 727 | F19: =IF(OR(F$10=0,$A19=0),0,IF('Predek KV'!T15=0,0,IF(logic!$A$89=0,0,ROUND('Predek KV'!F15,0)))) -> 841 | G19: =IF(OR(G$10=0,$A19=0),0,IF('Predek KV'!U15=0,0,IF(logic!$A$89=0,0,ROUND('Predek KV'!G15,0)))) -> 657 | H19: =IF(OR(H$10=0,$A19=0),0,IF('Predek KV'!V15=0,0,IF(logic!$A$89=0,0,ROUND('Predek KV'!H15,0)))) -> 852 | I19: =IF(OR(I$10=0,$A19=0),0,IF('Predek KV'!W15=0,0,IF(logic!$A$89=0,0,ROUND('Predek KV'!I15,0)))) -> 991 | J19: =IF(OR(J$10=0,$A19=0),0,IF('Predek KV'!X15=0,0,IF(logic!$A$89=0,0,ROUND('Predek KV'!J15,0)))) -> 760 | K19: =IF(OR(K$10=0,$A19=0),0,IF('Predek KV'!Y15=0,0,IF(logic!$A$89=0,0,ROUND('Predek KV'!K15,0)))) -> 974 | L19: =IF(OR(L$10=0,$A19=0),0,IF('Predek KV'!Z15=0,0,IF(logic!$A$89=0,0,ROUND('Predek KV'!L15,0)))) -> 1139
A20: =IF(AND($J$5=Jazyk!$D$4,$L$5=Jazyk!$D$4),1,IF(AND(B20>=$J$5,B20<=$L$5),1,0)) -> 1 | B20: 958 | D20: =IF(OR(D$10=0,$A20=0),0,IF('Predek KV'!R16=0,0,IF(logic!$A$89=0,0,ROUND('Predek KV'!D16,0)))) -> 600 | E20: =IF(OR(E$10=0,$A20=0),0,IF('Predek KV'!S16=0,0,IF(logic!$A$89=0,0,ROUND('Predek KV'!E16,0)))) -> 787 | F20: =IF(OR(F$10=0,$A20=0),0,IF('Predek KV'!T16=0,0,IF(logic!$A$89=0,0,ROUND('Predek KV'!F16,0)))) -> 911 | G20: =IF(OR(G$10=0,$A20=0),0,IF('Predek KV'!U16=0,0,IF(logic!$A$89=0,0,ROUND('Predek KV'!G16,0)))) -> 712 | H20: =IF(OR(H$10=0,$A20=0),0,IF('Predek KV'!V16=0,0,IF(logic!$A$89=0,0,ROUND('Predek KV'!H16,0)))) -> 924 | I20: =IF(OR(I$10=0,$A20=0),0,IF('Predek KV'!W16=0,0,IF(logic!$A$89=0,0,ROUND('Predek KV'!I16,0)))) -> 1074 | J20: =IF(OR(J$10=0,$A20=0),0,IF('Predek KV'!X16=0,0,IF(logic!$A$89=0,0,ROUND('Predek KV'!J16,0)))) -> 824 | K20: =IF(OR(K$10=0,$A20=0),0,IF('Predek KV'!Y16=0,0,IF(logic!$A$89=0,0,ROUND('Predek KV'!K16,0)))) -> 1056 | L20: =IF(OR(L$10=0,$A20=0),0,IF('Predek KV'!Z16=0,0,IF(logic!$A$89=0,0,ROUND('Predek KV'!L16,0)))) -> 1234
D22: =IF(AND($J$6=Jazyk!$D$4,$L$6=Jazyk!$D$4),1,IF(AND(D23>=$J$6,D23<=$L$6),1,0)) -> 1 | E22: =IF(AND($J$6=Jazyk!$D$4,$L$6=Jazyk!$D$4),1,IF(AND(E23>=$J$6,E23<=$L$6),1,0)) -> 1 | F22: =IF(AND($J$6=Jazyk!$D$4,$L$6=Jazyk!$D$4),1,IF(AND(F23>=$J$6,F23<=$L$6),1,0)) -> 1 | G22: =IF(AND($J$6=Jazyk!$D$4,$L$6=Jazyk!$D$4),1,IF(AND(G23>=$J$6,G23<=$L$6),1,0)) -> 1 | H22: =IF(AND($J$6=Jazyk!$D$4,$L$6=Jazyk!$D$4),1,IF(AND(H23>=$J$6,H23<=$L$6),1,0)) -> 1 | I22: =IF(AND($J$6=Jazyk!$D$4,$L$6=Jazyk!$D$4),1,IF(AND(I23>=$J$6,I23<=$L$6),1,0)) -> 1 | J22: =IF(AND($J$6=Jazyk!$D$4,$L$6=Jazyk!$D$4),1,IF(AND(J23>=$J$6,J23<=$L$6),1,0)) -> 1 | K22: =IF(AND($J$6=Jazyk!$D$4,$L$6=Jazyk!$D$4),1,IF(AND(K23>=$J$6,K23<=$L$6),1,0)) -> 1 | L22: =IF(AND($J$6=Jazyk!$D$4,$L$6=Jazyk!$D$4),1,IF(AND(L23>=$J$6,L23<=$L$6),1,0)) -> 1
B23: =Jazyk!$G$27 -> Височина [mm] | D23: =E23 -> 800 | E23: 800 | F23: =E23 -> 800 | G23: =H23 -> 900 | H23: 900 | I23: =H23 -> 900 | J23: =K23 -> 1000 | K23: 1000 | L23: =K23 -> 1000
B24: =Jazyk!$H$27 -> Дължина [mm] | D24: =D12 -> K10VM | E24: =E12 -> K11VM | F24: K20VM | G24: K10VM | H24: K11VM | I24: K20VM | J24: K10VM | K24: K11VM | L24: K20VM
A25: =IF(AND($J$5=Jazyk!$D$4,$L$5=Jazyk!$D$4),1,IF(AND(B25>=$J$5,B25<=$L$5),1,0)) -> 1 | B25: 144 | D25: =IF(OR(D$22=0,$A25=0),0,IF('Predek KV'!R21=0,0,IF(logic!$A$89=0,0,ROUND('Predek KV'!D21,0)))) -> 141 | E25: =IF(OR(E$22=0,$A25=0),0,IF('Predek KV'!S21=0,0,IF(logic!$A$89=0,0,ROUND('Predek KV'!E21,0)))) -> 178 | F25: =IF(OR(F$22=0,$A25=0),0,IF('Predek KV'!T21=0,0,IF(logic!$A$89=0,0,ROUND('Predek KV'!F21,0)))) -> 209 | G25: =IF(OR(G$22=0,$A25=0),0,IF('Predek KV'!U21=0,0,IF(logic!$A$89=0,0,ROUND('Predek KV'!G21,0)))) -> 157 | H25: =IF(OR(H$22=0,$A25=0),0,IF('Predek KV'!V21=0,0,IF(logic!$A$89=0,0,ROUND('Predek KV'!H21,0)))) -> 197 | I25: =IF(OR(I$22=0,$A25=0),0,IF('Predek KV'!W21=0,0,IF(logic!$A$89=0,0,ROUND('Predek KV'!I21,0)))) -> 233 | J25: =IF(OR(J$22=0,$A25=0),0,IF('Predek KV'!X21=0,0,IF(logic!$A$89=0,0,ROUND('Predek KV'!J21,0)))) -> 174 | K25: =IF(OR(K$22=0,$A25=0),0,IF('Predek KV'!Y21=0,0,IF(logic!$A$89=0,0,ROUND('Predek KV'!K21,0)))) -> 216 | L25: =IF(OR(L$22=0,$A25=0),0,IF('Predek KV'!Z21=0,0,IF(logic!$A$89=0,0,ROUND('Predek KV'!L21,0)))) -> 256
A26: =IF(AND($J$5=Jazyk!$D$4,$L$5=Jazyk!$D$4),1,IF(AND(B26>=$J$5,B26<=$L$5),1,0)) -> 1 | B26: 218 | D26: =IF(OR(D$22=0,$A26=0),0,IF('Predek KV'!R22=0,0,IF(logic!$A$89=0,0,ROUND('Predek KV'!D22,0)))) -> 213 | E26: =IF(OR(E$22=0,$A26=0),0,IF('Predek KV'!S22=0,0,IF(logic!$A$89=0,0,ROUND('Predek KV'!E22,0)))) -> 270 | F26: =IF(OR(F$22=0,$A26=0),0,IF('Predek KV'!T22=0,0,IF(logic!$A$89=0,0,ROUND('Predek KV'!F22,0)))) -> 317 | G26: =IF(OR(G$22=0,$A26=0),0,IF('Predek KV'!U22=0,0,IF(logic!$A$89=0,0,ROUND('Predek KV'!G22,0)))) -> 238 | H26: =IF(OR(H$22=0,$A26=0),0,IF('Predek KV'!V22=0,0,IF(logic!$A$89=0,0,ROUND('Predek KV'!H22,0)))) -> 298 | I26: =IF(OR(I$22=0,$A26=0),0,IF('Predek KV'!W22=0,0,IF(logic!$A$89=0,0,ROUND('Predek KV'!I22,0)))) -> 352 | J26: =IF(OR(J$22=0,$A26=0),0,IF('Predek KV'!X22=0,0,IF(logic!$A$89=0,0,ROUND('Predek KV'!J22,0)))) -> 263 | K26: =IF(OR(K$22=0,$A26=0),0,IF('Predek KV'!Y22=0,0,IF(logic!$A$89=0,0,ROUND('Predek KV'!K22,0)))) -> 327 | L26: =IF(OR(L$22=0,$A26=0),0,IF('Predek KV'!Z22=0,0,IF(logic!$A$89=0,0,ROUND('Predek KV'!L22,0)))) -> 387
A27: =IF(AND($J$5=Jazyk!$D$4,$L$5=Jazyk!$D$4),1,IF(AND(B27>=$J$5,B27<=$L$5),1,0)) -> 1 | B27: 366 | D27: =IF(OR(D$22=0,$A27=0),0,IF('Predek KV'!R23=0,0,IF(logic!$A$89=0,0,ROUND('Predek KV'!D23,0)))) -> 358 | E27: =IF(OR(E$22=0,$A27=0),0,IF('Predek KV'!S23=0,0,IF(logic!$A$89=0,0,ROUND('Predek KV'!E23,0)))) -> 453 | F27: =IF(OR(F$22=0,$A27=0),0,IF('Predek KV'!T23=0,0,IF(logic!$A$89=0,0,ROUND('Predek KV'!F23,0)))) -> 532 | G27: =IF(OR(G$22=0,$A27=0),0,IF('Predek KV'!U23=0,0,IF(logic!$A$89=0,0,ROUND('Predek KV'!G23,0)))) -> 400 | H27: =IF(OR(H$22=0,$A27=0),0,IF('Predek KV'!V23=0,0,IF(logic!$A$89=0,0,ROUND('Predek KV'!H23,0)))) -> 501 | I27: =IF(OR(I$22=0,$A27=0),0,IF('Predek KV'!W23=0,0,IF(logic!$A$89=0,0,ROUND('Predek KV'!I23,0)))) -> 591 | J27: =IF(OR(J$22=0,$A27=0),0,IF('Predek KV'!X23=0,0,IF(logic!$A$89=0,0,ROUND('Predek KV'!J23,0)))) -> 442 | K27: =IF(OR(K$22=0,$A27=0),0,IF('Predek KV'!Y23=0,0,IF(logic!$A$89=0,0,ROUND('Predek KV'!K23,0)))) -> 548 | L27: =IF(OR(L$22=0,$A27=0),0,IF('Predek KV'!Z23=0,0,IF(logic!$A$89=0,0,ROUND('Predek KV'!L23,0)))) -> 650
A28: =IF(AND($J$5=Jazyk!$D$4,$L$5=Jazyk!$D$4),1,IF(AND(B28>=$J$5,B28<=$L$5),1,0)) -> 1 | B28: 514 | D28: =IF(OR(D$22=0,$A28=0),0,IF('Predek KV'!R24=0,0,IF(logic!$A$89=0,0,ROUND('Predek KV'!D24,0)))) -> 502 | E28: =IF(OR(E$22=0,$A28=0),0,IF('Predek KV'!S24=0,0,IF(logic!$A$89=0,0,ROUND('Predek KV'!E24,0)))) -> 636 | F28: =IF(OR(F$22=0,$A28=0),0,IF('Predek KV'!T24=0,0,IF(logic!$A$89=0,0,ROUND('Predek KV'!F24,0)))) -> 747 | G28: =IF(OR(G$22=0,$A28=0),0,IF('Predek KV'!U24=0,0,IF(logic!$A$89=0,0,ROUND('Predek KV'!G24,0)))) -> 562 | H28: =IF(OR(H$22=0,$A28=0),0,IF('Predek KV'!V24=0,0,IF(logic!$A$89=0,0,ROUND('Predek KV'!H24,0)))) -> 704 | I28: =IF(OR(I$22=0,$A28=0),0,IF('Predek KV'!W24=0,0,IF(logic!$A$89=0,0,ROUND('Predek KV'!I24,0)))) -> 831 | J28: =IF(OR(J$22=0,$A28=0),0,IF('Predek KV'!X24=0,0,IF(logic!$A$89=0,0,ROUND('Predek KV'!J24,0)))) -> 621 | K28: =IF(OR(K$22=0,$A28=0),0,IF('Predek KV'!Y24=0,0,IF(logic!$A$89=0,0,ROUND('Predek KV'!K24,0)))) -> 770 | L28: =IF(OR(L$22=0,$A28=0),0,IF('Predek KV'!Z24=0,0,IF(logic!$A$89=0,0,ROUND('Predek KV'!L24,0)))) -> 913
A29: =IF(AND($J$5=Jazyk!$D$4,$L$5=Jazyk!$D$4),1,IF(AND(B29>=$J$5,B29<=$L$5),1,0)) -> 1 | B29: 588 | D29: =IF(OR(D$22=0,$A29=0),0,IF('Predek KV'!R25=0,0,IF(logic!$A$89=0,0,ROUND('Predek KV'!D25,0)))) -> 574 | E29: =IF(OR(E$22=0,$A29=0),0,IF('Predek KV'!S25=0,0,IF(logic!$A$89=0,0,ROUND('Predek KV'!E25,0)))) -> 727 | F29: =IF(OR(F$22=0,$A29=0),0,IF('Predek KV'!T25=0,0,IF(logic!$A$89=0,0,ROUND('Predek KV'!F25,0)))) -> 854 | G29: =IF(OR(G$22=0,$A29=0),0,IF('Predek KV'!U25=0,0,IF(logic!$A$89=0,0,ROUND('Predek KV'!G25,0)))) -> 643 | H29: =IF(OR(H$22=0,$A29=0),0,IF('Predek KV'!V25=0,0,IF(logic!$A$89=0,0,ROUND('Predek KV'!H25,0)))) -> 805 | I29: =IF(OR(I$22=0,$A29=0),0,IF('Predek KV'!W25=0,0,IF(logic!$A$89=0,0,ROUND('Predek KV'!I25,0)))) -> 950 | J29: =IF(OR(J$22=0,$A29=0),0,IF('Predek KV'!X25=0,0,IF(logic!$A$89=0,0,ROUND('Predek KV'!J25,0)))) -> 710 | K29: =IF(OR(K$22=0,$A29=0),0,IF('Predek KV'!Y25=0,0,IF(logic!$A$89=0,0,ROUND('Predek KV'!K25,0)))) -> 881 | L29: =IF(OR(L$22=0,$A29=0),0,IF('Predek KV'!Z25=0,0,IF(logic!$A$89=0,0,ROUND('Predek KV'!L25,0)))) -> 1045
A30: =IF(AND($J$5=Jazyk!$D$4,$L$5=Jazyk!$D$4),1,IF(AND(B30>=$J$5,B30<=$L$5),1,0)) -> 1 | B30: 662 | D30: =IF(OR(D$22=0,$A30=0),0,IF('Predek KV'!R26=0,0,IF(logic!$A$89=0,0,ROUND('Predek KV'!D26,0)))) -> 647 | E30: =IF(OR(E$22=0,$A30=0),0,IF('Predek KV'!S26=0,0,IF(logic!$A$89=0,0,ROUND('Predek KV'!E26,0)))) -> 819 | F30: =IF(OR(F$22=0,$A30=0),0,IF('Predek KV'!T26=0,0,IF(logic!$A$89=0,0,ROUND('Predek KV'!F26,0)))) -> 962 | G30: =IF(OR(G$22=0,$A30=0),0,IF('Predek KV'!U26=0,0,IF(logic!$A$89=0,0,ROUND('Predek KV'!G26,0)))) -> 724 | H30: =IF(OR(H$22=0,$A30=0),0,IF('Predek KV'!V26=0,0,IF(logic!$A$89=0,0,ROUND('Predek KV'!H26,0)))) -> 906 | I30: =IF(OR(I$22=0,$A30=0),0,IF('Predek KV'!W26=0,0,IF(logic!$A$89=0,0,ROUND('Predek KV'!I26,0)))) -> 1070 | J30: =IF(OR(J$22=0,$A30=0),0,IF('Predek KV'!X26=0,0,IF(logic!$A$89=0,0,ROUND('Predek KV'!J26,0)))) -> 800 | K30: =IF(OR(K$22=0,$A30=0),0,IF('Predek KV'!Y26=0,0,IF(logic!$A$89=0,0,ROUND('Predek KV'!K26,0)))) -> 992 | L30: =IF(OR(L$22=0,$A30=0),0,IF('Predek KV'!Z26=0,0,IF(logic!$A$89=0,0,ROUND('Predek KV'!L26,0)))) -> 1176
A31: =IF(AND($J$5=Jazyk!$D$4,$L$5=Jazyk!$D$4),1,IF(AND(B31>=$J$5,B31<=$L$5),1,0)) -> 1 | B31: 884 | D31: =IF(OR(D$22=0,$A31=0),0,IF('Predek KV'!R27=0,0,IF(logic!$A$89=0,0,ROUND('Predek KV'!D27,0)))) -> 864 | E31: =IF(OR(E$22=0,$A31=0),0,IF('Predek KV'!S27=0,0,IF(logic!$A$89=0,0,ROUND('Predek KV'!E27,0)))) -> 1094 | F31: =IF(OR(F$22=0,$A31=0),0,IF('Predek KV'!T27=0,0,IF(logic!$A$89=0,0,ROUND('Predek KV'!F27,0)))) -> 1284 | G31: =IF(OR(G$22=0,$A31=0),0,IF('Predek KV'!U27=0,0,IF(logic!$A$89=0,0,ROUND('Predek KV'!G27,0)))) -> 966 | H31: =IF(OR(H$22=0,$A31=0),0,IF('Predek KV'!V27=0,0,IF(logic!$A$89=0,0,ROUND('Predek KV'!H27,0)))) -> 1210 | I31: =IF(OR(I$22=0,$A31=0),0,IF('Predek KV'!W27=0,0,IF(logic!$A$89=0,0,ROUND('Predek KV'!I27,0)))) -> 1429 | J31: =IF(OR(J$22=0,$A31=0),0,IF('Predek KV'!X27=0,0,IF(logic!$A$89=0,0,ROUND('Predek KV'!J27,0)))) -> 1068 | K31: =IF(OR(K$22=0,$A31=0),0,IF('Predek KV'!Y27=0,0,IF(logic!$A$89=0,0,ROUND('Predek KV'!K27,0)))) -> 1324 | L31: =IF(OR(L$22=0,$A31=0),0,IF('Predek KV'!Z27=0,0,IF(logic!$A$89=0,0,ROUND('Predek KV'!L27,0)))) -> 1571
A32: =IF(AND($J$5=Jazyk!$D$4,$L$5=Jazyk!$D$4),1,IF(AND(B32>=$J$5,B32<=$L$5),1,0)) -> 1 | B32: 958 | D32: =IF(OR(D$22=0,$A32=0),0,IF('Predek KV'!R28=0,0,IF(logic!$A$89=0,0,ROUND('Predek KV'!D28,0)))) -> 936 | E32: =IF(OR(E$22=0,$A32=0),0,IF('Predek KV'!S28=0,0,IF(logic!$A$89=0,0,ROUND('Predek KV'!E28,0)))) -> 1185 | F32: =IF(OR(F$22=0,$A32=0),0,IF('Predek KV'!T28=0,0,IF(logic!$A$89=0,0,ROUND('Predek KV'!F28,0)))) -> 1392 | G32: =IF(OR(G$22=0,$A32=0),0,IF('Predek KV'!U28=0,0,IF(logic!$A$89=0,0,ROUND('Predek KV'!G28,0)))) -> 1047 | H32: =IF(OR(H$22=0,$A32=0),0,IF('Predek KV'!V28=0,0,IF(logic!$A$89=0,0,ROUND('Predek KV'!H28,0)))) -> 1312 | I32: =IF(OR(I$22=0,$A32=0),0,IF('Predek KV'!W28=0,0,IF(logic!$A$89=0,0,ROUND('Predek KV'!I28,0)))) -> 1548 | J32: =IF(OR(J$22=0,$A32=0),0,IF('Predek KV'!X28=0,0,IF(logic!$A$89=0,0,ROUND('Predek KV'!J28,0)))) -> 1157 | K32: =IF(OR(K$22=0,$A32=0),0,IF('Predek KV'!Y28=0,0,IF(logic!$A$89=0,0,ROUND('Predek KV'!K28,0)))) -> 0 | L32: =IF(OR(L$22=0,$A32=0),0,IF('Predek KV'!Z28=0,0,IF(logic!$A$89=0,0,ROUND('Predek KV'!L28,0)))) -> 1702
D34: =IF(AND($J$6=Jazyk!$D$4,$L$6=Jazyk!$D$4),1,IF(AND(D35>=$J$6,D35<=$L$6),1,0)) -> 1 | E34: =IF(AND($J$6=Jazyk!$D$4,$L$6=Jazyk!$D$4),1,IF(AND(E35>=$J$6,E35<=$L$6),1,0)) -> 1 | F34: =IF(AND($J$6=Jazyk!$D$4,$L$6=Jazyk!$D$4),1,IF(AND(F35>=$J$6,F35<=$L$6),1,0)) -> 1 | G34: =IF(AND($J$6=Jazyk!$D$4,$L$6=Jazyk!$D$4),1,IF(AND(G35>=$J$6,G35<=$L$6),1,0)) -> 1 | H34: =IF(AND($J$6=Jazyk!$D$4,$L$6=Jazyk!$D$4),1,IF(AND(H35>=$J$6,H35<=$L$6),1,0)) -> 1 | I34: =IF(AND($J$6=Jazyk!$D$4,$L$6=Jazyk!$D$4),1,IF(AND(I35>=$J$6,I35<=$L$6),1,0)) -> 1 | J34: =IF(AND($J$6=Jazyk!$D$4,$L$6=Jazyk!$D$4),1,IF(AND(J35>=$J$6,J35<=$L$6),1,0)) -> 1 | K34: =IF(AND($J$6=Jazyk!$D$4,$L$6=Jazyk!$D$4),1,IF(AND(K35>=$J$6,K35<=$L$6),1,0)) -> 1 | L34: =IF(AND($J$6=Jazyk!$D$4,$L$6=Jazyk!$D$4),1,IF(AND(L35>=$J$6,L35<=$L$6),1,0)) -> 1
B35: =Jazyk!$G$27 -> Височина [mm] | D35: =E35 -> 1100 | E35: 1100 | F35: =E35 -> 1100 | G35: =H35 -> 1200 | H35: 1200 | I35: =H35 -> 1200 | J35: =K35 -> 1400 | K35: 1400 | L35: =K35 -> 1400
B36: =Jazyk!$H$27 -> Дължина [mm] | D36: =D24 -> K10VM | E36: =E24 -> K11VM | F36: K20VM | G36: K10VM | H36: K11VM | I36: K20VM | J36: K10VM | K36: K11VM | L36: K20VM
A37: =IF(AND($J$5=Jazyk!$D$4,$L$5=Jazyk!$D$4),1,IF(AND(B37>=$J$5,B37<=$L$5),1,0)) -> 1 | B37: 144 | D37: =IF(OR(D$34=0,$A37=0),0,IF('Predek KV'!R33=0,0,IF(logic!$A$89=0,0,ROUND('Predek KV'!D33,0)))) -> 191 | E37: =IF(OR(E$34=0,$A37=0),0,IF('Predek KV'!S33=0,0,IF(logic!$A$89=0,0,ROUND('Predek KV'!E33,0)))) -> 234 | F37: =IF(OR(F$34=0,$A37=0),0,IF('Predek KV'!T33=0,0,IF(logic!$A$89=0,0,ROUND('Predek KV'!F33,0)))) -> 279 | G37: =IF(OR(G$34=0,$A37=0),0,IF('Predek KV'!U33=0,0,IF(logic!$A$89=0,0,ROUND('Predek KV'!G33,0)))) -> 207 | H37: =IF(OR(H$34=0,$A37=0),0,IF('Predek KV'!V33=0,0,IF(logic!$A$89=0,0,ROUND('Predek KV'!H33,0)))) -> 252 | I37: =IF(OR(I$34=0,$A37=0),0,IF('Predek KV'!W33=0,0,IF(logic!$A$89=0,0,ROUND('Predek KV'!I33,0)))) -> 302 | J37: =IF(OR(J$34=0,$A37=0),0,IF('Predek KV'!X33=0,0,IF(logic!$A$89=0,0,ROUND('Predek KV'!J33,0)))) -> 240 | K37: =IF(OR(K$34=0,$A37=0),0,IF('Predek KV'!Y33=0,0,IF(logic!$A$89=0,0,ROUND('Predek KV'!K33,0)))) -> 287 | L37: =IF(OR(L$34=0,$A37=0),0,IF('Predek KV'!Z33=0,0,IF(logic!$A$89=0,0,ROUND('Predek KV'!L33,0)))) -> 347
A38: =IF(AND($J$5=Jazyk!$D$4,$L$5=Jazyk!$D$4),1,IF(AND(B38>=$J$5,B38<=$L$5),1,0)) -> 1 | B38: 218 | D38: =IF(OR(D$34=0,$A38=0),0,IF('Predek KV'!R34=0,0,IF(logic!$A$89=0,0,ROUND('Predek KV'!D34,0)))) -> 289 | E38: =IF(OR(E$34=0,$A38=0),0,IF('Predek KV'!S34=0,0,IF(logic!$A$89=0,0,ROUND('Predek KV'!E34,0)))) -> 354 | F38: =IF(OR(F$34=0,$A38=0),0,IF('Predek KV'!T34=0,0,IF(logic!$A$89=0,0,ROUND('Predek KV'!F34,0)))) -> 422 | G38: =IF(OR(G$34=0,$A38=0),0,IF('Predek KV'!U34=0,0,IF(logic!$A$89=0,0,ROUND('Predek KV'!G34,0)))) -> 314 | H38: =IF(OR(H$34=0,$A38=0),0,IF('Predek KV'!V34=0,0,IF(logic!$A$89=0,0,ROUND('Predek KV'!H34,0)))) -> 382 | I38: =IF(OR(I$34=0,$A38=0),0,IF('Predek KV'!W34=0,0,IF(logic!$A$89=0,0,ROUND('Predek KV'!I34,0)))) -> 457 | J38: =IF(OR(J$34=0,$A38=0),0,IF('Predek KV'!X34=0,0,IF(logic!$A$89=0,0,ROUND('Predek KV'!J34,0)))) -> 364 | K38: =IF(OR(K$34=0,$A38=0),0,IF('Predek KV'!Y34=0,0,IF(logic!$A$89=0,0,ROUND('Predek KV'!K34,0)))) -> 435 | L38: =IF(OR(L$34=0,$A38=0),0,IF('Predek KV'!Z34=0,0,IF(logic!$A$89=0,0,ROUND('Predek KV'!L34,0)))) -> 525
A39: =IF(AND($J$5=Jazyk!$D$4,$L$5=Jazyk!$D$4),1,IF(AND(B39>=$J$5,B39<=$L$5),1,0)) -> 1 | B39: 366 | D39: =IF(OR(D$34=0,$A39=0),0,IF('Predek KV'!R35=0,0,IF(logic!$A$89=0,0,ROUND('Predek KV'!D35,0)))) -> 485 | E39: =IF(OR(E$34=0,$A39=0),0,IF('Predek KV'!S35=0,0,IF(logic!$A$89=0,0,ROUND('Predek KV'!E35,0)))) -> 595 | F39: =IF(OR(F$34=0,$A39=0),0,IF('Predek KV'!T35=0,0,IF(logic!$A$89=0,0,ROUND('Predek KV'!F35,0)))) -> 709 | G39: =IF(OR(G$34=0,$A39=0),0,IF('Predek KV'!U35=0,0,IF(logic!$A$89=0,0,ROUND('Predek KV'!G35,0)))) -> 527 | H39: =IF(OR(H$34=0,$A39=0),0,IF('Predek KV'!V35=0,0,IF(logic!$A$89=0,0,ROUND('Predek KV'!H35,0)))) -> 641 | I39: =IF(OR(I$34=0,$A39=0),0,IF('Predek KV'!W35=0,0,IF(logic!$A$89=0,0,ROUND('Predek KV'!I35,0)))) -> 767 | J39: =IF(OR(J$34=0,$A39=0),0,IF('Predek KV'!X35=0,0,IF(logic!$A$89=0,0,ROUND('Predek KV'!J35,0)))) -> 611 | K39: =IF(OR(K$34=0,$A39=0),0,IF('Predek KV'!Y35=0,0,IF(logic!$A$89=0,0,ROUND('Predek KV'!K35,0)))) -> 731 | L39: =IF(OR(L$34=0,$A39=0),0,IF('Predek KV'!Z35=0,0,IF(logic!$A$89=0,0,ROUND('Predek KV'!L35,0)))) -> 881
A40: =IF(AND($J$5=Jazyk!$D$4,$L$5=Jazyk!$D$4),1,IF(AND(B40>=$J$5,B40<=$L$5),1,0)) -> 1 | B40: 514 | D40: =IF(OR(D$34=0,$A40=0),0,IF('Predek KV'!R36=0,0,IF(logic!$A$89=0,0,ROUND('Predek KV'!D36,0)))) -> 681 | E40: =IF(OR(E$34=0,$A40=0),0,IF('Predek KV'!S36=0,0,IF(logic!$A$89=0,0,ROUND('Predek KV'!E36,0)))) -> 836 | F40: =IF(OR(F$34=0,$A40=0),0,IF('Predek KV'!T36=0,0,IF(logic!$A$89=0,0,ROUND('Predek KV'!F36,0)))) -> 996 | G40: =IF(OR(G$34=0,$A40=0),0,IF('Predek KV'!U36=0,0,IF(logic!$A$89=0,0,ROUND('Predek KV'!G36,0)))) -> 740 | H40: =IF(OR(H$34=0,$A40=0),0,IF('Predek KV'!V36=0,0,IF(logic!$A$89=0,0,ROUND('Predek KV'!H36,0)))) -> 900 | I40: =IF(OR(I$34=0,$A40=0),0,IF('Predek KV'!W36=0,0,IF(logic!$A$89=0,0,ROUND('Predek KV'!I36,0)))) -> 1077 | J40: =IF(OR(J$34=0,$A40=0),0,IF('Predek KV'!X36=0,0,IF(logic!$A$89=0,0,ROUND('Predek KV'!J36,0)))) -> 858 | K40: =IF(OR(K$34=0,$A40=0),0,IF('Predek KV'!Y36=0,0,IF(logic!$A$89=0,0,ROUND('Predek KV'!K36,0)))) -> 1026 | L40: =IF(OR(L$34=0,$A40=0),0,IF('Predek KV'!Z36=0,0,IF(logic!$A$89=0,0,ROUND('Predek KV'!L36,0)))) -> 1237
A41: =IF(AND($J$5=Jazyk!$D$4,$L$5=Jazyk!$D$4),1,IF(AND(B41>=$J$5,B41<=$L$5),1,0)) -> 1 | B41: 588 | D41: =IF(OR(D$34=0,$A41=0),0,IF('Predek KV'!R37=0,0,IF(logic!$A$89=0,0,ROUND('Predek KV'!D37,0)))) -> 779 | E41: =IF(OR(E$34=0,$A41=0),0,IF('Predek KV'!S37=0,0,IF(logic!$A$89=0,0,ROUND('Predek KV'!E37,0)))) -> 956 | F41: =IF(OR(F$34=0,$A41=0),0,IF('Predek KV'!T37=0,0,IF(logic!$A$89=0,0,ROUND('Predek KV'!F37,0)))) -> 1139 | G41: =IF(OR(G$34=0,$A41=0),0,IF('Predek KV'!U37=0,0,IF(logic!$A$89=0,0,ROUND('Predek KV'!G37,0)))) -> 846 | H41: =IF(OR(H$34=0,$A41=0),0,IF('Predek KV'!V37=0,0,IF(logic!$A$89=0,0,ROUND('Predek KV'!H37,0)))) -> 1030 | I41: =IF(OR(I$34=0,$A41=0),0,IF('Predek KV'!W37=0,0,IF(logic!$A$89=0,0,ROUND('Predek KV'!I37,0)))) -> 1232 | J41: =IF(OR(J$34=0,$A41=0),0,IF('Predek KV'!X37=0,0,IF(logic!$A$89=0,0,ROUND('Predek KV'!J37,0)))) -> 982 | K41: =IF(OR(K$34=0,$A41=0),0,IF('Predek KV'!Y37=0,0,IF(logic!$A$89=0,0,ROUND('Predek KV'!K37,0)))) -> 1174 | L41: =IF(OR(L$34=0,$A41=0),0,IF('Predek KV'!Z37=0,0,IF(logic!$A$89=0,0,ROUND('Predek KV'!L37,0)))) -> 1415
A42: =IF(AND($J$5=Jazyk!$D$4,$L$5=Jazyk!$D$4),1,IF(AND(B42>=$J$5,B42<=$L$5),1,0)) -> 1 | B42: 662 | D42: =IF(OR(D$34=0,$A42=0),0,IF('Predek KV'!R38=0,0,IF(logic!$A$89=0,0,ROUND('Predek KV'!D38,0)))) -> 876 | E42: =IF(OR(E$34=0,$A42=0),0,IF('Predek KV'!S38=0,0,IF(logic!$A$89=0,0,ROUND('Predek KV'!E38,0)))) -> 1076 | F42: =IF(OR(F$34=0,$A42=0),0,IF('Predek KV'!T38=0,0,IF(logic!$A$89=0,0,ROUND('Predek KV'!F38,0)))) -> 1282 | G42: =IF(OR(G$34=0,$A42=0),0,IF('Predek KV'!U38=0,0,IF(logic!$A$89=0,0,ROUND('Predek KV'!G38,0)))) -> 953 | H42: =IF(OR(H$34=0,$A42=0),0,IF('Predek KV'!V38=0,0,IF(logic!$A$89=0,0,ROUND('Predek KV'!H38,0)))) -> 1159 | I42: =IF(OR(I$34=0,$A42=0),0,IF('Predek KV'!W38=0,0,IF(logic!$A$89=0,0,ROUND('Predek KV'!I38,0)))) -> 1387 | J42: =IF(OR(J$34=0,$A42=0),0,IF('Predek KV'!X38=0,0,IF(logic!$A$89=0,0,ROUND('Predek KV'!J38,0)))) -> 1106 | K42: =IF(OR(K$34=0,$A42=0),0,IF('Predek KV'!Y38=0,0,IF(logic!$A$89=0,0,ROUND('Predek KV'!K38,0)))) -> 1321 | L42: =IF(OR(L$34=0,$A42=0),0,IF('Predek KV'!Z38=0,0,IF(logic!$A$89=0,0,ROUND('Predek KV'!L38,0)))) -> 1593
A43: =IF(AND($J$5=Jazyk!$D$4,$L$5=Jazyk!$D$4),1,IF(AND(B43>=$J$5,B43<=$L$5),1,0)) -> 1 | B43: 884 | D43: =IF(OR(D$34=0,$A43=0),0,IF('Predek KV'!R39=0,0,IF(logic!$A$89=0,0,ROUND('Predek KV'!D39,0)))) -> 1170 | E43: =IF(OR(E$34=0,$A43=0),0,IF('Predek KV'!S39=0,0,IF(logic!$A$89=0,0,ROUND('Predek KV'!E39,0)))) -> 1437 | F43: =IF(OR(F$34=0,$A43=0),0,IF('Predek KV'!T39=0,0,IF(logic!$A$89=0,0,ROUND('Predek KV'!F39,0)))) -> 1712 | G43: =IF(OR(G$34=0,$A43=0),0,IF('Predek KV'!U39=0,0,IF(logic!$A$89=0,0,ROUND('Predek KV'!G39,0)))) -> 1272 | H43: =IF(OR(H$34=0,$A43=0),0,IF('Predek KV'!V39=0,0,IF(logic!$A$89=0,0,ROUND('Predek KV'!H39,0)))) -> 1548 | I43: =IF(OR(I$34=0,$A43=0),0,IF('Predek KV'!W39=0,0,IF(logic!$A$89=0,0,ROUND('Predek KV'!I39,0)))) -> 1852 | J43: =IF(OR(J$34=0,$A43=0),0,IF('Predek KV'!X39=0,0,IF(logic!$A$89=0,0,ROUND('Predek KV'!J39,0)))) -> 1476 | K43: =IF(OR(K$34=0,$A43=0),0,IF('Predek KV'!Y39=0,0,IF(logic!$A$89=0,0,ROUND('Predek KV'!K39,0)))) -> 1764 | L43: =IF(OR(L$34=0,$A43=0),0,IF('Predek KV'!Z39=0,0,IF(logic!$A$89=0,0,ROUND('Predek KV'!L39,0)))) -> 2128
A44: =IF(AND($J$5=Jazyk!$D$4,$L$5=Jazyk!$D$4),1,IF(AND(B44>=$J$5,B44<=$L$5),1,0)) -> 1 | B44: 958 | D44: =IF(OR(D$34=0,$A44=0),0,IF('Predek KV'!R40=0,0,IF(logic!$A$89=0,0,ROUND('Predek KV'!D40,0)))) -> 1268 | E44: =IF(OR(E$34=0,$A44=0),0,IF('Predek KV'!S40=0,0,IF(logic!$A$89=0,0,ROUND('Predek KV'!E40,0)))) -> 0 | F44: =IF(OR(F$34=0,$A44=0),0,IF('Predek KV'!T40=0,0,IF(logic!$A$89=0,0,ROUND('Predek KV'!F40,0)))) -> 1856 | G44: =IF(OR(G$34=0,$A44=0),0,IF('Predek KV'!U40=0,0,IF(logic!$A$89=0,0,ROUND('Predek KV'!G40,0)))) -> 1379 | H44: =IF(OR(H$34=0,$A44=0),0,IF('Predek KV'!V40=0,0,IF(logic!$A$89=0,0,ROUND('Predek KV'!H40,0)))) -> 0 | I44: =IF(OR(I$34=0,$A44=0),0,IF('Predek KV'!W40=0,0,IF(logic!$A$89=0,0,ROUND('Predek KV'!I40,0)))) -> 2007 | J44: =IF(OR(J$34=0,$A44=0),0,IF('Predek KV'!X40=0,0,IF(logic!$A$89=0,0,ROUND('Predek KV'!J40,0)))) -> 1600 | K44: =IF(OR(K$34=0,$A44=0),0,IF('Predek KV'!Y40=0,0,IF(logic!$A$89=0,0,ROUND('Predek KV'!K40,0)))) -> 0 | L44: =IF(OR(L$34=0,$A44=0),0,IF('Predek KV'!Z40=0,0,IF(logic!$A$89=0,0,ROUND('Predek KV'!L40,0)))) -> 2306
D46: =IF(AND($J$6=Jazyk!$D$4,$L$6=Jazyk!$D$4),1,IF(AND(D47>=$J$6,D47<=$L$6),1,0)) -> 1 | E46: =IF(AND($J$6=Jazyk!$D$4,$L$6=Jazyk!$D$4),1,IF(AND(E47>=$J$6,E47<=$L$6),1,0)) -> 1 | F46: =IF(AND($J$6=Jazyk!$D$4,$L$6=Jazyk!$D$4),1,IF(AND(F47>=$J$6,F47<=$L$6),1,0)) -> 1 | G46: =IF(AND($J$6=Jazyk!$D$4,$L$6=Jazyk!$D$4),1,IF(AND(G47>=$J$6,G47<=$L$6),1,0)) -> 1 | H46: =IF(AND($J$6=Jazyk!$D$4,$L$6=Jazyk!$D$4),1,IF(AND(H47>=$J$6,H47<=$L$6),1,0)) -> 1 | I46: =IF(AND($J$6=Jazyk!$D$4,$L$6=Jazyk!$D$4),1,IF(AND(I47>=$J$6,I47<=$L$6),1,0)) -> 1 | J46: =IF(AND($J$6=Jazyk!$D$4,$L$6=Jazyk!$D$4),1,IF(AND(J47>=$J$6,J47<=$L$6),1,0)) -> 1 | K46: =IF(AND($J$6=Jazyk!$D$4,$L$6=Jazyk!$D$4),1,IF(AND(K47>=$J$6,K47<=$L$6),1,0)) -> 1 | L46: =IF(AND($J$6=Jazyk!$D$4,$L$6=Jazyk!$D$4),1,IF(AND(L47>=$J$6,L47<=$L$6),1,0)) -> 1
B47: =Jazyk!$G$27 -> Височина [mm] | D47: =E47 -> 1600 | E47: 1600 | F47: =E47 -> 1600 | G47: =H47 -> 1800 | H47: 1800 | I47: =H47 -> 1800 | J47: =K47 -> 2000 | K47: 2000 | L47: =K47 -> 2000
B48: =Jazyk!$H$27 -> Дължина [mm] | D48: =D36 -> K10VM | E48: =E36 -> K11VM | F48: K20VM | G48: K10VM | H48: K11VM | I48: K20VM | J48: K10VM | K48: K11VM | L48: K20VM
A49: =IF(AND($J$5=Jazyk!$D$4,$L$5=Jazyk!$D$4),1,IF(AND(B49>=$J$5,B49<=$L$5),1,0)) -> 1 | B49: 144 | D49: =IF(OR(D$46=0,$A49=0),0,IF('Predek KV'!R45=0,0,IF(logic!$A$89=0,0,ROUND('Predek KV'!D45,0)))) -> 274 | E49: =IF(OR(E$46=0,$A49=0),0,IF('Predek KV'!S45=0,0,IF(logic!$A$89=0,0,ROUND('Predek KV'!E45,0)))) -> 322 | F49: =IF(OR(F$46=0,$A49=0),0,IF('Predek KV'!T45=0,0,IF(logic!$A$89=0,0,ROUND('Predek KV'!F45,0)))) -> 391 | G49: =IF(OR(G$46=0,$A49=0),0,IF('Predek KV'!U45=0,0,IF(logic!$A$89=0,0,ROUND('Predek KV'!G45,0)))) -> 307 | H49: =IF(OR(H$46=0,$A49=0),0,IF('Predek KV'!V45=0,0,IF(logic!$A$89=0,0,ROUND('Predek KV'!H45,0)))) -> 355 | I49: =IF(OR(I$46=0,$A49=0),0,IF('Predek KV'!W45=0,0,IF(logic!$A$89=0,0,ROUND('Predek KV'!I45,0)))) -> 435 | J49: =IF(OR(J$46=0,$A49=0),0,IF('Predek KV'!X45=0,0,IF(logic!$A$89=0,0,ROUND('Predek KV'!J45,0)))) -> 340 | K49: =IF(OR(K$46=0,$A49=0),0,IF('Predek KV'!Y45=0,0,IF(logic!$A$89=0,0,ROUND('Predek KV'!K45,0)))) -> 388 | L49: =IF(OR(L$46=0,$A49=0),0,IF('Predek KV'!Z45=0,0,IF(logic!$A$89=0,0,ROUND('Predek KV'!L45,0)))) -> 478
A50: =IF(AND($J$5=Jazyk!$D$4,$L$5=Jazyk!$D$4),1,IF(AND(B50>=$J$5,B50<=$L$5),1,0)) -> 1 | B50: 218 | D50: =IF(OR(D$46=0,$A50=0),0,IF('Predek KV'!R46=0,0,IF(logic!$A$89=0,0,ROUND('Predek KV'!D46,0)))) -> 414 | E50: =IF(OR(E$46=0,$A50=0),0,IF('Predek KV'!S46=0,0,IF(logic!$A$89=0,0,ROUND('Predek KV'!E46,0)))) -> 487 | F50: =IF(OR(F$46=0,$A50=0),0,IF('Predek KV'!T46=0,0,IF(logic!$A$89=0,0,ROUND('Predek KV'!F46,0)))) -> 592 | G50: =IF(OR(G$46=0,$A50=0),0,IF('Predek KV'!U46=0,0,IF(logic!$A$89=0,0,ROUND('Predek KV'!G46,0)))) -> 465 | H50: =IF(OR(H$46=0,$A50=0),0,IF('Predek KV'!V46=0,0,IF(logic!$A$89=0,0,ROUND('Predek KV'!H46,0)))) -> 538 | I50: =IF(OR(I$46=0,$A50=0),0,IF('Predek KV'!W46=0,0,IF(logic!$A$89=0,0,ROUND('Predek KV'!I46,0)))) -> 658 | J50: =IF(OR(J$46=0,$A50=0),0,IF('Predek KV'!X46=0,0,IF(logic!$A$89=0,0,ROUND('Predek KV'!J46,0)))) -> 515 | K50: =IF(OR(K$46=0,$A50=0),0,IF('Predek KV'!Y46=0,0,IF(logic!$A$89=0,0,ROUND('Predek KV'!K46,0)))) -> 587 | L50: =IF(OR(L$46=0,$A50=0),0,IF('Predek KV'!Z46=0,0,IF(logic!$A$89=0,0,ROUND('Predek KV'!L46,0)))) -> 724
A51: =IF(AND($J$5=Jazyk!$D$4,$L$5=Jazyk!$D$4),1,IF(AND(B51>=$J$5,B51<=$L$5),1,0)) -> 1 | B51: 366 | D51: =IF(OR(D$46=0,$A51=0),0,IF('Predek KV'!R47=0,0,IF(logic!$A$89=0,0,ROUND('Predek KV'!D47,0)))) -> 695 | E51: =IF(OR(E$46=0,$A51=0),0,IF('Predek KV'!S47=0,0,IF(logic!$A$89=0,0,ROUND('Predek KV'!E47,0)))) -> 818 | F51: =IF(OR(F$46=0,$A51=0),0,IF('Predek KV'!T47=0,0,IF(logic!$A$89=0,0,ROUND('Predek KV'!F47,0)))) -> 994 | G51: =IF(OR(G$46=0,$A51=0),0,IF('Predek KV'!U47=0,0,IF(logic!$A$89=0,0,ROUND('Predek KV'!G47,0)))) -> 780 | H51: =IF(OR(H$46=0,$A51=0),0,IF('Predek KV'!V47=0,0,IF(logic!$A$89=0,0,ROUND('Predek KV'!H47,0)))) -> 903 | I51: =IF(OR(I$46=0,$A51=0),0,IF('Predek KV'!W47=0,0,IF(logic!$A$89=0,0,ROUND('Predek KV'!I47,0)))) -> 1105 | J51: =IF(OR(J$46=0,$A51=0),0,IF('Predek KV'!X47=0,0,IF(logic!$A$89=0,0,ROUND('Predek KV'!J47,0)))) -> 865 | K51: =IF(OR(K$46=0,$A51=0),0,IF('Predek KV'!Y47=0,0,IF(logic!$A$89=0,0,ROUND('Predek KV'!K47,0)))) -> 985 | L51: =IF(OR(L$46=0,$A51=0),0,IF('Predek KV'!Z47=0,0,IF(logic!$A$89=0,0,ROUND('Predek KV'!L47,0)))) -> 1215
A52: =IF(AND($J$5=Jazyk!$D$4,$L$5=Jazyk!$D$4),1,IF(AND(B52>=$J$5,B52<=$L$5),1,0)) -> 1 | B52: 514 | D52: =IF(OR(D$46=0,$A52=0),0,IF('Predek KV'!R48=0,0,IF(logic!$A$89=0,0,ROUND('Predek KV'!D48,0)))) -> 977 | E52: =IF(OR(E$46=0,$A52=0),0,IF('Predek KV'!S48=0,0,IF(logic!$A$89=0,0,ROUND('Predek KV'!E48,0)))) -> 1148 | F52: =IF(OR(F$46=0,$A52=0),0,IF('Predek KV'!T48=0,0,IF(logic!$A$89=0,0,ROUND('Predek KV'!F48,0)))) -> 1396 | G52: =IF(OR(G$46=0,$A52=0),0,IF('Predek KV'!U48=0,0,IF(logic!$A$89=0,0,ROUND('Predek KV'!G48,0)))) -> 1095 | H52: =IF(OR(H$46=0,$A52=0),0,IF('Predek KV'!V48=0,0,IF(logic!$A$89=0,0,ROUND('Predek KV'!H48,0)))) -> 1268 | I52: =IF(OR(I$46=0,$A52=0),0,IF('Predek KV'!W48=0,0,IF(logic!$A$89=0,0,ROUND('Predek KV'!I48,0)))) -> 1552 | J52: =IF(OR(J$46=0,$A52=0),0,IF('Predek KV'!X48=0,0,IF(logic!$A$89=0,0,ROUND('Predek KV'!J48,0)))) -> 1215 | K52: =IF(OR(K$46=0,$A52=0),0,IF('Predek KV'!Y48=0,0,IF(logic!$A$89=0,0,ROUND('Predek KV'!K48,0)))) -> 1384 | L52: =IF(OR(L$46=0,$A52=0),0,IF('Predek KV'!Z48=0,0,IF(logic!$A$89=0,0,ROUND('Predek KV'!L48,0)))) -> 1706
A53: =IF(AND($J$5=Jazyk!$D$4,$L$5=Jazyk!$D$4),1,IF(AND(B53>=$J$5,B53<=$L$5),1,0)) -> 1 | B53: 588 | D53: =IF(OR(D$46=0,$A53=0),0,IF('Predek KV'!R49=0,0,IF(logic!$A$89=0,0,ROUND('Predek KV'!D49,0)))) -> 1117 | E53: =IF(OR(E$46=0,$A53=0),0,IF('Predek KV'!S49=0,0,IF(logic!$A$89=0,0,ROUND('Predek KV'!E49,0)))) -> 1314 | F53: =IF(OR(F$46=0,$A53=0),0,IF('Predek KV'!T49=0,0,IF(logic!$A$89=0,0,ROUND('Predek KV'!F49,0)))) -> 1596 | G53: =IF(OR(G$46=0,$A53=0),0,IF('Predek KV'!U49=0,0,IF(logic!$A$89=0,0,ROUND('Predek KV'!G49,0)))) -> 1253 | H53: =IF(OR(H$46=0,$A53=0),0,IF('Predek KV'!V49=0,0,IF(logic!$A$89=0,0,ROUND('Predek KV'!H49,0)))) -> 1450 | I53: =IF(OR(I$46=0,$A53=0),0,IF('Predek KV'!W49=0,0,IF(logic!$A$89=0,0,ROUND('Predek KV'!I49,0)))) -> 1775 | J53: =IF(OR(J$46=0,$A53=0),0,IF('Predek KV'!X49=0,0,IF(logic!$A$89=0,0,ROUND('Predek KV'!J49,0)))) -> 1389 | K53: =IF(OR(K$46=0,$A53=0),0,IF('Predek KV'!Y49=0,0,IF(logic!$A$89=0,0,ROUND('Predek KV'!K49,0)))) -> 1583 | L53: =IF(OR(L$46=0,$A53=0),0,IF('Predek KV'!Z49=0,0,IF(logic!$A$89=0,0,ROUND('Predek KV'!L49,0)))) -> 1952
A54: =IF(AND($J$5=Jazyk!$D$4,$L$5=Jazyk!$D$4),1,IF(AND(B54>=$J$5,B54<=$L$5),1,0)) -> 1 | B54: 662 | D54: =IF(OR(D$46=0,$A54=0),0,IF('Predek KV'!R50=0,0,IF(logic!$A$89=0,0,ROUND('Predek KV'!D50,0)))) -> 1258 | E54: =IF(OR(E$46=0,$A54=0),0,IF('Predek KV'!S50=0,0,IF(logic!$A$89=0,0,ROUND('Predek KV'!E50,0)))) -> 1479 | F54: =IF(OR(F$46=0,$A54=0),0,IF('Predek KV'!T50=0,0,IF(logic!$A$89=0,0,ROUND('Predek KV'!F50,0)))) -> 1797 | G54: =IF(OR(G$46=0,$A54=0),0,IF('Predek KV'!U50=0,0,IF(logic!$A$89=0,0,ROUND('Predek KV'!G50,0)))) -> 1411 | H54: =IF(OR(H$46=0,$A54=0),0,IF('Predek KV'!V50=0,0,IF(logic!$A$89=0,0,ROUND('Predek KV'!H50,0)))) -> 1632 | I54: =IF(OR(I$46=0,$A54=0),0,IF('Predek KV'!W50=0,0,IF(logic!$A$89=0,0,ROUND('Predek KV'!I50,0)))) -> 1999 | J54: =IF(OR(J$46=0,$A54=0),0,IF('Predek KV'!X50=0,0,IF(logic!$A$89=0,0,ROUND('Predek KV'!J50,0)))) -> 1564 | K54: =IF(OR(K$46=0,$A54=0),0,IF('Predek KV'!Y50=0,0,IF(logic!$A$89=0,0,ROUND('Predek KV'!K50,0)))) -> 1782 | L54: =IF(OR(L$46=0,$A54=0),0,IF('Predek KV'!Z50=0,0,IF(logic!$A$89=0,0,ROUND('Predek KV'!L50,0)))) -> 2198
A55: =IF(AND($J$5=Jazyk!$D$4,$L$5=Jazyk!$D$4),1,IF(AND(B55>=$J$5,B55<=$L$5),1,0)) -> 1 | B55: 884 | D55: =IF(OR(D$46=0,$A55=0),0,IF('Predek KV'!R51=0,0,IF(logic!$A$89=0,0,ROUND('Predek KV'!D51,0)))) -> 1680 | E55: =IF(OR(E$46=0,$A55=0),0,IF('Predek KV'!S51=0,0,IF(logic!$A$89=0,0,ROUND('Predek KV'!E51,0)))) -> 1975 | F55: =IF(OR(F$46=0,$A55=0),0,IF('Predek KV'!T51=0,0,IF(logic!$A$89=0,0,ROUND('Predek KV'!F51,0)))) -> 2400 | G55: =IF(OR(G$46=0,$A55=0),0,IF('Predek KV'!U51=0,0,IF(logic!$A$89=0,0,ROUND('Predek KV'!G51,0)))) -> 1884 | H55: =IF(OR(H$46=0,$A55=0),0,IF('Predek KV'!V51=0,0,IF(logic!$A$89=0,0,ROUND('Predek KV'!H51,0)))) -> 2180 | I55: =IF(OR(I$46=0,$A55=0),0,IF('Predek KV'!W51=0,0,IF(logic!$A$89=0,0,ROUND('Predek KV'!I51,0)))) -> 2669 | J55: =IF(OR(J$46=0,$A55=0),0,IF('Predek KV'!X51=0,0,IF(logic!$A$89=0,0,ROUND('Predek KV'!J51,0)))) -> 2089 | K55: =IF(OR(K$46=0,$A55=0),0,IF('Predek KV'!Y51=0,0,IF(logic!$A$89=0,0,ROUND('Predek KV'!K51,0)))) -> 2380 | L55: =IF(OR(L$46=0,$A55=0),0,IF('Predek KV'!Z51=0,0,IF(logic!$A$89=0,0,ROUND('Predek KV'!L51,0)))) -> 2935
A56: =IF(AND($J$5=Jazyk!$D$4,$L$5=Jazyk!$D$4),1,IF(AND(B56>=$J$5,B56<=$L$5),1,0)) -> 1 | B56: 958 | D56: =IF(OR(D$46=0,$A56=0),0,IF('Predek KV'!R52=0,0,IF(logic!$A$89=0,0,ROUND('Predek KV'!D52,0)))) -> 1820 | E56: =IF(OR(E$46=0,$A56=0),0,IF('Predek KV'!S52=0,0,IF(logic!$A$89=0,0,ROUND('Predek KV'!E52,0)))) -> 0 | F56: =IF(OR(F$46=0,$A56=0),0,IF('Predek KV'!T52=0,0,IF(logic!$A$89=0,0,ROUND('Predek KV'!F52,0)))) -> 2601 | G56: =IF(OR(G$46=0,$A56=0),0,IF('Predek KV'!U52=0,0,IF(logic!$A$89=0,0,ROUND('Predek KV'!G52,0)))) -> 2041 | H56: =IF(OR(H$46=0,$A56=0),0,IF('Predek KV'!V52=0,0,IF(logic!$A$89=0,0,ROUND('Predek KV'!H52,0)))) -> 0 | I56: =IF(OR(I$46=0,$A56=0),0,IF('Predek KV'!W52=0,0,IF(logic!$A$89=0,0,ROUND('Predek KV'!I52,0)))) -> 2892 | J56: =IF(OR(J$46=0,$A56=0),0,IF('Predek KV'!X52=0,0,IF(logic!$A$89=0,0,ROUND('Predek KV'!J52,0)))) -> 2264 | K56: =IF(OR(K$46=0,$A56=0),0,IF('Predek KV'!Y52=0,0,IF(logic!$A$89=0,0,ROUND('Predek KV'!K52,0)))) -> 0 | L56: =IF(OR(L$46=0,$A56=0),0,IF('Predek KV'!Z52=0,0,IF(logic!$A$89=0,0,ROUND('Predek KV'!L52,0)))) -> 0
B57: =Jazyk!AB4 -> Право на технически промени. | L57: =logic!M5 -> CZ KRTH 3.02-05/22

Sheet Reflex (hidden)
B1: =logic!$B$12 -> KORATHERM REFLEX
B3: =Jazyk!J4 -> Избор на модел: | G3: =Jazyk!P4 -> Детайлен избор
I4: =Jazyk!K4&" "&Jazyk!H4 -> Топлинна мощност от | K4: ="W "&Jazyk!I4 -> W до | M4: W
I5: =Jazyk!F4&" "&Jazyk!H4 -> Височина от | J5: =logic!H23 -> всичко | K5: ="mm "&Jazyk!I4 -> mm до | L5: =logic!H35 -> всичко | M5: mm
C6: =Jazyk!Q4 -> Въвеждане на стойности
D7: t 1 | E7: t 2 | F7: t i | G7: D T | Q7: =IF(R7=0,0,Jazyk!X4) -> 0 | R7: =MAX(Databaze!A:A) -> 0
C8: =Jazyk!L4 -> Температура: | D8: 75 | E8: 65 | F8: 20 | G8: =(D8+E8)/2-F8 -> 50
D9: =Jazyk!E4 -> Топлинни мощности според ЕН 442
F15: =Jazyk!$G$27 -> Височина [mm] | H15: 1800 | I15: 1800 | U15: 1800
F16: =Jazyk!$H$27 -> Дължина [mm] | H16: =IF(logic!$E$12=0,'Qn R'!D4,'Qn R'!D4&logic!$E$12) -> K10R | I16: =IF(logic!$E$12=0,'Qn R'!E4,'Qn R'!E4&logic!$E$12) -> K20R | U16: K20R
A17: =IF(AND($J$5=Jazyk!$D$4,$L$5=Jazyk!$D$4),1,IF(AND(F17>=$J$5,F17<=$L$5),1,0)) -> 1 | F17: 514 | H17: =IF($A17=0,0,IF('Predek KR'!R9=0,0,IF(logic!$A$90=0,0,ROUND('Predek KR'!D9,0)))) -> 791 | I17: =IF($A17=0,0,IF('Predek KR'!S9=0,0,IF(logic!$A$90=0,0,ROUND('Predek KR'!E9,0)))) -> 1415 | U17: =IF(A17=0,0,IF('Predek KR'!S9=0,0,ROUND('Predek KR'!E9,0))) -> 1415
A18: =IF(AND($J$5=Jazyk!$D$4,$L$5=Jazyk!$D$4),1,IF(AND(F18>=$J$5,F18<=$L$5),1,0)) -> 1 | F18: 662 | H18: =IF($A18=0,0,IF('Predek KR'!R10=0,0,IF(logic!$A$90=0,0,ROUND('Predek KR'!D10,0)))) -> 1086 | I18: =IF($A18=0,0,IF('Predek KR'!S10=0,0,IF(logic!$A$90=0,0,ROUND('Predek KR'!E10,0)))) -> 1877 | U18: =IF(A18=0,0,IF('Predek KR'!S10=0,0,ROUND('Predek KR'!E10,0))) -> 1877
A19: =IF(AND($J$5=Jazyk!$D$4,$L$5=Jazyk!$D$4),1,IF(AND(F19>=$J$5,F19<=$L$5),1,0)) -> 1 | F19: 810 | H19: =IF($A19=0,0,IF('Predek KR'!R11=0,0,IF(logic!$A$90=0,0,ROUND('Predek KR'!D11,0)))) -> 1381 | I19: =IF($A19=0,0,IF('Predek KR'!S11=0,0,IF(logic!$A$90=0,0,ROUND('Predek KR'!E11,0)))) -> 2339 | U19: =IF(A19=0,0,IF('Predek KR'!S11=0,0,ROUND('Predek KR'!E11,0))) -> 2339
A20: =IF(AND($J$5=Jazyk!$D$4,$L$5=Jazyk!$D$4),1,IF(AND(F20>=$J$5,F20<=$L$5),1,0)) -> 1 | F20: 958 | H20: =IF($A20=0,0,IF('Predek KR'!R12=0,0,IF(logic!$A$90=0,0,ROUND('Predek KR'!D12,0)))) -> 1676 | I20: =IF($A20=0,0,IF('Predek KR'!S12=0,0,IF(logic!$A$90=0,0,ROUND('Predek KR'!E12,0)))) -> 2801 | U20: =IF(A20=0,0,IF('Predek KR'!S12=0,0,ROUND('Predek KR'!E12,0))) -> 2801
F21: =Jazyk!AB4 -> Право на технически промени.
F22: =logic!M5 -> CZ KRTH 3.02-05/22

Sheet Databaze (hidden)
A1: =Jazyk!O50 -> Идентификация:
A6: =Jazyk!D50 -> Номер | B6: =Jazyk!E50 -> Модел | C6: =Jazyk!F50 -> Номер за поръчка | D6: =Jazyk!G50 -> Тип | E6: =Jazyk!H50 -> Височина [mm] | F6: =Jazyk!I50 -> Дължина [mm] | H6: t1 | I6: t2 | J6: ti | K6: =Jazyk!M50 -> Топлинна мощност [W] | M6: =Jazyk!N50 -> Забележка

Sheet Predek KH (hidden)
D3: t 1 | E3: t 2 | F3: t i | G3: D T
D4: =Horizontal!D8 -> 75 | E4: =Horizontal!E8 -> 65 | F4: =Horizontal!F8 -> 20 | G4: =(D4+E4)/2-F4 -> 50
D5: Tepelné výkony podle EN 442 | W5: SORTIMENT HORIZONTAL
C7: Výška [mm] | F7: ='Qn H'!G3 -> 144 | N7: ='Qn H'!O3 -> 218 | X7: Výška [mm] | AA7: 144 | AI7: 218
B8: Délka [mm] | D8: ='Qn H'!E4 -> K10H | E8: ='Qn H'!F4 -> K11H | F8: ='Qn H'!G4 -> K20H | G8: ='Qn H'!H4 -> K21H | H8: ='Qn H'!I4 -> K22H | I8: ='Qn H'!J4 -> K23H | J8: ='Qn H'!K4 -> K44H | K8: ='Qn H'!L4 -> K46H | L8: ='Qn H'!M4 -> K10H | M8: ='Qn H'!N4 -> K11H | N8: ='Qn H'!O4 -> K20H | O8: ='Qn H'!P4 -> K21H | P8: ='Qn H'!Q4 -> K22H | Q8: ='Qn H'!R4 -> K23H | R8: ='Qn H'!S4 -> K44H | S8: ='Qn H'!T4 -> K46H | W8: Délka [mm] | Y8: =D8 -> K10H | Z8: =E8 -> K11H | AA8: K20H | AB8: K21H | AC8: K22H | AD8: K23H | AE8: K44H | AF8: K46H | AG8: K10H | AH8: K11H | AI8: K20H | AJ8: K21H | AK8: K22H | AL8: K23H | AM8: K44H | AN8: K46H
B9: 500 | D9: =(((($D$4-$E$4)/(LN(($D$4-$F$4)/($E$4-$F$4))))/49.8328865456397)^'Qn H'!E$5)*('Qn H'!E$6*$B9/1000) -> 99.5 | E9: =(((($D$4-$E$4)/(LN(($D$4-$F$4)/($E$4-$F$4))))/49.8328865456397)^'Qn H'!F$5)*('Qn H'!F$6*$B9/1000) -> 144.5 | F9: =(((($D$4-$E$4)/(LN(($D$4-$F$4)/($E$4-$F$4))))/49.8328865456397)^'Qn H'!G$5)*('Qn H'!G$6*$B9/1000) -> 159 | G9: =(((($D$4-$E$4)/(LN(($D$4-$F$4)/($E$4-$F$4))))/49.8328865456397)^'Qn H'!H$5)*('Qn H'!H$6*$B9/1000) -> 208.5 | H9: =(((($D$4-$E$4)/(LN(($D$4-$F$4)/($E$4-$F$4))))/49.8328865456397)^'Qn H'!I$5)*('Qn H'!I$6*$B9/1000) -> 267 | I9: =(((($D$4-$E$4)/(LN(($D$4-$F$4)/($E$4-$F$4))))/49.8328865456397)^'Qn H'!J$5)*('Qn H'!J$6*$B9/1000) -> 289.5 | J9: =(((($D$4-$E$4)/(LN(($D$4-$F$4)/($E$4-$F$4))))/49.8328865456397)^'Qn H'!K$5)*('Qn H'!K$6*$B9/1000) -> 496 | K9: =(((($D$4-$E$4)/(LN(($D$4-$F$4)/($E$4-$F$4))))/49.8328865456397)^'Qn H'!L$5)*('Qn H'!L$6*$B9/1000) -> 583.5 | L9: =(((($D$4-$E$4)/(LN(($D$4-$F$4)/($E$4-$F$4))))/49.8328865456397)^'Qn H'!M$5)*('Qn H'!M$6*$B9/1000) -> 133 | M9: =(((($D$4-$E$4)/(LN(($D$4-$F$4)/($E$4-$F$4))))/49.8328865456397)^'Qn H'!N$5)*('Qn H'!N$6*$B9/1000) -> 205.5 | N9: =(((($D$4-$E$4)/(LN(($D$4-$F$4)/($E$4-$F$4))))/49.8328865456397)^'Qn H'!O$5)*('Qn H'!O$6*$B9/1000) -> 219.5 | O9: =(((($D$4-$E$4)/(LN(($D$4-$F$4)/($E$4-$F$4))))/49.8328865456397)^'Qn H'!P$5)*('Qn H'!P$6*$B9/1000) -> 290.5 | P9: =(((($D$4-$E$4)/(LN(($D$4-$F$4)/($E$4-$F$4))))/49.8328865456397)^'Qn H'!Q$5)*('Qn H'!Q$6*$B9/1000) -> 374.5 | Q9: =(((($D$4-$E$4)/(LN(($D$4-$F$4)/($E$4-$F$4))))/49.8328865456397)^'Qn H'!R$5)*('Qn H'!R$6*$B9/1000) -> 431.5 | R9: =(((($D$4-$E$4)/(LN(($D$4-$F$4)/($E$4-$F$4))))/49.8328865456397)^'Qn H'!S$5)*('Qn H'!S$6*$B9/1000) -> 704.5 | S9: =(((($D$4-$E$4)/(LN(($D$4-$F$4)/($E$4-$F$4))))/49.8328865456397)^'Qn H'!T$5)*('Qn H'!T$6*$B9/1000) -> 852.5 | W9: 500 | Y9: =Sortiment!A8 -> 1 | Z9: =Sortiment!A128 -> 1 | AA9: =Sortiment!A248 -> 1 | AB9: =Sortiment!A368 -> 1 | AC9: =Sortiment!A488 -> 1 | AD9: =Sortiment!A608 -> 1 | AE9: =Sortiment!A638 -> 1 | AF9: =Sortiment!A668 -> 1 | AG9: =Sortiment!A23 -> 1 | AH9: =Sortiment!A143 -> 1 | AI9: =Sortiment!A263 -> 1 | AJ9: =Sortiment!A383 -> 1 | AK9: =Sortiment!A503 -> 1 | AL9: =IF(logic!$C$2="KHVKM",0,Sortiment!A623) -> 1 | AM9: =IF(logic!$C$2="KHVKM",0,Sortiment!A653) -> 1 | AN9: =IF(logic!$C$2="KHVKM",0,Sortiment!A683) -> 1
B10: 600 | D10: =(((($D$4-$E$4)/(LN(($D$4-$F$4)/($E$4-$F$4))))/49.8328865456397)^'Qn H'!E$5)*('Qn H'!E$6*$B10/1000) -> 119.4 | E10: =(((($D$4-$E$4)/(LN(($D$4-$F$4)/($E$4-$F$4))))/49.8328865456397)^'Qn H'!F$5)*('Qn H'!F$6*$B10/1000) -> 173.4 | F10: =(((($D$4-$E$4)/(LN(($D$4-$F$4)/($E$4-$F$4))))/49.8328865456397)^'Qn H'!G$5)*('Qn H'!G$6*$B10/1000) -> 190.8 | G10: =(((($D$4-$E$4)/(LN(($D$4-$F$4)/($E$4-$F$4))))/49.8328865456397)^'Qn H'!H$5)*('Qn H'!H$6*$B10/1000) -> 250.2 | H10: =(((($D$4-$E$4)/(LN(($D$4-$F$4)/($E$4-$F$4))))/49.8328865456397)^'Qn H'!I$5)*('Qn H'!I$6*$B10/1000) -> 320.4 | I10: =(((($D$4-$E$4)/(LN(($D$4-$F$4)/($E$4-$F$4))))/49.8328865456397)^'Qn H'!J$5)*('Qn H'!J$6*$B10/1000) -> 347.4 | J10: =(((($D$4-$E$4)/(LN(($D$4-$F$4)/($E$4-$F$4))))/49.8328865456397)^'Qn H'!K$5)*('Qn H'!K$6*$B10/1000) -> 595.2 | K10: =(((($D$4-$E$4)/(LN(($D$4-$F$4)/($E$4-$F$4))))/49.8328865456397)^'Qn H'!L$5)*('Qn H'!L$6*$B10/1000) -> 700.2 | L10: =(((($D$4-$E$4)/(LN(($D$4-$F$4)/($E$4-$F$4))))/49.8328865456397)^'Qn H'!M$5)*('Qn H'!M$6*$B10/1000) -> 159.6 | M10: =(((($D$4-$E$4)/(LN(($D$4-$F$4)/($E$4-$F$4))))/49.8328865456397)^'Qn H'!N$5)*('Qn H'!N$6*$B10/1000) -> 246.6 | N10: =(((($D$4-$E$4)/(LN(($D$4-$F$4)/($E$4-$F$4))))/49.8328865456397)^'Qn H'!O$5)*('Qn H'!O$6*$B10/1000) -> 263.4 | O10: =(((($D$4-$E$4)/(LN(($D$4-$F$4)/($E$4-$F$4))))/49.8328865456397)^'Qn H'!P$5)*('Qn H'!P$6*$B10/1000) -> 348.6 | P10: =(((($D$4-$E$4)/(LN(($D$4-$F$4)/($E$4-$F$4))))/49.8328865456397)^'Qn H'!Q$5)*('Qn H'!Q$6*$B10/1000) -> 449.4 | Q10: =(((($D$4-$E$4)/(LN(($D$4-$F$4)/($E$4-$F$4))))/49.8328865456397)^'Qn H'!R$5)*('Qn H'!R$6*$B10/1000) -> 517.8 | R10: =(((($D$4-$E$4)/(LN(($D$4-$F$4)/($E$4-$F$4))))/49.8328865456397)^'Qn H'!S$5)*('Qn H'!S$6*$B10/1000) -> 845.4 | S10: =(((($D$4-$E$4)/(LN(($D$4-$F$4)/($E$4-$F$4))))/49.8328865456397)^'Qn H'!T$5)*('Qn H'!T$6*$B10/1000) -> 1023 | W10: 600 | Y10: =Sortiment!A9 -> 1 | Z10: =Sortiment!A129 -> 1 | AA10: =Sortiment!A249 -> 1 | AB10: =Sortiment!A369 -> 1 | AC10: =Sortiment!A489 -> 1 | AD10: =Sortiment!A609 -> 1 | AE10: =Sortiment!A639 -> 1 | AF10: =Sortiment!A669 -> 1 | AG10: =Sortiment!A24 -> 1 | AH10: =Sortiment!A144 -> 1 | AI10: =Sortiment!A264 -> 1 | AJ10: =Sortiment!A384 -> 1 | AK10: =Sortiment!A504 -> 1 | AL10: =IF(logic!$C$2="KHVKM",0,Sortiment!A624) -> 1 | AM10: =IF(logic!$C$2="KHVKM",0,Sortiment!A654) -> 1 | AN10: =IF(logic!$C$2="KHVKM",0,Sortiment!A684) -> 1
B11: 700 | D11: =(((($D$4-$E$4)/(LN(($D$4-$F$4)/($E$4-$F$4))))/49.8328865456397)^'Qn H'!E$5)*('Qn H'!E$6*$B11/1000) -> 139.3 | E11: =(((($D$4-$E$4)/(LN(($D$4-$F$4)/($E$4-$F$4))))/49.8328865456397)^'Qn H'!F$5)*('Qn H'!F$6*$B11/1000) -> 202.3 | F11: =(((($D$4-$E$4)/(LN(($D$4-$F$4)/($E$4-$F$4))))/49.8328865456397)^'Qn H'!G$5)*('Qn H'!G$6*$B11/1000) -> 222.6 | G11: =(((($D$4-$E$4)/(LN(($D$4-$F$4)/($E$4-$F$4))))/49.8328865456397)^'Qn H'!H$5)*('Qn H'!H$6*$B11/1000) -> 291.9 | H11: =(((($D$4-$E$4)/(LN(($D$4-$F$4)/($E$4-$F$4))))/49.8328865456397)^'Qn H'!I$5)*('Qn H'!I$6*$B11/1000) -> 373.8 | I11: =(((($D$4-$E$4)/(LN(($D$4-$F$4)/($E$4-$F$4))))/49.8328865456397)^'Qn H'!J$5)*('Qn H'!J$6*$B11/1000) -> 405.3 | J11: =(((($D$4-$E$4)/(LN(($D$4-$F$4)/($E$4-$F$4))))/49.8328865456397)^'Qn H'!K$5)*('Qn H'!K$6*$B11/1000) -> 694.4 | K11: =(((($D$4-$E$4)/(LN(($D$4-$F$4)/($E$4-$F$4))))/49.8328865456397)^'Qn H'!L$5)*('Qn H'!L$6*$B11/1000) -> 816.9 | L11: =(((($D$4-$E$4)/(LN(($D$4-$F$4)/($E$4-$F$4))))/49.8328865456397)^'Qn H'!M$5)*('Qn H'!M$6*$B11/1000) -> 186.2 | M11: =(((($D$4-$E$4)/(LN(($D$4-$F$4)/($E$4-$F$4))))/49.8328865456397)^'Qn H'!N$5)*('Qn H'!N$6*$B11/1000) -> 287.7 | N11: =(((($D$4-$E$4)/(LN(($D$4-$F$4)/($E$4-$F$4))))/49.8328865456397)^'Qn H'!O$5)*('Qn H'!O$6*$B11/1000) -> 307.3 | O11: =(((($D$4-$E$4)/(LN(($D$4-$F$4)/($E$4-$F$4))))/49.8328865456397)^'Qn H'!P$5)*('Qn H'!P$6*$B11/1000) -> 406.7 | P11: =(((($D$4-$E$4)/(LN(($D$4-$F$4)/($E$4-$F$4))))/49.8328865456397)^'Qn H'!Q$5)*('Qn H'!Q$6*$B11/1000) -> 524.3 | Q11: =(((($D$4-$E$4)/(LN(($D$4-$F$4)/($E$4-$F$4))))/49.8328865456397)^'Qn H'!R$5)*('Qn H'!R$6*$B11/1000) -> 604.1 | R11: =(((($D$4-$E$4)/(LN(($D$4-$F$4)/($E$4-$F$4))))/49.8328865456397)^'Qn H'!S$5)*('Qn H'!S$6*$B11/1000) -> 986.3 | S11: =(((($D$4-$E$4)/(LN(($D$4-$F$4)/($E$4-$F$4))))/49.8328865456397)^'Qn H'!T$5)*('Qn H'!T$6*$B11/1000) -> 1193.5 | W11: 700 | Y11: =Sortiment!A10 -> 1 | Z11: =Sortiment!A130 -> 1 | AA11: =Sortiment!A250 -> 1 | AB11: =Sortiment!A370 -> 1 | AC11: =Sortiment!A490 -> 1 | AD11: =Sortiment!A610 -> 1 | AE11: =Sortiment!A640 -> 1 | AF11: =Sortiment!A670 -> 1 | AG11: =Sortiment!A25 -> 1 | AH11: =Sortiment!A145 -> 1 | AI11: =Sortiment!A265 -> 1 | AJ11: =Sortiment!A385 -> 1 | AK11: =Sortiment!A505 -> 1 | AL11: =IF(logic!$C$2="KHVKM",0,Sortiment!A625) -> 1 | AM11: =IF(logic!$C$2="KHVKM",0,Sortiment!A655) -> 1 | AN11: =IF(logic!$C$2="KHVKM",0,Sortiment!A685) -> 1
B12: 800 | D12: =(((($D$4-$E$4)/(LN(($D$4-$F$4)/($E$4-$F$4))))/49.8328865456397)^'Qn H'!E$5)*('Qn H'!E$6*$B12/1000) -> 159.2 | E12: =(((($D$4-$E$4)/(LN(($D$4-$F$4)/($E$4-$F$4))))/49.8328865456397)^'Qn H'!F$5)*('Qn H'!F$6*$B12/1000) -> 231.2 | F12: =(((($D$4-$E$4)/(LN(($D$4-$F$4)/($E$4-$F$4))))/49.8328865456397)^'Qn H'!G$5)*('Qn H'!G$6*$B12/1000) -> 254.4 | G12: =(((($D$4-$E$4)/(LN(($D$4-$F$4)/($E$4-$F$4))))/49.8328865456397)^'Qn H'!H$5)*('Qn H'!H$6*$B12/1000) -> 333.6 | H12: =(((($D$4-$E$4)/(LN(($D$4-$F$4)/($E$4-$F$4))))/49.8328865456397)^'Qn H'!I$5)*('Qn H'!I$6*$B12/1000) -> 427.2 | I12: =(((($D$4-$E$4)/(LN(($D$4-$F$4)/($E$4-$F$4))))/49.8328865456397)^'Qn H'!J$5)*('Qn H'!J$6*$B12/1000) -> 463.2 | J12: =(((($D$4-$E$4)/(LN(($D$4-$F$4)/($E$4-$F$4))))/49.8328865456397)^'Qn H'!K$5)*('Qn H'!K$6*$B12/1000) -> 793.6 | K12: =(((($D$4-$E$4)/(LN(($D$4-$F$4)/($E$4-$F$4))))/49.8328865456397)^'Qn H'!L$5)*('Qn H'!L$6*$B12/1000) -> 933.6 | L12: =(((($D$4-$E$4)/(LN(($D$4-$F$4)/($E$4-$F$4))))/49.8328865456397)^'Qn H'!M$5)*('Qn H'!M$6*$B12/1000) -> 212.8 | M12: =(((($D$4-$E$4)/(LN(($D$4-$F$4)/($E$4-$F$4))))/49.8328865456397)^'Qn H'!N$5)*('Qn H'!N$6*$B12/1000) -> 328.8 | N12: =(((($D$4-$E$4)/(LN(($D$4-$F$4)/($E$4-$F$4))))/49.8328865456397)^'Qn H'!O$5)*('Qn H'!O$6*$B12/1000) -> 351.2 | O12: =(((($D$4-$E$4)/(LN(($D$4-$F$4)/($E$4-$F$4))))/49.8328865456397)^'Qn H'!P$5)*('Qn H'!P$6*$B12/1000) -> 464.8 | P12: =(((($D$4-$E$4)/(LN(($D$4-$F$4)/($E$4-$F$4))))/49.8328865456397)^'Qn H'!Q$5)*('Qn H'!Q$6*$B12/1000) -> 599.2 | Q12: =(((($D$4-$E$4)/(LN(($D$4-$F$4)/($E$4-$F$4))))/49.8328865456397)^'Qn H'!R$5)*('Qn H'!R$6*$B12/1000) -> 690.4 | R12: =(((($D$4-$E$4)/(LN(($D$4-$F$4)/($E$4-$F$4))))/49.8328865456397)^'Qn H'!S$5)*('Qn H'!S$6*$B12/1000) -> 1127.2 | S12: =(((($D$4-$E$4)/(LN(($D$4-$F$4)/($E$4-$F$4))))/49.8328865456397)^'Qn H'!T$5)*('Qn H'!T$6*$B12/1000) -> 1364 | W12: 800 | Y12: =Sortiment!A11 -> 1 | Z12: =Sortiment!A131 -> 1 | AA12: =Sortiment!A251 -> 1 | AB12: =Sortiment!A371 -> 1 | AC12: =Sortiment!A491 -> 1 | AD12: =Sortiment!A611 -> 1 | AE12: =Sortiment!A641 -> 1 | AF12: =Sortiment!A671 -> 1 | AG12: =Sortiment!A26 -> 1 | AH12: =Sortiment!A146 -> 1 | AI12: =Sortiment!A266 -> 1 | AJ12: =Sortiment!A386 -> 1 | AK12: =Sortiment!A506 -> 1 | AL12: =IF(logic!$C$2="KHVKM",0,Sortiment!A626) -> 1 | AM12: =IF(logic!$C$2="KHVKM",0,Sortiment!A656) -> 1 | AN12: =IF(logic!$C$2="KHVKM",0,Sortiment!A686) -> 1
B13: 900 | D13: =(((($D$4-$E$4)/(LN(($D$4-$F$4)/($E$4-$F$4))))/49.8328865456397)^'Qn H'!E$5)*('Qn H'!E$6*$B13/1000) -> 179.1 | E13: =(((($D$4-$E$4)/(LN(($D$4-$F$4)/($E$4-$F$4))))/49.8328865456397)^'Qn H'!F$5)*('Qn H'!F$6*$B13/1000) -> 260.1 | F13: =(((($D$4-$E$4)/(LN(($D$4-$F$4)/($E$4-$F$4))))/49.8328865456397)^'Qn H'!G$5)*('Qn H'!G$6*$B13/1000) -> 286.2 | G13: =(((($D$4-$E$4)/(LN(($D$4-$F$4)/($E$4-$F$4))))/49.8328865456397)^'Qn H'!H$5)*('Qn H'!H$6*$B13/1000) -> 375.3 | H13: =(((($D$4-$E$4)/(LN(($D$4-$F$4)/($E$4-$F$4))))/49.8328865456397)^'Qn H'!I$5)*('Qn H'!I$6*$B13/1000) -> 480.6 | I13: =(((($D$4-$E$4)/(LN(($D$4-$F$4)/($E$4-$F$4))))/49.8328865456397)^'Qn H'!J$5)*('Qn H'!J$6*$B13/1000) -> 521.1 | J13: =(((($D$4-$E$4)/(LN(($D$4-$F$4)/($E$4-$F$4))))/49.8328865456397)^'Qn H'!K$5)*('Qn H'!K$6*$B13/1000) -> 892.8 | K13: =(((($D$4-$E$4)/(LN(($D$4-$F$4)/($E$4-$F$4))))/49.8328865456397)^'Qn H'!L$5)*('Qn H'!L$6*$B13/1000) -> 1050.3 | L13: =(((($D$4-$E$4)/(LN(($D$4-$F$4)/($E$4-$F$4))))/49.8328865456397)^'Qn H'!M$5)*('Qn H'!M$6*$B13/1000) -> 239.4 | M13: =(((($D$4-$E$4)/(LN(($D$4-$F$4)/($E$4-$F$4))))/49.8328865456397)^'Qn H'!N$5)*('Qn H'!N$6*$B13/1000) -> 369.9 | N13: =(((($D$4-$E$4)/(LN(($D$4-$F$4)/($E$4-$F$4))))/49.8328865456397)^'Qn H'!O$5)*('Qn H'!O$6*$B13/1000) -> 395.1 | O13: =(((($D$4-$E$4)/(LN(($D$4-$F$4)/($E$4-$F$4))))/49.8328865456397)^'Qn H'!P$5)*('Qn H'!P$6*$B13/1000) -> 522.9 | P13: =(((($D$4-$E$4)/(LN(($D$4-$F$4)/($E$4-$F$4))))/49.8328865456397)^'Qn H'!Q$5)*('Qn H'!Q$6*$B13/1000) -> 674.1 | Q13: =(((($D$4-$E$4)/(LN(($D$4-$F$4)/($E$4-$F$4))))/49.8328865456397)^'Qn H'!R$5)*('Qn H'!R$6*$B13/1000) -> 776.7 | R13: =(((($D$4-$E$4)/(LN(($D$4-$F$4)/($E$4-$F$4))))/49.8328865456397)^'Qn H'!S$5)*('Qn H'!S$6*$B13/1000) -> 1268.1 | S13: =(((($D$4-$E$4)/(LN(($D$4-$F$4)/($E$4-$F$4))))/49.8328865456397)^'Qn H'!T$5)*('Qn H'!T$6*$B13/1000) -> 1534.5 | W13: 900 | Y13: =Sortiment!A12 -> 1 | Z13: =Sortiment!A132 -> 1 | AA13: =Sortiment!A252 -> 1 | AB13: =Sortiment!A372 -> 1 | AC13: =Sortiment!A492 -> 1 | AD13: =Sortiment!A612 -> 1 | AE13: =Sortiment!A642 -> 1 | AF13: =Sortiment!A672 -> 1 | AG13: =Sortiment!A27 -> 1 | AH13: =Sortiment!A147 -> 1 | AI13: =Sortiment!A267 -> 1 | AJ13: =Sortiment!A387 -> 1 | AK13: =Sortiment!A507 -> 1 | AL13: =IF(logic!$C$2="KHVKM",0,Sortiment!A627) -> 1 | AM13: =IF(logic!$C$2="KHVKM",0,Sortiment!A657) -> 1 | AN13: =IF(logic!$C$2="KHVKM",0,Sortiment!A687) -> 1
B14: 1000 | D14: =(((($D$4-$E$4)/(LN(($D$4-$F$4)/($E$4-$F$4))))/49.8328865456397)^'Qn H'!E$5)*('Qn H'!E$6*$B14/1000) -> 199 | E14: =(((($D$4-$E$4)/(LN(($D$4-$F$4)/($E$4-$F$4))))/49.8328865456397)^'Qn H'!F$5)*('Qn H'!F$6*$B14/1000) -> 289 | F14: =(((($D$4-$E$4)/(LN(($D$4-$F$4)/($E$4-$F$4))))/49.8328865456397)^'Qn H'!G$5)*('Qn H'!G$6*$B14/1000) -> 318 | G14: =(((($D$4-$E$4)/(LN(($D$4-$F$4)/($E$4-$F$4))))/49.8328865456397)^'Qn H'!H$5)*('Qn H'!H$6*$B14/1000) -> 417 | H14: =(((($D$4-$E$4)/(LN(($D$4-$F$4)/($E$4-$F$4))))/49.8328865456397)^'Qn H'!I$5)*('Qn H'!I$6*$B14/1000) -> 534 | I14: =(((($D$4-$E$4)/(LN(($D$4-$F$4)/($E$4-$F$4))))/49.8328865456397)^'Qn H'!J$5)*('Qn H'!J$6*$B14/1000) -> 579 | J14: =(((($D$4-$E$4)/(LN(($D$4-$F$4)/($E$4-$F$4))))/49.8328865456397)^'Qn H'!K$5)*('Qn H'!K$6*$B14/1000) -> 992 | K14: =(((($D$4-$E$4)/(LN(($D$4-$F$4)/($E$4-$F$4))))/49.8328865456397)^'Qn H'!L$5)*('Qn H'!L$6*$B14/1000) -> 1167 | L14: =(((($D$4-$E$4)/(LN(($D$4-$F$4)/($E$4-$F$4))))/49.8328865456397)^'Qn H'!M$5)*('Qn H'!M$6*$B14/1000) -> 266 | M14: =(((($D$4-$E$4)/(LN(($D$4-$F$4)/($E$4-$F$4))))/49.8328865456397)^'Qn H'!N$5)*('Qn H'!N$6*$B14/1000) -> 411 | N14: =(((($D$4-$E$4)/(LN(($D$4-$F$4)/($E$4-$F$4))))/49.8328865456397)^'Qn H'!O$5)*('Qn H'!O$6*$B14/1000) -> 439 | O14: =(((($D$4-$E$4)/(LN(($D$4-$F$4)/($E$4-$F$4))))/49.8328865456397)^'Qn H'!P$5)*('Qn H'!P$6*$B14/1000) -> 581 | P14: =(((($D$4-$E$4)/(LN(($D$4-$F$4)/($E$4-$F$4))))/49.8328865456397)^'Qn H'!Q$5)*('Qn H'!Q$6*$B14/1000) -> 749 | Q14: =(((($D$4-$E$4)/(LN(($D$4-$F$4)/($E$4-$F$4))))/49.8328865456397)^'Qn H'!R$5)*('Qn H'!R$6*$B14/1000) -> 863 | R14: =(((($D$4-$E$4)/(LN(($D$4-$F$4)/($E$4-$F$4))))/49.8328865456397)^'Qn H'!S$5)*('Qn H'!S$6*$B14/1000) -> 1409 | S14: =(((($D$4-$E$4)/(LN(($D$4-$F$4)/($E$4-$F$4))))/49.8328865456397)^'Qn H'!T$5)*('Qn H'!T$6*$B14/1000) -> 1705 | W14: 1000 | Y14: =Sortiment!A13 -> 1 | Z14: =Sortiment!A133 -> 1 | AA14: =Sortiment!A253 -> 1 | AB14: =Sortiment!A373 -> 1 | AC14: =Sortiment!A493 -> 1 | AD14: =Sortiment!A613 -> 1 | AE14: =Sortiment!A643 -> 1 | AF14: =Sortiment!A673 -> 1 | AG14: =Sortiment!A28 -> 1 | AH14: =Sortiment!A148 -> 1 | AI14: =Sortiment!A268 -> 1 | AJ14: =Sortiment!A388 -> 1 | AK14: =Sortiment!A508 -> 1 | AL14: =IF(logic!$C$2="KHVKM",0,Sortiment!A628) -> 1 | AM14: =IF(logic!$C$2="KHVKM",0,Sortiment!A658) -> 1 | AN14: =IF(logic!$C$2="KHVKM",0,Sortiment!A688) -> 1
B15: 1100 | D15: =(((($D$4-$E$4)/(LN(($D$4-$F$4)/($E$4-$F$4))))/49.8328865456397)^'Qn H'!E$5)*('Qn H'!E$6*$B15/1000) -> 218.9 | E15: =(((($D$4-$E$4)/(LN(($D$4-$F$4)/($E$4-$F$4))))/49.8328865456397)^'Qn H'!F$5)*('Qn H'!F$6*$B15/1000) -> 317.9 | F15: =(((($D$4-$E$4)/(LN(($D$4-$F$4)/($E$4-$F$4))))/49.8328865456397)^'Qn H'!G$5)*('Qn H'!G$6*$B15/1000) -> 349.8 | G15: =(((($D$4-$E$4)/(LN(($D$4-$F$4)/($E$4-$F$4))))/49.8328865456397)^'Qn H'!H$5)*('Qn H'!H$6*$B15/1000) -> 458.7 | H15: =(((($D$4-$E$4)/(LN(($D$4-$F$4)/($E$4-$F$4))))/49.8328865456397)^'Qn H'!I$5)*('Qn H'!I$6*$B15/1000) -> 587.4 | I15: =(((($D$4-$E$4)/(LN(($D$4-$F$4)/($E$4-$F$4))))/49.8328865456397)^'Qn H'!J$5)*('Qn H'!J$6*$B15/1000) -> 636.9 | J15: =(((($D$4-$E$4)/(LN(($D$4-$F$4)/($E$4-$F$4))))/49.8328865456397)^'Qn H'!K$5)*('Qn H'!K$6*$B15/1000) -> 1091.2 | K15: =(((($D$4-$E$4)/(LN(($D$4-$F$4)/($E$4-$F$4))))/49.8328865456397)^'Qn H'!L$5)*('Qn H'!L$6*$B15/1000) -> 1283.7 | L15: =(((($D$4-$E$4)/(LN(($D$4-$F$4)/($E$4-$F$4))))/49.8328865456397)^'Qn H'!M$5)*('Qn H'!M$6*$B15/1000) -> 292.6 | M15: =(((($D$4-$E$4)/(LN(($D$4-$F$4)/($E$4-$F$4))))/49.8328865456397)^'Qn H'!N$5)*('Qn H'!N$6*$B15/1000) -> 452.1 | N15: =(((($D$4-$E$4)/(LN(($D$4-$F$4)/($E$4-$F$4))))/49.8328865456397)^'Qn H'!O$5)*('Qn H'!O$6*$B15/1000) -> 482.9 | O15: =(((($D$4-$E$4)/(LN(($D$4-$F$4)/($E$4-$F$4))))/49.8328865456397)^'Qn H'!P$5)*('Qn H'!P$6*$B15/1000) -> 639.1 | P15: =(((($D$4-$E$4)/(LN(($D$4-$F$4)/($E$4-$F$4))))/49.8328865456397)^'Qn H'!Q$5)*('Qn H'!Q$6*$B15/1000) -> 823.9 | Q15: =(((($D$4-$E$4)/(LN(($D$4-$F$4)/($E$4-$F$4))))/49.8328865456397)^'Qn H'!R$5)*('Qn H'!R$6*$B15/1000) -> 949.3 | R15: =(((($D$4-$E$4)/(LN(($D$4-$F$4)/($E$4-$F$4))))/49.8328865456397)^'Qn H'!S$5)*('Qn H'!S$6*$B15/1000) -> 1549.9 | S15: =(((($D$4-$E$4)/(LN(($D$4-$F$4)/($E$4-$F$4))))/49.8328865456397)^'Qn H'!T$5)*('Qn H'!T$6*$B15/1000) -> 1875.5 | W15: 1100 | Y15: =Sortiment!A14 -> 1 | Z15: =Sortiment!A134 -> 1 | AA15: =Sortiment!A254 -> 1 | AB15: =Sortiment!A374 -> 1 | AC15: =Sortiment!A494 -> 1 | AD15: =Sortiment!A614 -> 1 | AE15: =Sortiment!A644 -> 1 | AF15: =Sortiment!A674 -> 1 | AG15: =Sortiment!A29 -> 1 | AH15: =Sortiment!A149 -> 1 | AI15: =Sortiment!A269 -> 1 | AJ15: =Sortiment!A389 -> 1 | AK15: =Sortiment!A509 -> 1 | AL15: =IF(logic!$C$2="KHVKM",0,Sortiment!A629) -> 1 | AM15: =IF(logic!$C$2="KHVKM",0,Sortiment!A659) -> 1 | AN15: =IF(logic!$C$2="KHVKM",0,Sortiment!A689) -> 1
B16: 1200 | D16: =(((($D$4-$E$4)/(LN(($D$4-$F$4)/($E$4-$F$4))))/49.8328865456397)^'Qn H'!E$5)*('Qn H'!E$6*$B16/1000) -> 238.8 | E16: =(((($D$4-$E$4)/(LN(($D$4-$F$4)/($E$4-$F$4))))/49.8328865456397)^'Qn H'!F$5)*('Qn H'!F$6*$B16/1000) -> 346.8 | F16: =(((($D$4-$E$4)/(LN(($D$4-$F$4)/($E$4-$F$4))))/49.8328865456397)^'Qn H'!G$5)*('Qn H'!G$6*$B16/1000) -> 381.6 | G16: =(((($D$4-$E$4)/(LN(($D$4-$F$4)/($E$4-$F$4))))/49.8328865456397)^'Qn H'!H$5)*('Qn H'!H$6*$B16/1000) -> 500.4 | H16: =(((($D$4-$E$4)/(LN(($D$4-$F$4)/($E$4-$F$4))))/49.8328865456397)^'Qn H'!I$5)*('Qn H'!I$6*$B16/1000) -> 640.8 | I16: =(((($D$4-$E$4)/(LN(($D$4-$F$4)/($E$4-$F$4))))/49.8328865456397)^'Qn H'!J$5)*('Qn H'!J$6*$B16/1000) -> 694.8 | J16: =(((($D$4-$E$4)/(LN(($D$4-$F$4)/($E$4-$F$4))))/49.8328865456397)^'Qn H'!K$5)*('Qn H'!K$6*$B16/1000) -> 1190.4 | K16: =(((($D$4-$E$4)/(LN(($D$4-$F$4)/($E$4-$F$4))))/49.8328865456397)^'Qn H'!L$5)*('Qn H'!L$6*$B16/1000) -> 1400.4 | L16: =(((($D$4-$E$4)/(LN(($D$4-$F$4)/($E$4-$F$4))))/49.8328865456397)^'Qn H'!M$5)*('Qn H'!M$6*$B16/1000) -> 319.2 | M16: =(((($D$4-$E$4)/(LN(($D$4-$F$4)/($E$4-$F$4))))/49.8328865456397)^'Qn H'!N$5)*('Qn H'!N$6*$B16/1000) -> 493.2 | N16: =(((($D$4-$E$4)/(LN(($D$4-$F$4)/($E$4-$F$4))))/49.8328865456397)^'Qn H'!O$5)*('Qn H'!O$6*$B16/1000) -> 526.8 | O16: =(((($D$4-$E$4)/(LN(($D$4-$F$4)/($E$4-$F$4))))/49.8328865456397)^'Qn H'!P$5)*('Qn H'!P$6*$B16/1000) -> 697.2 | P16: =(((($D$4-$E$4)/(LN(($D$4-$F$4)/($E$4-$F$4))))/49.8328865456397)^'Qn H'!Q$5)*('Qn H'!Q$6*$B16/1000) -> 898.8 | Q16: =(((($D$4-$E$4)/(LN(($D$4-$F$4)/($E$4-$F$4))))/49.8328865456397)^'Qn H'!R$5)*('Qn H'!R$6*$B16/1000) -> 1035.6 | R16: =(((($D$4-$E$4)/(LN(($D$4-$F$4)/($E$4-$F$4))))/49.8328865456397)^'Qn H'!S$5)*('Qn H'!S$6*$B16/1000) -> 1690.8 | S16: =(((($D$4-$E$4)/(LN(($D$4-$F$4)/($E$4-$F$4))))/49.8328865456397)^'Qn H'!T$5)*('Qn H'!T$6*$B16/1000) -> 2046 | W16: 1200 | Y16: =Sortiment!A15 -> 1 | Z16: =Sortiment!A135 -> 1 | AA16: =Sortiment!A255 -> 1 | AB16: =Sortiment!A375 -> 1 | AC16: =Sortiment!A495 -> 1 | AD16: =Sortiment!A615 -> 1 | AE16: =Sortiment!A645 -> 1 | AF16: =Sortiment!A675 -> 1 | AG16: =Sortiment!A30 -> 1 | AH16: =Sortiment!A150 -> 1 | AI16: =Sortiment!A270 -> 1 | AJ16: =Sortiment!A390 -> 1 | AK16: =Sortiment!A510 -> 1 | AL16: =IF(logic!$C$2="KHVKM",0,Sortiment!A630) -> 1 | AM16: =IF(logic!$C$2="KHVKM",0,Sortiment!A660) -> 1 | AN16: =IF(logic!$C$2="KHVKM",0,Sortiment!A690) -> 1
B17: 1400 | D17: =(((($D$4-$E$4)/(LN(($D$4-$F$4)/($E$4-$F$4))))/49.8328865456397)^'Qn H'!E$5)*('Qn H'!E$6*$B17/1000) -> 278.6 | E17: =(((($D$4-$E$4)/(LN(($D$4-$F$4)/($E$4-$F$4))))/49.8328865456397)^'Qn H'!F$5)*('Qn H'!F$6*$B17/1000) -> 404.6 | F17: =(((($D$4-$E$4)/(LN(($D$4-$F$4)/($E$4-$F$4))))/49.8328865456397)^'Qn H'!G$5)*('Qn H'!G$6*$B17/1000) -> 445.2 | G17: =(((($D$4-$E$4)/(LN(($D$4-$F$4)/($E$4-$F$4))))/49.8328865456397)^'Qn H'!H$5)*('Qn H'!H$6*$B17/1000) -> 583.8 | H17: =(((($D$4-$E$4)/(LN(($D$4-$F$4)/($E$4-$F$4))))/49.8328865456397)^'Qn H'!I$5)*('Qn H'!I$6*$B17/1000) -> 747.6 | I17: =(((($D$4-$E$4)/(LN(($D$4-$F$4)/($E$4-$F$4))))/49.8328865456397)^'Qn H'!J$5)*('Qn H'!J$6*$B17/1000) -> 810.6 | J17: =(((($D$4-$E$4)/(LN(($D$4-$F$4)/($E$4-$F$4))))/49.8328865456397)^'Qn H'!K$5)*('Qn H'!K$6*$B17/1000) -> 1388.8 | K17: =(((($D$4-$E$4)/(LN(($D$4-$F$4)/($E$4-$F$4))))/49.8328865456397)^'Qn H'!L$5)*('Qn H'!L$6*$B17/1000) -> 1633.8 | L17: =(((($D$4-$E$4)/(LN(($D$4-$F$4)/($E$4-$F$4))))/49.8328865456397)^'Qn H'!M$5)*('Qn H'!M$6*$B17/1000) -> 372.4 | M17: =(((($D$4-$E$4)/(LN(($D$4-$F$4)/($E$4-$F$4))))/49.8328865456397)^'Qn H'!N$5)*('Qn H'!N$6*$B17/1000) -> 575.4 | N17: =(((($D$4-$E$4)/(LN(($D$4-$F$4)/($E$4-$F$4))))/49.8328865456397)^'Qn H'!O$5)*('Qn H'!O$6*$B17/1000) -> 614.6 | O17: =(((($D$4-$E$4)/(LN(($D$4-$F$4)/($E$4-$F$4))))/49.8328865456397)^'Qn H'!P$5)*('Qn H'!P$6*$B17/1000) -> 813.4 | P17: =(((($D$4-$E$4)/(LN(($D$4-$F$4)/($E$4-$F$4))))/49.8328865456397)^'Qn H'!Q$5)*('Qn H'!Q$6*$B17/1000) -> 1048.6 | Q17: =(((($D$4-$E$4)/(LN(($D$4-$F$4)/($E$4-$F$4))))/49.8328865456397)^'Qn H'!R$5)*('Qn H'!R$6*$B17/1000) -> 1208.2 | R17: =(((($D$4-$E$4)/(LN(($D$4-$F$4)/($E$4-$F$4))))/49.8328865456397)^'Qn H'!S$5)*('Qn H'!S$6*$B17/1000) -> 1972.6 | S17: =(((($D$4-$E$4)/(LN(($D$4-$F$4)/($E$4-$F$4))))/49.8328865456397)^'Qn H'!T$5)*('Qn H'!T$6*$B17/1000) -> 2387 | W17: 1400 | Y17: =Sortiment!A16 -> 1 | Z17: =Sortiment!A136 -> 1 | AA17: =Sortiment!A256 -> 1 | AB17: =Sortiment!A376 -> 1 | AC17: =Sortiment!A496 -> 1 | AD17: =Sortiment!A616 -> 1 | AE17: =Sortiment!A646 -> 1 | AF17: =Sortiment!A676 -> 1 | AG17: =Sortiment!A31 -> 1 | AH17: =Sortiment!A151 -> 1 | AI17: =Sortiment!A271 -> 1 | AJ17: =Sortiment!A391 -> 1 | AK17: =Sortiment!A511 -> 1 | AL17: =IF(logic!$C$2="KHVKM",0,Sortiment!A631) -> 1 | AM17: =IF(logic!$C$2="KHVKM",0,Sortiment!A661) -> 1 | AN17: =IF(logic!$C$2="KHVKM",0,Sortiment!A691) -> 1
B18: 1600 | D18: =(((($D$4-$E$4)/(LN(($D$4-$F$4)/($E$4-$F$4))))/49.8328865456397)^'Qn H'!E$5)*('Qn H'!E$6*$B18/1000) -> 318.4 | E18: =(((($D$4-$E$4)/(LN(($D$4-$F$4)/($E$4-$F$4))))/49.8328865456397)^'Qn H'!F$5)*('Qn H'!F$6*$B18/1000) -> 462.4 | F18: =(((($D$4-$E$4)/(LN(($D$4-$F$4)/($E$4-$F$4))))/49.8328865456397)^'Qn H'!G$5)*('Qn H'!G$6*$B18/1000) -> 508.8 | G18: =(((($D$4-$E$4)/(LN(($D$4-$F$4)/($E$4-$F$4))))/49.8328865456397)^'Qn H'!H$5)*('Qn H'!H$6*$B18/1000) -> 667.2 | H18: =(((($D$4-$E$4)/(LN(($D$4-$F$4)/($E$4-$F$4))))/49.8328865456397)^'Qn H'!I$5)*('Qn H'!I$6*$B18/1000) -> 854.4 | I18: =(((($D$4-$E$4)/(LN(($D$4-$F$4)/($E$4-$F$4))))/49.8328865456397)^'Qn H'!J$5)*('Qn H'!J$6*$B18/1000) -> 926.4 | J18: =(((($D$4-$E$4)/(LN(($D$4-$F$4)/($E$4-$F$4))))/49.8328865456397)^'Qn H'!K$5)*('Qn H'!K$6*$B18/1000) -> 1587.2 | K18: =(((($D$4-$E$4)/(LN(($D$4-$F$4)/($E$4-$F$4))))/49.8328865456397)^'Qn H'!L$5)*('Qn H'!L$6*$B18/1000) -> 1867.2 | L18: =(((($D$4-$E$4)/(LN(($D$4-$F$4)/($E$4-$F$4))))/49.8328865456397)^'Qn H'!M$5)*('Qn H'!M$6*$B18/1000) -> 425.6 | M18: =(((($D$4-$E$4)/(LN(($D$4-$F$4)/($E$4-$F$4))))/49.8328865456397)^'Qn H'!N$5)*('Qn H'!N$6*$B18/1000) -> 657.6 | N18: =(((($D$4-$E$4)/(LN(($D$4-$F$4)/($E$4-$F$4))))/49.8328865456397)^'Qn H'!O$5)*('Qn H'!O$6*$B18/1000) -> 702.4 | O18: =(((($D$4-$E$4)/(LN(($D$4-$F$4)/($E$4-$F$4))))/49.8328865456397)^'Qn H'!P$5)*('Qn H'!P$6*$B18/1000) -> 929.6 | P18: =(((($D$4-$E$4)/(LN(($D$4-$F$4)/($E$4-$F$4))))/49.8328865456397)^'Qn H'!Q$5)*('Qn H'!Q$6*$B18/1000) -> 1198.4 | Q18: =(((($D$4-$E$4)/(LN(($D$4-$F$4)/($E$4-$F$4))))/49.8328865456397)^'Qn H'!R$5)*('Qn H'!R$6*$B18/1000) -> 1380.8 | R18: =(((($D$4-$E$4)/(LN(($D$4-$F$4)/($E$4-$F$4))))/49.8328865456397)^'Qn H'!S$5)*('Qn H'!S$6*$B18/1000) -> 2254.4 | S18: =(((($D$4-$E$4)/(LN(($D$4-$F$4)/($E$4-$F$4))))/49.8328865456397)^'Qn H'!T$5)*('Qn H'!T$6*$B18/1000) -> 2728 | W18: 1600 | Y18: =Sortiment!A17 -> 1 | Z18: =Sortiment!A137 -> 1 | AA18: =Sortiment!A257 -> 1 | AB18: =Sortiment!A377 -> 1 | AC18: =Sortiment!A497 -> 1 | AD18: =Sortiment!A617 -> 1 | AE18: =Sortiment!A647 -> 1 | AF18: =Sortiment!A677 -> 1 | AG18: =Sortiment!A32 -> 1 | AH18: =Sortiment!A152 -> 1 | AI18: =Sortiment!A272 -> 1 | AJ18: =Sortiment!A392 -> 1 | AK18: =Sortiment!A512 -> 1 | AL18: =IF(logic!$C$2="KHVKM",0,Sortiment!A632) -> 1 | AM18: =IF(logic!$C$2="KHVKM",0,Sortiment!A662) -> 1 | AN18: =IF(logic!$C$2="KHVKM",0,Sortiment!A692) -> 1
B19: 1800 | D19: =(((($D$4-$E$4)/(LN(($D$4-$F$4)/($E$4-$F$4))))/49.8328865456397)^'Qn H'!E$5)*('Qn H'!E$6*$B19/1000) -> 358.2 | E19: =(((($D$4-$E$4)/(LN(($D$4-$F$4)/($E$4-$F$4))))/49.8328865456397)^'Qn H'!F$5)*('Qn H'!F$6*$B19/1000) -> 520.2 | F19: =(((($D$4-$E$4)/(LN(($D$4-$F$4)/($E$4-$F$4))))/49.8328865456397)^'Qn H'!G$5)*('Qn H'!G$6*$B19/1000) -> 572.4 | G19: =(((($D$4-$E$4)/(LN(($D$4-$F$4)/($E$4-$F$4))))/49.8328865456397)^'Qn H'!H$5)*('Qn H'!H$6*$B19/1000) -> 750.6 | H19: =(((($D$4-$E$4)/(LN(($D$4-$F$4)/($E$4-$F$4))))/49.8328865456397)^'Qn H'!I$5)*('Qn H'!I$6*$B19/1000) -> 961.2 | I19: =(((($D$4-$E$4)/(LN(($D$4-$F$4)/($E$4-$F$4))))/49.8328865456397)^'Qn H'!J$5)*('Qn H'!J$6*$B19/1000) -> 1042.2 | J19: =(((($D$4-$E$4)/(LN(($D$4-$F$4)/($E$4-$F$4))))/49.8328865456397)^'Qn H'!K$5)*('Qn H'!K$6*$B19/1000) -> 1785.6 | K19: =(((($D$4-$E$4)/(LN(($D$4-$F$4)/($E$4-$F$4))))/49.8328865456397)^'Qn H'!L$5)*('Qn H'!L$6*$B19/1000) -> 2100.6 | L19: =(((($D$4-$E$4)/(LN(($D$4-$F$4)/($E$4-$F$4))))/49.8328865456397)^'Qn H'!M$5)*('Qn H'!M$6*$B19/1000) -> 478.8 | M19: =(((($D$4-$E$4)/(LN(($D$4-$F$4)/($E$4-$F$4))))/49.8328865456397)^'Qn H'!N$5)*('Qn H'!N$6*$B19/1000) -> 739.8 | N19: =(((($D$4-$E$4)/(LN(($D$4-$F$4)/($E$4-$F$4))))/49.8328865456397)^'Qn H'!O$5)*('Qn H'!O$6*$B19/1000) -> 790.2 | O19: =(((($D$4-$E$4)/(LN(($D$4-$F$4)/($E$4-$F$4))))/49.8328865456397)^'Qn H'!P$5)*('Qn H'!P$6*$B19/1000) -> 1045.8 | P19: =(((($D$4-$E$4)/(LN(($D$4-$F$4)/($E$4-$F$4))))/49.8328865456397)^'Qn H'!Q$5)*('Qn H'!Q$6*$B19/1000) -> 1348.2 | Q19: =(((($D$4-$E$4)/(LN(($D$4-$F$4)/($E$4-$F$4))))/49.8328865456397)^'Qn H'!R$5)*('Qn H'!R$6*$B19/1000) -> 1553.4 | R19: =(((($D$4-$E$4)/(LN(($D$4-$F$4)/($E$4-$F$4))))/49.8328865456397)^'Qn H'!S$5)*('Qn H'!S$6*$B19/1000) -> 2536.2 | S19: =(((($D$4-$E$4)/(LN(($D$4-$F$4)/($E$4-$F$4))))/49.8328865456397)^'Qn H'!T$5)*('Qn H'!T$6*$B19/1000) -> 3069 | W19: 1800 | Y19: =Sortiment!A18 -> 1 | Z19: =Sortiment!A138 -> 1 | AA19: =Sortiment!A258 -> 1 | AB19: =Sortiment!A378 -> 1 | AC19: =Sortiment!A498 -> 1 | AD19: =Sortiment!A618 -> 1 | AE19: =Sortiment!A648 -> 1 | AF19: =Sortiment!A678 -> 1 | AG19: =Sortiment!A33 -> 1 | AH19: =Sortiment!A153 -> 1 | AI19: =Sortiment!A273 -> 1 | AJ19: =Sortiment!A393 -> 1 | AK19: =Sortiment!A513 -> 1 | AL19: =IF(logic!$C$2="KHVKM",0,Sortiment!A633) -> 1 | AM19: =IF(logic!$C$2="KHVKM",0,Sortiment!A663) -> 1 | AN19: =IF(logic!$C$2="KHVKM",0,Sortiment!A693) -> 1
B20: 2000 | D20: =(((($D$4-$E$4)/(LN(($D$4-$F$4)/($E$4-$F$4))))/49.8328865456397)^'Qn H'!E$5)*('Qn H'!E$6*$B20/1000) -> 398 | E20: =(((($D$4-$E$4)/(LN(($D$4-$F$4)/($E$4-$F$4))))/49.8328865456397)^'Qn H'!F$5)*('Qn H'!F$6*$B20/1000) -> 578 | F20: =(((($D$4-$E$4)/(LN(($D$4-$F$4)/($E$4-$F$4))))/49.8328865456397)^'Qn H'!G$5)*('Qn H'!G$6*$B20/1000) -> 636 | G20: =(((($D$4-$E$4)/(LN(($D$4-$F$4)/($E$4-$F$4))))/49.8328865456397)^'Qn H'!H$5)*('Qn H'!H$6*$B20/1000) -> 834 | H20: =(((($D$4-$E$4)/(LN(($D$4-$F$4)/($E$4-$F$4))))/49.8328865456397)^'Qn H'!I$5)*('Qn H'!I$6*$B20/1000) -> 1068 | I20: =(((($D$4-$E$4)/(LN(($D$4-$F$4)/($E$4-$F$4))))/49.8328865456397)^'Qn H'!J$5)*('Qn H'!J$6*$B20/1000) -> 1158 | J20: =(((($D$4-$E$4)/(LN(($D$4-$F$4)/($E$4-$F$4))))/49.8328865456397)^'Qn H'!K$5)*('Qn H'!K$6*$B20/1000) -> 1984 | K20: =(((($D$4-$E$4)/(LN(($D$4-$F$4)/($E$4-$F$4))))/49.8328865456397)^'Qn H'!L$5)*('Qn H'!L$6*$B20/1000) -> 2334 | L20: =(((($D$4-$E$4)/(LN(($D$4-$F$4)/($E$4-$F$4))))/49.8328865456397)^'Qn H'!M$5)*('Qn H'!M$6*$B20/1000) -> 532 | M20: =(((($D$4-$E$4)/(LN(($D$4-$F$4)/($E$4-$F$4))))/49.8328865456397)^'Qn H'!N$5)*('Qn H'!N$6*$B20/1000) -> 822 | N20: =(((($D$4-$E$4)/(LN(($D$4-$F$4)/($E$4-$F$4))))/49.8328865456397)^'Qn H'!O$5)*('Qn H'!O$6*$B20/1000) -> 878 | O20: =(((($D$4-$E$4)/(LN(($D$4-$F$4)/($E$4-$F$4))))/49.8328865456397)^'Qn H'!P$5)*('Qn H'!P$6*$B20/1000) -> 1162 | P20: =(((($D$4-$E$4)/(LN(($D$4-$F$4)/($E$4-$F$4))))/49.8328865456397)^'Qn H'!Q$5)*('Qn H'!Q$6*$B20/1000) -> 1498 | Q20: =(((($D$4-$E$4)/(LN(($D$4-$F$4)/($E$4-$F$4))))/49.8328865456397)^'Qn H'!R$5)*('Qn H'!R$6*$B20/1000) -> 1726 | R20: =(((($D$4-$E$4)/(LN(($D$4-$F$4)/($E$4-$F$4))))/49.8328865456397)^'Qn H'!S$5)*('Qn H'!S$6*$B20/1000) -> 2818 | S20: =(((($D$4-$E$4)/(LN(($D$4-$F$4)/($E$4-$F$4))))/49.8328865456397)^'Qn H'!T$5)*('Qn H'!T$6*$B20/1000) -> 3410 | W20: 2000 | Y20: =Sortiment!A19 -> 1 | Z20: =Sortiment!A139 -> 1 | AA20: =Sortiment!A259 -> 1 | AB20: =Sortiment!A379 -> 1 | AC20: =Sortiment!A499 -> 1 | AD20: =Sortiment!A619 -> 1 | AE20: =Sortiment!A649 -> 1 | AF20: =Sortiment!A679 -> 1 | AG20: =Sortiment!A34 -> 1 | AH20: =Sortiment!A154 -> 1 | AI20: =Sortiment!A274 -> 1 | AJ20: =Sortiment!A394 -> 1 | AK20: =Sortiment!A514 -> 1 | AL20: =IF(logic!$C$2="KHVKM",0,Sortiment!A634) -> 1 | AM20: =IF(logic!$C$2="KHVKM",0,Sortiment!A664) -> 1 | AN20: =IF(logic!$C$2="KHVKM",0,Sortiment!A694) -> 1
B21: 2300 | D21: =(((($D$4-$E$4)/(LN(($D$4-$F$4)/($E$4-$F$4))))/49.8328865456397)^'Qn H'!E$5)*('Qn H'!E$6*$B21/1000) -> 457.7 | E21: =(((($D$4-$E$4)/(LN(($D$4-$F$4)/($E$4-$F$4))))/49.8328865456397)^'Qn H'!F$5)*('Qn H'!F$6*$B21/1000) -> 664.7 | F21: =(((($D$4-$E$4)/(LN(($D$4-$F$4)/($E$4-$F$4))))/49.8328865456397)^'Qn H'!G$5)*('Qn H'!G$6*$B21/1000) -> 731.4 | G21: =(((($D$4-$E$4)/(LN(($D$4-$F$4)/($E$4-$F$4))))/49.8328865456397)^'Qn H'!H$5)*('Qn H'!H$6*$B21/1000) -> 959.1 | H21: =(((($D$4-$E$4)/(LN(($D$4-$F$4)/($E$4-$F$4))))/49.8328865456397)^'Qn H'!I$5)*('Qn H'!I$6*$B21/1000) -> 1228.2 | I21: =(((($D$4-$E$4)/(LN(($D$4-$F$4)/($E$4-$F$4))))/49.8328865456397)^'Qn H'!J$5)*('Qn H'!J$6*$B21/1000) -> 1331.7 | J21: =(((($D$4-$E$4)/(LN(($D$4-$F$4)/($E$4-$F$4))))/49.8328865456397)^'Qn H'!K$5)*('Qn H'!K$6*$B21/1000) -> 2281.6 | K21: =(((($D$4-$E$4)/(LN(($D$4-$F$4)/($E$4-$F$4))))/49.8328865456397)^'Qn H'!L$5)*('Qn H'!L$6*$B21/1000) -> 2684.1 | L21: =(((($D$4-$E$4)/(LN(($D$4-$F$4)/($E$4-$F$4))))/49.8328865456397)^'Qn H'!M$5)*('Qn H'!M$6*$B21/1000) -> 611.8 | M21: =(((($D$4-$E$4)/(LN(($D$4-$F$4)/($E$4-$F$4))))/49.8328865456397)^'Qn H'!N$5)*('Qn H'!N$6*$B21/1000) -> 945.3 | N21: =(((($D$4-$E$4)/(LN(($D$4-$F$4)/($E$4-$F$4))))/49.8328865456397)^'Qn H'!O$5)*('Qn H'!O$6*$B21/1000) -> 1009.7 | O21: =(((($D$4-$E$4)/(LN(($D$4-$F$4)/($E$4-$F$4))))/49.8328865456397)^'Qn H'!P$5)*('Qn H'!P$6*$B21/1000) -> 1336.3 | P21: =(((($D$4-$E$4)/(LN(($D$4-$F$4)/($E$4-$F$4))))/49.8328865456397)^'Qn H'!Q$5)*('Qn H'!Q$6*$B21/1000) -> 1722.7 | Q21: =(((($D$4-$E$4)/(LN(($D$4-$F$4)/($E$4-$F$4))))/49.8328865456397)^'Qn H'!R$5)*('Qn H'!R$6*$B21/1000) -> 1984.9 | R21: =(((($D$4-$E$4)/(LN(($D$4-$F$4)/($E$4-$F$4))))/49.8328865456397)^'Qn H'!S$5)*('Qn H'!S$6*$B21/1000) -> 3240.7 | S21: =(((($D$4-$E$4)/(LN(($D$4-$F$4)/($E$4-$F$4))))/49.8328865456397)^'Qn H'!T$5)*('Qn H'!T$6*$B21/1000) -> 3921.5 | W21: 2300 | Y21: =Sortiment!A20 -> 1 | Z21: =Sortiment!A140 -> 1 | AA21: =Sortiment!A260 -> 1 | AB21: =Sortiment!A380 -> 1 | AC21: =Sortiment!A500 -> 1 | AD21: =Sortiment!A620 -> 1 | AE21: =Sortiment!A650 -> 1 | AF21: =Sortiment!A680 -> 1 | AG21: =Sortiment!A35 -> 1 | AH21: =Sortiment!A155 -> 1 | AI21: =Sortiment!A275 -> 1 | AJ21: =Sortiment!A395 -> 1 | AK21: =Sortiment!A515 -> 1 | AL21: =IF(logic!$C$2="KHVKM",0,Sortiment!A635) -> 1 | AM21: =IF(logic!$C$2="KHVKM",0,Sortiment!A665) -> 1 | AN21: =IF(logic!$C$2="KHVKM",0,Sortiment!A695) -> 1
B22: 2600 | D22: =(((($D$4-$E$4)/(LN(($D$4-$F$4)/($E$4-$F$4))))/49.8328865456397)^'Qn H'!E$5)*('Qn H'!E$6*$B22/1000) -> 517.4 | E22: =(((($D$4-$E$4)/(LN(($D$4-$F$4)/($E$4-$F$4))))/49.8328865456397)^'Qn H'!F$5)*('Qn H'!F$6*$B22/1000) -> 751.4 | F22: =(((($D$4-$E$4)/(LN(($D$4-$F$4)/($E$4-$F$4))))/49.8328865456397)^'Qn H'!G$5)*('Qn H'!G$6*$B22/1000) -> 826.8 | G22: =(((($D$4-$E$4)/(LN(($D$4-$F$4)/($E$4-$F$4))))/49.8328865456397)^'Qn H'!H$5)*('Qn H'!H$6*$B22/1000) -> 1084.2 | H22: =(((($D$4-$E$4)/(LN(($D$4-$F$4)/($E$4-$F$4))))/49.8328865456397)^'Qn H'!I$5)*('Qn H'!I$6*$B22/1000) -> 1388.4 | I22: =(((($D$4-$E$4)/(LN(($D$4-$F$4)/($E$4-$F$4))))/49.8328865456397)^'Qn H'!J$5)*('Qn H'!J$6*$B22/1000) -> 1505.4 | J22: =(((($D$4-$E$4)/(LN(($D$4-$F$4)/($E$4-$F$4))))/49.8328865456397)^'Qn H'!K$5)*('Qn H'!K$6*$B22/1000) -> 2579.2 | K22: =(((($D$4-$E$4)/(LN(($D$4-$F$4)/($E$4-$F$4))))/49.8328865456397)^'Qn H'!L$5)*('Qn H'!L$6*$B22/1000) -> 3034.2 | L22: =(((($D$4-$E$4)/(LN(($D$4-$F$4)/($E$4-$F$4))))/49.8328865456397)^'Qn H'!M$5)*('Qn H'!M$6*$B22/1000) -> 691.6 | M22: =(((($D$4-$E$4)/(LN(($D$4-$F$4)/($E$4-$F$4))))/49.8328865456397)^'Qn H'!N$5)*('Qn H'!N$6*$B22/1000) -> 1068.6 | N22: =(((($D$4-$E$4)/(LN(($D$4-$F$4)/($E$4-$F$4))))/49.8328865456397)^'Qn H'!O$5)*('Qn H'!O$6*$B22/1000) -> 1141.4 | O22: =(((($D$4-$E$4)/(LN(($D$4-$F$4)/($E$4-$F$4))))/49.8328865456397)^'Qn H'!P$5)*('Qn H'!P$6*$B22/1000) -> 1510.6 | P22: =(((($D$4-$E$4)/(LN(($D$4-$F$4)/($E$4-$F$4))))/49.8328865456397)^'Qn H'!Q$5)*('Qn H'!Q$6*$B22/1000) -> 1947.4 | Q22: =(((($D$4-$E$4)/(LN(($D$4-$F$4)/($E$4-$F$4))))/49.8328865456397)^'Qn H'!R$5)*('Qn H'!R$6*$B22/1000) -> 2243.8 | R22: =(((($D$4-$E$4)/(LN(($D$4-$F$4)/($E$4-$F$4))))/49.8328865456397)^'Qn H'!S$5)*('Qn H'!S$6*$B22/1000) -> 3663.4 | S22: =(((($D$4-$E$4)/(LN(($D$4-$F$4)/($E$4-$F$4))))/49.8328865456397)^'Qn H'!T$5)*('Qn H'!T$6*$B22/1000) -> 4433 | W22: 2600 | Y22: =Sortiment!A21 -> 1 | Z22: =Sortiment!A141 -> 1 | AA22: =Sortiment!A261 -> 1 | AB22: =Sortiment!A381 -> 1 | AC22: =Sortiment!A501 -> 1 | AD22: =Sortiment!A621 -> 1 | AE22: =Sortiment!A651 -> 1 | AF22: =Sortiment!A681 -> 1 | AG22: =Sortiment!A36 -> 1 | AH22: =Sortiment!A156 -> 1 | AI22: =Sortiment!A276 -> 1 | AJ22: =Sortiment!A396 -> 1 | AK22: =Sortiment!A516 -> 1 | AL22: =IF(logic!$C$2="KHVKM",0,Sortiment!A636) -> 1 | AM22: =IF(logic!$C$2="KHVKM",0,Sortiment!A666) -> 1 | AN22: =IF(logic!$C$2="KHVKM",0,Sortiment!A696) -> 1
B23: 3000 | D23: =(((($D$4-$E$4)/(LN(($D$4-$F$4)/($E$4-$F$4))))/49.8328865456397)^'Qn H'!E$5)*('Qn H'!E$6*$B23/1000) -> 597 | E23: =(((($D$4-$E$4)/(LN(($D$4-$F$4)/($E$4-$F$4))))/49.8328865456397)^'Qn H'!F$5)*('Qn H'!F$6*$B23/1000) -> 867 | F23: =(((($D$4-$E$4)/(LN(($D$4-$F$4)/($E$4-$F$4))))/49.8328865456397)^'Qn H'!G$5)*('Qn H'!G$6*$B23/1000) -> 954 | G23: =(((($D$4-$E$4)/(LN(($D$4-$F$4)/($E$4-$F$4))))/49.8328865456397)^'Qn H'!H$5)*('Qn H'!H$6*$B23/1000) -> 1251 | H23: =(((($D$4-$E$4)/(LN(($D$4-$F$4)/($E$4-$F$4))))/49.8328865456397)^'Qn H'!I$5)*('Qn H'!I$6*$B23/1000) -> 1602 | I23: =(((($D$4-$E$4)/(LN(($D$4-$F$4)/($E$4-$F$4))))/49.8328865456397)^'Qn H'!J$5)*('Qn H'!J$6*$B23/1000) -> 1737 | J23: =(((($D$4-$E$4)/(LN(($D$4-$F$4)/($E$4-$F$4))))/49.8328865456397)^'Qn H'!K$5)*('Qn H'!K$6*$B23/1000) -> 2976 | K23: =(((($D$4-$E$4)/(LN(($D$4-$F$4)/($E$4-$F$4))))/49.8328865456397)^'Qn H'!L$5)*('Qn H'!L$6*$B23/1000) -> 3501 | L23: =(((($D$4-$E$4)/(LN(($D$4-$F$4)/($E$4-$F$4))))/49.8328865456397)^'Qn H'!M$5)*('Qn H'!M$6*$B23/1000) -> 798 | M23: =(((($D$4-$E$4)/(LN(($D$4-$F$4)/($E$4-$F$4))))/49.8328865456397)^'Qn H'!N$5)*('Qn H'!N$6*$B23/1000) -> 1233 | N23: =(((($D$4-$E$4)/(LN(($D$4-$F$4)/($E$4-$F$4))))/49.8328865456397)^'Qn H'!O$5)*('Qn H'!O$6*$B23/1000) -> 1317 | O23: =(((($D$4-$E$4)/(LN(($D$4-$F$4)/($E$4-$F$4))))/49.8328865456397)^'Qn H'!P$5)*('Qn H'!P$6*$B23/1000) -> 1743 | P23: =(((($D$4-$E$4)/(LN(($D$4-$F$4)/($E$4-$F$4))))/49.8328865456397)^'Qn H'!Q$5)*('Qn H'!Q$6*$B23/1000) -> 2247 | Q23: =(((($D$4-$E$4)/(LN(($D$4-$F$4)/($E$4-$F$4))))/49.8328865456397)^'Qn H'!R$5)*('Qn H'!R$6*$B23/1000) -> 2589 | R23: =(((($D$4-$E$4)/(LN(($D$4-$F$4)/($E$4-$F$4))))/49.8328865456397)^'Qn H'!S$5)*('Qn H'!S$6*$B23/1000) -> 4227 | S23: =(((($D$4-$E$4)/(LN(($D$4-$F$4)/($E$4-$F$4))))/49.8328865456397)^'Qn H'!T$5)*('Qn H'!T$6*$B23/1000) -> 5115 | W23: 3000 | Y23: =Sortiment!A22 -> 1 | Z23: =Sortiment!A142 -> 1 | AA23: =Sortiment!A262 -> 1 | AB23: =Sortiment!A382 -> 1 | AC23: =Sortiment!A502 -> 1 | AD23: =Sortiment!A622 -> 1 | AE23: =Sortiment!A652 -> 1 | AF23: =Sortiment!A682 -> 1 | AG23: =Sortiment!A37 -> 1 | AH23: =Sortiment!A157 -> 1 | AI23: =Sortiment!A277 -> 1 | AJ23: =Sortiment!A397 -> 1 | AK23: =Sortiment!A517 -> 1 | AL23: =IF(logic!$C$2="KHVKM",0,Sortiment!A637) -> 1 | AM23: =IF(logic!$C$2="KHVKM",0,Sortiment!A667) -> 1 | AN23: =IF(logic!$C$2="KHVKM",0,Sortiment!A697) -> 1
C26: Výška [mm] | F26: ='Qn H'!G7 -> 366 | N26: ='Qn H'!O7 -> 514 | X26: Výška [mm] | AA26: 366 | AI26: 514
B27: Délka [mm] | D27: ='Qn H'!E8 -> K10H | E27: ='Qn H'!F8 -> K11H | F27: ='Qn H'!G8 -> K20H | G27: ='Qn H'!H8 -> K21H | H27: ='Qn H'!I8 -> K22H | I27: ='Qn H'!J8 -> 0 | J27: ='Qn H'!K8 -> 0 | K27: ='Qn H'!L8 -> 0 | L27: ='Qn H'!M8 -> K10H | M27: ='Qn H'!N8 -> K11H | N27: ='Qn H'!O8 -> K20H | O27: ='Qn H'!P8 -> K21H | P27: ='Qn H'!Q8 -> K22H | Q27: ='Qn H'!R8 -> 0 | R27: ='Qn H'!S8 -> 0 | S27: ='Qn H'!T8 -> 0 | W27: Délka [mm] | Y27: =D27 -> K10H | Z27: K11H | AA27: K20H | AB27: K21H | AC27: K22H | AD27: 0 | AE27: 0 | AF27: 0 | AG27: K10H | AH27: K11H | AI27: K20H | AJ27: K21H | AK27: K22H | AL27: 0 | AM27: 0 | AN27: 0
B28: 500 | D28: =(((($D$4-$E$4)/(LN(($D$4-$F$4)/($E$4-$F$4))))/49.8328865456397)^'Qn H'!E$9)*('Qn H'!E$10*$B9/1000) -> 197.5 | E28: =(((($D$4-$E$4)/(LN(($D$4-$F$4)/($E$4-$F$4))))/49.8328865456397)^'Qn H'!F$9)*('Qn H'!F$10*$B9/1000) -> 319 | F28: =(((($D$4-$E$4)/(LN(($D$4-$F$4)/($E$4-$F$4))))/49.8328865456397)^'Qn H'!G$9)*('Qn H'!G$10*$B9/1000) -> 333.5 | G28: =(((($D$4-$E$4)/(LN(($D$4-$F$4)/($E$4-$F$4))))/49.8328865456397)^'Qn H'!H$9)*('Qn H'!H$10*$B9/1000) -> 435.5 | H28: =(((($D$4-$E$4)/(LN(($D$4-$F$4)/($E$4-$F$4))))/49.8328865456397)^'Qn H'!I$9)*('Qn H'!I$10*$B9/1000) -> 603.5 | I28: =(((($D$4-$E$4)/(LN(($D$4-$F$4)/($E$4-$F$4))))/49.8328865456397)^'Qn H'!J$9)*('Qn H'!J$10*$B9/1000) -> 0 | J28: =(((($D$4-$E$4)/(LN(($D$4-$F$4)/($E$4-$F$4))))/49.8328865456397)^'Qn H'!K$9)*('Qn H'!K$10*$B9/1000) -> 0 | K28: =(((($D$4-$E$4)/(LN(($D$4-$F$4)/($E$4-$F$4))))/49.8328865456397)^'Qn H'!L$9)*('Qn H'!L$10*$B9/1000) -> 0 | L28: =(((($D$4-$E$4)/(LN(($D$4-$F$4)/($E$4-$F$4))))/49.8328865456397)^'Qn H'!M$9)*('Qn H'!M$10*$B9/1000) -> 263.5 | M28: =(((($D$4-$E$4)/(LN(($D$4-$F$4)/($E$4-$F$4))))/49.8328865456397)^'Qn H'!N$9)*('Qn H'!N$10*$B9/1000) -> 424 | N28: =(((($D$4-$E$4)/(LN(($D$4-$F$4)/($E$4-$F$4))))/49.8328865456397)^'Qn H'!O$9)*('Qn H'!O$10*$B9/1000) -> 446 | O28: =(((($D$4-$E$4)/(LN(($D$4-$F$4)/($E$4-$F$4))))/49.8328865456397)^'Qn H'!P$9)*('Qn H'!P$10*$B9/1000) -> 564 | P28: =(((($D$4-$E$4)/(LN(($D$4-$F$4)/($E$4-$F$4))))/49.8328865456397)^'Qn H'!Q$9)*('Qn H'!Q$10*$B9/1000) -> 777 | Q28: =(((($D$4-$E$4)/(LN(($D$4-$F$4)/($E$4-$F$4))))/49.8328865456397)^'Qn H'!R$9)*('Qn H'!R$10*$B9/1000) -> 0 | R28: =(((($D$4-$E$4)/(LN(($D$4-$F$4)/($E$4-$F$4))))/49.8328865456397)^'Qn H'!S$9)*('Qn H'!S$10*$B9/1000) -> 0 | S28: =(((($D$4-$E$4)/(LN(($D$4-$F$4)/($E$4-$F$4))))/49.8328865456397)^'Qn H'!T$9)*('Qn H'!T$10*$B9/1000) -> 0 | W28: 500 | Y28: =Sortiment!A38 -> 1 | Z28: =Sortiment!A158 -> 1 | AA28: =Sortiment!A278 -> 1 | AB28: =Sortiment!A398 -> 1 | AC28: =Sortiment!A518 -> 1 | AG28: =Sortiment!A53 -> 1 | AH28: =Sortiment!A173 -> 1 | AI28: =Sortiment!A293 -> 1 | AJ28: =Sortiment!A413 -> 1 | AK28: =Sortiment!A533 -> 1
B29: 600 | D29: =(((($D$4-$E$4)/(LN(($D$4-$F$4)/($E$4-$F$4))))/49.8328865456397)^'Qn H'!E$9)*('Qn H'!E$10*$B10/1000) -> 237 | E29: =(((($D$4-$E$4)/(LN(($D$4-$F$4)/($E$4-$F$4))))/49.8328865456397)^'Qn H'!F$9)*('Qn H'!F$10*$B10/1000) -> 382.8 | F29: =(((($D$4-$E$4)/(LN(($D$4-$F$4)/($E$4-$F$4))))/49.8328865456397)^'Qn H'!G$9)*('Qn H'!G$10*$B10/1000) -> 400.2 | G29: =(((($D$4-$E$4)/(LN(($D$4-$F$4)/($E$4-$F$4))))/49.8328865456397)^'Qn H'!H$9)*('Qn H'!H$10*$B10/1000) -> 522.6 | H29: =(((($D$4-$E$4)/(LN(($D$4-$F$4)/($E$4-$F$4))))/49.8328865456397)^'Qn H'!I$9)*('Qn H'!I$10*$B10/1000) -> 724.2 | I29: =(((($D$4-$E$4)/(LN(($D$4-$F$4)/($E$4-$F$4))))/49.8328865456397)^'Qn H'!J$9)*('Qn H'!J$10*$B10/1000) -> 0 | J29: =(((($D$4-$E$4)/(LN(($D$4-$F$4)/($E$4-$F$4))))/49.8328865456397)^'Qn H'!K$9)*('Qn H'!K$10*$B10/1000) -> 0 | K29: =(((($D$4-$E$4)/(LN(($D$4-$F$4)/($E$4-$F$4))))/49.8328865456397)^'Qn H'!L$9)*('Qn H'!L$10*$B10/1000) -> 0 | L29: =(((($D$4-$E$4)/(LN(($D$4-$F$4)/($E$4-$F$4))))/49.8328865456397)^'Qn H'!M$9)*('Qn H'!M$10*$B10/1000) -> 316.2 | M29: =(((($D$4-$E$4)/(LN(($D$4-$F$4)/($E$4-$F$4))))/49.8328865456397)^'Qn H'!N$9)*('Qn H'!N$10*$B10/1000) -> 508.8 | N29: =(((($D$4-$E$4)/(LN(($D$4-$F$4)/($E$4-$F$4))))/49.8328865456397)^'Qn H'!O$9)*('Qn H'!O$10*$B10/1000) -> 535.2 | O29: =(((($D$4-$E$4)/(LN(($D$4-$F$4)/($E$4-$F$4))))/49.8328865456397)^'Qn H'!P$9)*('Qn H'!P$10*$B10/1000) -> 676.8 | P29: =(((($D$4-$E$4)/(LN(($D$4-$F$4)/($E$4-$F$4))))/49.8328865456397)^'Qn H'!Q$9)*('Qn H'!Q$10*$B10/1000) -> 932.4 | Q29: =(((($D$4-$E$4)/(LN(($D$4-$F$4)/($E$4-$F$4))))/49.8328865456397)^'Qn H'!R$9)*('Qn H'!R$10*$B10/1000) -> 0 | R29: =(((($D$4-$E$4)/(LN(($D$4-$F$4)/($E$4-$F$4))))/49.8328865456397)^'Qn H'!S$9)*('Qn H'!S$10*$B10/1000) -> 0 | S29: =(((($D$4-$E$4)/(LN(($D$4-$F$4)/($E$4-$F$4))))/49.8328865456397)^'Qn H'!T$9)*('Qn H'!T$10*$B10/1000) -> 0 | W29: 600 | Y29: =Sortiment!A39 -> 1 | Z29: =Sortiment!A159 -> 1 | AA29: =Sortiment!A279 -> 1 | AB29: =Sortiment!A399 -> 1 | AC29: =Sortiment!A519 -> 1 | AG29: =Sortiment!A54 -> 1 | AH29: =Sortiment!A174 -> 1 | AI29: =Sortiment!A294 -> 1 | AJ29: =Sortiment!A414 -> 1 | AK29: =Sortiment!A534 -> 1
B30: 700 | D30: =(((($D$4-$E$4)/(LN(($D$4-$F$4)/($E$4-$F$4))))/49.8328865456397)^'Qn H'!E$9)*('Qn H'!E$10*$B11/1000) -> 276.5 | E30: =(((($D$4-$E$4)/(LN(($D$4-$F$4)/($E$4-$F$4))))/49.8328865456397)^'Qn H'!F$9)*('Qn H'!F$10*$B11/1000) -> 446.6 | F30: =(((($D$4-$E$4)/(LN(($D$4-$F$4)/($E$4-$F$4))))/49.8328865456397)^'Qn H'!G$9)*('Qn H'!G$10*$B11/1000) -> 466.9 | G30: =(((($D$4-$E$4)/(LN(($D$4-$F$4)/($E$4-$F$4))))/49.8328865456397)^'Qn H'!H$9)*('Qn H'!H$10*$B11/1000) -> 609.7 | H30: =(((($D$4-$E$4)/(LN(($D$4-$F$4)/($E$4-$F$4))))/49.8328865456397)^'Qn H'!I$9)*('Qn H'!I$10*$B11/1000) -> 844.9 | I30: =(((($D$4-$E$4)/(LN(($D$4-$F$4)/($E$4-$F$4))))/49.8328865456397)^'Qn H'!J$9)*('Qn H'!J$10*$B11/1000) -> 0 | J30: =(((($D$4-$E$4)/(LN(($D$4-$F$4)/($E$4-$F$4))))/49.8328865456397)^'Qn H'!K$9)*('Qn H'!K$10*$B11/1000) -> 0 | K30: =(((($D$4-$E$4)/(LN(($D$4-$F$4)/($E$4-$F$4))))/49.8328865456397)^'Qn H'!L$9)*('Qn H'!L$10*$B11/1000) -> 0 | L30: =(((($D$4-$E$4)/(LN(($D$4-$F$4)/($E$4-$F$4))))/49.8328865456397)^'Qn H'!M$9)*('Qn H'!M$10*$B11/1000) -> 368.9 | M30: =(((($D$4-$E$4)/(LN(($D$4-$F$4)/($E$4-$F$4))))/49.8328865456397)^'Qn H'!N$9)*('Qn H'!N$10*$B11/1000) -> 593.6 | N30: =(((($D$4-$E$4)/(LN(($D$4-$F$4)/($E$4-$F$4))))/49.8328865456397)^'Qn H'!O$9)*('Qn H'!O$10*$B11/1000) -> 624.4 | O30: =(((($D$4-$E$4)/(LN(($D$4-$F$4)/($E$4-$F$4))))/49.8328865456397)^'Qn H'!P$9)*('Qn H'!P$10*$B11/1000) -> 789.6 | P30: =(((($D$4-$E$4)/(LN(($D$4-$F$4)/($E$4-$F$4))))/49.8328865456397)^'Qn H'!Q$9)*('Qn H'!Q$10*$B11/1000) -> 1087.8 | Q30: =(((($D$4-$E$4)/(LN(($D$4-$F$4)/($E$4-$F$4))))/49.8328865456397)^'Qn H'!R$9)*('Qn H'!R$10*$B11/1000) -> 0 | R30: =(((($D$4-$E$4)/(LN(($D$4-$F$4)/($E$4-$F$4))))/49.8328865456397)^'Qn H'!S$9)*('Qn H'!S$10*$B11/1000) -> 0 | S30: =(((($D$4-$E$4)/(LN(($D$4-$F$4)/($E$4-$F$4))))/49.8328865456397)^'Qn H'!T$9)*('Qn H'!T$10*$B11/1000) -> 0 | W30: 700 | Y30: =Sortiment!A40 -> 1 | Z30: =Sortiment!A160 -> 1 | AA30: =Sortiment!A280 -> 1 | AB30: =Sortiment!A400 -> 1 | AC30: =Sortiment!A520 -> 1 | AG30: =Sortiment!A55 -> 1 | AH30: =Sortiment!A175 -> 1 | AI30: =Sortiment!A295 -> 1 | AJ30: =Sortiment!A415 -> 1 | AK30: =Sortiment!A535 -> 1
B31: 800 | D31: =(((($D$4-$E$4)/(LN(($D$4-$F$4)/($E$4-$F$4))))/49.8328865456397)^'Qn H'!E$9)*('Qn H'!E$10*$B12/1000) -> 316 | E31: =(((($D$4-$E$4)/(LN(($D$4-$F$4)/($E$4-$F$4))))/49.8328865456397)^'Qn H'!F$9)*('Qn H'!F$10*$B12/1000) -> 510.4 | F31: =(((($D$4-$E$4)/(LN(($D$4-$F$4)/($E$4-$F$4))))/49.8328865456397)^'Qn H'!G$9)*('Qn H'!G$10*$B12/1000) -> 533.6 | G31: =(((($D$4-$E$4)/(LN(($D$4-$F$4)/($E$4-$F$4))))/49.8328865456397)^'Qn H'!H$9)*('Qn H'!H$10*$B12/1000) -> 696.8 | H31: =(((($D$4-$E$4)/(LN(($D$4-$F$4)/($E$4-$F$4))))/49.8328865456397)^'Qn H'!I$9)*('Qn H'!I$10*$B12/1000) -> 965.6 | I31: =(((($D$4-$E$4)/(LN(($D$4-$F$4)/($E$4-$F$4))))/49.8328865456397)^'Qn H'!J$9)*('Qn H'!J$10*$B12/1000) -> 0 | J31: =(((($D$4-$E$4)/(LN(($D$4-$F$4)/($E$4-$F$4))))/49.8328865456397)^'Qn H'!K$9)*('Qn H'!K$10*$B12/1000) -> 0 | K31: =(((($D$4-$E$4)/(LN(($D$4-$F$4)/($E$4-$F$4))))/49.8328865456397)^'Qn H'!L$9)*('Qn H'!L$10*$B12/1000) -> 0 | L31: =(((($D$4-$E$4)/(LN(($D$4-$F$4)/($E$4-$F$4))))/49.8328865456397)^'Qn H'!M$9)*('Qn H'!M$10*$B12/1000) -> 421.6 | M31: =(((($D$4-$E$4)/(LN(($D$4-$F$4)/($E$4-$F$4))))/49.8328865456397)^'Qn H'!N$9)*('Qn H'!N$10*$B12/1000) -> 678.4 | N31: =(((($D$4-$E$4)/(LN(($D$4-$F$4)/($E$4-$F$4))))/49.8328865456397)^'Qn H'!O$9)*('Qn H'!O$10*$B12/1000) -> 713.6 | O31: =(((($D$4-$E$4)/(LN(($D$4-$F$4)/($E$4-$F$4))))/49.8328865456397)^'Qn H'!P$9)*('Qn H'!P$10*$B12/1000) -> 902.4 | P31: =(((($D$4-$E$4)/(LN(($D$4-$F$4)/($E$4-$F$4))))/49.8328865456397)^'Qn H'!Q$9)*('Qn H'!Q$10*$B12/1000) -> 1243.2 | Q31: =(((($D$4-$E$4)/(LN(($D$4-$F$4)/($E$4-$F$4))))/49.8328865456397)^'Qn H'!R$9)*('Qn H'!R$10*$B12/1000) -> 0 | R31: =(((($D$4-$E$4)/(LN(($D$4-$F$4)/($E$4-$F$4))))/49.8328865456397)^'Qn H'!S$9)*('Qn H'!S$10*$B12/1000) -> 0 | S31: =(((($D$4-$E$4)/(LN(($D$4-$F$4)/($E$4-$F$4))))/49.8328865456397)^'Qn H'!T$9)*('Qn H'!T$10*$B12/1000) -> 0 | W31: 800 | Y31: =Sortiment!A41 -> 1 | Z31: =Sortiment!A161 -> 1 | AA31: =Sortiment!A281 -> 1 | AB31: =Sortiment!A401 -> 1 | AC31: =Sortiment!A521 -> 1 | AG31: =Sortiment!A56 -> 1 | AH31: =Sortiment!A176 -> 1 | AI31: =Sortiment!A296 -> 1 | AJ31: =Sortiment!A416 -> 1 | AK31: =Sortiment!A536 -> 1
B32: 900 | D32: =(((($D$4-$E$4)/(LN(($D$4-$F$4)/($E$4-$F$4))))/49.8328865456397)^'Qn H'!E$9)*('Qn H'!E$10*$B13/1000) -> 355.5 | E32: =(((($D$4-$E$4)/(LN(($D$4-$F$4)/($E$4-$F$4))))/49.8328865456397)^'Qn H'!F$9)*('Qn H'!F$10*$B13/1000) -> 574.2 | F32: =(((($D$4-$E$4)/(LN(($D$4-$F$4)/($E$4-$F$4))))/49.8328865456397)^'Qn H'!G$9)*('Qn H'!G$10*$B13/1000) -> 600.3 | G32: =(((($D$4-$E$4)/(LN(($D$4-$F$4)/($E$4-$F$4))))/49.8328865456397)^'Qn H'!H$9)*('Qn H'!H$10*$B13/1000) -> 783.9 | H32: =(((($D$4-$E$4)/(LN(($D$4-$F$4)/($E$4-$F$4))))/49.8328865456397)^'Qn H'!I$9)*('Qn H'!I$10*$B13/1000) -> 1086.3 | I32: =(((($D$4-$E$4)/(LN(($D$4-$F$4)/($E$4-$F$4))))/49.8328865456397)^'Qn H'!J$9)*('Qn H'!J$10*$B13/1000) -> 0 | J32: =(((($D$4-$E$4)/(LN(($D$4-$F$4)/($E$4-$F$4))))/49.8328865456397)^'Qn H'!K$9)*('Qn H'!K$10*$B13/1000) -> 0 | K32: =(((($D$4-$E$4)/(LN(($D$4-$F$4)/($E$4-$F$4))))/49.8328865456397)^'Qn H'!L$9)*('Qn H'!L$10*$B13/1000) -> 0 | L32: =(((($D$4-$E$4)/(LN(($D$4-$F$4)/($E$4-$F$4))))/49.8328865456397)^'Qn H'!M$9)*('Qn H'!M$10*$B13/1000) -> 474.3 | M32: =(((($D$4-$E$4)/(LN(($D$4-$F$4)/($E$4-$F$4))))/49.8328865456397)^'Qn H'!N$9)*('Qn H'!N$10*$B13/1000) -> 763.2 | N32: =(((($D$4-$E$4)/(LN(($D$4-$F$4)/($E$4-$F$4))))/49.8328865456397)^'Qn H'!O$9)*('Qn H'!O$10*$B13/1000) -> 802.8 | O32: =(((($D$4-$E$4)/(LN(($D$4-$F$4)/($E$4-$F$4))))/49.8328865456397)^'Qn H'!P$9)*('Qn H'!P$10*$B13/1000) -> 1015.2 | P32: =(((($D$4-$E$4)/(LN(($D$4-$F$4)/($E$4-$F$4))))/49.8328865456397)^'Qn H'!Q$9)*('Qn H'!Q$10*$B13/1000) -> 1398.6 | Q32: =(((($D$4-$E$4)/(LN(($D$4-$F$4)/($E$4-$F$4))))/49.8328865456397)^'Qn H'!R$9)*('Qn H'!R$10*$B13/1000) -> 0 | R32: =(((($D$4-$E$4)/(LN(($D$4-$F$4)/($E$4-$F$4))))/49.8328865456397)^'Qn H'!S$9)*('Qn H'!S$10*$B13/1000) -> 0 | S32: =(((($D$4-$E$4)/(LN(($D$4-$F$4)/($E$4-$F$4))))/49.8328865456397)^'Qn H'!T$9)*('Qn H'!T$10*$B13/1000) -> 0 | W32: 900 | Y32: =Sortiment!A42 -> 1 | Z32: =Sortiment!A162 -> 1 | AA32: =Sortiment!A282 -> 1 | AB32: =Sortiment!A402 -> 1 | AC32: =Sortiment!A522 -> 1 | AG32: =Sortiment!A57 -> 1 | AH32: =Sortiment!A177 -> 1 | AI32: =Sortiment!A297 -> 1 | AJ32: =Sortiment!A417 -> 1 | AK32: =Sortiment!A537 -> 1
B33: 1000 | D33: =(((($D$4-$E$4)/(LN(($D$4-$F$4)/($E$4-$F$4))))/49.8328865456397)^'Qn H'!E$9)*('Qn H'!E$10*$B14/1000) -> 395 | E33: =(((($D$4-$E$4)/(LN(($D$4-$F$4)/($E$4-$F$4))))/49.8328865456397)^'Qn H'!F$9)*('Qn H'!F$10*$B14/1000) -> 638 | F33: =(((($D$4-$E$4)/(LN(($D$4-$F$4)/($E$4-$F$4))))/49.8328865456397)^'Qn H'!G$9)*('Qn H'!G$10*$B14/1000) -> 667 | G33: =(((($D$4-$E$4)/(LN(($D$4-$F$4)/($E$4-$F$4))))/49.8328865456397)^'Qn H'!H$9)*('Qn H'!H$10*$B14/1000) -> 871 | H33: =(((($D$4-$E$4)/(LN(($D$4-$F$4)/($E$4-$F$4))))/49.8328865456397)^'Qn H'!I$9)*('Qn H'!I$10*$B14/1000) -> 1207 | I33: =(((($D$4-$E$4)/(LN(($D$4-$F$4)/($E$4-$F$4))))/49.8328865456397)^'Qn H'!J$9)*('Qn H'!J$10*$B14/1000) -> 0 | J33: =(((($D$4-$E$4)/(LN(($D$4-$F$4)/($E$4-$F$4))))/49.8328865456397)^'Qn H'!K$9)*('Qn H'!K$10*$B14/1000) -> 0 | K33: =(((($D$4-$E$4)/(LN(($D$4-$F$4)/($E$4-$F$4))))/49.8328865456397)^'Qn H'!L$9)*('Qn H'!L$10*$B14/1000) -> 0 | L33: =(((($D$4-$E$4)/(LN(($D$4-$F$4)/($E$4-$F$4))))/49.8328865456397)^'Qn H'!M$9)*('Qn H'!M$10*$B14/1000) -> 527 | M33: =(((($D$4-$E$4)/(LN(($D$4-$F$4)/($E$4-$F$4))))/49.8328865456397)^'Qn H'!N$9)*('Qn H'!N$10*$B14/1000) -> 848 | N33: =(((($D$4-$E$4)/(LN(($D$4-$F$4)/($E$4-$F$4))))/49.8328865456397)^'Qn H'!O$9)*('Qn H'!O$10*$B14/1000) -> 892 | O33: =(((($D$4-$E$4)/(LN(($D$4-$F$4)/($E$4-$F$4))))/49.8328865456397)^'Qn H'!P$9)*('Qn H'!P$10*$B14/1000) -> 1128 | P33: =(((($D$4-$E$4)/(LN(($D$4-$F$4)/($E$4-$F$4))))/49.8328865456397)^'Qn H'!Q$9)*('Qn H'!Q$10*$B14/1000) -> 1554 | Q33: =(((($D$4-$E$4)/(LN(($D$4-$F$4)/($E$4-$F$4))))/49.8328865456397)^'Qn H'!R$9)*('Qn H'!R$10*$B14/1000) -> 0 | R33: =(((($D$4-$E$4)/(LN(($D$4-$F$4)/($E$4-$F$4))))/49.8328865456397)^'Qn H'!S$9)*('Qn H'!S$10*$B14/1000) -> 0 | S33: =(((($D$4-$E$4)/(LN(($D$4-$F$4)/($E$4-$F$4))))/49.8328865456397)^'Qn H'!T$9)*('Qn H'!T$10*$B14/1000) -> 0 | W33: 1000 | Y33: =Sortiment!A43 -> 1 | Z33: =Sortiment!A163 -> 1 | AA33: =Sortiment!A283 -> 1 | AB33: =Sortiment!A403 -> 1 | AC33: =Sortiment!A523 -> 1 | AG33: =Sortiment!A58 -> 1 | AH33: =Sortiment!A178 -> 1 | AI33: =Sortiment!A298 -> 1 | AJ33: =Sortiment!A418 -> 1 | AK33: =Sortiment!A538 -> 1
B34: 1100 | D34: =(((($D$4-$E$4)/(LN(($D$4-$F$4)/($E$4-$F$4))))/49.8328865456397)^'Qn H'!E$9)*('Qn H'!E$10*$B15/1000) -> 434.5 | E34: =(((($D$4-$E$4)/(LN(($D$4-$F$4)/($E$4-$F$4))))/49.8328865456397)^'Qn H'!F$9)*('Qn H'!F$10*$B15/1000) -> 701.8 | F34: =(((($D$4-$E$4)/(LN(($D$4-$F$4)/($E$4-$F$4))))/49.8328865456397)^'Qn H'!G$9)*('Qn H'!G$10*$B15/1000) -> 733.7 | G34: =(((($D$4-$E$4)/(LN(($D$4-$F$4)/($E$4-$F$4))))/49.8328865456397)^'Qn H'!H$9)*('Qn H'!H$10*$B15/1000) -> 958.1 | H34: =(((($D$4-$E$4)/(LN(($D$4-$F$4)/($E$4-$F$4))))/49.8328865456397)^'Qn H'!I$9)*('Qn H'!I$10*$B15/1000) -> 1327.7 | I34: =(((($D$4-$E$4)/(LN(($D$4-$F$4)/($E$4-$F$4))))/49.8328865456397)^'Qn H'!J$9)*('Qn H'!J$10*$B15/1000) -> 0 | J34: =(((($D$4-$E$4)/(LN(($D$4-$F$4)/($E$4-$F$4))))/49.8328865456397)^'Qn H'!K$9)*('Qn H'!K$10*$B15/1000) -> 0 | K34: =(((($D$4-$E$4)/(LN(($D$4-$F$4)/($E$4-$F$4))))/49.8328865456397)^'Qn H'!L$9)*('Qn H'!L$10*$B15/1000) -> 0 | L34: =(((($D$4-$E$4)/(LN(($D$4-$F$4)/($E$4-$F$4))))/49.8328865456397)^'Qn H'!M$9)*('Qn H'!M$10*$B15/1000) -> 579.7 | M34: =(((($D$4-$E$4)/(LN(($D$4-$F$4)/($E$4-$F$4))))/49.8328865456397)^'Qn H'!N$9)*('Qn H'!N$10*$B15/1000) -> 932.8 | N34: =(((($D$4-$E$4)/(LN(($D$4-$F$4)/($E$4-$F$4))))/49.8328865456397)^'Qn H'!O$9)*('Qn H'!O$10*$B15/1000) -> 981.2 | O34: =(((($D$4-$E$4)/(LN(($D$4-$F$4)/($E$4-$F$4))))/49.8328865456397)^'Qn H'!P$9)*('Qn H'!P$10*$B15/1000) -> 1240.8 | P34: =(((($D$4-$E$4)/(LN(($D$4-$F$4)/($E$4-$F$4))))/49.8328865456397)^'Qn H'!Q$9)*('Qn H'!Q$10*$B15/1000) -> 1709.4 | Q34: =(((($D$4-$E$4)/(LN(($D$4-$F$4)/($E$4-$F$4))))/49.8328865456397)^'Qn H'!R$9)*('Qn H'!R$10*$B15/1000) -> 0 | R34: =(((($D$4-$E$4)/(LN(($D$4-$F$4)/($E$4-$F$4))))/49.8328865456397)^'Qn H'!S$9)*('Qn H'!S$10*$B15/1000) -> 0 | S34: =(((($D$4-$E$4)/(LN(($D$4-$F$4)/($E$4-$F$4))))/49.8328865456397)^'Qn H'!T$9)*('Qn H'!T$10*$B15/1000) -> 0 | W34: 1100 | Y34: =Sortiment!A44 -> 1 | Z34: =Sortiment!A164 -> 1 | AA34: =Sortiment!A284 -> 1 | AB34: =Sortiment!A404 -> 1 | AC34: =Sortiment!A524 -> 1 | AG34: =Sortiment!A59 -> 1 | AH34: =Sortiment!A179 -> 1 | AI34: =Sortiment!A299 -> 1 | AJ34: =Sortiment!A419 -> 1 | AK34: =Sortiment!A539 -> 1
B35: 1200 | D35: =(((($D$4-$E$4)/(LN(($D$4-$F$4)/($E$4-$F$4))))/49.8328865456397)^'Qn H'!E$9)*('Qn H'!E$10*$B16/1000) -> 474 | E35: =(((($D$4-$E$4)/(LN(($D$4-$F$4)/($E$4-$F$4))))/49.8328865456397)^'Qn H'!F$9)*('Qn H'!F$10*$B16/1000) -> 765.6 | F35: =(((($D$4-$E$4)/(LN(($D$4-$F$4)/($E$4-$F$4))))/49.8328865456397)^'Qn H'!G$9)*('Qn H'!G$10*$B16/1000) -> 800.4 | G35: =(((($D$4-$E$4)/(LN(($D$4-$F$4)/($E$4-$F$4))))/49.8328865456397)^'Qn H'!H$9)*('Qn H'!H$10*$B16/1000) -> 1045.2 | H35: =(((($D$4-$E$4)/(LN(($D$4-$F$4)/($E$4-$F$4))))/49.8328865456397)^'Qn H'!I$9)*('Qn H'!I$10*$B16/1000) -> 1448.4 | I35: =(((($D$4-$E$4)/(LN(($D$4-$F$4)/($E$4-$F$4))))/49.8328865456397)^'Qn H'!J$9)*('Qn H'!J$10*$B16/1000) -> 0 | J35: =(((($D$4-$E$4)/(LN(($D$4-$F$4)/($E$4-$F$4))))/49.8328865456397)^'Qn H'!K$9)*('Qn H'!K$10*$B16/1000) -> 0 | K35: =(((($D$4-$E$4)/(LN(($D$4-$F$4)/($E$4-$F$4))))/49.8328865456397)^'Qn H'!L$9)*('Qn H'!L$10*$B16/1000) -> 0 | L35: =(((($D$4-$E$4)/(LN(($D$4-$F$4)/($E$4-$F$4))))/49.8328865456397)^'Qn H'!M$9)*('Qn H'!M$10*$B16/1000) -> 632.4 | M35: =(((($D$4-$E$4)/(LN(($D$4-$F$4)/($E$4-$F$4))))/49.8328865456397)^'Qn H'!N$9)*('Qn H'!N$10*$B16/1000) -> 1017.6 | N35: =(((($D$4-$E$4)/(LN(($D$4-$F$4)/($E$4-$F$4))))/49.8328865456397)^'Qn H'!O$9)*('Qn H'!O$10*$B16/1000) -> 1070.4 | O35: =(((($D$4-$E$4)/(LN(($D$4-$F$4)/($E$4-$F$4))))/49.8328865456397)^'Qn H'!P$9)*('Qn H'!P$10*$B16/1000) -> 1353.6 | P35: =(((($D$4-$E$4)/(LN(($D$4-$F$4)/($E$4-$F$4))))/49.8328865456397)^'Qn H'!Q$9)*('Qn H'!Q$10*$B16/1000) -> 1864.8 | Q35: =(((($D$4-$E$4)/(LN(($D$4-$F$4)/($E$4-$F$4))))/49.8328865456397)^'Qn H'!R$9)*('Qn H'!R$10*$B16/1000) -> 0 | R35: =(((($D$4-$E$4)/(LN(($D$4-$F$4)/($E$4-$F$4))))/49.8328865456397)^'Qn H'!S$9)*('Qn H'!S$10*$B16/1000) -> 0 | S35: =(((($D$4-$E$4)/(LN(($D$4-$F$4)/($E$4-$F$4))))/49.8328865456397)^'Qn H'!T$9)*('Qn H'!T$10*$B16/1000) -> 0 | W35: 1200 | Y35: =Sortiment!A45 -> 1 | Z35: =Sortiment!A165 -> 1 | AA35: =Sortiment!A285 -> 1 | AB35: =Sortiment!A405 -> 1 | AC35: =Sortiment!A525 -> 1 | AG35: =Sortiment!A60 -> 1 | AH35: =Sortiment!A180 -> 1 | AI35: =Sortiment!A300 -> 1 | AJ35: =Sortiment!A420 -> 1 | AK35: =Sortiment!A540 -> 1
B36: 1400 | D36: =(((($D$4-$E$4)/(LN(($D$4-$F$4)/($E$4-$F$4))))/49.8328865456397)^'Qn H'!E$9)*('Qn H'!E$10*$B17/1000) -> 553 | E36: =(((($D$4-$E$4)/(LN(($D$4-$F$4)/($E$4-$F$4))))/49.8328865456397)^'Qn H'!F$9)*('Qn H'!F$10*$B17/1000) -> 893.2 | F36: =(((($D$4-$E$4)/(LN(($D$4-$F$4)/($E$4-$F$4))))/49.8328865456397)^'Qn H'!G$9)*('Qn H'!G$10*$B17/1000) -> 933.8 | G36: =(((($D$4-$E$4)/(LN(($D$4-$F$4)/($E$4-$F$4))))/49.8328865456397)^'Qn H'!H$9)*('Qn H'!H$10*$B17/1000) -> 1219.4 | H36: =(((($D$4-$E$4)/(LN(($D$4-$F$4)/($E$4-$F$4))))/49.8328865456397)^'Qn H'!I$9)*('Qn H'!I$10*$B17/1000) -> 1689.8 | I36: =(((($D$4-$E$4)/(LN(($D$4-$F$4)/($E$4-$F$4))))/49.8328865456397)^'Qn H'!J$9)*('Qn H'!J$10*$B17/1000) -> 0 | J36: =(((($D$4-$E$4)/(LN(($D$4-$F$4)/($E$4-$F$4))))/49.8328865456397)^'Qn H'!K$9)*('Qn H'!K$10*$B17/1000) -> 0 | K36: =(((($D$4-$E$4)/(LN(($D$4-$F$4)/($E$4-$F$4))))/49.8328865456397)^'Qn H'!L$9)*('Qn H'!L$10*$B17/1000) -> 0 | L36: =(((($D$4-$E$4)/(LN(($D$4-$F$4)/($E$4-$F$4))))/49.8328865456397)^'Qn H'!M$9)*('Qn H'!M$10*$B17/1000) -> 737.8 | M36: =(((($D$4-$E$4)/(LN(($D$4-$F$4)/($E$4-$F$4))))/49.8328865456397)^'Qn H'!N$9)*('Qn H'!N$10*$B17/1000) -> 1187.2 | N36: =(((($D$4-$E$4)/(LN(($D$4-$F$4)/($E$4-$F$4))))/49.8328865456397)^'Qn H'!O$9)*('Qn H'!O$10*$B17/1000) -> 1248.8 | O36: =(((($D$4-$E$4)/(LN(($D$4-$F$4)/($E$4-$F$4))))/49.8328865456397)^'Qn H'!P$9)*('Qn H'!P$10*$B17/1000) -> 1579.2 | P36: =(((($D$4-$E$4)/(LN(($D$4-$F$4)/($E$4-$F$4))))/49.8328865456397)^'Qn H'!Q$9)*('Qn H'!Q$10*$B17/1000) -> 2175.6 | Q36: =(((($D$4-$E$4)/(LN(($D$4-$F$4)/($E$4-$F$4))))/49.8328865456397)^'Qn H'!R$9)*('Qn H'!R$10*$B17/1000) -> 0 | R36: =(((($D$4-$E$4)/(LN(($D$4-$F$4)/($E$4-$F$4))))/49.8328865456397)^'Qn H'!S$9)*('Qn H'!S$10*$B17/1000) -> 0 | S36: =(((($D$4-$E$4)/(LN(($D$4-$F$4)/($E$4-$F$4))))/49.8328865456397)^'Qn H'!T$9)*('Qn H'!T$10*$B17/1000) -> 0 | W36: 1400 | Y36: =Sortiment!A46 -> 1 | Z36: =Sortiment!A166 -> 1 | AA36: =Sortiment!A286 -> 1 | AB36: =Sortiment!A406 -> 1 | AC36: =Sortiment!A526 -> 1 | AG36: =Sortiment!A61 -> 1 | AH36: =Sortiment!A181 -> 1 | AI36: =Sortiment!A301 -> 1 | AJ36: =Sortiment!A421 -> 1 | AK36: =Sortiment!A541 -> 1
B37: 1600 | D37: =(((($D$4-$E$4)/(LN(($D$4-$F$4)/($E$4-$F$4))))/49.8328865456397)^'Qn H'!E$9)*('Qn H'!E$10*$B18/1000) -> 632 | E37: =(((($D$4-$E$4)/(LN(($D$4-$F$4)/($E$4-$F$4))))/49.8328865456397)^'Qn H'!F$9)*('Qn H'!F$10*$B18/1000) -> 1020.8 | F37: =(((($D$4-$E$4)/(LN(($D$4-$F$4)/($E$4-$F$4))))/49.8328865456397)^'Qn H'!G$9)*('Qn H'!G$10*$B18/1000) -> 1067.2 | G37: =(((($D$4-$E$4)/(LN(($D$4-$F$4)/($E$4-$F$4))))/49.8328865456397)^'Qn H'!H$9)*('Qn H'!H$10*$B18/1000) -> 1393.6 | H37: =(((($D$4-$E$4)/(LN(($D$4-$F$4)/($E$4-$F$4))))/49.8328865456397)^'Qn H'!I$9)*('Qn H'!I$10*$B18/1000) -> 1931.2 | I37: =(((($D$4-$E$4)/(LN(($D$4-$F$4)/($E$4-$F$4))))/49.8328865456397)^'Qn H'!J$9)*('Qn H'!J$10*$B18/1000) -> 0 | J37: =(((($D$4-$E$4)/(LN(($D$4-$F$4)/($E$4-$F$4))))/49.8328865456397)^'Qn H'!K$9)*('Qn H'!K$10*$B18/1000) -> 0 | K37: =(((($D$4-$E$4)/(LN(($D$4-$F$4)/($E$4-$F$4))))/49.8328865456397)^'Qn H'!L$9)*('Qn H'!L$10*$B18/1000) -> 0 | L37: =(((($D$4-$E$4)/(LN(($D$4-$F$4)/($E$4-$F$4))))/49.8328865456397)^'Qn H'!M$9)*('Qn H'!M$10*$B18/1000) -> 843.2 | M37: =(((($D$4-$E$4)/(LN(($D$4-$F$4)/($E$4-$F$4))))/49.8328865456397)^'Qn H'!N$9)*('Qn H'!N$10*$B18/1000) -> 1356.8 | N37: =(((($D$4-$E$4)/(LN(($D$4-$F$4)/($E$4-$F$4))))/49.8328865456397)^'Qn H'!O$9)*('Qn H'!O$10*$B18/1000) -> 1427.2 | O37: =(((($D$4-$E$4)/(LN(($D$4-$F$4)/($E$4-$F$4))))/49.8328865456397)^'Qn H'!P$9)*('Qn H'!P$10*$B18/1000) -> 1804.8 | P37: =(((($D$4-$E$4)/(LN(($D$4-$F$4)/($E$4-$F$4))))/49.8328865456397)^'Qn H'!Q$9)*('Qn H'!Q$10*$B18/1000) -> 2486.4 | Q37: =(((($D$4-$E$4)/(LN(($D$4-$F$4)/($E$4-$F$4))))/49.8328865456397)^'Qn H'!R$9)*('Qn H'!R$10*$B18/1000) -> 0 | R37: =(((($D$4-$E$4)/(LN(($D$4-$F$4)/($E$4-$F$4))))/49.8328865456397)^'Qn H'!S$9)*('Qn H'!S$10*$B18/1000) -> 0 | S37: =(((($D$4-$E$4)/(LN(($D$4-$F$4)/($E$4-$F$4))))/49.8328865456397)^'Qn H'!T$9)*('Qn H'!T$10*$B18/1000) -> 0 | W37: 1600 | Y37: =Sortiment!A47 -> 1 | Z37: =Sortiment!A167 -> 1 | AA37: =Sortiment!A287 -> 1 | AB37: =Sortiment!A407 -> 1 | AC37: =Sortiment!A527 -> 1 | AG37: =Sortiment!A62 -> 1 | AH37: =Sortiment!A182 -> 1 | AI37: =Sortiment!A302 -> 1 | AJ37: =Sortiment!A422 -> 1 | AK37: =Sortiment!A542 -> 1
B38: 1800 | D38: =(((($D$4-$E$4)/(LN(($D$4-$F$4)/($E$4-$F$4))))/49.8328865456397)^'Qn H'!E$9)*('Qn H'!E$10*$B19/1000) -> 711 | E38: =(((($D$4-$E$4)/(LN(($D$4-$F$4)/($E$4-$F$4))))/49.8328865456397)^'Qn H'!F$9)*('Qn H'!F$10*$B19/1000) -> 1148.4 | F38: =(((($D$4-$E$4)/(LN(($D$4-$F$4)/($E$4-$F$4))))/49.8328865456397)^'Qn H'!G$9)*('Qn H'!G$10*$B19/1000) -> 1200.6 | G38: =(((($D$4-$E$4)/(LN(($D$4-$F$4)/($E$4-$F$4))))/49.8328865456397)^'Qn H'!H$9)*('Qn H'!H$10*$B19/1000) -> 1567.8 | H38: =(((($D$4-$E$4)/(LN(($D$4-$F$4)/($E$4-$F$4))))/49.8328865456397)^'Qn H'!I$9)*('Qn H'!I$10*$B19/1000) -> 2172.6 | I38: =(((($D$4-$E$4)/(LN(($D$4-$F$4)/($E$4-$F$4))))/49.8328865456397)^'Qn H'!J$9)*('Qn H'!J$10*$B19/1000) -> 0 | J38: =(((($D$4-$E$4)/(LN(($D$4-$F$4)/($E$4-$F$4))))/49.8328865456397)^'Qn H'!K$9)*('Qn H'!K$10*$B19/1000) -> 0 | K38: =(((($D$4-$E$4)/(LN(($D$4-$F$4)/($E$4-$F$4))))/49.8328865456397)^'Qn H'!L$9)*('Qn H'!L$10*$B19/1000) -> 0 | L38: =(((($D$4-$E$4)/(LN(($D$4-$F$4)/($E$4-$F$4))))/49.8328865456397)^'Qn H'!M$9)*('Qn H'!M$10*$B19/1000) -> 948.6 | M38: =(((($D$4-$E$4)/(LN(($D$4-$F$4)/($E$4-$F$4))))/49.8328865456397)^'Qn H'!N$9)*('Qn H'!N$10*$B19/1000) -> 1526.4 | N38: =(((($D$4-$E$4)/(LN(($D$4-$F$4)/($E$4-$F$4))))/49.8328865456397)^'Qn H'!O$9)*('Qn H'!O$10*$B19/1000) -> 1605.6 | O38: =(((($D$4-$E$4)/(LN(($D$4-$F$4)/($E$4-$F$4))))/49.8328865456397)^'Qn H'!P$9)*('Qn H'!P$10*$B19/1000) -> 2030.4 | P38: =(((($D$4-$E$4)/(LN(($D$4-$F$4)/($E$4-$F$4))))/49.8328865456397)^'Qn H'!Q$9)*('Qn H'!Q$10*$B19/1000) -> 2797.2 | Q38: =(((($D$4-$E$4)/(LN(($D$4-$F$4)/($E$4-$F$4))))/49.8328865456397)^'Qn H'!R$9)*('Qn H'!R$10*$B19/1000) -> 0 | R38: =(((($D$4-$E$4)/(LN(($D$4-$F$4)/($E$4-$F$4))))/49.8328865456397)^'Qn H'!S$9)*('Qn H'!S$10*$B19/1000) -> 0 | S38: =(((($D$4-$E$4)/(LN(($D$4-$F$4)/($E$4-$F$4))))/49.8328865456397)^'Qn H'!T$9)*('Qn H'!T$10*$B19/1000) -> 0 | W38: 1800 | Y38: =Sortiment!A48 -> 1 | Z38: =Sortiment!A168 -> 1 | AA38: =Sortiment!A288 -> 1 | AB38: =Sortiment!A408 -> 1 | AC38: =Sortiment!A528 -> 1 | AG38: =Sortiment!A63 -> 1 | AH38: =Sortiment!A183 -> 1 | AI38: =Sortiment!A303 -> 1 | AJ38: =Sortiment!A423 -> 1 | AK38: =Sortiment!A543 -> 1
B39: 2000 | D39: =(((($D$4-$E$4)/(LN(($D$4-$F$4)/($E$4-$F$4))))/49.8328865456397)^'Qn H'!E$9)*('Qn H'!E$10*$B20/1000) -> 790 | E39: =(((($D$4-$E$4)/(LN(($D$4-$F$4)/($E$4-$F$4))))/49.8328865456397)^'Qn H'!F$9)*('Qn H'!F$10*$B20/1000) -> 1276 | F39: =(((($D$4-$E$4)/(LN(($D$4-$F$4)/($E$4-$F$4))))/49.8328865456397)^'Qn H'!G$9)*('Qn H'!G$10*$B20/1000) -> 1334 | G39: =(((($D$4-$E$4)/(LN(($D$4-$F$4)/($E$4-$F$4))))/49.8328865456397)^'Qn H'!H$9)*('Qn H'!H$10*$B20/1000) -> 1742 | H39: =(((($D$4-$E$4)/(LN(($D$4-$F$4)/($E$4-$F$4))))/49.8328865456397)^'Qn H'!I$9)*('Qn H'!I$10*$B20/1000) -> 2414 | I39: =(((($D$4-$E$4)/(LN(($D$4-$F$4)/($E$4-$F$4))))/49.8328865456397)^'Qn H'!J$9)*('Qn H'!J$10*$B20/1000) -> 0 | J39: =(((($D$4-$E$4)/(LN(($D$4-$F$4)/($E$4-$F$4))))/49.8328865456397)^'Qn H'!K$9)*('Qn H'!K$10*$B20/1000) -> 0 | K39: =(((($D$4-$E$4)/(LN(($D$4-$F$4)/($E$4-$F$4))))/49.8328865456397)^'Qn H'!L$9)*('Qn H'!L$10*$B20/1000) -> 0 | L39: =(((($D$4-$E$4)/(LN(($D$4-$F$4)/($E$4-$F$4))))/49.8328865456397)^'Qn H'!M$9)*('Qn H'!M$10*$B20/1000) -> 1054 | M39: =(((($D$4-$E$4)/(LN(($D$4-$F$4)/($E$4-$F$4))))/49.8328865456397)^'Qn H'!N$9)*('Qn H'!N$10*$B20/1000) -> 1696 | N39: =(((($D$4-$E$4)/(LN(($D$4-$F$4)/($E$4-$F$4))))/49.8328865456397)^'Qn H'!O$9)*('Qn H'!O$10*$B20/1000) -> 1784 | O39: =(((($D$4-$E$4)/(LN(($D$4-$F$4)/($E$4-$F$4))))/49.8328865456397)^'Qn H'!P$9)*('Qn H'!P$10*$B20/1000) -> 2256 | P39: =(((($D$4-$E$4)/(LN(($D$4-$F$4)/($E$4-$F$4))))/49.8328865456397)^'Qn H'!Q$9)*('Qn H'!Q$10*$B20/1000) -> 3108 | Q39: =(((($D$4-$E$4)/(LN(($D$4-$F$4)/($E$4-$F$4))))/49.8328865456397)^'Qn H'!R$9)*('Qn H'!R$10*$B20/1000) -> 0 | R39: =(((($D$4-$E$4)/(LN(($D$4-$F$4)/($E$4-$F$4))))/49.8328865456397)^'Qn H'!S$9)*('Qn H'!S$10*$B20/1000) -> 0 | S39: =(((($D$4-$E$4)/(LN(($D$4-$F$4)/($E$4-$F$4))))/49.8328865456397)^'Qn H'!T$9)*('Qn H'!T$10*$B20/1000) -> 0 | W39: 2000 | Y39: =Sortiment!A49 -> 1 | Z39: =Sortiment!A169 -> 1 | AA39: =Sortiment!A289 -> 1 | AB39: =Sortiment!A409 -> 1 | AC39: =Sortiment!A529 -> 1 | AG39: =Sortiment!A64 -> 1 | AH39: =Sortiment!A184 -> 1 | AI39: =Sortiment!A304 -> 1 | AJ39: =Sortiment!A424 -> 1 | AK39: =Sortiment!A544 -> 1
B40: 2300 | D40: =(((($D$4-$E$4)/(LN(($D$4-$F$4)/($E$4-$F$4))))/49.8328865456397)^'Qn H'!E$9)*('Qn H'!E$10*$B21/1000) -> 908.5 | E40: =(((($D$4-$E$4)/(LN(($D$4-$F$4)/($E$4-$F$4))))/49.8328865456397)^'Qn H'!F$9)*('Qn H'!F$10*$B21/1000) -> 1467.4 | F40: =(((($D$4-$E$4)/(LN(($D$4-$F$4)/($E$4-$F$4))))/49.8328865456397)^'Qn H'!G$9)*('Qn H'!G$10*$B21/1000) -> 1534.1 | G40: =(((($D$4-$E$4)/(LN(($D$4-$F$4)/($E$4-$F$4))))/49.8328865456397)^'Qn H'!H$9)*('Qn H'!H$10*$B21/1000) -> 2003.3 | H40: =(((($D$4-$E$4)/(LN(($D$4-$F$4)/($E$4-$F$4))))/49.8328865456397)^'Qn H'!I$9)*('Qn H'!I$10*$B21/1000) -> 2776.1 | I40: =(((($D$4-$E$4)/(LN(($D$4-$F$4)/($E$4-$F$4))))/49.8328865456397)^'Qn H'!J$9)*('Qn H'!J$10*$B21/1000) -> 0 | J40: =(((($D$4-$E$4)/(LN(($D$4-$F$4)/($E$4-$F$4))))/49.8328865456397)^'Qn H'!K$9)*('Qn H'!K$10*$B21/1000) -> 0 | K40: =(((($D$4-$E$4)/(LN(($D$4-$F$4)/($E$4-$F$4))))/49.8328865456397)^'Qn H'!L$9)*('Qn H'!L$10*$B21/1000) -> 0 | L40: =(((($D$4-$E$4)/(LN(($D$4-$F$4)/($E$4-$F$4))))/49.8328865456397)^'Qn H'!M$9)*('Qn H'!M$10*$B21/1000) -> 1212.1 | M40: =(((($D$4-$E$4)/(LN(($D$4-$F$4)/($E$4-$F$4))))/49.8328865456397)^'Qn H'!N$9)*('Qn H'!N$10*$B21/1000) -> 1950.4 | N40: =(((($D$4-$E$4)/(LN(($D$4-$F$4)/($E$4-$F$4))))/49.8328865456397)^'Qn H'!O$9)*('Qn H'!O$10*$B21/1000) -> 2051.6 | O40: =(((($D$4-$E$4)/(LN(($D$4-$F$4)/($E$4-$F$4))))/49.8328865456397)^'Qn H'!P$9)*('Qn H'!P$10*$B21/1000) -> 2594.4 | P40: =(((($D$4-$E$4)/(LN(($D$4-$F$4)/($E$4-$F$4))))/49.8328865456397)^'Qn H'!Q$9)*('Qn H'!Q$10*$B21/1000) -> 3574.2 | Q40: =(((($D$4-$E$4)/(LN(($D$4-$F$4)/($E$4-$F$4))))/49.8328865456397)^'Qn H'!R$9)*('Qn H'!R$10*$B21/1000) -> 0 | R40: =(((($D$4-$E$4)/(LN(($D$4-$F$4)/($E$4-$F$4))))/49.8328865456397)^'Qn H'!S$9)*('Qn H'!S$10*$B21/1000) -> 0 | S40: =(((($D$4-$E$4)/(LN(($D$4-$F$4)/($E$4-$F$4))))/49.8328865456397)^'Qn H'!T$9)*('Qn H'!T$10*$B21/1000) -> 0 | W40: 2300 | Y40: =Sortiment!A50 -> 1 | Z40: =Sortiment!A170 -> 1 | AA40: =Sortiment!A290 -> 1 | AB40: =Sortiment!A410 -> 1 | AC40: =Sortiment!A530 -> 1 | AG40: =Sortiment!A65 -> 1 | AH40: =Sortiment!A185 -> 1 | AI40: =Sortiment!A305 -> 1 | AJ40: =Sortiment!A425 -> 1 | AK40: =Sortiment!A545 -> 1
B41: 2600 | D41: =(((($D$4-$E$4)/(LN(($D$4-$F$4)/($E$4-$F$4))))/49.8328865456397)^'Qn H'!E$9)*('Qn H'!E$10*$B22/1000) -> 1027 | E41: =(((($D$4-$E$4)/(LN(($D$4-$F$4)/($E$4-$F$4))))/49.8328865456397)^'Qn H'!F$9)*('Qn H'!F$10*$B22/1000) -> 1658.8 | F41: =(((($D$4-$E$4)/(LN(($D$4-$F$4)/($E$4-$F$4))))/49.8328865456397)^'Qn H'!G$9)*('Qn H'!G$10*$B22/1000) -> 1734.2 | G41: =(((($D$4-$E$4)/(LN(($D$4-$F$4)/($E$4-$F$4))))/49.8328865456397)^'Qn H'!H$9)*('Qn H'!H$10*$B22/1000) -> 2264.6 | H41: =(((($D$4-$E$4)/(LN(($D$4-$F$4)/($E$4-$F$4))))/49.8328865456397)^'Qn H'!I$9)*('Qn H'!I$10*$B22/1000) -> 3138.2 | I41: =(((($D$4-$E$4)/(LN(($D$4-$F$4)/($E$4-$F$4))))/49.8328865456397)^'Qn H'!J$9)*('Qn H'!J$10*$B22/1000) -> 0 | J41: =(((($D$4-$E$4)/(LN(($D$4-$F$4)/($E$4-$F$4))))/49.8328865456397)^'Qn H'!K$9)*('Qn H'!K$10*$B22/1000) -> 0 | K41: =(((($D$4-$E$4)/(LN(($D$4-$F$4)/($E$4-$F$4))))/49.8328865456397)^'Qn H'!L$9)*('Qn H'!L$10*$B22/1000) -> 0 | L41: =(((($D$4-$E$4)/(LN(($D$4-$F$4)/($E$4-$F$4))))/49.8328865456397)^'Qn H'!M$9)*('Qn H'!M$10*$B22/1000) -> 1370.2 | M41: =(((($D$4-$E$4)/(LN(($D$4-$F$4)/($E$4-$F$4))))/49.8328865456397)^'Qn H'!N$9)*('Qn H'!N$10*$B22/1000) -> 2204.8 | N41: =(((($D$4-$E$4)/(LN(($D$4-$F$4)/($E$4-$F$4))))/49.8328865456397)^'Qn H'!O$9)*('Qn H'!O$10*$B22/1000) -> 2319.2 | O41: =(((($D$4-$E$4)/(LN(($D$4-$F$4)/($E$4-$F$4))))/49.8328865456397)^'Qn H'!P$9)*('Qn H'!P$10*$B22/1000) -> 2932.8 | P41: =(((($D$4-$E$4)/(LN(($D$4-$F$4)/($E$4-$F$4))))/49.8328865456397)^'Qn H'!Q$9)*('Qn H'!Q$10*$B22/1000) -> 4040.4 | Q41: =(((($D$4-$E$4)/(LN(($D$4-$F$4)/($E$4-$F$4))))/49.8328865456397)^'Qn H'!R$9)*('Qn H'!R$10*$B22/1000) -> 0 | R41: =(((($D$4-$E$4)/(LN(($D$4-$F$4)/($E$4-$F$4))))/49.8328865456397)^'Qn H'!S$9)*('Qn H'!S$10*$B22/1000) -> 0 | S41: =(((($D$4-$E$4)/(LN(($D$4-$F$4)/($E$4-$F$4))))/49.8328865456397)^'Qn H'!T$9)*('Qn H'!T$10*$B22/1000) -> 0 | W41: 2600 | Y41: =Sortiment!A51 -> 1 | Z41: =Sortiment!A171 -> 1 | AA41: =Sortiment!A291 -> 1 | AB41: =Sortiment!A411 -> 1 | AC41: =Sortiment!A531 -> 1 | AG41: =Sortiment!A66 -> 1 | AH41: =Sortiment!A186 -> 1 | AI41: =Sortiment!A306 -> 1 | AJ41: =Sortiment!A426 -> 1 | AK41: =Sortiment!A546 -> 1
B42: 3000 | D42: =(((($D$4-$E$4)/(LN(($D$4-$F$4)/($E$4-$F$4))))/49.8328865456397)^'Qn H'!E$9)*('Qn H'!E$10*$B23/1000) -> 1185 | E42: =(((($D$4-$E$4)/(LN(($D$4-$F$4)/($E$4-$F$4))))/49.8328865456397)^'Qn H'!F$9)*('Qn H'!F$10*$B23/1000) -> 1914 | F42: =(((($D$4-$E$4)/(LN(($D$4-$F$4)/($E$4-$F$4))))/49.8328865456397)^'Qn H'!G$9)*('Qn H'!G$10*$B23/1000) -> 2001 | G42: =(((($D$4-$E$4)/(LN(($D$4-$F$4)/($E$4-$F$4))))/49.8328865456397)^'Qn H'!H$9)*('Qn H'!H$10*$B23/1000) -> 2613 | H42: =(((($D$4-$E$4)/(LN(($D$4-$F$4)/($E$4-$F$4))))/49.8328865456397)^'Qn H'!I$9)*('Qn H'!I$10*$B23/1000) -> 3621 | I42: =(((($D$4-$E$4)/(LN(($D$4-$F$4)/($E$4-$F$4))))/49.8328865456397)^'Qn H'!J$9)*('Qn H'!J$10*$B23/1000) -> 0 | J42: =(((($D$4-$E$4)/(LN(($D$4-$F$4)/($E$4-$F$4))))/49.8328865456397)^'Qn H'!K$9)*('Qn H'!K$10*$B23/1000) -> 0 | K42: =(((($D$4-$E$4)/(LN(($D$4-$F$4)/($E$4-$F$4))))/49.8328865456397)^'Qn H'!L$9)*('Qn H'!L$10*$B23/1000) -> 0 | L42: =(((($D$4-$E$4)/(LN(($D$4-$F$4)/($E$4-$F$4))))/49.8328865456397)^'Qn H'!M$9)*('Qn H'!M$10*$B23/1000) -> 1581 | M42: =(((($D$4-$E$4)/(LN(($D$4-$F$4)/($E$4-$F$4))))/49.8328865456397)^'Qn H'!N$9)*('Qn H'!N$10*$B23/1000) -> 2544 | N42: =(((($D$4-$E$4)/(LN(($D$4-$F$4)/($E$4-$F$4))))/49.8328865456397)^'Qn H'!O$9)*('Qn H'!O$10*$B23/1000) -> 2676 | O42: =(((($D$4-$E$4)/(LN(($D$4-$F$4)/($E$4-$F$4))))/49.8328865456397)^'Qn H'!P$9)*('Qn H'!P$10*$B23/1000) -> 3384 | P42: =(((($D$4-$E$4)/(LN(($D$4-$F$4)/($E$4-$F$4))))/49.8328865456397)^'Qn H'!Q$9)*('Qn H'!Q$10*$B23/1000) -> 4662 | Q42: =(((($D$4-$E$4)/(LN(($D$4-$F$4)/($E$4-$F$4))))/49.8328865456397)^'Qn H'!R$9)*('Qn H'!R$10*$B23/1000) -> 0 | R42: =(((($D$4-$E$4)/(LN(($D$4-$F$4)/($E$4-$F$4))))/49.8328865456397)^'Qn H'!S$9)*('Qn H'!S$10*$B23/1000) -> 0 | S42: =(((($D$4-$E$4)/(LN(($D$4-$F$4)/($E$4-$F$4))))/49.8328865456397)^'Qn H'!T$9)*('Qn H'!T$10*$B23/1000) -> 0 | W42: 3000 | Y42: =Sortiment!A52 -> 1 | Z42: =Sortiment!A172 -> 1 | AA42: =Sortiment!A292 -> 1 | AB42: =Sortiment!A412 -> 1 | AC42: =Sortiment!A532 -> 1 | AG42: =Sortiment!A67 -> 1 | AH42: =Sortiment!A187 -> 1 | AI42: =Sortiment!A307 -> 1 | AJ42: =Sortiment!A427 -> 1 | AK42: =Sortiment!A547 -> 0
C45: Výška [mm] | F45: ='Qn H'!G11 -> 588 | N45: ='Qn H'!O11 -> 662 | X45: Výška [mm] | AA45: 588 | AI45: 662
B46: Délka [mm] | D46: ='Qn H'!E12 -> K10H | E46: ='Qn H'!F12 -> K11H | F46: ='Qn H'!G12 -> K20H | G46: ='Qn H'!H12 -> K21H | H46: ='Qn H'!I12 -> K22H | I46: ='Qn H'!J12 -> 0 | J46: ='Qn H'!K12 -> 0 | K46: ='Qn H'!L12 -> 0 | L46: ='Qn H'!M12 -> K10H | M46: ='Qn H'!N12 -> K11H | N46: ='Qn H'!O12 -> K20H | O46: ='Qn H'!P12 -> K21H | P46: ='Qn H'!Q12 -> K22H | Q46: ='Qn H'!R12 -> 0 | R46: ='Qn H'!S12 -> 0 | S46: ='Qn H'!T12 -> 0 | W46: Délka [mm] | Y46: =D46 -> K10H | Z46: K11H | AA46: K20H | AB46: K21H | AC46: K22H | AD46: 0 | AE46: 0 | AF46: 0 | AG46: K10H | AH46: K11H | AI46: K20H | AJ46: K21H | AK46: K22H | AL46: 0 | AM46: 0 | AN46: 0
B47: 500 | D47: =(((($D$4-$E$4)/(LN(($D$4-$F$4)/($E$4-$F$4))))/49.8328865456397)^'Qn H'!E$13)*('Qn H'!E$14*$B9/1000) -> 297.5 | E47: =(((($D$4-$E$4)/(LN(($D$4-$F$4)/($E$4-$F$4))))/49.8328865456397)^'Qn H'!F$13)*('Qn H'!F$14*$B9/1000) -> 474.5 | F47: =(((($D$4-$E$4)/(LN(($D$4-$F$4)/($E$4-$F$4))))/49.8328865456397)^'Qn H'!G$13)*('Qn H'!G$14*$B9/1000) -> 503 | G47: =(((($D$4-$E$4)/(LN(($D$4-$F$4)/($E$4-$F$4))))/49.8328865456397)^'Qn H'!H$13)*('Qn H'!H$14*$B9/1000) -> 623.5 | H47: =(((($D$4-$E$4)/(LN(($D$4-$F$4)/($E$4-$F$4))))/49.8328865456397)^'Qn H'!I$13)*('Qn H'!I$14*$B9/1000) -> 854 | I47: =(((($D$4-$E$4)/(LN(($D$4-$F$4)/($E$4-$F$4))))/49.8328865456397)^'Qn H'!J$13)*('Qn H'!J$14*$B9/1000) -> 0 | J47: =(((($D$4-$E$4)/(LN(($D$4-$F$4)/($E$4-$F$4))))/49.8328865456397)^'Qn H'!K$13)*('Qn H'!K$14*$B9/1000) -> 0 | K47: =(((($D$4-$E$4)/(LN(($D$4-$F$4)/($E$4-$F$4))))/49.8328865456397)^'Qn H'!L$13)*('Qn H'!L$14*$B9/1000) -> 0 | L47: =(((($D$4-$E$4)/(LN(($D$4-$F$4)/($E$4-$F$4))))/49.8328865456397)^'Qn H'!M$13)*('Qn H'!M$14*$B9/1000) -> 333 | M47: =(((($D$4-$E$4)/(LN(($D$4-$F$4)/($E$4-$F$4))))/49.8328865456397)^'Qn H'!N$13)*('Qn H'!N$14*$B9/1000) -> 524 | N47: =(((($D$4-$E$4)/(LN(($D$4-$F$4)/($E$4-$F$4))))/49.8328865456397)^'Qn H'!O$13)*('Qn H'!O$14*$B9/1000) -> 560 | O47: =(((($D$4-$E$4)/(LN(($D$4-$F$4)/($E$4-$F$4))))/49.8328865456397)^'Qn H'!P$13)*('Qn H'!P$14*$B9/1000) -> 680 | P47: =(((($D$4-$E$4)/(LN(($D$4-$F$4)/($E$4-$F$4))))/49.8328865456397)^'Qn H'!Q$13)*('Qn H'!Q$14*$B9/1000) -> 926.5 | Q47: =(((($D$4-$E$4)/(LN(($D$4-$F$4)/($E$4-$F$4))))/49.8328865456397)^'Qn H'!R$13)*('Qn H'!R$14*$B9/1000) -> 0 | R47: =(((($D$4-$E$4)/(LN(($D$4-$F$4)/($E$4-$F$4))))/49.8328865456397)^'Qn H'!S$13)*('Qn H'!S$14*$B9/1000) -> 0 | S47: =(((($D$4-$E$4)/(LN(($D$4-$F$4)/($E$4-$F$4))))/49.8328865456397)^'Qn H'!T$13)*('Qn H'!T$14*$B9/1000) -> 0 | W47: 500 | Y47: =Sortiment!A68 -> 1 | Z47: =Sortiment!A188 -> 1 | AA47: =Sortiment!A308 -> 1 | AB47: =Sortiment!A428 -> 1 | AC47: =Sortiment!A548 -> 1 | AG47: =Sortiment!A83 -> 1 | AH47: =Sortiment!A203 -> 1 | AI47: =Sortiment!A323 -> 1 | AJ47: =Sortiment!A443 -> 1 | AK47: =Sortiment!A563 -> 1
B48: 600 | D48: =(((($D$4-$E$4)/(LN(($D$4-$F$4)/($E$4-$F$4))))/49.8328865456397)^'Qn H'!E$13)*('Qn H'!E$14*$B10/1000) -> 357 | E48: =(((($D$4-$E$4)/(LN(($D$4-$F$4)/($E$4-$F$4))))/49.8328865456397)^'Qn H'!F$13)*('Qn H'!F$14*$B10/1000) -> 569.4 | F48: =(((($D$4-$E$4)/(LN(($D$4-$F$4)/($E$4-$F$4))))/49.8328865456397)^'Qn H'!G$13)*('Qn H'!G$14*$B10/1000) -> 603.6 | G48: =(((($D$4-$E$4)/(LN(($D$4-$F$4)/($E$4-$F$4))))/49.8328865456397)^'Qn H'!H$13)*('Qn H'!H$14*$B10/1000) -> 748.2 | H48: =(((($D$4-$E$4)/(LN(($D$4-$F$4)/($E$4-$F$4))))/49.8328865456397)^'Qn H'!I$13)*('Qn H'!I$14*$B10/1000) -> 1024.8 | I48: =(((($D$4-$E$4)/(LN(($D$4-$F$4)/($E$4-$F$4))))/49.8328865456397)^'Qn H'!J$13)*('Qn H'!J$14*$B10/1000) -> 0 | J48: =(((($D$4-$E$4)/(LN(($D$4-$F$4)/($E$4-$F$4))))/49.8328865456397)^'Qn H'!K$13)*('Qn H'!K$14*$B10/1000) -> 0 | K48: =(((($D$4-$E$4)/(LN(($D$4-$F$4)/($E$4-$F$4))))/49.8328865456397)^'Qn H'!L$13)*('Qn H'!L$14*$B10/1000) -> 0 | L48: =(((($D$4-$E$4)/(LN(($D$4-$F$4)/($E$4-$F$4))))/49.8328865456397)^'Qn H'!M$13)*('Qn H'!M$14*$B10/1000) -> 399.6 | M48: =(((($D$4-$E$4)/(LN(($D$4-$F$4)/($E$4-$F$4))))/49.8328865456397)^'Qn H'!N$13)*('Qn H'!N$14*$B10/1000) -> 628.8 | N48: =(((($D$4-$E$4)/(LN(($D$4-$F$4)/($E$4-$F$4))))/49.8328865456397)^'Qn H'!O$13)*('Qn H'!O$14*$B10/1000) -> 672 | O48: =(((($D$4-$E$4)/(LN(($D$4-$F$4)/($E$4-$F$4))))/49.8328865456397)^'Qn H'!P$13)*('Qn H'!P$14*$B10/1000) -> 816 | P48: =(((($D$4-$E$4)/(LN(($D$4-$F$4)/($E$4-$F$4))))/49.8328865456397)^'Qn H'!Q$13)*('Qn H'!Q$14*$B10/1000) -> 1111.8 | Q48: =(((($D$4-$E$4)/(LN(($D$4-$F$4)/($E$4-$F$4))))/49.8328865456397)^'Qn H'!R$13)*('Qn H'!R$14*$B10/1000) -> 0 | R48: =(((($D$4-$E$4)/(LN(($D$4-$F$4)/($E$4-$F$4))))/49.8328865456397)^'Qn H'!S$13)*('Qn H'!S$14*$B10/1000) -> 0 | S48: =(((($D$4-$E$4)/(LN(($D$4-$F$4)/($E$4-$F$4))))/49.8328865456397)^'Qn H'!T$13)*('Qn H'!T$14*$B10/1000) -> 0 | W48: 600 | Y48: =Sortiment!A69 -> 1 | Z48: =Sortiment!A189 -> 1 | AA48: =Sortiment!A309 -> 1 | AB48: =Sortiment!A429 -> 1 | AC48: =Sortiment!A549 -> 1 | AG48: =Sortiment!A84 -> 1 | AH48: =Sortiment!A204 -> 1 | AI48: =Sortiment!A324 -> 1 | AJ48: =Sortiment!A444 -> 1 | AK48: =Sortiment!A564 -> 1
B49: 700 | D49: =(((($D$4-$E$4)/(LN(($D$4-$F$4)/($E$4-$F$4))))/49.8328865456397)^'Qn H'!E$13)*('Qn H'!E$14*$B11/1000) -> 416.5 | E49: =(((($D$4-$E$4)/(LN(($D$4-$F$4)/($E$4-$F$4))))/49.8328865456397)^'Qn H'!F$13)*('Qn H'!F$14*$B11/1000) -> 664.3 | F49: =(((($D$4-$E$4)/(LN(($D$4-$F$4)/($E$4-$F$4))))/49.8328865456397)^'Qn H'!G$13)*('Qn H'!G$14*$B11/1000) -> 704.2 | G49: =(((($D$4-$E$4)/(LN(($D$4-$F$4)/($E$4-$F$4))))/49.8328865456397)^'Qn H'!H$13)*('Qn H'!H$14*$B11/1000) -> 872.9 | H49: =(((($D$4-$E$4)/(LN(($D$4-$F$4)/($E$4-$F$4))))/49.8328865456397)^'Qn H'!I$13)*('Qn H'!I$14*$B11/1000) -> 1195.6 | I49: =(((($D$4-$E$4)/(LN(($D$4-$F$4)/($E$4-$F$4))))/49.8328865456397)^'Qn H'!J$13)*('Qn H'!J$14*$B11/1000) -> 0 | J49: =(((($D$4-$E$4)/(LN(($D$4-$F$4)/($E$4-$F$4))))/49.8328865456397)^'Qn H'!K$13)*('Qn H'!K$14*$B11/1000) -> 0 | K49: =(((($D$4-$E$4)/(LN(($D$4-$F$4)/($E$4-$F$4))))/49.8328865456397)^'Qn H'!L$13)*('Qn H'!L$14*$B11/1000) -> 0 | L49: =(((($D$4-$E$4)/(LN(($D$4-$F$4)/($E$4-$F$4))))/49.8328865456397)^'Qn H'!M$13)*('Qn H'!M$14*$B11/1000) -> 466.2 | M49: =(((($D$4-$E$4)/(LN(($D$4-$F$4)/($E$4-$F$4))))/49.8328865456397)^'Qn H'!N$13)*('Qn H'!N$14*$B11/1000) -> 733.6 | N49: =(((($D$4-$E$4)/(LN(($D$4-$F$4)/($E$4-$F$4))))/49.8328865456397)^'Qn H'!O$13)*('Qn H'!O$14*$B11/1000) -> 784 | O49: =(((($D$4-$E$4)/(LN(($D$4-$F$4)/($E$4-$F$4))))/49.8328865456397)^'Qn H'!P$13)*('Qn H'!P$14*$B11/1000) -> 952 | P49: =(((($D$4-$E$4)/(LN(($D$4-$F$4)/($E$4-$F$4))))/49.8328865456397)^'Qn H'!Q$13)*('Qn H'!Q$14*$B11/1000) -> 1297.1 | Q49: =(((($D$4-$E$4)/(LN(($D$4-$F$4)/($E$4-$F$4))))/49.8328865456397)^'Qn H'!R$13)*('Qn H'!R$14*$B11/1000) -> 0 | R49: =(((($D$4-$E$4)/(LN(($D$4-$F$4)/($E$4-$F$4))))/49.8328865456397)^'Qn H'!S$13)*('Qn H'!S$14*$B11/1000) -> 0 | S49: =(((($D$4-$E$4)/(LN(($D$4-$F$4)/($E$4-$F$4))))/49.8328865456397)^'Qn H'!T$13)*('Qn H'!T$14*$B11/1000) -> 0 | W49: 700 | Y49: =Sortiment!A70 -> 1 | Z49: =Sortiment!A190 -> 1 | AA49: =Sortiment!A310 -> 1 | AB49: =Sortiment!A430 -> 1 | AC49: =Sortiment!A550 -> 1 | AG49: =Sortiment!A85 -> 1 | AH49: =Sortiment!A205 -> 1 | AI49: =Sortiment!A325 -> 1 | AJ49: =Sortiment!A445 -> 1 | AK49: =Sortiment!A565 -> 1
B50: 800 | D50: =(((($D$4-$E$4)/(LN(($D$4-$F$4)/($E$4-$F$4))))/49.8328865456397)^'Qn H'!E$13)*('Qn H'!E$14*$B12/1000) -> 476 | E50: =(((($D$4-$E$4)/(LN(($D$4-$F$4)/($E$4-$F$4))))/49.8328865456397)^'Qn H'!F$13)*('Qn H'!F$14*$B12/1000) -> 759.2 | F50: =(((($D$4-$E$4)/(LN(($D$4-$F$4)/($E$4-$F$4))))/49.8328865456397)^'Qn H'!G$13)*('Qn H'!G$14*$B12/1000) -> 804.8 | G50: =(((($D$4-$E$4)/(LN(($D$4-$F$4)/($E$4-$F$4))))/49.8328865456397)^'Qn H'!H$13)*('Qn H'!H$14*$B12/1000) -> 997.6 | H50: =(((($D$4-$E$4)/(LN(($D$4-$F$4)/($E$4-$F$4))))/49.8328865456397)^'Qn H'!I$13)*('Qn H'!I$14*$B12/1000) -> 1366.4 | I50: =(((($D$4-$E$4)/(LN(($D$4-$F$4)/($E$4-$F$4))))/49.8328865456397)^'Qn H'!J$13)*('Qn H'!J$14*$B12/1000) -> 0 | J50: =(((($D$4-$E$4)/(LN(($D$4-$F$4)/($E$4-$F$4))))/49.8328865456397)^'Qn H'!K$13)*('Qn H'!K$14*$B12/1000) -> 0 | K50: =(((($D$4-$E$4)/(LN(($D$4-$F$4)/($E$4-$F$4))))/49.8328865456397)^'Qn H'!L$13)*('Qn H'!L$14*$B12/1000) -> 0 | L50: =(((($D$4-$E$4)/(LN(($D$4-$F$4)/($E$4-$F$4))))/49.8328865456397)^'Qn H'!M$13)*('Qn H'!M$14*$B12/1000) -> 532.8 | M50: =(((($D$4-$E$4)/(LN(($D$4-$F$4)/($E$4-$F$4))))/49.8328865456397)^'Qn H'!N$13)*('Qn H'!N$14*$B12/1000) -> 838.4 | N50: =(((($D$4-$E$4)/(LN(($D$4-$F$4)/($E$4-$F$4))))/49.8328865456397)^'Qn H'!O$13)*('Qn H'!O$14*$B12/1000) -> 896 | O50: =(((($D$4-$E$4)/(LN(($D$4-$F$4)/($E$4-$F$4))))/49.8328865456397)^'Qn H'!P$13)*('Qn H'!P$14*$B12/1000) -> 1088 | P50: =(((($D$4-$E$4)/(LN(($D$4-$F$4)/($E$4-$F$4))))/49.8328865456397)^'Qn H'!Q$13)*('Qn H'!Q$14*$B12/1000) -> 1482.4 | Q50: =(((($D$4-$E$4)/(LN(($D$4-$F$4)/($E$4-$F$4))))/49.8328865456397)^'Qn H'!R$13)*('Qn H'!R$14*$B12/1000) -> 0 | R50: =(((($D$4-$E$4)/(LN(($D$4-$F$4)/($E$4-$F$4))))/49.8328865456397)^'Qn H'!S$13)*('Qn H'!S$14*$B12/1000) -> 0 | S50: =(((($D$4-$E$4)/(LN(($D$4-$F$4)/($E$4-$F$4))))/49.8328865456397)^'Qn H'!T$13)*('Qn H'!T$14*$B12/1000) -> 0 | W50: 800 | Y50: =Sortiment!A71 -> 1 | Z50: =Sortiment!A191 -> 1 | AA50: =Sortiment!A311 -> 1 | AB50: =Sortiment!A431 -> 1 | AC50: =Sortiment!A551 -> 1 | AG50: =Sortiment!A86 -> 1 | AH50: =Sortiment!A206 -> 1 | AI50: =Sortiment!A326 -> 1 | AJ50: =Sortiment!A446 -> 1 | AK50: =Sortiment!A566 -> 1
B51: 900 | D51: =(((($D$4-$E$4)/(LN(($D$4-$F$4)/($E$4-$F$4))))/49.8328865456397)^'Qn H'!E$13)*('Qn H'!E$14*$B13/1000) -> 535.5 | E51: =(((($D$4-$E$4)/(LN(($D$4-$F$4)/($E$4-$F$4))))/49.8328865456397)^'Qn H'!F$13)*('Qn H'!F$14*$B13/1000) -> 854.1 | F51: =(((($D$4-$E$4)/(LN(($D$4-$F$4)/($E$4-$F$4))))/49.8328865456397)^'Qn H'!G$13)*('Qn H'!G$14*$B13/1000) -> 905.4 | G51: =(((($D$4-$E$4)/(LN(($D$4-$F$4)/($E$4-$F$4))))/49.8328865456397)^'Qn H'!H$13)*('Qn H'!H$14*$B13/1000) -> 1122.3 | H51: =(((($D$4-$E$4)/(LN(($D$4-$F$4)/($E$4-$F$4))))/49.8328865456397)^'Qn H'!I$13)*('Qn H'!I$14*$B13/1000) -> 1537.2 | I51: =(((($D$4-$E$4)/(LN(($D$4-$F$4)/($E$4-$F$4))))/49.8328865456397)^'Qn H'!J$13)*('Qn H'!J$14*$B13/1000) -> 0 | J51: =(((($D$4-$E$4)/(LN(($D$4-$F$4)/($E$4-$F$4))))/49.8328865456397)^'Qn H'!K$13)*('Qn H'!K$14*$B13/1000) -> 0 | K51: =(((($D$4-$E$4)/(LN(($D$4-$F$4)/($E$4-$F$4))))/49.8328865456397)^'Qn H'!L$13)*('Qn H'!L$14*$B13/1000) -> 0 | L51: =(((($D$4-$E$4)/(LN(($D$4-$F$4)/($E$4-$F$4))))/49.8328865456397)^'Qn H'!M$13)*('Qn H'!M$14*$B13/1000) -> 599.4 | M51: =(((($D$4-$E$4)/(LN(($D$4-$F$4)/($E$4-$F$4))))/49.8328865456397)^'Qn H'!N$13)*('Qn H'!N$14*$B13/1000) -> 943.2 | N51: =(((($D$4-$E$4)/(LN(($D$4-$F$4)/($E$4-$F$4))))/49.8328865456397)^'Qn H'!O$13)*('Qn H'!O$14*$B13/1000) -> 1008 | O51: =(((($D$4-$E$4)/(LN(($D$4-$F$4)/($E$4-$F$4))))/49.8328865456397)^'Qn H'!P$13)*('Qn H'!P$14*$B13/1000) -> 1224 | P51: =(((($D$4-$E$4)/(LN(($D$4-$F$4)/($E$4-$F$4))))/49.8328865456397)^'Qn H'!Q$13)*('Qn H'!Q$14*$B13/1000) -> 1667.7 | Q51: =(((($D$4-$E$4)/(LN(($D$4-$F$4)/($E$4-$F$4))))/49.8328865456397)^'Qn H'!R$13)*('Qn H'!R$14*$B13/1000) -> 0 | R51: =(((($D$4-$E$4)/(LN(($D$4-$F$4)/($E$4-$F$4))))/49.8328865456397)^'Qn H'!S$13)*('Qn H'!S$14*$B13/1000) -> 0 | S51: =(((($D$4-$E$4)/(LN(($D$4-$F$4)/($E$4-$F$4))))/49.8328865456397)^'Qn H'!T$13)*('Qn H'!T$14*$B13/1000) -> 0 | W51: 900 | Y51: =Sortiment!A72 -> 1 | Z51: =Sortiment!A192 -> 1 | AA51: =Sortiment!A312 -> 1 | AB51: =Sortiment!A432 -> 1 | AC51: =Sortiment!A552 -> 1 | AG51: =Sortiment!A87 -> 1 | AH51: =Sortiment!A207 -> 1 | AI51: =Sortiment!A327 -> 1 | AJ51: =Sortiment!A447 -> 1 | AK51: =Sortiment!A567 -> 1
B52: 1000 | D52: =(((($D$4-$E$4)/(LN(($D$4-$F$4)/($E$4-$F$4))))/49.8328865456397)^'Qn H'!E$13)*('Qn H'!E$14*$B14/1000) -> 595 | E52: =(((($D$4-$E$4)/(LN(($D$4-$F$4)/($E$4-$F$4))))/49.8328865456397)^'Qn H'!F$13)*('Qn H'!F$14*$B14/1000) -> 949 | F52: =(((($D$4-$E$4)/(LN(($D$4-$F$4)/($E$4-$F$4))))/49.8328865456397)^'Qn H'!G$13)*('Qn H'!G$14*$B14/1000) -> 1006 | G52: =(((($D$4-$E$4)/(LN(($D$4-$F$4)/($E$4-$F$4))))/49.8328865456397)^'Qn H'!H$13)*('Qn H'!H$14*$B14/1000) -> 1247 | H52: =(((($D$4-$E$4)/(LN(($D$4-$F$4)/($E$4-$F$4))))/49.8328865456397)^'Qn H'!I$13)*('Qn H'!I$14*$B14/1000) -> 1708 | I52: =(((($D$4-$E$4)/(LN(($D$4-$F$4)/($E$4-$F$4))))/49.8328865456397)^'Qn H'!J$13)*('Qn H'!J$14*$B14/1000) -> 0 | J52: =(((($D$4-$E$4)/(LN(($D$4-$F$4)/($E$4-$F$4))))/49.8328865456397)^'Qn H'!K$13)*('Qn H'!K$14*$B14/1000) -> 0 | K52: =(((($D$4-$E$4)/(LN(($D$4-$F$4)/($E$4-$F$4))))/49.8328865456397)^'Qn H'!L$13)*('Qn H'!L$14*$B14/1000) -> 0 | L52: =(((($D$4-$E$4)/(LN(($D$4-$F$4)/($E$4-$F$4))))/49.8328865456397)^'Qn H'!M$13)*('Qn H'!M$14*$B14/1000) -> 666 | M52: =(((($D$4-$E$4)/(LN(($D$4-$F$4)/($E$4-$F$4))))/49.8328865456397)^'Qn H'!N$13)*('Qn H'!N$14*$B14/1000) -> 1048 | N52: =(((($D$4-$E$4)/(LN(($D$4-$F$4)/($E$4-$F$4))))/49.8328865456397)^'Qn H'!O$13)*('Qn H'!O$14*$B14/1000) -> 1120 | O52: =(((($D$4-$E$4)/(LN(($D$4-$F$4)/($E$4-$F$4))))/49.8328865456397)^'Qn H'!P$13)*('Qn H'!P$14*$B14/1000) -> 1360 | P52: =(((($D$4-$E$4)/(LN(($D$4-$F$4)/($E$4-$F$4))))/49.8328865456397)^'Qn H'!Q$13)*('Qn H'!Q$14*$B14/1000) -> 1853 | Q52: =(((($D$4-$E$4)/(LN(($D$4-$F$4)/($E$4-$F$4))))/49.8328865456397)^'Qn H'!R$13)*('Qn H'!R$14*$B14/1000) -> 0 | R52: =(((($D$4-$E$4)/(LN(($D$4-$F$4)/($E$4-$F$4))))/49.8328865456397)^'Qn H'!S$13)*('Qn H'!S$14*$B14/1000) -> 0 | S52: =(((($D$4-$E$4)/(LN(($D$4-$F$4)/($E$4-$F$4))))/49.8328865456397)^'Qn H'!T$13)*('Qn H'!T$14*$B14/1000) -> 0 | W52: 1000 | Y52: =Sortiment!A73 -> 1 | Z52: =Sortiment!A193 -> 1 | AA52: =Sortiment!A313 -> 1 | AB52: =Sortiment!A433 -> 1 | AC52: =Sortiment!A553 -> 1 | AG52: =Sortiment!A88 -> 1 | AH52: =Sortiment!A208 -> 1 | AI52: =Sortiment!A328 -> 1 | AJ52: =Sortiment!A448 -> 1 | AK52: =Sortiment!A568 -> 1
B53: 1100 | D53: =(((($D$4-$E$4)/(LN(($D$4-$F$4)/($E$4-$F$4))))/49.8328865456397)^'Qn H'!E$13)*('Qn H'!E$14*$B15/1000) -> 654.5 | E53: =(((($D$4-$E$4)/(LN(($D$4-$F$4)/($E$4-$F$4))))/49.8328865456397)^'Qn H'!F$13)*('Qn H'!F$14*$B15/1000) -> 1043.9 | F53: =(((($D$4-$E$4)/(LN(($D$4-$F$4)/($E$4-$F$4))))/49.8328865456397)^'Qn H'!G$13)*('Qn H'!G$14*$B15/1000) -> 1106.6 | G53: =(((($D$4-$E$4)/(LN(($D$4-$F$4)/($E$4-$F$4))))/49.8328865456397)^'Qn H'!H$13)*('Qn H'!H$14*$B15/1000) -> 1371.7 | H53: =(((($D$4-$E$4)/(LN(($D$4-$F$4)/($E$4-$F$4))))/49.8328865456397)^'Qn H'!I$13)*('Qn H'!I$14*$B15/1000) -> 1878.8 | I53: =(((($D$4-$E$4)/(LN(($D$4-$F$4)/($E$4-$F$4))))/49.8328865456397)^'Qn H'!J$13)*('Qn H'!J$14*$B15/1000) -> 0 | J53: =(((($D$4-$E$4)/(LN(($D$4-$F$4)/($E$4-$F$4))))/49.8328865456397)^'Qn H'!K$13)*('Qn H'!K$14*$B15/1000) -> 0 | K53: =(((($D$4-$E$4)/(LN(($D$4-$F$4)/($E$4-$F$4))))/49.8328865456397)^'Qn H'!L$13)*('Qn H'!L$14*$B15/1000) -> 0 | L53: =(((($D$4-$E$4)/(LN(($D$4-$F$4)/($E$4-$F$4))))/49.8328865456397)^'Qn H'!M$13)*('Qn H'!M$14*$B15/1000) -> 732.6 | M53: =(((($D$4-$E$4)/(LN(($D$4-$F$4)/($E$4-$F$4))))/49.8328865456397)^'Qn H'!N$13)*('Qn H'!N$14*$B15/1000) -> 1152.8 | N53: =(((($D$4-$E$4)/(LN(($D$4-$F$4)/($E$4-$F$4))))/49.8328865456397)^'Qn H'!O$13)*('Qn H'!O$14*$B15/1000) -> 1232 | O53: =(((($D$4-$E$4)/(LN(($D$4-$F$4)/($E$4-$F$4))))/49.8328865456397)^'Qn H'!P$13)*('Qn H'!P$14*$B15/1000) -> 1496 | P53: =(((($D$4-$E$4)/(LN(($D$4-$F$4)/($E$4-$F$4))))/49.8328865456397)^'Qn H'!Q$13)*('Qn H'!Q$14*$B15/1000) -> 2038.3 | Q53: =(((($D$4-$E$4)/(LN(($D$4-$F$4)/($E$4-$F$4))))/49.8328865456397)^'Qn H'!R$13)*('Qn H'!R$14*$B15/1000) -> 0 | R53: =(((($D$4-$E$4)/(LN(($D$4-$F$4)/($E$4-$F$4))))/49.8328865456397)^'Qn H'!S$13)*('Qn H'!S$14*$B15/1000) -> 0 | S53: =(((($D$4-$E$4)/(LN(($D$4-$F$4)/($E$4-$F$4))))/49.8328865456397)^'Qn H'!T$13)*('Qn H'!T$14*$B15/1000) -> 0 | W53: 1100 | Y53: =Sortiment!A74 -> 1 | Z53: =Sortiment!A194 -> 1 | AA53: =Sortiment!A314 -> 1 | AB53: =Sortiment!A434 -> 1 | AC53: =Sortiment!A554 -> 1 | AG53: =Sortiment!A89 -> 1 | AH53: =Sortiment!A209 -> 1 | AI53: =Sortiment!A329 -> 1 | AJ53: =Sortiment!A449 -> 1 | AK53: =Sortiment!A569 -> 1
B54: 1200 | D54: =(((($D$4-$E$4)/(LN(($D$4-$F$4)/($E$4-$F$4))))/49.8328865456397)^'Qn H'!E$13)*('Qn H'!E$14*$B16/1000) -> 714 | E54: =(((($D$4-$E$4)/(LN(($D$4-$F$4)/($E$4-$F$4))))/49.8328865456397)^'Qn H'!F$13)*('Qn H'!F$14*$B16/1000) -> 1138.8 | F54: =(((($D$4-$E$4)/(LN(($D$4-$F$4)/($E$4-$F$4))))/49.8328865456397)^'Qn H'!G$13)*('Qn H'!G$14*$B16/1000) -> 1207.2 | G54: =(((($D$4-$E$4)/(LN(($D$4-$F$4)/($E$4-$F$4))))/49.8328865456397)^'Qn H'!H$13)*('Qn H'!H$14*$B16/1000) -> 1496.4 | H54: =(((($D$4-$E$4)/(LN(($D$4-$F$4)/($E$4-$F$4))))/49.8328865456397)^'Qn H'!I$13)*('Qn H'!I$14*$B16/1000) -> 2049.6 | I54: =(((($D$4-$E$4)/(LN(($D$4-$F$4)/($E$4-$F$4))))/49.8328865456397)^'Qn H'!J$13)*('Qn H'!J$14*$B16/1000) -> 0 | J54: =(((($D$4-$E$4)/(LN(($D$4-$F$4)/($E$4-$F$4))))/49.8328865456397)^'Qn H'!K$13)*('Qn H'!K$14*$B16/1000) -> 0 | K54: =(((($D$4-$E$4)/(LN(($D$4-$F$4)/($E$4-$F$4))))/49.8328865456397)^'Qn H'!L$13)*('Qn H'!L$14*$B16/1000) -> 0 | L54: =(((($D$4-$E$4)/(LN(($D$4-$F$4)/($E$4-$F$4))))/49.8328865456397)^'Qn H'!M$13)*('Qn H'!M$14*$B16/1000) -> 799.2 | M54: =(((($D$4-$E$4)/(LN(($D$4-$F$4)/($E$4-$F$4))))/49.8328865456397)^'Qn H'!N$13)*('Qn H'!N$14*$B16/1000) -> 1257.6 | N54: =(((($D$4-$E$4)/(LN(($D$4-$F$4)/($E$4-$F$4))))/49.8328865456397)^'Qn H'!O$13)*('Qn H'!O$14*$B16/1000) -> 1344 | O54: =(((($D$4-$E$4)/(LN(($D$4-$F$4)/($E$4-$F$4))))/49.8328865456397)^'Qn H'!P$13)*('Qn H'!P$14*$B16/1000) -> 1632 | P54: =(((($D$4-$E$4)/(LN(($D$4-$F$4)/($E$4-$F$4))))/49.8328865456397)^'Qn H'!Q$13)*('Qn H'!Q$14*$B16/1000) -> 2223.6 | Q54: =(((($D$4-$E$4)/(LN(($D$4-$F$4)/($E$4-$F$4))))/49.8328865456397)^'Qn H'!R$13)*('Qn H'!R$14*$B16/1000) -> 0 | R54: =(((($D$4-$E$4)/(LN(($D$4-$F$4)/($E$4-$F$4))))/49.8328865456397)^'Qn H'!S$13)*('Qn H'!S$14*$B16/1000) -> 0 | S54: =(((($D$4-$E$4)/(LN(($D$4-$F$4)/($E$4-$F$4))))/49.8328865456397)^'Qn H'!T$13)*('Qn H'!T$14*$B16/1000) -> 0 | W54: 1200 | Y54: =Sortiment!A75 -> 1 | Z54: =Sortiment!A195 -> 1 | AA54: =Sortiment!A315 -> 1 | AB54: =Sortiment!A435 -> 1 | AC54: =Sortiment!A555 -> 1 | AG54: =Sortiment!A90 -> 1 | AH54: =Sortiment!A210 -> 1 | AI54: =Sortiment!A330 -> 1 | AJ54: =Sortiment!A450 -> 1 | AK54: =Sortiment!A570 -> 1
B55: 1400 | D55: =(((($D$4-$E$4)/(LN(($D$4-$F$4)/($E$4-$F$4))))/49.8328865456397)^'Qn H'!E$13)*('Qn H'!E$14*$B17/1000) -> 833 | E55: =(((($D$4-$E$4)/(LN(($D$4-$F$4)/($E$4-$F$4))))/49.8328865456397)^'Qn H'!F$13)*('Qn H'!F$14*$B17/1000) -> 1328.6 | F55: =(((($D$4-$E$4)/(LN(($D$4-$F$4)/($E$4-$F$4))))/49.8328865456397)^'Qn H'!G$13)*('Qn H'!G$14*$B17/1000) -> 1408.4 | G55: =(((($D$4-$E$4)/(LN(($D$4-$F$4)/($E$4-$F$4))))/49.8328865456397)^'Qn H'!H$13)*('Qn H'!H$14*$B17/1000) -> 1745.8 | H55: =(((($D$4-$E$4)/(LN(($D$4-$F$4)/($E$4-$F$4))))/49.8328865456397)^'Qn H'!I$13)*('Qn H'!I$14*$B17/1000) -> 2391.2 | I55: =(((($D$4-$E$4)/(LN(($D$4-$F$4)/($E$4-$F$4))))/49.8328865456397)^'Qn H'!J$13)*('Qn H'!J$14*$B17/1000) -> 0 | J55: =(((($D$4-$E$4)/(LN(($D$4-$F$4)/($E$4-$F$4))))/49.8328865456397)^'Qn H'!K$13)*('Qn H'!K$14*$B17/1000) -> 0 | K55: =(((($D$4-$E$4)/(LN(($D$4-$F$4)/($E$4-$F$4))))/49.8328865456397)^'Qn H'!L$13)*('Qn H'!L$14*$B17/1000) -> 0 | L55: =(((($D$4-$E$4)/(LN(($D$4-$F$4)/($E$4-$F$4))))/49.8328865456397)^'Qn H'!M$13)*('Qn H'!M$14*$B17/1000) -> 932.4 | M55: =(((($D$4-$E$4)/(LN(($D$4-$F$4)/($E$4-$F$4))))/49.8328865456397)^'Qn H'!N$13)*('Qn H'!N$14*$B17/1000) -> 1467.2 | N55: =(((($D$4-$E$4)/(LN(($D$4-$F$4)/($E$4-$F$4))))/49.8328865456397)^'Qn H'!O$13)*('Qn H'!O$14*$B17/1000) -> 1568 | O55: =(((($D$4-$E$4)/(LN(($D$4-$F$4)/($E$4-$F$4))))/49.8328865456397)^'Qn H'!P$13)*('Qn H'!P$14*$B17/1000) -> 1904 | P55: =(((($D$4-$E$4)/(LN(($D$4-$F$4)/($E$4-$F$4))))/49.8328865456397)^'Qn H'!Q$13)*('Qn H'!Q$14*$B17/1000) -> 2594.2 | Q55: =(((($D$4-$E$4)/(LN(($D$4-$F$4)/($E$4-$F$4))))/49.8328865456397)^'Qn H'!R$13)*('Qn H'!R$14*$B17/1000) -> 0 | R55: =(((($D$4-$E$4)/(LN(($D$4-$F$4)/($E$4-$F$4))))/49.8328865456397)^'Qn H'!S$13)*('Qn H'!S$14*$B17/1000) -> 0 | S55: =(((($D$4-$E$4)/(LN(($D$4-$F$4)/($E$4-$F$4))))/49.8328865456397)^'Qn H'!T$13)*('Qn H'!T$14*$B17/1000) -> 0 | W55: 1400 | Y55: =Sortiment!A76 -> 1 | Z55: =Sortiment!A196 -> 1 | AA55: =Sortiment!A316 -> 1 | AB55: =Sortiment!A436 -> 1 | AC55: =Sortiment!A556 -> 1 | AG55: =Sortiment!A91 -> 1 | AH55: =Sortiment!A211 -> 1 | AI55: =Sortiment!A331 -> 1 | AJ55: =Sortiment!A451 -> 1 | AK55: =Sortiment!A571 -> 1
B56: 1600 | D56: =(((($D$4-$E$4)/(LN(($D$4-$F$4)/($E$4-$F$4))))/49.8328865456397)^'Qn H'!E$13)*('Qn H'!E$14*$B18/1000) -> 952 | E56: =(((($D$4-$E$4)/(LN(($D$4-$F$4)/($E$4-$F$4))))/49.8328865456397)^'Qn H'!F$13)*('Qn H'!F$14*$B18/1000) -> 1518.4 | F56: =(((($D$4-$E$4)/(LN(($D$4-$F$4)/($E$4-$F$4))))/49.8328865456397)^'Qn H'!G$13)*('Qn H'!G$14*$B18/1000) -> 1609.6 | G56: =(((($D$4-$E$4)/(LN(($D$4-$F$4)/($E$4-$F$4))))/49.8328865456397)^'Qn H'!H$13)*('Qn H'!H$14*$B18/1000) -> 1995.2 | H56: =(((($D$4-$E$4)/(LN(($D$4-$F$4)/($E$4-$F$4))))/49.8328865456397)^'Qn H'!I$13)*('Qn H'!I$14*$B18/1000) -> 2732.8 | I56: =(((($D$4-$E$4)/(LN(($D$4-$F$4)/($E$4-$F$4))))/49.8328865456397)^'Qn H'!J$13)*('Qn H'!J$14*$B18/1000) -> 0 | J56: =(((($D$4-$E$4)/(LN(($D$4-$F$4)/($E$4-$F$4))))/49.8328865456397)^'Qn H'!K$13)*('Qn H'!K$14*$B18/1000) -> 0 | K56: =(((($D$4-$E$4)/(LN(($D$4-$F$4)/($E$4-$F$4))))/49.8328865456397)^'Qn H'!L$13)*('Qn H'!L$14*$B18/1000) -> 0 | L56: =(((($D$4-$E$4)/(LN(($D$4-$F$4)/($E$4-$F$4))))/49.8328865456397)^'Qn H'!M$13)*('Qn H'!M$14*$B18/1000) -> 1065.6 | M56: =(((($D$4-$E$4)/(LN(($D$4-$F$4)/($E$4-$F$4))))/49.8328865456397)^'Qn H'!N$13)*('Qn H'!N$14*$B18/1000) -> 1676.8 | N56: =(((($D$4-$E$4)/(LN(($D$4-$F$4)/($E$4-$F$4))))/49.8328865456397)^'Qn H'!O$13)*('Qn H'!O$14*$B18/1000) -> 1792 | O56: =(((($D$4-$E$4)/(LN(($D$4-$F$4)/($E$4-$F$4))))/49.8328865456397)^'Qn H'!P$13)*('Qn H'!P$14*$B18/1000) -> 2176 | P56: =(((($D$4-$E$4)/(LN(($D$4-$F$4)/($E$4-$F$4))))/49.8328865456397)^'Qn H'!Q$13)*('Qn H'!Q$14*$B18/1000) -> 2964.8 | Q56: =(((($D$4-$E$4)/(LN(($D$4-$F$4)/($E$4-$F$4))))/49.8328865456397)^'Qn H'!R$13)*('Qn H'!R$14*$B18/1000) -> 0 | R56: =(((($D$4-$E$4)/(LN(($D$4-$F$4)/($E$4-$F$4))))/49.8328865456397)^'Qn H'!S$13)*('Qn H'!S$14*$B18/1000) -> 0 | S56: =(((($D$4-$E$4)/(LN(($D$4-$F$4)/($E$4-$F$4))))/49.8328865456397)^'Qn H'!T$13)*('Qn H'!T$14*$B18/1000) -> 0 | W56: 1600 | Y56: =Sortiment!A77 -> 1 | Z56: =Sortiment!A197 -> 1 | AA56: =Sortiment!A317 -> 1 | AB56: =Sortiment!A437 -> 1 | AC56: =Sortiment!A557 -> 1 | AG56: =Sortiment!A92 -> 1 | AH56: =Sortiment!A212 -> 1 | AI56: =Sortiment!A332 -> 1 | AJ56: =Sortiment!A452 -> 1 | AK56: =Sortiment!A572 -> 1
B57: 1800 | D57: =(((($D$4-$E$4)/(LN(($D$4-$F$4)/($E$4-$F$4))))/49.8328865456397)^'Qn H'!E$13)*('Qn H'!E$14*$B19/1000) -> 1071 | E57: =(((($D$4-$E$4)/(LN(($D$4-$F$4)/($E$4-$F$4))))/49.8328865456397)^'Qn H'!F$13)*('Qn H'!F$14*$B19/1000) -> 1708.2 | F57: =(((($D$4-$E$4)/(LN(($D$4-$F$4)/($E$4-$F$4))))/49.8328865456397)^'Qn H'!G$13)*('Qn H'!G$14*$B19/1000) -> 1810.8 | G57: =(((($D$4-$E$4)/(LN(($D$4-$F$4)/($E$4-$F$4))))/49.8328865456397)^'Qn H'!H$13)*('Qn H'!H$14*$B19/1000) -> 2244.6 | H57: =(((($D$4-$E$4)/(LN(($D$4-$F$4)/($E$4-$F$4))))/49.8328865456397)^'Qn H'!I$13)*('Qn H'!I$14*$B19/1000) -> 3074.4 | I57: =(((($D$4-$E$4)/(LN(($D$4-$F$4)/($E$4-$F$4))))/49.8328865456397)^'Qn H'!J$13)*('Qn H'!J$14*$B19/1000) -> 0 | J57: =(((($D$4-$E$4)/(LN(($D$4-$F$4)/($E$4-$F$4))))/49.8328865456397)^'Qn H'!K$13)*('Qn H'!K$14*$B19/1000) -> 0 | K57: =(((($D$4-$E$4)/(LN(($D$4-$F$4)/($E$4-$F$4))))/49.8328865456397)^'Qn H'!L$13)*('Qn H'!L$14*$B19/1000) -> 0 | L57: =(((($D$4-$E$4)/(LN(($D$4-$F$4)/($E$4-$F$4))))/49.8328865456397)^'Qn H'!M$13)*('Qn H'!M$14*$B19/1000) -> 1198.8 | M57: =(((($D$4-$E$4)/(LN(($D$4-$F$4)/($E$4-$F$4))))/49.8328865456397)^'Qn H'!N$13)*('Qn H'!N$14*$B19/1000) -> 1886.4 | N57: =(((($D$4-$E$4)/(LN(($D$4-$F$4)/($E$4-$F$4))))/49.8328865456397)^'Qn H'!O$13)*('Qn H'!O$14*$B19/1000) -> 2016 | O57: =(((($D$4-$E$4)/(LN(($D$4-$F$4)/($E$4-$F$4))))/49.8328865456397)^'Qn H'!P$13)*('Qn H'!P$14*$B19/1000) -> 2448 | P57: =(((($D$4-$E$4)/(LN(($D$4-$F$4)/($E$4-$F$4))))/49.8328865456397)^'Qn H'!Q$13)*('Qn H'!Q$14*$B19/1000) -> 3335.4 | Q57: =(((($D$4-$E$4)/(LN(($D$4-$F$4)/($E$4-$F$4))))/49.8328865456397)^'Qn H'!R$13)*('Qn H'!R$14*$B19/1000) -> 0 | R57: =(((($D$4-$E$4)/(LN(($D$4-$F$4)/($E$4-$F$4))))/49.8328865456397)^'Qn H'!S$13)*('Qn H'!S$14*$B19/1000) -> 0 | S57: =(((($D$4-$E$4)/(LN(($D$4-$F$4)/($E$4-$F$4))))/49.8328865456397)^'Qn H'!T$13)*('Qn H'!T$14*$B19/1000) -> 0 | W57: 1800 | Y57: =Sortiment!A78 -> 1 | Z57: =Sortiment!A198 -> 1 | AA57: =Sortiment!A318 -> 1 | AB57: =Sortiment!A438 -> 1 | AC57: =Sortiment!A558 -> 1 | AG57: =Sortiment!A93 -> 1 | AH57: =Sortiment!A213 -> 1 | AI57: =Sortiment!A333 -> 1 | AJ57: =Sortiment!A453 -> 1 | AK57: =Sortiment!A573 -> 1
B58: 2000 | D58: =(((($D$4-$E$4)/(LN(($D$4-$F$4)/($E$4-$F$4))))/49.8328865456397)^'Qn H'!E$13)*('Qn H'!E$14*$B20/1000) -> 1190 | E58: =(((($D$4-$E$4)/(LN(($D$4-$F$4)/($E$4-$F$4))))/49.8328865456397)^'Qn H'!F$13)*('Qn H'!F$14*$B20/1000) -> 1898 | F58: =(((($D$4-$E$4)/(LN(($D$4-$F$4)/($E$4-$F$4))))/49.8328865456397)^'Qn H'!G$13)*('Qn H'!G$14*$B20/1000) -> 2012 | G58: =(((($D$4-$E$4)/(LN(($D$4-$F$4)/($E$4-$F$4))))/49.8328865456397)^'Qn H'!H$13)*('Qn H'!H$14*$B20/1000) -> 2494 | H58: =(((($D$4-$E$4)/(LN(($D$4-$F$4)/($E$4-$F$4))))/49.8328865456397)^'Qn H'!I$13)*('Qn H'!I$14*$B20/1000) -> 3416 | I58: =(((($D$4-$E$4)/(LN(($D$4-$F$4)/($E$4-$F$4))))/49.8328865456397)^'Qn H'!J$13)*('Qn H'!J$14*$B20/1000) -> 0 | J58: =(((($D$4-$E$4)/(LN(($D$4-$F$4)/($E$4-$F$4))))/49.8328865456397)^'Qn H'!K$13)*('Qn H'!K$14*$B20/1000) -> 0 | K58: =(((($D$4-$E$4)/(LN(($D$4-$F$4)/($E$4-$F$4))))/49.8328865456397)^'Qn H'!L$13)*('Qn H'!L$14*$B20/1000) -> 0 | L58: =(((($D$4-$E$4)/(LN(($D$4-$F$4)/($E$4-$F$4))))/49.8328865456397)^'Qn H'!M$13)*('Qn H'!M$14*$B20/1000) -> 1332 | M58: =(((($D$4-$E$4)/(LN(($D$4-$F$4)/($E$4-$F$4))))/49.8328865456397)^'Qn H'!N$13)*('Qn H'!N$14*$B20/1000) -> 2096 | N58: =(((($D$4-$E$4)/(LN(($D$4-$F$4)/($E$4-$F$4))))/49.8328865456397)^'Qn H'!O$13)*('Qn H'!O$14*$B20/1000) -> 2240 | O58: =(((($D$4-$E$4)/(LN(($D$4-$F$4)/($E$4-$F$4))))/49.8328865456397)^'Qn H'!P$13)*('Qn H'!P$14*$B20/1000) -> 2720 | P58: =(((($D$4-$E$4)/(LN(($D$4-$F$4)/($E$4-$F$4))))/49.8328865456397)^'Qn H'!Q$13)*('Qn H'!Q$14*$B20/1000) -> 3706 | Q58: =(((($D$4-$E$4)/(LN(($D$4-$F$4)/($E$4-$F$4))))/49.8328865456397)^'Qn H'!R$13)*('Qn H'!R$14*$B20/1000) -> 0 | R58: =(((($D$4-$E$4)/(LN(($D$4-$F$4)/($E$4-$F$4))))/49.8328865456397)^'Qn H'!S$13)*('Qn H'!S$14*$B20/1000) -> 0 | S58: =(((($D$4-$E$4)/(LN(($D$4-$F$4)/($E$4-$F$4))))/49.8328865456397)^'Qn H'!T$13)*('Qn H'!T$14*$B20/1000) -> 0 | W58: 2000 | Y58: =Sortiment!A79 -> 1 | Z58: =Sortiment!A199 -> 1 | AA58: =Sortiment!A319 -> 1 | AB58: =Sortiment!A439 -> 1 | AC58: =Sortiment!A559 -> 1 | AG58: =Sortiment!A94 -> 1 | AH58: =Sortiment!A214 -> 1 | AI58: =Sortiment!A334 -> 1 | AJ58: =Sortiment!A454 -> 1 | AK58: =Sortiment!A574 -> 1
B59: 2300 | D59: =(((($D$4-$E$4)/(LN(($D$4-$F$4)/($E$4-$F$4))))/49.8328865456397)^'Qn H'!E$13)*('Qn H'!E$14*$B21/1000) -> 1368.5 | E59: =(((($D$4-$E$4)/(LN(($D$4-$F$4)/($E$4-$F$4))))/49.8328865456397)^'Qn H'!F$13)*('Qn H'!F$14*$B21/1000) -> 2182.7 | F59: =(((($D$4-$E$4)/(LN(($D$4-$F$4)/($E$4-$F$4))))/49.8328865456397)^'Qn H'!G$13)*('Qn H'!G$14*$B21/1000) -> 2313.8 | G59: =(((($D$4-$E$4)/(LN(($D$4-$F$4)/($E$4-$F$4))))/49.8328865456397)^'Qn H'!H$13)*('Qn H'!H$14*$B21/1000) -> 2868.1 | H59: =(((($D$4-$E$4)/(LN(($D$4-$F$4)/($E$4-$F$4))))/49.8328865456397)^'Qn H'!I$13)*('Qn H'!I$14*$B21/1000) -> 3928.4 | I59: =(((($D$4-$E$4)/(LN(($D$4-$F$4)/($E$4-$F$4))))/49.8328865456397)^'Qn H'!J$13)*('Qn H'!J$14*$B21/1000) -> 0 | J59: =(((($D$4-$E$4)/(LN(($D$4-$F$4)/($E$4-$F$4))))/49.8328865456397)^'Qn H'!K$13)*('Qn H'!K$14*$B21/1000) -> 0 | K59: =(((($D$4-$E$4)/(LN(($D$4-$F$4)/($E$4-$F$4))))/49.8328865456397)^'Qn H'!L$13)*('Qn H'!L$14*$B21/1000) -> 0 | L59: =(((($D$4-$E$4)/(LN(($D$4-$F$4)/($E$4-$F$4))))/49.8328865456397)^'Qn H'!M$13)*('Qn H'!M$14*$B21/1000) -> 1531.8 | M59: =(((($D$4-$E$4)/(LN(($D$4-$F$4)/($E$4-$F$4))))/49.8328865456397)^'Qn H'!N$13)*('Qn H'!N$14*$B21/1000) -> 2410.4 | N59: =(((($D$4-$E$4)/(LN(($D$4-$F$4)/($E$4-$F$4))))/49.8328865456397)^'Qn H'!O$13)*('Qn H'!O$14*$B21/1000) -> 2576 | O59: =(((($D$4-$E$4)/(LN(($D$4-$F$4)/($E$4-$F$4))))/49.8328865456397)^'Qn H'!P$13)*('Qn H'!P$14*$B21/1000) -> 3128 | P59: =(((($D$4-$E$4)/(LN(($D$4-$F$4)/($E$4-$F$4))))/49.8328865456397)^'Qn H'!Q$13)*('Qn H'!Q$14*$B21/1000) -> 4261.9 | Q59: =(((($D$4-$E$4)/(LN(($D$4-$F$4)/($E$4-$F$4))))/49.8328865456397)^'Qn H'!R$13)*('Qn H'!R$14*$B21/1000) -> 0 | R59: =(((($D$4-$E$4)/(LN(($D$4-$F$4)/($E$4-$F$4))))/49.8328865456397)^'Qn H'!S$13)*('Qn H'!S$14*$B21/1000) -> 0 | S59: =(((($D$4-$E$4)/(LN(($D$4-$F$4)/($E$4-$F$4))))/49.8328865456397)^'Qn H'!T$13)*('Qn H'!T$14*$B21/1000) -> 0 | W59: 2300 | Y59: =Sortiment!A80 -> 1 | Z59: =Sortiment!A200 -> 1 | AA59: =Sortiment!A320 -> 1 | AB59: =Sortiment!A440 -> 1 | AC59: =Sortiment!A560 -> 1 | AG59: =Sortiment!A95 -> 1 | AH59: =Sortiment!A215 -> 1 | AI59: =Sortiment!A335 -> 1 | AJ59: =Sortiment!A455 -> 1 | AK59: =Sortiment!A575 -> 0
B60: 2600 | D60: =(((($D$4-$E$4)/(LN(($D$4-$F$4)/($E$4-$F$4))))/49.8328865456397)^'Qn H'!E$13)*('Qn H'!E$14*$B22/1000) -> 1547 | E60: =(((($D$4-$E$4)/(LN(($D$4-$F$4)/($E$4-$F$4))))/49.8328865456397)^'Qn H'!F$13)*('Qn H'!F$14*$B22/1000) -> 2467.4 | F60: =(((($D$4-$E$4)/(LN(($D$4-$F$4)/($E$4-$F$4))))/49.8328865456397)^'Qn H'!G$13)*('Qn H'!G$14*$B22/1000) -> 2615.6 | G60: =(((($D$4-$E$4)/(LN(($D$4-$F$4)/($E$4-$F$4))))/49.8328865456397)^'Qn H'!H$13)*('Qn H'!H$14*$B22/1000) -> 3242.2 | H60: =(((($D$4-$E$4)/(LN(($D$4-$F$4)/($E$4-$F$4))))/49.8328865456397)^'Qn H'!I$13)*('Qn H'!I$14*$B22/1000) -> 4440.8 | I60: =(((($D$4-$E$4)/(LN(($D$4-$F$4)/($E$4-$F$4))))/49.8328865456397)^'Qn H'!J$13)*('Qn H'!J$14*$B22/1000) -> 0 | J60: =(((($D$4-$E$4)/(LN(($D$4-$F$4)/($E$4-$F$4))))/49.8328865456397)^'Qn H'!K$13)*('Qn H'!K$14*$B22/1000) -> 0 | K60: =(((($D$4-$E$4)/(LN(($D$4-$F$4)/($E$4-$F$4))))/49.8328865456397)^'Qn H'!L$13)*('Qn H'!L$14*$B22/1000) -> 0 | L60: =(((($D$4-$E$4)/(LN(($D$4-$F$4)/($E$4-$F$4))))/49.8328865456397)^'Qn H'!M$13)*('Qn H'!M$14*$B22/1000) -> 1731.6 | M60: =(((($D$4-$E$4)/(LN(($D$4-$F$4)/($E$4-$F$4))))/49.8328865456397)^'Qn H'!N$13)*('Qn H'!N$14*$B22/1000) -> 2724.8 | N60: =(((($D$4-$E$4)/(LN(($D$4-$F$4)/($E$4-$F$4))))/49.8328865456397)^'Qn H'!O$13)*('Qn H'!O$14*$B22/1000) -> 2912 | O60: =(((($D$4-$E$4)/(LN(($D$4-$F$4)/($E$4-$F$4))))/49.8328865456397)^'Qn H'!P$13)*('Qn H'!P$14*$B22/1000) -> 3536 | P60: =(((($D$4-$E$4)/(LN(($D$4-$F$4)/($E$4-$F$4))))/49.8328865456397)^'Qn H'!Q$13)*('Qn H'!Q$14*$B22/1000) -> 4817.8 | Q60: =(((($D$4-$E$4)/(LN(($D$4-$F$4)/($E$4-$F$4))))/49.8328865456397)^'Qn H'!R$13)*('Qn H'!R$14*$B22/1000) -> 0 | R60: =(((($D$4-$E$4)/(LN(($D$4-$F$4)/($E$4-$F$4))))/49.8328865456397)^'Qn H'!S$13)*('Qn H'!S$14*$B22/1000) -> 0 | S60: =(((($D$4-$E$4)/(LN(($D$4-$F$4)/($E$4-$F$4))))/49.8328865456397)^'Qn H'!T$13)*('Qn H'!T$14*$B22/1000) -> 0 | W60: 2600 | Y60: =Sortiment!A81 -> 1 | Z60: =Sortiment!A201 -> 1 | AA60: =Sortiment!A321 -> 1 | AB60: =Sortiment!A441 -> 1 | AC60: =Sortiment!A561 -> 0 | AG60: =Sortiment!A96 -> 1 | AH60: =Sortiment!A216 -> 1 | AI60: =Sortiment!A336 -> 1 | AJ60: =Sortiment!A456 -> 0 | AK60: =Sortiment!A576 -> 0
B61: 3000 | D61: =(((($D$4-$E$4)/(LN(($D$4-$F$4)/($E$4-$F$4))))/49.8328865456397)^'Qn H'!E$13)*('Qn H'!E$14*$B23/1000) -> 1785 | E61: =(((($D$4-$E$4)/(LN(($D$4-$F$4)/($E$4-$F$4))))/49.8328865456397)^'Qn H'!F$13)*('Qn H'!F$14*$B23/1000) -> 2847 | F61: =(((($D$4-$E$4)/(LN(($D$4-$F$4)/($E$4-$F$4))))/49.8328865456397)^'Qn H'!G$13)*('Qn H'!G$14*$B23/1000) -> 3018 | G61: =(((($D$4-$E$4)/(LN(($D$4-$F$4)/($E$4-$F$4))))/49.8328865456397)^'Qn H'!H$13)*('Qn H'!H$14*$B23/1000) -> 3741 | H61: =(((($D$4-$E$4)/(LN(($D$4-$F$4)/($E$4-$F$4))))/49.8328865456397)^'Qn H'!I$13)*('Qn H'!I$14*$B23/1000) -> 5124 | I61: =(((($D$4-$E$4)/(LN(($D$4-$F$4)/($E$4-$F$4))))/49.8328865456397)^'Qn H'!J$13)*('Qn H'!J$14*$B23/1000) -> 0 | J61: =(((($D$4-$E$4)/(LN(($D$4-$F$4)/($E$4-$F$4))))/49.8328865456397)^'Qn H'!K$13)*('Qn H'!K$14*$B23/1000) -> 0 | K61: =(((($D$4-$E$4)/(LN(($D$4-$F$4)/($E$4-$F$4))))/49.8328865456397)^'Qn H'!L$13)*('Qn H'!L$14*$B23/1000) -> 0 | L61: =(((($D$4-$E$4)/(LN(($D$4-$F$4)/($E$4-$F$4))))/49.8328865456397)^'Qn H'!M$13)*('Qn H'!M$14*$B23/1000) -> 1998 | M61: =(((($D$4-$E$4)/(LN(($D$4-$F$4)/($E$4-$F$4))))/49.8328865456397)^'Qn H'!N$13)*('Qn H'!N$14*$B23/1000) -> 3144 | N61: =(((($D$4-$E$4)/(LN(($D$4-$F$4)/($E$4-$F$4))))/49.8328865456397)^'Qn H'!O$13)*('Qn H'!O$14*$B23/1000) -> 3360 | O61: =(((($D$4-$E$4)/(LN(($D$4-$F$4)/($E$4-$F$4))))/49.8328865456397)^'Qn H'!P$13)*('Qn H'!P$14*$B23/1000) -> 4080 | P61: =(((($D$4-$E$4)/(LN(($D$4-$F$4)/($E$4-$F$4))))/49.8328865456397)^'Qn H'!Q$13)*('Qn H'!Q$14*$B23/1000) -> 5559 | Q61: =(((($D$4-$E$4)/(LN(($D$4-$F$4)/($E$4-$F$4))))/49.8328865456397)^'Qn H'!R$13)*('Qn H'!R$14*$B23/1000) -> 0 | R61: =(((($D$4-$E$4)/(LN(($D$4-$F$4)/($E$4-$F$4))))/49.8328865456397)^'Qn H'!S$13)*('Qn H'!S$14*$B23/1000) -> 0 | S61: =(((($D$4-$E$4)/(LN(($D$4-$F$4)/($E$4-$F$4))))/49.8328865456397)^'Qn H'!T$13)*('Qn H'!T$14*$B23/1000) -> 0 | W61: 3000 | Y61: =Sortiment!A82 -> 1 | Z61: =Sortiment!A202 -> 1 | AA61: =Sortiment!A322 -> 1 | AB61: =Sortiment!A442 -> 0 | AC61: =Sortiment!A562 -> 0 | AG61: =Sortiment!A97 -> 1 | AH61: =Sortiment!A217 -> 1 | AI61: =Sortiment!A337 -> 0 | AJ61: =Sortiment!A457 -> 0 | AK61: =Sortiment!A577 -> 0
C64: Výška [mm] | F64: ='Qn H'!G15 -> 884 | N64: ='Qn H'!O15 -> 958 | X64: Výška [mm] | AA64: 884 | AI64: 958
B65: Délka [mm] | D65: ='Qn H'!E16 -> K10H | E65: ='Qn H'!F16 -> K11H | F65: ='Qn H'!G16 -> K20H | G65: ='Qn H'!H16 -> K21H | H65: ='Qn H'!I16 -> K22H | I65: ='Qn H'!J16 -> 0 | J65: ='Qn H'!K16 -> 0 | K65: ='Qn H'!L16 -> 0 | L65: ='Qn H'!M16 -> K10H | M65: ='Qn H'!N16 -> K11H | N65: ='Qn H'!O16 -> K20H | O65: ='Qn H'!P16 -> K21H | P65: ='Qn H'!Q16 -> K22H | Q65: ='Qn H'!R16 -> 0 | R65: ='Qn H'!S16 -> 0 | S65: ='Qn H'!T16 -> 0 | W65: Délka [mm] | Y65: =D65 -> K10H | Z65: K11H | AA65: K20H | AB65: K21H | AC65: K22H | AD65: 0 | AE65: 0 | AF65: 0 | AG65: K10H | AH65: K11H | AI65: K20H | AJ65: K21H | AK65: K22H | AL65: 0 | AM65: 0 | AN65: 0
B66: 500 | D66: =(((($D$4-$E$4)/(LN(($D$4-$F$4)/($E$4-$F$4))))/49.8328865456397)^'Qn H'!E$17)*('Qn H'!E$18*$B9/1000) -> 449 | E66: =(((($D$4-$E$4)/(LN(($D$4-$F$4)/($E$4-$F$4))))/49.8328865456397)^'Qn H'!F$17)*('Qn H'!F$18*$B9/1000) -> 666 | F66: =(((($D$4-$E$4)/(LN(($D$4-$F$4)/($E$4-$F$4))))/49.8328865456397)^'Qn H'!G$17)*('Qn H'!G$18*$B9/1000) -> 738 | G66: =(((($D$4-$E$4)/(LN(($D$4-$F$4)/($E$4-$F$4))))/49.8328865456397)^'Qn H'!H$17)*('Qn H'!H$18*$B9/1000) -> 837 | H66: =(((($D$4-$E$4)/(LN(($D$4-$F$4)/($E$4-$F$4))))/49.8328865456397)^'Qn H'!I$17)*('Qn H'!I$18*$B9/1000) -> 1119 | I66: =(((($D$4-$E$4)/(LN(($D$4-$F$4)/($E$4-$F$4))))/49.8328865456397)^'Qn H'!J$17)*('Qn H'!J$18*$B9/1000) -> 0 | J66: =(((($D$4-$E$4)/(LN(($D$4-$F$4)/($E$4-$F$4))))/49.8328865456397)^'Qn H'!K$17)*('Qn H'!K$18*$B9/1000) -> 0 | K66: =(((($D$4-$E$4)/(LN(($D$4-$F$4)/($E$4-$F$4))))/49.8328865456397)^'Qn H'!L$17)*('Qn H'!L$18*$B9/1000) -> 0 | L66: =(((($D$4-$E$4)/(LN(($D$4-$F$4)/($E$4-$F$4))))/49.8328865456397)^'Qn H'!M$17)*('Qn H'!M$18*$B9/1000) -> 491 | M66: =(((($D$4-$E$4)/(LN(($D$4-$F$4)/($E$4-$F$4))))/49.8328865456397)^'Qn H'!N$17)*('Qn H'!N$18*$B9/1000) -> 711.5 | N66: =(((($D$4-$E$4)/(LN(($D$4-$F$4)/($E$4-$F$4))))/49.8328865456397)^'Qn H'!O$17)*('Qn H'!O$18*$B9/1000) -> 799.5 | O66: =(((($D$4-$E$4)/(LN(($D$4-$F$4)/($E$4-$F$4))))/49.8328865456397)^'Qn H'!P$17)*('Qn H'!P$18*$B9/1000) -> 885.5 | P66: =(((($D$4-$E$4)/(LN(($D$4-$F$4)/($E$4-$F$4))))/49.8328865456397)^'Qn H'!Q$17)*('Qn H'!Q$18*$B9/1000) -> 1175.5 | Q66: =(((($D$4-$E$4)/(LN(($D$4-$F$4)/($E$4-$F$4))))/49.8328865456397)^'Qn H'!R$17)*('Qn H'!R$18*$B9/1000) -> 0 | R66: =(((($D$4-$E$4)/(LN(($D$4-$F$4)/($E$4-$F$4))))/49.8328865456397)^'Qn H'!S$17)*('Qn H'!S$18*$B9/1000) -> 0 | S66: =(((($D$4-$E$4)/(LN(($D$4-$F$4)/($E$4-$F$4))))/49.8328865456397)^'Qn H'!T$17)*('Qn H'!T$18*$B9/1000) -> 0 | W66: 500 | Y66: =Sortiment!A98 -> 1 | Z66: =Sortiment!A218 -> 1 | AA66: =Sortiment!A338 -> 1 | AB66: =Sortiment!A458 -> 1 | AC66: =Sortiment!A578 -> 1 | AG66: =Sortiment!A113 -> 1 | AH66: =Sortiment!A233 -> 1 | AI66: =Sortiment!A353 -> 1 | AJ66: =Sortiment!A473 -> 1 | AK66: =Sortiment!A593 -> 1
B67: 600 | D67: =(((($D$4-$E$4)/(LN(($D$4-$F$4)/($E$4-$F$4))))/49.8328865456397)^'Qn H'!E$17)*('Qn H'!E$18*$B10/1000) -> 538.8 | E67: =(((($D$4-$E$4)/(LN(($D$4-$F$4)/($E$4-$F$4))))/49.8328865456397)^'Qn H'!F$17)*('Qn H'!F$18*$B10/1000) -> 799.2 | F67: =(((($D$4-$E$4)/(LN(($D$4-$F$4)/($E$4-$F$4))))/49.8328865456397)^'Qn H'!G$17)*('Qn H'!G$18*$B10/1000) -> 885.6 | G67: =(((($D$4-$E$4)/(LN(($D$4-$F$4)/($E$4-$F$4))))/49.8328865456397)^'Qn H'!H$17)*('Qn H'!H$18*$B10/1000) -> 1004.4 | H67: =(((($D$4-$E$4)/(LN(($D$4-$F$4)/($E$4-$F$4))))/49.8328865456397)^'Qn H'!I$17)*('Qn H'!I$18*$B10/1000) -> 1342.8 | I67: =(((($D$4-$E$4)/(LN(($D$4-$F$4)/($E$4-$F$4))))/49.8328865456397)^'Qn H'!J$17)*('Qn H'!J$18*$B10/1000) -> 0 | J67: =(((($D$4-$E$4)/(LN(($D$4-$F$4)/($E$4-$F$4))))/49.8328865456397)^'Qn H'!K$17)*('Qn H'!K$18*$B10/1000) -> 0 | K67: =(((($D$4-$E$4)/(LN(($D$4-$F$4)/($E$4-$F$4))))/49.8328865456397)^'Qn H'!L$17)*('Qn H'!L$18*$B10/1000) -> 0 | L67: =(((($D$4-$E$4)/(LN(($D$4-$F$4)/($E$4-$F$4))))/49.8328865456397)^'Qn H'!M$17)*('Qn H'!M$18*$B10/1000) -> 589.2 | M67: =(((($D$4-$E$4)/(LN(($D$4-$F$4)/($E$4-$F$4))))/49.8328865456397)^'Qn H'!N$17)*('Qn H'!N$18*$B10/1000) -> 853.8 | N67: =(((($D$4-$E$4)/(LN(($D$4-$F$4)/($E$4-$F$4))))/49.8328865456397)^'Qn H'!O$17)*('Qn H'!O$18*$B10/1000) -> 959.4 | O67: =(((($D$4-$E$4)/(LN(($D$4-$F$4)/($E$4-$F$4))))/49.8328865456397)^'Qn H'!P$17)*('Qn H'!P$18*$B10/1000) -> 1062.6 | P67: =(((($D$4-$E$4)/(LN(($D$4-$F$4)/($E$4-$F$4))))/49.8328865456397)^'Qn H'!Q$17)*('Qn H'!Q$18*$B10/1000) -> 1410.6 | Q67: =(((($D$4-$E$4)/(LN(($D$4-$F$4)/($E$4-$F$4))))/49.8328865456397)^'Qn H'!R$17)*('Qn H'!R$18*$B10/1000) -> 0 | R67: =(((($D$4-$E$4)/(LN(($D$4-$F$4)/($E$4-$F$4))))/49.8328865456397)^'Qn H'!S$17)*('Qn H'!S$18*$B10/1000) -> 0 | S67: =(((($D$4-$E$4)/(LN(($D$4-$F$4)/($E$4-$F$4))))/49.8328865456397)^'Qn H'!T$17)*('Qn H'!T$18*$B10/1000) -> 0 | W67: 600 | Y67: =Sortiment!A99 -> 1 | Z67: =Sortiment!A219 -> 1 | AA67: =Sortiment!A339 -> 1 | AB67: =Sortiment!A459 -> 1 | AC67: =Sortiment!A579 -> 1 | AG67: =Sortiment!A114 -> 1 | AH67: =Sortiment!A234 -> 1 | AI67: =Sortiment!A354 -> 1 | AJ67: =Sortiment!A474 -> 1 | AK67: =Sortiment!A594 -> 1
B68: 700 | D68: =(((($D$4-$E$4)/(LN(($D$4-$F$4)/($E$4-$F$4))))/49.8328865456397)^'Qn H'!E$17)*('Qn H'!E$18*$B11/1000) -> 628.6 | E68: =(((($D$4-$E$4)/(LN(($D$4-$F$4)/($E$4-$F$4))))/49.8328865456397)^'Qn H'!F$17)*('Qn H'!F$18*$B11/1000) -> 932.4 | F68: =(((($D$4-$E$4)/(LN(($D$4-$F$4)/($E$4-$F$4))))/49.8328865456397)^'Qn H'!G$17)*('Qn H'!G$18*$B11/1000) -> 1033.2 | G68: =(((($D$4-$E$4)/(LN(($D$4-$F$4)/($E$4-$F$4))))/49.8328865456397)^'Qn H'!H$17)*('Qn H'!H$18*$B11/1000) -> 1171.8 | H68: =(((($D$4-$E$4)/(LN(($D$4-$F$4)/($E$4-$F$4))))/49.8328865456397)^'Qn H'!I$17)*('Qn H'!I$18*$B11/1000) -> 1566.6 | I68: =(((($D$4-$E$4)/(LN(($D$4-$F$4)/($E$4-$F$4))))/49.8328865456397)^'Qn H'!J$17)*('Qn H'!J$18*$B11/1000) -> 0 | J68: =(((($D$4-$E$4)/(LN(($D$4-$F$4)/($E$4-$F$4))))/49.8328865456397)^'Qn H'!K$17)*('Qn H'!K$18*$B11/1000) -> 0 | K68: =(((($D$4-$E$4)/(LN(($D$4-$F$4)/($E$4-$F$4))))/49.8328865456397)^'Qn H'!L$17)*('Qn H'!L$18*$B11/1000) -> 0 | L68: =(((($D$4-$E$4)/(LN(($D$4-$F$4)/($E$4-$F$4))))/49.8328865456397)^'Qn H'!M$17)*('Qn H'!M$18*$B11/1000) -> 687.4 | M68: =(((($D$4-$E$4)/(LN(($D$4-$F$4)/($E$4-$F$4))))/49.8328865456397)^'Qn H'!N$17)*('Qn H'!N$18*$B11/1000) -> 996.1 | N68: =(((($D$4-$E$4)/(LN(($D$4-$F$4)/($E$4-$F$4))))/49.8328865456397)^'Qn H'!O$17)*('Qn H'!O$18*$B11/1000) -> 1119.3 | O68: =(((($D$4-$E$4)/(LN(($D$4-$F$4)/($E$4-$F$4))))/49.8328865456397)^'Qn H'!P$17)*('Qn H'!P$18*$B11/1000) -> 1239.7 | P68: =(((($D$4-$E$4)/(LN(($D$4-$F$4)/($E$4-$F$4))))/49.8328865456397)^'Qn H'!Q$17)*('Qn H'!Q$18*$B11/1000) -> 1645.7 | Q68: =(((($D$4-$E$4)/(LN(($D$4-$F$4)/($E$4-$F$4))))/49.8328865456397)^'Qn H'!R$17)*('Qn H'!R$18*$B11/1000) -> 0 | R68: =(((($D$4-$E$4)/(LN(($D$4-$F$4)/($E$4-$F$4))))/49.8328865456397)^'Qn H'!S$17)*('Qn H'!S$18*$B11/1000) -> 0 | S68: =(((($D$4-$E$4)/(LN(($D$4-$F$4)/($E$4-$F$4))))/49.8328865456397)^'Qn H'!T$17)*('Qn H'!T$18*$B11/1000) -> 0 | W68: 700 | Y68: =Sortiment!A100 -> 1 | Z68: =Sortiment!A220 -> 1 | AA68: =Sortiment!A340 -> 1 | AB68: =Sortiment!A460 -> 1 | AC68: =Sortiment!A580 -> 1 | AG68: =Sortiment!A115 -> 1 | AH68: =Sortiment!A235 -> 1 | AI68: =Sortiment!A355 -> 1 | AJ68: =Sortiment!A475 -> 1 | AK68: =Sortiment!A595 -> 1
B69: 800 | D69: =(((($D$4-$E$4)/(LN(($D$4-$F$4)/($E$4-$F$4))))/49.8328865456397)^'Qn H'!E$17)*('Qn H'!E$18*$B12/1000) -> 718.4 | E69: =(((($D$4-$E$4)/(LN(($D$4-$F$4)/($E$4-$F$4))))/49.8328865456397)^'Qn H'!F$17)*('Qn H'!F$18*$B12/1000) -> 1065.6 | F69: =(((($D$4-$E$4)/(LN(($D$4-$F$4)/($E$4-$F$4))))/49.8328865456397)^'Qn H'!G$17)*('Qn H'!G$18*$B12/1000) -> 1180.8 | G69: =(((($D$4-$E$4)/(LN(($D$4-$F$4)/($E$4-$F$4))))/49.8328865456397)^'Qn H'!H$17)*('Qn H'!H$18*$B12/1000) -> 1339.2 | H69: =(((($D$4-$E$4)/(LN(($D$4-$F$4)/($E$4-$F$4))))/49.8328865456397)^'Qn H'!I$17)*('Qn H'!I$18*$B12/1000) -> 1790.4 | I69: =(((($D$4-$E$4)/(LN(($D$4-$F$4)/($E$4-$F$4))))/49.8328865456397)^'Qn H'!J$17)*('Qn H'!J$18*$B12/1000) -> 0 | J69: =(((($D$4-$E$4)/(LN(($D$4-$F$4)/($E$4-$F$4))))/49.8328865456397)^'Qn H'!K$17)*('Qn H'!K$18*$B12/1000) -> 0 | K69: =(((($D$4-$E$4)/(LN(($D$4-$F$4)/($E$4-$F$4))))/49.8328865456397)^'Qn H'!L$17)*('Qn H'!L$18*$B12/1000) -> 0 | L69: =(((($D$4-$E$4)/(LN(($D$4-$F$4)/($E$4-$F$4))))/49.8328865456397)^'Qn H'!M$17)*('Qn H'!M$18*$B12/1000) -> 785.6 | M69: =(((($D$4-$E$4)/(LN(($D$4-$F$4)/($E$4-$F$4))))/49.8328865456397)^'Qn H'!N$17)*('Qn H'!N$18*$B12/1000) -> 1138.4 | N69: =(((($D$4-$E$4)/(LN(($D$4-$F$4)/($E$4-$F$4))))/49.8328865456397)^'Qn H'!O$17)*('Qn H'!O$18*$B12/1000) -> 1279.2 | O69: =(((($D$4-$E$4)/(LN(($D$4-$F$4)/($E$4-$F$4))))/49.8328865456397)^'Qn H'!P$17)*('Qn H'!P$18*$B12/1000) -> 1416.8 | P69: =(((($D$4-$E$4)/(LN(($D$4-$F$4)/($E$4-$F$4))))/49.8328865456397)^'Qn H'!Q$17)*('Qn H'!Q$18*$B12/1000) -> 1880.8 | Q69: =(((($D$4-$E$4)/(LN(($D$4-$F$4)/($E$4-$F$4))))/49.8328865456397)^'Qn H'!R$17)*('Qn H'!R$18*$B12/1000) -> 0 | R69: =(((($D$4-$E$4)/(LN(($D$4-$F$4)/($E$4-$F$4))))/49.8328865456397)^'Qn H'!S$17)*('Qn H'!S$18*$B12/1000) -> 0 | S69: =(((($D$4-$E$4)/(LN(($D$4-$F$4)/($E$4-$F$4))))/49.8328865456397)^'Qn H'!T$17)*('Qn H'!T$18*$B12/1000) -> 0 | W69: 800 | Y69: =Sortiment!A101 -> 1 | Z69: =Sortiment!A221 -> 1 | AA69: =Sortiment!A341 -> 1 | AB69: =Sortiment!A461 -> 1 | AC69: =Sortiment!A581 -> 1 | AG69: =Sortiment!A116 -> 1 | AH69: =Sortiment!A236 -> 1 | AI69: =Sortiment!A356 -> 1 | AJ69: =Sortiment!A476 -> 1 | AK69: =Sortiment!A596 -> 1
B70: 900 | D70: =(((($D$4-$E$4)/(LN(($D$4-$F$4)/($E$4-$F$4))))/49.8328865456397)^'Qn H'!E$17)*('Qn H'!E$18*$B13/1000) -> 808.2 | E70: =(((($D$4-$E$4)/(LN(($D$4-$F$4)/($E$4-$F$4))))/49.8328865456397)^'Qn H'!F$17)*('Qn H'!F$18*$B13/1000) -> 1198.8 | F70: =(((($D$4-$E$4)/(LN(($D$4-$F$4)/($E$4-$F$4))))/49.8328865456397)^'Qn H'!G$17)*('Qn H'!G$18*$B13/1000) -> 1328.4 | G70: =(((($D$4-$E$4)/(LN(($D$4-$F$4)/($E$4-$F$4))))/49.8328865456397)^'Qn H'!H$17)*('Qn H'!H$18*$B13/1000) -> 1506.6 | H70: =(((($D$4-$E$4)/(LN(($D$4-$F$4)/($E$4-$F$4))))/49.8328865456397)^'Qn H'!I$17)*('Qn H'!I$18*$B13/1000) -> 2014.2 | I70: =(((($D$4-$E$4)/(LN(($D$4-$F$4)/($E$4-$F$4))))/49.8328865456397)^'Qn H'!J$17)*('Qn H'!J$18*$B13/1000) -> 0 | J70: =(((($D$4-$E$4)/(LN(($D$4-$F$4)/($E$4-$F$4))))/49.8328865456397)^'Qn H'!K$17)*('Qn H'!K$18*$B13/1000) -> 0 | K70: =(((($D$4-$E$4)/(LN(($D$4-$F$4)/($E$4-$F$4))))/49.8328865456397)^'Qn H'!L$17)*('Qn H'!L$18*$B13/1000) -> 0 | L70: =(((($D$4-$E$4)/(LN(($D$4-$F$4)/($E$4-$F$4))))/49.8328865456397)^'Qn H'!M$17)*('Qn H'!M$18*$B13/1000) -> 883.8 | M70: =(((($D$4-$E$4)/(LN(($D$4-$F$4)/($E$4-$F$4))))/49.8328865456397)^'Qn H'!N$17)*('Qn H'!N$18*$B13/1000) -> 1280.7 | N70: =(((($D$4-$E$4)/(LN(($D$4-$F$4)/($E$4-$F$4))))/49.8328865456397)^'Qn H'!O$17)*('Qn H'!O$18*$B13/1000) -> 1439.1 | O70: =(((($D$4-$E$4)/(LN(($D$4-$F$4)/($E$4-$F$4))))/49.8328865456397)^'Qn H'!P$17)*('Qn H'!P$18*$B13/1000) -> 1593.9 | P70: =(((($D$4-$E$4)/(LN(($D$4-$F$4)/($E$4-$F$4))))/49.8328865456397)^'Qn H'!Q$17)*('Qn H'!Q$18*$B13/1000) -> 2115.9 | Q70: =(((($D$4-$E$4)/(LN(($D$4-$F$4)/($E$4-$F$4))))/49.8328865456397)^'Qn H'!R$17)*('Qn H'!R$18*$B13/1000) -> 0 | R70: =(((($D$4-$E$4)/(LN(($D$4-$F$4)/($E$4-$F$4))))/49.8328865456397)^'Qn H'!S$17)*('Qn H'!S$18*$B13/1000) -> 0 | S70: =(((($D$4-$E$4)/(LN(($D$4-$F$4)/($E$4-$F$4))))/49.8328865456397)^'Qn H'!T$17)*('Qn H'!T$18*$B13/1000) -> 0 | W70: 900 | Y70: =Sortiment!A102 -> 1 | Z70: =Sortiment!A222 -> 1 | AA70: =Sortiment!A342 -> 1 | AB70: =Sortiment!A462 -> 1 | AC70: =Sortiment!A582 -> 1 | AG70: =Sortiment!A117 -> 1 | AH70: =Sortiment!A237 -> 1 | AI70: =Sortiment!A357 -> 1 | AJ70: =Sortiment!A477 -> 1 | AK70: =Sortiment!A597 -> 1
B71: 1000 | D71: =(((($D$4-$E$4)/(LN(($D$4-$F$4)/($E$4-$F$4))))/49.8328865456397)^'Qn H'!E$17)*('Qn H'!E$18*$B14/1000) -> 898 | E71: =(((($D$4-$E$4)/(LN(($D$4-$F$4)/($E$4-$F$4))))/49.8328865456397)^'Qn H'!F$17)*('Qn H'!F$18*$B14/1000) -> 1332 | F71: =(((($D$4-$E$4)/(LN(($D$4-$F$4)/($E$4-$F$4))))/49.8328865456397)^'Qn H'!G$17)*('Qn H'!G$18*$B14/1000) -> 1476 | G71: =(((($D$4-$E$4)/(LN(($D$4-$F$4)/($E$4-$F$4))))/49.8328865456397)^'Qn H'!H$17)*('Qn H'!H$18*$B14/1000) -> 1674 | H71: =(((($D$4-$E$4)/(LN(($D$4-$F$4)/($E$4-$F$4))))/49.8328865456397)^'Qn H'!I$17)*('Qn H'!I$18*$B14/1000) -> 2238 | I71: =(((($D$4-$E$4)/(LN(($D$4-$F$4)/($E$4-$F$4))))/49.8328865456397)^'Qn H'!J$17)*('Qn H'!J$18*$B14/1000) -> 0 | J71: =(((($D$4-$E$4)/(LN(($D$4-$F$4)/($E$4-$F$4))))/49.8328865456397)^'Qn H'!K$17)*('Qn H'!K$18*$B14/1000) -> 0 | K71: =(((($D$4-$E$4)/(LN(($D$4-$F$4)/($E$4-$F$4))))/49.8328865456397)^'Qn H'!L$17)*('Qn H'!L$18*$B14/1000) -> 0 | L71: =(((($D$4-$E$4)/(LN(($D$4-$F$4)/($E$4-$F$4))))/49.8328865456397)^'Qn H'!M$17)*('Qn H'!M$18*$B14/1000) -> 982 | M71: =(((($D$4-$E$4)/(LN(($D$4-$F$4)/($E$4-$F$4))))/49.8328865456397)^'Qn H'!N$17)*('Qn H'!N$18*$B14/1000) -> 1423 | N71: =(((($D$4-$E$4)/(LN(($D$4-$F$4)/($E$4-$F$4))))/49.8328865456397)^'Qn H'!O$17)*('Qn H'!O$18*$B14/1000) -> 1599 | O71: =(((($D$4-$E$4)/(LN(($D$4-$F$4)/($E$4-$F$4))))/49.8328865456397)^'Qn H'!P$17)*('Qn H'!P$18*$B14/1000) -> 1771 | P71: =(((($D$4-$E$4)/(LN(($D$4-$F$4)/($E$4-$F$4))))/49.8328865456397)^'Qn H'!Q$17)*('Qn H'!Q$18*$B14/1000) -> 2351 | Q71: =(((($D$4-$E$4)/(LN(($D$4-$F$4)/($E$4-$F$4))))/49.8328865456397)^'Qn H'!R$17)*('Qn H'!R$18*$B14/1000) -> 0 | R71: =(((($D$4-$E$4)/(LN(($D$4-$F$4)/($E$4-$F$4))))/49.8328865456397)^'Qn H'!S$17)*('Qn H'!S$18*$B14/1000) -> 0 | S71: =(((($D$4-$E$4)/(LN(($D$4-$F$4)/($E$4-$F$4))))/49.8328865456397)^'Qn H'!T$17)*('Qn H'!T$18*$B14/1000) -> 0 | W71: 1000 | Y71: =Sortiment!A103 -> 1 | Z71: =Sortiment!A223 -> 1 | AA71: =Sortiment!A343 -> 1 | AB71: =Sortiment!A463 -> 1 | AC71: =Sortiment!A583 -> 1 | AG71: =Sortiment!A118 -> 1 | AH71: =Sortiment!A238 -> 1 | AI71: =Sortiment!A358 -> 1 | AJ71: =Sortiment!A478 -> 1 | AK71: =Sortiment!A598 -> 1
B72: 1100 | D72: =(((($D$4-$E$4)/(LN(($D$4-$F$4)/($E$4-$F$4))))/49.8328865456397)^'Qn H'!E$17)*('Qn H'!E$18*$B15/1000) -> 987.8 | E72: =(((($D$4-$E$4)/(LN(($D$4-$F$4)/($E$4-$F$4))))/49.8328865456397)^'Qn H'!F$17)*('Qn H'!F$18*$B15/1000) -> 1465.2 | F72: =(((($D$4-$E$4)/(LN(($D$4-$F$4)/($E$4-$F$4))))/49.8328865456397)^'Qn H'!G$17)*('Qn H'!G$18*$B15/1000) -> 1623.6 | G72: =(((($D$4-$E$4)/(LN(($D$4-$F$4)/($E$4-$F$4))))/49.8328865456397)^'Qn H'!H$17)*('Qn H'!H$18*$B15/1000) -> 1841.4 | H72: =(((($D$4-$E$4)/(LN(($D$4-$F$4)/($E$4-$F$4))))/49.8328865456397)^'Qn H'!I$17)*('Qn H'!I$18*$B15/1000) -> 2461.8 | I72: =(((($D$4-$E$4)/(LN(($D$4-$F$4)/($E$4-$F$4))))/49.8328865456397)^'Qn H'!J$17)*('Qn H'!J$18*$B15/1000) -> 0 | J72: =(((($D$4-$E$4)/(LN(($D$4-$F$4)/($E$4-$F$4))))/49.8328865456397)^'Qn H'!K$17)*('Qn H'!K$18*$B15/1000) -> 0 | K72: =(((($D$4-$E$4)/(LN(($D$4-$F$4)/($E$4-$F$4))))/49.8328865456397)^'Qn H'!L$17)*('Qn H'!L$18*$B15/1000) -> 0 | L72: =(((($D$4-$E$4)/(LN(($D$4-$F$4)/($E$4-$F$4))))/49.8328865456397)^'Qn H'!M$17)*('Qn H'!M$18*$B15/1000) -> 1080.2 | M72: =(((($D$4-$E$4)/(LN(($D$4-$F$4)/($E$4-$F$4))))/49.8328865456397)^'Qn H'!N$17)*('Qn H'!N$18*$B15/1000) -> 1565.3 | N72: =(((($D$4-$E$4)/(LN(($D$4-$F$4)/($E$4-$F$4))))/49.8328865456397)^'Qn H'!O$17)*('Qn H'!O$18*$B15/1000) -> 1758.9 | O72: =(((($D$4-$E$4)/(LN(($D$4-$F$4)/($E$4-$F$4))))/49.8328865456397)^'Qn H'!P$17)*('Qn H'!P$18*$B15/1000) -> 1948.1 | P72: =(((($D$4-$E$4)/(LN(($D$4-$F$4)/($E$4-$F$4))))/49.8328865456397)^'Qn H'!Q$17)*('Qn H'!Q$18*$B15/1000) -> 2586.1 | Q72: =(((($D$4-$E$4)/(LN(($D$4-$F$4)/($E$4-$F$4))))/49.8328865456397)^'Qn H'!R$17)*('Qn H'!R$18*$B15/1000) -> 0 | R72: =(((($D$4-$E$4)/(LN(($D$4-$F$4)/($E$4-$F$4))))/49.8328865456397)^'Qn H'!S$17)*('Qn H'!S$18*$B15/1000) -> 0 | S72: =(((($D$4-$E$4)/(LN(($D$4-$F$4)/($E$4-$F$4))))/49.8328865456397)^'Qn H'!T$17)*('Qn H'!T$18*$B15/1000) -> 0 | W72: 1100 | Y72: =Sortiment!A104 -> 1 | Z72: =Sortiment!A224 -> 1 | AA72: =Sortiment!A344 -> 1 | AB72: =Sortiment!A464 -> 1 | AC72: =Sortiment!A584 -> 1 | AG72: =Sortiment!A119 -> 1 | AH72: =Sortiment!A239 -> 1 | AI72: =Sortiment!A359 -> 1 | AJ72: =Sortiment!A479 -> 1 | AK72: =Sortiment!A599 -> 1
B73: 1200 | D73: =(((($D$4-$E$4)/(LN(($D$4-$F$4)/($E$4-$F$4))))/49.8328865456397)^'Qn H'!E$17)*('Qn H'!E$18*$B16/1000) -> 1077.6 | E73: =(((($D$4-$E$4)/(LN(($D$4-$F$4)/($E$4-$F$4))))/49.8328865456397)^'Qn H'!F$17)*('Qn H'!F$18*$B16/1000) -> 1598.4 | F73: =(((($D$4-$E$4)/(LN(($D$4-$F$4)/($E$4-$F$4))))/49.8328865456397)^'Qn H'!G$17)*('Qn H'!G$18*$B16/1000) -> 1771.2 | G73: =(((($D$4-$E$4)/(LN(($D$4-$F$4)/($E$4-$F$4))))/49.8328865456397)^'Qn H'!H$17)*('Qn H'!H$18*$B16/1000) -> 2008.8 | H73: =(((($D$4-$E$4)/(LN(($D$4-$F$4)/($E$4-$F$4))))/49.8328865456397)^'Qn H'!I$17)*('Qn H'!I$18*$B16/1000) -> 2685.6 | I73: =(((($D$4-$E$4)/(LN(($D$4-$F$4)/($E$4-$F$4))))/49.8328865456397)^'Qn H'!J$17)*('Qn H'!J$18*$B16/1000) -> 0 | J73: =(((($D$4-$E$4)/(LN(($D$4-$F$4)/($E$4-$F$4))))/49.8328865456397)^'Qn H'!K$17)*('Qn H'!K$18*$B16/1000) -> 0 | K73: =(((($D$4-$E$4)/(LN(($D$4-$F$4)/($E$4-$F$4))))/49.8328865456397)^'Qn H'!L$17)*('Qn H'!L$18*$B16/1000) -> 0 | L73: =(((($D$4-$E$4)/(LN(($D$4-$F$4)/($E$4-$F$4))))/49.8328865456397)^'Qn H'!M$17)*('Qn H'!M$18*$B16/1000) -> 1178.4 | M73: =(((($D$4-$E$4)/(LN(($D$4-$F$4)/($E$4-$F$4))))/49.8328865456397)^'Qn H'!N$17)*('Qn H'!N$18*$B16/1000) -> 1707.6 | N73: =(((($D$4-$E$4)/(LN(($D$4-$F$4)/($E$4-$F$4))))/49.8328865456397)^'Qn H'!O$17)*('Qn H'!O$18*$B16/1000) -> 1918.8 | O73: =(((($D$4-$E$4)/(LN(($D$4-$F$4)/($E$4-$F$4))))/49.8328865456397)^'Qn H'!P$17)*('Qn H'!P$18*$B16/1000) -> 2125.2 | P73: =(((($D$4-$E$4)/(LN(($D$4-$F$4)/($E$4-$F$4))))/49.8328865456397)^'Qn H'!Q$17)*('Qn H'!Q$18*$B16/1000) -> 2821.2 | Q73: =(((($D$4-$E$4)/(LN(($D$4-$F$4)/($E$4-$F$4))))/49.8328865456397)^'Qn H'!R$17)*('Qn H'!R$18*$B16/1000) -> 0 | R73: =(((($D$4-$E$4)/(LN(($D$4-$F$4)/($E$4-$F$4))))/49.8328865456397)^'Qn H'!S$17)*('Qn H'!S$18*$B16/1000) -> 0 | S73: =(((($D$4-$E$4)/(LN(($D$4-$F$4)/($E$4-$F$4))))/49.8328865456397)^'Qn H'!T$17)*('Qn H'!T$18*$B16/1000) -> 0 | W73: 1200 | Y73: =Sortiment!A105 -> 1 | Z73: =Sortiment!A225 -> 1 | AA73: =Sortiment!A345 -> 1 | AB73: =Sortiment!A465 -> 1 | AC73: =Sortiment!A585 -> 1 | AG73: =Sortiment!A120 -> 1 | AH73: =Sortiment!A240 -> 1 | AI73: =Sortiment!A360 -> 1 | AJ73: =Sortiment!A480 -> 1 | AK73: =Sortiment!A600 -> 1
B74: 1400 | D74: =(((($D$4-$E$4)/(LN(($D$4-$F$4)/($E$4-$F$4))))/49.8328865456397)^'Qn H'!E$17)*('Qn H'!E$18*$B17/1000) -> 1257.2 | E74: =(((($D$4-$E$4)/(LN(($D$4-$F$4)/($E$4-$F$4))))/49.8328865456397)^'Qn H'!F$17)*('Qn H'!F$18*$B17/1000) -> 1864.8 | F74: =(((($D$4-$E$4)/(LN(($D$4-$F$4)/($E$4-$F$4))))/49.8328865456397)^'Qn H'!G$17)*('Qn H'!G$18*$B17/1000) -> 2066.4 | G74: =(((($D$4-$E$4)/(LN(($D$4-$F$4)/($E$4-$F$4))))/49.8328865456397)^'Qn H'!H$17)*('Qn H'!H$18*$B17/1000) -> 2343.6 | H74: =(((($D$4-$E$4)/(LN(($D$4-$F$4)/($E$4-$F$4))))/49.8328865456397)^'Qn H'!I$17)*('Qn H'!I$18*$B17/1000) -> 3133.2 | I74: =(((($D$4-$E$4)/(LN(($D$4-$F$4)/($E$4-$F$4))))/49.8328865456397)^'Qn H'!J$17)*('Qn H'!J$18*$B17/1000) -> 0 | J74: =(((($D$4-$E$4)/(LN(($D$4-$F$4)/($E$4-$F$4))))/49.8328865456397)^'Qn H'!K$17)*('Qn H'!K$18*$B17/1000) -> 0 | K74: =(((($D$4-$E$4)/(LN(($D$4-$F$4)/($E$4-$F$4))))/49.8328865456397)^'Qn H'!L$17)*('Qn H'!L$18*$B17/1000) -> 0 | L74: =(((($D$4-$E$4)/(LN(($D$4-$F$4)/($E$4-$F$4))))/49.8328865456397)^'Qn H'!M$17)*('Qn H'!M$18*$B17/1000) -> 1374.8 | M74: =(((($D$4-$E$4)/(LN(($D$4-$F$4)/($E$4-$F$4))))/49.8328865456397)^'Qn H'!N$17)*('Qn H'!N$18*$B17/1000) -> 1992.2 | N74: =(((($D$4-$E$4)/(LN(($D$4-$F$4)/($E$4-$F$4))))/49.8328865456397)^'Qn H'!O$17)*('Qn H'!O$18*$B17/1000) -> 2238.6 | O74: =(((($D$4-$E$4)/(LN(($D$4-$F$4)/($E$4-$F$4))))/49.8328865456397)^'Qn H'!P$17)*('Qn H'!P$18*$B17/1000) -> 2479.4 | P74: =(((($D$4-$E$4)/(LN(($D$4-$F$4)/($E$4-$F$4))))/49.8328865456397)^'Qn H'!Q$17)*('Qn H'!Q$18*$B17/1000) -> 3291.4 | Q74: =(((($D$4-$E$4)/(LN(($D$4-$F$4)/($E$4-$F$4))))/49.8328865456397)^'Qn H'!R$17)*('Qn H'!R$18*$B17/1000) -> 0 | R74: =(((($D$4-$E$4)/(LN(($D$4-$F$4)/($E$4-$F$4))))/49.8328865456397)^'Qn H'!S$17)*('Qn H'!S$18*$B17/1000) -> 0 | S74: =(((($D$4-$E$4)/(LN(($D$4-$F$4)/($E$4-$F$4))))/49.8328865456397)^'Qn H'!T$17)*('Qn H'!T$18*$B17/1000) -> 0 | W74: 1400 | Y74: =Sortiment!A106 -> 1 | Z74: =Sortiment!A226 -> 1 | AA74: =Sortiment!A346 -> 1 | AB74: =Sortiment!A466 -> 1 | AC74: =Sortiment!A586 -> 1 | AG74: =Sortiment!A121 -> 1 | AH74: =Sortiment!A241 -> 1 | AI74: =Sortiment!A361 -> 1 | AJ74: =Sortiment!A481 -> 1 | AK74: =Sortiment!A601 -> 1
B75: 1600 | D75: =(((($D$4-$E$4)/(LN(($D$4-$F$4)/($E$4-$F$4))))/49.8328865456397)^'Qn H'!E$17)*('Qn H'!E$18*$B18/1000) -> 1436.8 | E75: =(((($D$4-$E$4)/(LN(($D$4-$F$4)/($E$4-$F$4))))/49.8328865456397)^'Qn H'!F$17)*('Qn H'!F$18*$B18/1000) -> 2131.2 | F75: =(((($D$4-$E$4)/(LN(($D$4-$F$4)/($E$4-$F$4))))/49.8328865456397)^'Qn H'!G$17)*('Qn H'!G$18*$B18/1000) -> 2361.6 | G75: =(((($D$4-$E$4)/(LN(($D$4-$F$4)/($E$4-$F$4))))/49.8328865456397)^'Qn H'!H$17)*('Qn H'!H$18*$B18/1000) -> 2678.4 | H75: =(((($D$4-$E$4)/(LN(($D$4-$F$4)/($E$4-$F$4))))/49.8328865456397)^'Qn H'!I$17)*('Qn H'!I$18*$B18/1000) -> 3580.8 | I75: =(((($D$4-$E$4)/(LN(($D$4-$F$4)/($E$4-$F$4))))/49.8328865456397)^'Qn H'!J$17)*('Qn H'!J$18*$B18/1000) -> 0 | J75: =(((($D$4-$E$4)/(LN(($D$4-$F$4)/($E$4-$F$4))))/49.8328865456397)^'Qn H'!K$17)*('Qn H'!K$18*$B18/1000) -> 0 | K75: =(((($D$4-$E$4)/(LN(($D$4-$F$4)/($E$4-$F$4))))/49.8328865456397)^'Qn H'!L$17)*('Qn H'!L$18*$B18/1000) -> 0 | L75: =(((($D$4-$E$4)/(LN(($D$4-$F$4)/($E$4-$F$4))))/49.8328865456397)^'Qn H'!M$17)*('Qn H'!M$18*$B18/1000) -> 1571.2 | M75: =(((($D$4-$E$4)/(LN(($D$4-$F$4)/($E$4-$F$4))))/49.8328865456397)^'Qn H'!N$17)*('Qn H'!N$18*$B18/1000) -> 2276.8 | N75: =(((($D$4-$E$4)/(LN(($D$4-$F$4)/($E$4-$F$4))))/49.8328865456397)^'Qn H'!O$17)*('Qn H'!O$18*$B18/1000) -> 2558.4 | O75: =(((($D$4-$E$4)/(LN(($D$4-$F$4)/($E$4-$F$4))))/49.8328865456397)^'Qn H'!P$17)*('Qn H'!P$18*$B18/1000) -> 2833.6 | P75: =(((($D$4-$E$4)/(LN(($D$4-$F$4)/($E$4-$F$4))))/49.8328865456397)^'Qn H'!Q$17)*('Qn H'!Q$18*$B18/1000) -> 3761.6 | Q75: =(((($D$4-$E$4)/(LN(($D$4-$F$4)/($E$4-$F$4))))/49.8328865456397)^'Qn H'!R$17)*('Qn H'!R$18*$B18/1000) -> 0 | R75: =(((($D$4-$E$4)/(LN(($D$4-$F$4)/($E$4-$F$4))))/49.8328865456397)^'Qn H'!S$17)*('Qn H'!S$18*$B18/1000) -> 0 | S75: =(((($D$4-$E$4)/(LN(($D$4-$F$4)/($E$4-$F$4))))/49.8328865456397)^'Qn H'!T$17)*('Qn H'!T$18*$B18/1000) -> 0 | W75: 1600 | Y75: =Sortiment!A107 -> 1 | Z75: =Sortiment!A227 -> 1 | AA75: =Sortiment!A347 -> 1 | AB75: =Sortiment!A467 -> 1 | AC75: =Sortiment!A587 -> 0 | AG75: =Sortiment!A122 -> 1 | AH75: =Sortiment!A242 -> 1 | AI75: =Sortiment!A362 -> 1 | AJ75: =Sortiment!A482 -> 1 | AK75: =Sortiment!A602 -> 0
B76: 1800 | D76: =(((($D$4-$E$4)/(LN(($D$4-$F$4)/($E$4-$F$4))))/49.8328865456397)^'Qn H'!E$17)*('Qn H'!E$18*$B19/1000) -> 1616.4 | E76: =(((($D$4-$E$4)/(LN(($D$4-$F$4)/($E$4-$F$4))))/49.8328865456397)^'Qn H'!F$17)*('Qn H'!F$18*$B19/1000) -> 2397.6 | F76: =(((($D$4-$E$4)/(LN(($D$4-$F$4)/($E$4-$F$4))))/49.8328865456397)^'Qn H'!G$17)*('Qn H'!G$18*$B19/1000) -> 2656.8 | G76: =(((($D$4-$E$4)/(LN(($D$4-$F$4)/($E$4-$F$4))))/49.8328865456397)^'Qn H'!H$17)*('Qn H'!H$18*$B19/1000) -> 3013.2 | H76: =(((($D$4-$E$4)/(LN(($D$4-$F$4)/($E$4-$F$4))))/49.8328865456397)^'Qn H'!I$17)*('Qn H'!I$18*$B19/1000) -> 4028.4 | I76: =(((($D$4-$E$4)/(LN(($D$4-$F$4)/($E$4-$F$4))))/49.8328865456397)^'Qn H'!J$17)*('Qn H'!J$18*$B19/1000) -> 0 | J76: =(((($D$4-$E$4)/(LN(($D$4-$F$4)/($E$4-$F$4))))/49.8328865456397)^'Qn H'!K$17)*('Qn H'!K$18*$B19/1000) -> 0 | K76: =(((($D$4-$E$4)/(LN(($D$4-$F$4)/($E$4-$F$4))))/49.8328865456397)^'Qn H'!L$17)*('Qn H'!L$18*$B19/1000) -> 0 | L76: =(((($D$4-$E$4)/(LN(($D$4-$F$4)/($E$4-$F$4))))/49.8328865456397)^'Qn H'!M$17)*('Qn H'!M$18*$B19/1000) -> 1767.6 | M76: =(((($D$4-$E$4)/(LN(($D$4-$F$4)/($E$4-$F$4))))/49.8328865456397)^'Qn H'!N$17)*('Qn H'!N$18*$B19/1000) -> 2561.4 | N76: =(((($D$4-$E$4)/(LN(($D$4-$F$4)/($E$4-$F$4))))/49.8328865456397)^'Qn H'!O$17)*('Qn H'!O$18*$B19/1000) -> 2878.2 | O76: =(((($D$4-$E$4)/(LN(($D$4-$F$4)/($E$4-$F$4))))/49.8328865456397)^'Qn H'!P$17)*('Qn H'!P$18*$B19/1000) -> 3187.8 | P76: =(((($D$4-$E$4)/(LN(($D$4-$F$4)/($E$4-$F$4))))/49.8328865456397)^'Qn H'!Q$17)*('Qn H'!Q$18*$B19/1000) -> 4231.8 | Q76: =(((($D$4-$E$4)/(LN(($D$4-$F$4)/($E$4-$F$4))))/49.8328865456397)^'Qn H'!R$17)*('Qn H'!R$18*$B19/1000) -> 0 | R76: =(((($D$4-$E$4)/(LN(($D$4-$F$4)/($E$4-$F$4))))/49.8328865456397)^'Qn H'!S$17)*('Qn H'!S$18*$B19/1000) -> 0 | S76: =(((($D$4-$E$4)/(LN(($D$4-$F$4)/($E$4-$F$4))))/49.8328865456397)^'Qn H'!T$17)*('Qn H'!T$18*$B19/1000) -> 0 | W76: 1800 | Y76: =Sortiment!A108 -> 1 | Z76: =Sortiment!A228 -> 1 | AA76: =Sortiment!A348 -> 1 | AB76: =Sortiment!A468 -> 1 | AC76: =Sortiment!A588 -> 0 | AG76: =Sortiment!A123 -> 1 | AH76: =Sortiment!A243 -> 1 | AI76: =Sortiment!A363 -> 1 | AJ76: =Sortiment!A483 -> 0 | AK76: =Sortiment!A603 -> 0
B77: 2000 | D77: =(((($D$4-$E$4)/(LN(($D$4-$F$4)/($E$4-$F$4))))/49.8328865456397)^'Qn H'!E$17)*('Qn H'!E$18*$B20/1000) -> 1796 | E77: =(((($D$4-$E$4)/(LN(($D$4-$F$4)/($E$4-$F$4))))/49.8328865456397)^'Qn H'!F$17)*('Qn H'!F$18*$B20/1000) -> 2664 | F77: =(((($D$4-$E$4)/(LN(($D$4-$F$4)/($E$4-$F$4))))/49.8328865456397)^'Qn H'!G$17)*('Qn H'!G$18*$B20/1000) -> 2952 | G77: =(((($D$4-$E$4)/(LN(($D$4-$F$4)/($E$4-$F$4))))/49.8328865456397)^'Qn H'!H$17)*('Qn H'!H$18*$B20/1000) -> 3348 | H77: =(((($D$4-$E$4)/(LN(($D$4-$F$4)/($E$4-$F$4))))/49.8328865456397)^'Qn H'!I$17)*('Qn H'!I$18*$B20/1000) -> 4476 | I77: =(((($D$4-$E$4)/(LN(($D$4-$F$4)/($E$4-$F$4))))/49.8328865456397)^'Qn H'!J$17)*('Qn H'!J$18*$B20/1000) -> 0 | J77: =(((($D$4-$E$4)/(LN(($D$4-$F$4)/($E$4-$F$4))))/49.8328865456397)^'Qn H'!K$17)*('Qn H'!K$18*$B20/1000) -> 0 | K77: =(((($D$4-$E$4)/(LN(($D$4-$F$4)/($E$4-$F$4))))/49.8328865456397)^'Qn H'!L$17)*('Qn H'!L$18*$B20/1000) -> 0 | L77: =(((($D$4-$E$4)/(LN(($D$4-$F$4)/($E$4-$F$4))))/49.8328865456397)^'Qn H'!M$17)*('Qn H'!M$18*$B20/1000) -> 1964 | M77: =(((($D$4-$E$4)/(LN(($D$4-$F$4)/($E$4-$F$4))))/49.8328865456397)^'Qn H'!N$17)*('Qn H'!N$18*$B20/1000) -> 2846 | N77: =(((($D$4-$E$4)/(LN(($D$4-$F$4)/($E$4-$F$4))))/49.8328865456397)^'Qn H'!O$17)*('Qn H'!O$18*$B20/1000) -> 3198 | O77: =(((($D$4-$E$4)/(LN(($D$4-$F$4)/($E$4-$F$4))))/49.8328865456397)^'Qn H'!P$17)*('Qn H'!P$18*$B20/1000) -> 3542 | P77: =(((($D$4-$E$4)/(LN(($D$4-$F$4)/($E$4-$F$4))))/49.8328865456397)^'Qn H'!Q$17)*('Qn H'!Q$18*$B20/1000) -> 4702 | Q77: =(((($D$4-$E$4)/(LN(($D$4-$F$4)/($E$4-$F$4))))/49.8328865456397)^'Qn H'!R$17)*('Qn H'!R$18*$B20/1000) -> 0 | R77: =(((($D$4-$E$4)/(LN(($D$4-$F$4)/($E$4-$F$4))))/49.8328865456397)^'Qn H'!S$17)*('Qn H'!S$18*$B20/1000) -> 0 | S77: =(((($D$4-$E$4)/(LN(($D$4-$F$4)/($E$4-$F$4))))/49.8328865456397)^'Qn H'!T$17)*('Qn H'!T$18*$B20/1000) -> 0 | W77: 2000 | Y77: =Sortiment!A109 -> 1 | Z77: =Sortiment!A229 -> 1 | AA77: =Sortiment!A349 -> 1 | AB77: =Sortiment!A469 -> 0 | AC77: =Sortiment!A589 -> 0 | AG77: =Sortiment!A124 -> 1 | AH77: =Sortiment!A244 -> 1 | AI77: =Sortiment!A364 -> 0 | AJ77: =Sortiment!A484 -> 0 | AK77: =Sortiment!A604 -> 0
B78: 2300 | D78: =(((($D$4-$E$4)/(LN(($D$4-$F$4)/($E$4-$F$4))))/49.8328865456397)^'Qn H'!E$17)*('Qn H'!E$18*$B21/1000) -> 2065.4 | E78: =(((($D$4-$E$4)/(LN(($D$4-$F$4)/($E$4-$F$4))))/49.8328865456397)^'Qn H'!F$17)*('Qn H'!F$18*$B21/1000) -> 3063.6 | F78: =(((($D$4-$E$4)/(LN(($D$4-$F$4)/($E$4-$F$4))))/49.8328865456397)^'Qn H'!G$17)*('Qn H'!G$18*$B21/1000) -> 3394.8 | G78: =(((($D$4-$E$4)/(LN(($D$4-$F$4)/($E$4-$F$4))))/49.8328865456397)^'Qn H'!H$17)*('Qn H'!H$18*$B21/1000) -> 3850.2 | H78: =(((($D$4-$E$4)/(LN(($D$4-$F$4)/($E$4-$F$4))))/49.8328865456397)^'Qn H'!I$17)*('Qn H'!I$18*$B21/1000) -> 5147.4 | I78: =(((($D$4-$E$4)/(LN(($D$4-$F$4)/($E$4-$F$4))))/49.8328865456397)^'Qn H'!J$17)*('Qn H'!J$18*$B21/1000) -> 0 | J78: =(((($D$4-$E$4)/(LN(($D$4-$F$4)/($E$4-$F$4))))/49.8328865456397)^'Qn H'!K$17)*('Qn H'!K$18*$B21/1000) -> 0 | K78: =(((($D$4-$E$4)/(LN(($D$4-$F$4)/($E$4-$F$4))))/49.8328865456397)^'Qn H'!L$17)*('Qn H'!L$18*$B21/1000) -> 0 | L78: =(((($D$4-$E$4)/(LN(($D$4-$F$4)/($E$4-$F$4))))/49.8328865456397)^'Qn H'!M$17)*('Qn H'!M$18*$B21/1000) -> 2258.6 | M78: =(((($D$4-$E$4)/(LN(($D$4-$F$4)/($E$4-$F$4))))/49.8328865456397)^'Qn H'!N$17)*('Qn H'!N$18*$B21/1000) -> 3272.9 | N78: =(((($D$4-$E$4)/(LN(($D$4-$F$4)/($E$4-$F$4))))/49.8328865456397)^'Qn H'!O$17)*('Qn H'!O$18*$B21/1000) -> 3677.7 | O78: =(((($D$4-$E$4)/(LN(($D$4-$F$4)/($E$4-$F$4))))/49.8328865456397)^'Qn H'!P$17)*('Qn H'!P$18*$B21/1000) -> 4073.3 | P78: =(((($D$4-$E$4)/(LN(($D$4-$F$4)/($E$4-$F$4))))/49.8328865456397)^'Qn H'!Q$17)*('Qn H'!Q$18*$B21/1000) -> 5407.3 | Q78: =(((($D$4-$E$4)/(LN(($D$4-$F$4)/($E$4-$F$4))))/49.8328865456397)^'Qn H'!R$17)*('Qn H'!R$18*$B21/1000) -> 0 | R78: =(((($D$4-$E$4)/(LN(($D$4-$F$4)/($E$4-$F$4))))/49.8328865456397)^'Qn H'!S$17)*('Qn H'!S$18*$B21/1000) -> 0 | S78: =(((($D$4-$E$4)/(LN(($D$4-$F$4)/($E$4-$F$4))))/49.8328865456397)^'Qn H'!T$17)*('Qn H'!T$18*$B21/1000) -> 0 | W78: 2300 | Y78: =Sortiment!A110 -> 1 | Z78: =Sortiment!A230 -> 1 | AA78: =Sortiment!A350 -> 0 | AB78: =Sortiment!A470 -> 0 | AC78: =Sortiment!A590 -> 0 | AG78: =Sortiment!A125 -> 1 | AH78: =Sortiment!A245 -> 1 | AI78: =Sortiment!A365 -> 0 | AJ78: =Sortiment!A485 -> 0 | AK78: =Sortiment!A605 -> 0
B79: 2600 | D79: =(((($D$4-$E$4)/(LN(($D$4-$F$4)/($E$4-$F$4))))/49.8328865456397)^'Qn H'!E$17)*('Qn H'!E$18*$B22/1000) -> 2334.8 | E79: =(((($D$4-$E$4)/(LN(($D$4-$F$4)/($E$4-$F$4))))/49.8328865456397)^'Qn H'!F$17)*('Qn H'!F$18*$B22/1000) -> 3463.2 | F79: =(((($D$4-$E$4)/(LN(($D$4-$F$4)/($E$4-$F$4))))/49.8328865456397)^'Qn H'!G$17)*('Qn H'!G$18*$B22/1000) -> 3837.6 | G79: =(((($D$4-$E$4)/(LN(($D$4-$F$4)/($E$4-$F$4))))/49.8328865456397)^'Qn H'!H$17)*('Qn H'!H$18*$B22/1000) -> 4352.4 | H79: =(((($D$4-$E$4)/(LN(($D$4-$F$4)/($E$4-$F$4))))/49.8328865456397)^'Qn H'!I$17)*('Qn H'!I$18*$B22/1000) -> 5818.8 | I79: =(((($D$4-$E$4)/(LN(($D$4-$F$4)/($E$4-$F$4))))/49.8328865456397)^'Qn H'!J$17)*('Qn H'!J$18*$B22/1000) -> 0 | J79: =(((($D$4-$E$4)/(LN(($D$4-$F$4)/($E$4-$F$4))))/49.8328865456397)^'Qn H'!K$17)*('Qn H'!K$18*$B22/1000) -> 0 | K79: =(((($D$4-$E$4)/(LN(($D$4-$F$4)/($E$4-$F$4))))/49.8328865456397)^'Qn H'!L$17)*('Qn H'!L$18*$B22/1000) -> 0 | L79: =(((($D$4-$E$4)/(LN(($D$4-$F$4)/($E$4-$F$4))))/49.8328865456397)^'Qn H'!M$17)*('Qn H'!M$18*$B22/1000) -> 2553.2 | M79: =(((($D$4-$E$4)/(LN(($D$4-$F$4)/($E$4-$F$4))))/49.8328865456397)^'Qn H'!N$17)*('Qn H'!N$18*$B22/1000) -> 3699.8 | N79: =(((($D$4-$E$4)/(LN(($D$4-$F$4)/($E$4-$F$4))))/49.8328865456397)^'Qn H'!O$17)*('Qn H'!O$18*$B22/1000) -> 4157.4 | O79: =(((($D$4-$E$4)/(LN(($D$4-$F$4)/($E$4-$F$4))))/49.8328865456397)^'Qn H'!P$17)*('Qn H'!P$18*$B22/1000) -> 4604.6 | P79: =(((($D$4-$E$4)/(LN(($D$4-$F$4)/($E$4-$F$4))))/49.8328865456397)^'Qn H'!Q$17)*('Qn H'!Q$18*$B22/1000) -> 6112.6 | Q79: =(((($D$4-$E$4)/(LN(($D$4-$F$4)/($E$4-$F$4))))/49.8328865456397)^'Qn H'!R$17)*('Qn H'!R$18*$B22/1000) -> 0 | R79: =(((($D$4-$E$4)/(LN(($D$4-$F$4)/($E$4-$F$4))))/49.8328865456397)^'Qn H'!S$17)*('Qn H'!S$18*$B22/1000) -> 0 | S79: =(((($D$4-$E$4)/(LN(($D$4-$F$4)/($E$4-$F$4))))/49.8328865456397)^'Qn H'!T$17)*('Qn H'!T$18*$B22/1000) -> 0 | W79: 2600 | Y79: =Sortiment!A111 -> 1 | Z79: =Sortiment!A231 -> 1 | AA79: =Sortiment!A351 -> 0 | AB79: =Sortiment!A471 -> 0 | AC79: =Sortiment!A591 -> 0 | AG79: =Sortiment!A126 -> 1 | AH79: =Sortiment!A246 -> 1 | AI79: =Sortiment!A366 -> 0 | AJ79: =Sortiment!A486 -> 0 | AK79: =Sortiment!A606 -> 0
